{"text_format":"1","workbook":"xlsx","n_sheets":1,"sheets":["Feuil1"],"not_rendered":{"charts":0,"images":0,"macros":0,"external_links":0,"defined_names":0,"comments":0,"pivot_tables":0},"unopened":[],"bounds":{"document_bytes":16777216,"sheet_cells":100000,"rows_first":2000,"rows_last":500,"rows_between":2000,"halvings":0,"cell_chars":16384,"cell_head_chars":4096},"cells_cut":0,"cells_raw":0,"read":"whole","date_system":"1900"}

{"sheet":"Feuil1","index":0,"n_rows":1833,"n_cols":148,"rows_kept":562,"cut":true,"hidden":false,"merged":[[0,23,0,42],[0,44,0,63],[0,65,0,84],[0,86,0,105],[0,107,0,126],[0,128,0,147]],"bounds":{"rows_first":250,"rows_last":62,"rows_between":250,"halvings":3}}
[null,null,null,null,null,null,null,null,null,null,null,null,null,null,null,null,null,null,null,null,null,null,null,"CORRECTION",null,null,null,null,null,null,null,null,null,null,null,null,null,null,null,null,null,null,null,null,"NGG",null,null,null,null,null,null,null,null,null,null,null,null,null,null,null,null,null,null,null,null,"NP2",null,null,null,null,null,null,null,null,null,null,null,null,null,null,null,null,null,null,null,null,"NPG",null,null,null,null,null,null,null,null,null,null,null,null,null,null,null,null,null,null,null,null,"NP4",null,null,null,null,null,null,null,null,null,null,null,null,null,null,null,null,null,null,null,null,"NP5"]
["dates",1,2,3,4,5,6,7,8,9,10,11,12,13,14,15,16,17,18,19,20,null,null,1,2,3,4,5,6,7,8,9,10,11,12,13,14,15,16,17,18,19,20,null,1,2,3,4,5,6,7,8,9,10,11,12,13,14,15,16,17,18,19,20,null,1,2,3,4,5,6,7,8,9,10,11,12,13,14,15,16,17,18,19,20,null,1,2,3,4,5,6,7,8,9,10,11,12,13,14,15,16,17,18,19,20,null,1,2,3,4,5,6,7,8,9,10,11,12,13,14,15,16,17,18,19,20,null,1,2,3,4,5,6,7,8,9,10,11,12,13,14,15,16,17,18,19,20]
["2013-01-01",2,"","",1,"",4,"","","",5,"","","","",3,"",""," "," "," ",null,"2013-01-01",null,null,null,null,null,null,null,null,null,null,null,null,null,null,null,null,null,1,1,1,null,null,null,null,null,null,null,null,null,null,null,null,null,null,null,null,null,null,1,1,1,null,null,null,null,null,null,null,null,null,null,null,null,null,null,null,null,null,null,1,1,1,null,null,null,null,null,null,null,null,null,null,null,null,null,null,null,null,null,null,1,1,1,null,null,null,null,null,null,null,null,null,null,null,null,null,null,null,null,null,null,1,1,1,null,null,null,null,null,null,null,null,null,null,null,null,null,null,null,null,null,null,1,1,1]
["2013-01-02",5,"","",4,"","","","","","",3,1,"","","",2,""," "," "," ",null,"2013-01-02",null,null,null,null,null,null,null,null,null,null,null,null,null,null,null,null,null,1,1,1,null,null,null,null,null,null,null,null,null,null,null,null,null,null,null,null,null,null,1,1,1,null,null,null,null,null,null,null,null,null,null,null,null,null,null,null,null,null,null,1,1,1,null,null,null,null,null,null,null,null,null,null,null,null,null,null,null,null,null,null,1,1,1,null,null,null,null,null,null,null,null,null,null,null,null,null,null,null,null,null,null,1,1,1,null,null,null,null,null,null,null,null,null,null,null,null,null,null,null,null,null,null,1,1,1]
["2013-01-03","","","",1,2,4,"","","","",3,5,"","","","","",""," "," ",null,"2013-01-03",null,null,null,null,null,null,null,null,null,null,null,null,null,null,null,null,null,null,1,1,null,null,null,null,null,null,null,null,null,null,null,null,null,null,null,null,null,null,null,1,1,null,null,null,null,null,null,null,null,null,null,null,null,null,null,null,null,null,null,null,1,1,null,null,null,null,null,null,null,null,null,null,null,null,null,null,null,null,null,null,null,1,1,null,null,null,null,null,null,null,null,null,null,null,null,null,null,null,null,null,null,null,1,1,null,null,null,null,null,null,null,null,null,null,null,null,null,null,null,null,null,null,null,1,1]
["2013-01-04","",4,1,"",3,5,"","",2,"","","","","","","","","",""," ",null,"2013-01-04",null,null,null,null,null,null,null,null,null,null,null,null,null,null,null,null,null,null,null,1,null,null,null,null,null,null,null,null,null,null,null,null,null,null,null,null,null,null,null,null,1,null,null,null,null,null,null,null,null,null,null,null,null,null,null,null,null,null,null,null,null,1,null,null,null,null,null,null,null,null,null,null,null,null,null,null,null,null,null,null,null,null,1,null,null,null,null,null,null,null,null,null,null,null,null,null,null,null,null,null,null,null,null,1,null,null,null,null,null,null,null,null,null,null,null,null,null,null,null,null,null,null,null,null,1]
["2013-01-05","",5,"",3,"","","","","",2,"","","",4,"",1," "," "," "," ",null,"2013-01-05",null,null,null,null,null,null,null,null,null,null,null,null,null,null,null,null,1,1,1,1,null,null,null,null,null,null,null,null,null,null,null,null,null,null,null,null,null,1,1,1,1,null,null,null,null,null,null,null,null,null,null,null,null,null,null,null,null,null,1,1,1,1,null,null,null,null,null,null,null,null,null,null,null,null,null,null,null,null,null,1,1,1,1,null,null,null,null,null,null,null,null,null,null,null,null,null,null,null,null,null,1,1,1,1,null,null,null,null,null,null,null,null,null,null,null,null,null,null,null,null,null,1,1,1,1]
["2013-01-06","","","","",4,"","","",5,1,"","",2,"",3,"",""," "," "," ",null,"2013-01-06",null,null,null,null,null,null,null,null,null,null,null,null,null,null,null,null,null,1,1,1,null,null,null,null,null,null,null,null,null,null,null,null,null,null,null,null,null,null,1,1,1,null,null,null,null,null,null,null,null,null,null,null,null,null,null,null,null,null,null,1,1,1,null,null,null,null,null,null,null,null,null,null,null,null,null,null,null,null,null,null,1,1,1,null,null,null,null,null,null,null,null,null,null,null,null,null,null,null,null,null,null,1,1,1,null,null,null,null,null,null,null,null,null,null,null,null,null,null,null,null,null,null,1,1,1]
["2013-01-07","","","",2,"","","",3,5,"",4,"",1,"",""," "," "," "," "," ",null,"2013-01-07",null,null,null,null,null,null,null,null,null,null,null,null,null,null,null,1,1,1,1,1,null,null,null,null,null,null,null,null,null,null,null,null,null,null,null,null,1,1,1,1,1,null,null,null,null,null,null,null,null,null,null,null,null,null,null,null,null,1,1,1,1,1,null,null,null,null,null,null,null,null,null,null,null,null,null,null,null,null,1,1,1,1,1,null,null,null,null,null,null,null,null,null,null,null,null,null,null,null,null,1,1,1,1,1,null,null,null,null,null,null,null,null,null,null,null,null,null,null,null,null,1,1,1,1,1]
["2013-01-08","","",1,"","","","","","",5,"","","","","",""," ",4,2,3,null,"2013-01-08",null,null,null,null,null,null,null,null,null,null,null,null,null,null,null,null,1,null,null,null,null,null,null,null,null,null,null,null,null,null,null,null,null,null,null,null,null,1,null,null,null,null,null,null,null,null,null,null,null,null,null,null,null,null,null,null,null,null,1,null,null,null,null,null,null,null,null,null,null,null,null,null,null,null,null,null,null,null,null,1,null,null,null,null,null,null,null,null,null,null,null,null,null,null,null,null,null,null,null,null,1,null,null,null,null,null,null,null,null,null,null,null,null,null,null,null,null,null,null,null,null,1]
["2013-01-09","","","","",1,"",4,2,"","",3,"","","","",5,"",""," "," ",null,"2013-01-09",null,null,null,null,null,null,null,null,null,null,null,null,null,null,null,null,null,null,1,1,null,null,null,null,null,null,null,null,null,null,null,null,null,null,null,null,null,null,null,1,1,null,null,null,null,null,null,null,null,null,null,null,null,null,null,null,null,null,null,null,1,1,null,null,null,null,null,null,null,null,null,null,null,null,null,null,null,null,null,null,null,1,1,null,null,null,null,null,null,null,null,null,null,null,null,null,null,null,null,null,null,null,1,1,null,null,null,null,null,null,null,null,null,null,null,null,null,null,null,null,null,null,null,1,1]
["2013-01-10","","","","","","",2,4,"","",1,"","","",3,5,"",""," "," ",null,"2013-01-10",null,null,null,null,null,null,null,null,null,null,null,null,null,null,null,null,null,null,1,1,null,null,null,null,null,null,null,null,null,null,null,null,null,null,null,null,null,null,null,1,1,null,null,null,null,null,null,null,null,null,null,null,null,null,null,null,null,null,null,null,1,1,null,null,null,null,null,null,null,null,null,null,null,null,null,null,null,null,null,null,null,1,1,null,null,null,null,null,null,null,null,null,null,null,null,null,null,null,null,null,null,null,1,1,null,null,null,null,null,null,null,null,null,null,null,null,null,null,null,null,null,null,null,1,1]
["2013-01-11","","","","",3,4,1,"","",2,"","",5,"","","","",""," "," ",null,"2013-01-11",null,null,null,null,null,null,null,null,null,null,null,null,null,null,null,null,null,null,1,1,null,null,null,null,null,null,null,null,null,null,null,null,null,null,null,null,null,null,null,1,1,null,null,null,null,null,null,null,null,null,null,null,null,null,null,null,null,null,null,null,1,1,null,null,null,null,null,null,null,null,null,null,null,null,null,null,null,null,null,null,null,1,1,null,null,null,null,null,null,null,null,null,null,null,null,null,null,null,null,null,null,null,1,1,null,null,null,null,null,null,null,null,null,null,null,null,null,null,null,null,null,null,null,1,1]
["2013-01-12","",3,5,"","",2,"","",4,1,"","","","","","","",""," "," ",null,"2013-01-12",null,null,null,null,null,null,null,null,null,null,null,null,null,null,null,null,null,null,1,1,null,null,null,null,null,null,null,null,null,null,null,null,null,null,null,null,null,null,null,1,1,null,null,null,null,null,null,null,null,null,null,null,null,null,null,null,null,null,null,null,1,1,null,null,null,null,null,null,null,null,null,null,null,null,null,null,null,null,null,null,null,1,1,null,null,null,null,null,null,null,null,null,null,null,null,null,null,null,null,null,null,null,1,1,null,null,null,null,null,null,null,null,null,null,null,null,null,null,null,null,null,null,null,1,1]
["2013-01-13","","",2,"","","",5,"",3,4,1,"","","",""," "," "," "," "," ",null,"2013-01-13",null,null,null,null,null,null,null,null,null,null,null,null,null,null,null,1,1,1,1,1,null,null,null,null,null,null,null,null,null,null,null,null,null,null,null,null,1,1,1,1,1,null,null,null,null,null,null,null,null,null,null,null,null,null,null,null,null,1,1,1,1,1,null,null,null,null,null,null,null,null,null,null,null,null,null,null,null,null,1,1,1,1,1,null,null,null,null,null,null,null,null,null,null,null,null,null,null,null,null,1,1,1,1,1,null,null,null,null,null,null,null,null,null,null,null,null,null,null,null,null,1,1,1,1,1]
["2013-01-14",3,4,"","","",5,"","","","","",1,"","","",2,"",""," "," ",null,"2013-01-14",null,null,null,null,null,null,null,null,null,null,null,null,null,null,null,null,null,null,1,1,null,null,null,null,null,null,null,null,null,null,null,null,null,null,null,null,null,null,null,1,1,null,null,null,null,null,null,null,null,null,null,null,null,null,null,null,null,null,null,null,1,1,null,null,null,null,null,null,null,null,null,null,null,null,null,null,null,null,null,null,null,1,1,null,null,null,null,null,null,null,null,null,null,null,null,null,null,null,null,null,null,null,1,1,null,null,null,null,null,null,null,null,null,null,null,null,null,null,null,null,null,null,null,1,1]
["2013-01-15","","",2,""," ",4,"","",1,"","",3,"","",5," ","",""," "," ",null,"2013-01-15",null,null,null,null,1,null,null,null,null,null,null,null,null,null,null,1,null,null,1,1,null,null,null,null,null,1,null,null,null,null,null,null,null,null,null,null,1,null,null,1,1,null,null,null,null,null,1,null,null,null,null,null,null,null,null,null,null,1,null,null,1,1,null,null,null,null,null,1,null,null,null,null,null,null,null,null,null,null,1,null,null,1,1,null,null,null,null,null,1,null,null,null,null,null,null,null,null,null,null,1,null,null,1,1,null,null,null,null,null,1,null,null,null,null,null,null,null,null,null,null,1,null,null,1,1]
["2013-01-16","",1,"","","",3,"","","","",4,5,"","","",2,"",""," "," ",null,"2013-01-16",null,null,null,null,null,null,null,null,null,null,null,null,null,null,null,null,null,null,1,1,null,null,null,null,null,null,null,null,null,null,null,null,null,null,null,null,null,null,null,1,1,null,null,null,null,null,null,null,null,null,null,null,null,null,null,null,null,null,null,null,1,1,null,null,null,null,null,null,null,null,null,null,null,null,null,null,null,null,null,null,null,1,1,null,null,null,null,null,null,null,null,null,null,null,null,null,null,null,null,null,null,null,1,1,null,null,null,null,null,null,null,null,null,null,null,null,null,null,null,null,null,null,null,1,1]
["2013-01-17","",2,"","",5,3,"","","","",4,"","","","","","",1," "," ",null,"2013-01-17",null,null,null,null,null,null,null,null,null,null,null,null,null,null,null,null,null,null,1,1,null,null,null,null,null,null,null,null,null,null,null,null,null,null,null,null,null,null,null,1,1,null,null,null,null,null,null,null,null,null,null,null,null,null,null,null,null,null,null,null,1,1,null,null,null,null,null,null,null,null,null,null,null,null,null,null,null,null,null,null,null,1,1,null,null,null,null,null,null,null,null,null,null,null,null,null,null,null,null,null,null,null,1,1,null,null,null,null,null,null,null,null,null,null,null,null,null,null,null,null,null,null,null,1,1]
["2013-01-18","","","","","",1,5,"",2,4,"","",3,"","","","",""," "," ",null,"2013-01-18",null,null,null,null,null,null,null,null,null,null,null,null,null,null,null,null,null,null,1,1,null,null,null,null,null,null,null,null,null,null,null,null,null,null,null,null,null,null,null,1,1,null,null,null,null,null,null,null,null,null,null,null,null,null,null,null,null,null,null,null,1,1,null,null,null,null,null,null,null,null,null,null,null,null,null,null,null,null,null,null,null,1,1,null,null,null,null,null,null,null,null,null,null,null,null,null,null,null,null,null,null,null,1,1,null,null,null,null,null,null,null,null,null,null,null,null,null,null,null,null,null,null,null,1,1]
["2013-01-19","","",4,"",2,"","",1," ","",5,"","","","",3,""," "," "," ",null,"2013-01-19",null,null,null,null,null,null,null,null,1,null,null,null,null,null,null,null,null,1,1,1,null,null,null,null,null,null,null,null,null,1,null,null,null,null,null,null,null,null,1,1,1,null,null,null,null,null,null,null,null,null,1,null,null,null,null,null,null,null,null,1,1,1,null,null,null,null,null,null,null,null,null,1,null,null,null,null,null,null,null,null,1,1,1,null,null,null,null,null,null,null,null,null,1,null,null,null,null,null,null,null,null,1,1,1,null,null,null,null,null,null,null,null,null,1,null,null,null,null,null,null,null,null,1,1,1]
["2013-01-20","","",3,"","","","","","",2,"",4,1,"",5,"","",""," "," ",null,"2013-01-20",null,null,null,null,null,null,null,null,null,null,null,null,null,null,null,null,null,null,1,1,null,null,null,null,null,null,null,null,null,null,null,null,null,null,null,null,null,null,null,1,1,null,null,null,null,null,null,null,null,null,null,null,null,null,null,null,null,null,null,null,1,1,null,null,null,null,null,null,null,null,null,null,null,null,null,null,null,null,null,null,null,1,1,null,null,null,null,null,null,null,null,null,null,null,null,null,null,null,null,null,null,null,1,1,null,null,null,null,null,null,null,null,null,null,null,null,null,null,null,null,null,null,null,1,1]
["2013-01-21",4,2,"",5,"","","","","","","",1,"","",3,""," "," "," "," ",null,"2013-01-21",null,null,null,null,null,null,null,null,null,null,null,null,null,null,null,null,1,1,1,1,null,null,null,null,null,null,null,null,null,null,null,null,null,null,null,null,null,1,1,1,1,null,null,null,null,null,null,null,null,null,null,null,null,null,null,null,null,null,1,1,1,1,null,null,null,null,null,null,null,null,null,null,null,null,null,null,null,null,null,1,1,1,1,null,null,null,null,null,null,null,null,null,null,null,null,null,null,null,null,null,1,1,1,1,null,null,null,null,null,null,null,null,null,null,null,null,null,null,null,null,null,1,1,1,1]
["2013-01-22","",4,"","","","","",1,"",3,2,5,"","","",""," "," "," "," ",null,"2013-01-22",null,null,null,null,null,null,null,null,null,null,null,null,null,null,null,null,1,1,1,1,null,null,null,null,null,null,null,null,null,null,null,null,null,null,null,null,null,1,1,1,1,null,null,null,null,null,null,null,null,null,null,null,null,null,null,null,null,null,1,1,1,1,null,null,null,null,null,null,null,null,null,null,null,null,null,null,null,null,null,1,1,1,1,null,null,null,null,null,null,null,null,null,null,null,null,null,null,null,null,null,1,1,1,1,null,null,null,null,null,null,null,null,null,null,null,null,null,null,null,null,null,1,1,1,1]
["2013-01-23","",5,"","",1,"","","","",4,2,"","","","",3," "," "," "," ",null,"2013-01-23",null,null,null,null,null,null,null,null,null,null,null,null,null,null,null,null,1,1,1,1,null,null,null,null,null,null,null,null,null,null,null,null,null,null,null,null,null,1,1,1,1,null,null,null,null,null,null,null,null,null,null,null,null,null,null,null,null,null,1,1,1,1,null,null,null,null,null,null,null,null,null,null,null,null,null,null,null,null,null,1,1,1,1,null,null,null,null,null,null,null,null,null,null,null,null,null,null,null,null,null,1,1,1,1,null,null,null,null,null,null,null,null,null,null,null,null,null,null,null,null,null,1,1,1,1]
["2013-01-24"," "," ","","",5,"",4,"","",3,1,"","","",2,"","",""," "," ",null,"2013-01-24",1,1,null,null,null,null,null,null,null,null,null,null,null,null,null,null,null,1,1,1,null,1,1,null,null,null,null,null,null,null,null,null,null,null,null,null,null,null,1,1,1,null,1,1,null,null,null,null,null,null,null,null,null,null,null,null,null,null,null,1,1,1,null,1,1,null,null,null,null,null,null,null,null,null,null,null,null,null,null,null,1,1,1,null,1,1,null,null,null,null,null,null,null,null,null,null,null,null,null,null,null,1,1,1,null,1,1,null,null,null,null,null,null,null,null,null,null,null,null,null,null,null,1,1,1]
["2013-01-25","",5,2,"",3,"",1,"","",4,"","","","","","",""," "," "," ",null,"2013-01-25",null,null,null,null,null,null,null,null,null,null,null,null,null,null,null,null,null,null,1,1,null,null,null,null,null,null,null,null,null,null,null,null,null,null,null,null,null,null,null,1,1,null,null,null,null,null,null,null,null,null,null,null,null,null,null,null,null,null,null,null,1,1,null,null,null,null,null,null,null,null,null,null,null,null,null,null,null,null,null,null,null,1,1,null,null,null,null,null,null,null,null,null,null,null,null,null,null,null,null,null,null,null,1,1,null,null,null,null,null,null,null,null,null,null,null,null,null,null,null,null,null,null,null,1,1]
["2013-01-26"," ","",3,4,5,"","",""," ","","",2,"",1,"","",""," "," "," ",null,"2013-01-26",1,null,null,null,null,null,null,null,1,null,null,null,null,null,null,null,null,1,1,1,null,1,null,null,null,null,null,null,null,1,null,null,null,null,null,null,null,null,1,1,1,null,1,null,null,null,null,null,null,null,1,null,null,null,null,null,null,null,null,1,1,1,null,1,null,null,null,null,null,null,null,1,null,null,null,null,null,null,null,null,1,1,1,null,1,null,null,null,null,null,null,null,1,null,null,null,null,null,null,null,null,1,1,1,null,1,null,null,null,null,null,null,null,1,null,null,null,null,null,null,null,null,1,1,1]
["2013-01-27","",4,"","","","","",1,"","",5,"","","",3,"","",2," "," ",null,"2013-01-27",null,null,null,null,null,null,null,null,null,null,null,null,null,null,null,null,null,null,1,1,null,null,null,null,null,null,null,null,null,null,null,null,null,null,null,null,null,null,null,1,1,null,null,null,null,null,null,null,null,null,null,null,null,null,null,null,null,null,null,null,1,1,null,null,null,null,null,null,null,null,null,null,null,null,null,null,null,null,null,null,null,1,1,null,null,null,null,null,null,null,null,null,null,null,null,null,null,null,null,null,null,null,1,1,null,null,null,null,null,null,null,null,null,null,null,null,null,null,null,null,null,null,null,1,1]
["2013-01-28",""," ","",2," ","","",4,"","",1,5,"",3,"","",""," "," "," ",null,"2013-01-28",null,1,null,null,1,null,null,null,null,null,null,null,null,null,null,null,null,1,1,1,null,null,1,null,null,1,null,null,null,null,null,null,null,null,null,null,null,null,1,1,1,null,null,1,null,null,1,null,null,null,null,null,null,null,null,null,null,null,null,1,1,1,null,null,1,null,null,1,null,null,null,null,null,null,null,null,null,null,null,null,1,1,1,null,null,1,null,null,1,null,null,null,null,null,null,null,null,null,null,null,null,1,1,1,null,null,1,null,null,1,null,null,null,null,null,null,null,null,null,null,null,null,1,1,1]
["2013-01-29",3,"","","","","",4,"","","",1,5,""," ",2," "," "," "," "," ",null,"2013-01-29",null,null,null,null,null,null,null,null,null,null,null,null,null,1,null,1,1,1,1,1,null,null,null,null,null,null,null,null,null,null,null,null,null,null,1,null,1,1,1,1,1,null,null,null,null,null,null,null,null,null,null,null,null,null,null,1,null,1,1,1,1,1,null,null,null,null,null,null,null,null,null,null,null,null,null,null,1,null,1,1,1,1,1,null,null,null,null,null,null,null,null,null,null,null,null,null,null,1,null,1,1,1,1,1,null,null,null,null,null,null,null,null,null,null,null,null,null,null,1,null,1,1,1,1,1]
["2013-01-30","","",3,"","","","","",5,"","","","",1,2,4,"",""," "," ",null,"2013-01-30",null,null,null,null,null,null,null,null,null,null,null,null,null,null,null,null,null,null,1,1,null,null,null,null,null,null,null,null,null,null,null,null,null,null,null,null,null,null,null,1,1,null,null,null,null,null,null,null,null,null,null,null,null,null,null,null,null,null,null,null,1,1,null,null,null,null,null,null,null,null,null,null,null,null,null,null,null,null,null,null,null,1,1,null,null,null,null,null,null,null,null,null,null,null,null,null,null,null,null,null,null,null,1,1,null,null,null,null,null,null,null,null,null,null,null,null,null,null,null,null,null,null,null,1,1]
["2013-01-31","","",2,1,"","","","","",5,4,"",3,"",""," "," "," "," "," ",null,"2013-01-31",null,null,null,null,null,null,null,null,null,null,null,null,null,null,null,1,1,1,1,1,null,null,null,null,null,null,null,null,null,null,null,null,null,null,null,null,1,1,1,1,1,null,null,null,null,null,null,null,null,null,null,null,null,null,null,null,null,1,1,1,1,1,null,null,null,null,null,null,null,null,null,null,null,null,null,null,null,null,1,1,1,1,1,null,null,null,null,null,null,null,null,null,null,null,null,null,null,null,null,1,1,1,1,1,null,null,null,null,null,null,null,null,null,null,null,null,null,null,null,null,1,1,1,1,1]
["2013-02-01",4,"",1,3,"","","","","",2,"","","","",5," "," ",""," "," ",null,"2013-02-01",null,null,null,null,null,null,null,null,null,null,null,null,null,null,null,1,1,null,1,1,null,null,null,null,null,null,null,null,null,null,null,null,null,null,null,null,1,1,null,1,1,null,null,null,null,null,null,null,null,null,null,null,null,null,null,null,null,1,1,null,1,1,null,null,null,null,null,null,null,null,null,null,null,null,null,null,null,null,1,1,null,1,1,null,null,null,null,null,null,null,null,null,null,null,null,null,null,null,null,1,1,null,1,1,null,null,null,null,null,null,null,null,null,null,null,null,null,null,null,null,1,1,null,1,1]
["2013-02-02","",5,"","","",1,"","",4,"","","",3,"","",2," "," "," "," ",null,"2013-02-02",null,null,null,null,null,null,null,null,null,null,null,null,null,null,null,null,1,1,1,1,null,null,null,null,null,null,null,null,null,null,null,null,null,null,null,null,null,1,1,1,1,null,null,null,null,null,null,null,null,null,null,null,null,null,null,null,null,null,1,1,1,1,null,null,null,null,null,null,null,null,null,null,null,null,null,null,null,null,null,1,1,1,1,null,null,null,null,null,null,null,null,null,null,null,null,null,null,null,null,null,1,1,1,1,null,null,null,null,null,null,null,null,null,null,null,null,null,null,null,null,null,1,1,1,1]
["2013-02-03","","","","",4,2,5,1,"",""," ",3,"","",""," "," "," "," "," ",null,"2013-02-03",null,null,null,null,null,null,null,null,null,null,1,null,null,null,null,1,1,1,1,1,null,null,null,null,null,null,null,null,null,null,null,1,null,null,null,null,1,1,1,1,1,null,null,null,null,null,null,null,null,null,null,null,1,null,null,null,null,1,1,1,1,1,null,null,null,null,null,null,null,null,null,null,null,1,null,null,null,null,1,1,1,1,1,null,null,null,null,null,null,null,null,null,null,null,1,null,null,null,null,1,1,1,1,1,null,null,null,null,null,null,null,null,null,null,null,1,null,null,null,null,1,1,1,1,1]
["2013-02-04","","","","","","","","",5,2,3,4,"",1,"","","",""," "," ",null,"2013-02-04",null,null,null,null,null,null,null,null,null,null,null,null,null,null,null,null,null,null,1,1,null,null,null,null,null,null,null,null,null,null,null,null,null,null,null,null,null,null,null,1,1,null,null,null,null,null,null,null,null,null,null,null,null,null,null,null,null,null,null,null,1,1,null,null,null,null,null,null,null,null,null,null,null,null,null,null,null,null,null,null,null,1,1,null,null,null,null,null,null,null,null,null,null,null,null,null,null,null,null,null,null,null,1,1,null,null,null,null,null,null,null,null,null,null,null,null,null,null,null,null,null,null,null,1,1]
["2013-02-05",""," ","","","",4," ",5,3,"","","","",2,1,"","",""," "," ",null,"2013-02-05",null,1,null,null,null,null,1,null,null,null,null,null,null,null,null,null,null,null,1,1,null,null,1,null,null,null,null,1,null,null,null,null,null,null,null,null,null,null,null,1,1,null,null,1,null,null,null,null,1,null,null,null,null,null,null,null,null,null,null,null,1,1,null,null,1,null,null,null,null,1,null,null,null,null,null,null,null,null,null,null,null,1,1,null,null,1,null,null,null,null,1,null,null,null,null,null,null,null,null,null,null,null,1,1,null,null,1,null,null,null,null,1,null,null,null,null,null,null,null,null,null,null,null,1,1]
["2013-02-06","","",5,4,"","","",2," ","",3,"","","","","",1,""," "," ",null,"2013-02-06",null,null,null,null,null,null,null,null,1,null,null,null,null,null,null,null,null,null,1,1,null,null,null,null,null,null,null,null,null,1,null,null,null,null,null,null,null,null,null,1,1,null,null,null,null,null,null,null,null,null,1,null,null,null,null,null,null,null,null,null,1,1,null,null,null,null,null,null,null,null,null,1,null,null,null,null,null,null,null,null,null,1,1,null,null,null,null,null,null,null,null,null,1,null,null,null,null,null,null,null,null,null,1,1,null,null,null,null,null,null,null,null,null,1,null,null,null,null,null,null,null,null,null,1,1]
["2013-02-07","",""," ","",1,"",5,"","",4,"",3,"","","",2,""," "," "," ",null,"2013-02-07",null,null,1,null,null,null,null,null,null,null,null,null,null,null,null,null,null,1,1,1,null,null,null,1,null,null,null,null,null,null,null,null,null,null,null,null,null,null,1,1,1,null,null,null,1,null,null,null,null,null,null,null,null,null,null,null,null,null,null,1,1,1,null,null,null,1,null,null,null,null,null,null,null,null,null,null,null,null,null,null,1,1,1,null,null,null,1,null,null,null,null,null,null,null,null,null,null,null,null,null,null,1,1,1,null,null,null,1,null,null,null,null,null,null,null,null,null,null,null,null,null,null,1,1,1]
["2013-02-08",5,"",4,"","",1,"","","","","","","","","","",2,3," "," ",null,"2013-02-08",null,null,null,null,null,null,null,null,null,null,null,null,null,null,null,null,null,null,1,1,null,null,null,null,null,null,null,null,null,null,null,null,null,null,null,null,null,null,null,1,1,null,null,null,null,null,null,null,null,null,null,null,null,null,null,null,null,null,null,null,1,1,null,null,null,null,null,null,null,null,null,null,null,null,null,null,null,null,null,null,null,1,1,null,null,null,null,null,null,null,null,null,null,null,null,null,null,null,null,null,null,null,1,1,null,null,null,null,null,null,null,null,null,null,null,null,null,null,null,null,null,null,null,1,1]
["2013-02-09","",2,5,"","","",3,"","",1,"","","","","",4," "," "," "," ",null,"2013-02-09",null,null,null,null,null,null,null,null,null,null,null,null,null,null,null,null,1,1,1,1,null,null,null,null,null,null,null,null,null,null,null,null,null,null,null,null,null,1,1,1,1,null,null,null,null,null,null,null,null,null,null,null,null,null,null,null,null,null,1,1,1,1,null,null,null,null,null,null,null,null,null,null,null,null,null,null,null,null,null,1,1,1,1,null,null,null,null,null,null,null,null,null,null,null,null,null,null,null,null,null,1,1,1,1,null,null,null,null,null,null,null,null,null,null,null,null,null,null,null,null,null,1,1,1,1]
["2013-02-10","",1,"","",2,4,"",5,3,"","","",""," "," "," "," "," "," "," ",null,"2013-02-10",null,null,null,null,null,null,null,null,null,null,null,null,null,1,1,1,1,1,1,1,null,null,null,null,null,null,null,null,null,null,null,null,null,null,1,1,1,1,1,1,1,null,null,null,null,null,null,null,null,null,null,null,null,null,null,1,1,1,1,1,1,1,null,null,null,null,null,null,null,null,null,null,null,null,null,null,1,1,1,1,1,1,1,null,null,null,null,null,null,null,null,null,null,null,null,null,null,1,1,1,1,1,1,1,null,null,null,null,null,null,null,null,null,null,null,null,null,null,1,1,1,1,1,1,1]
["2013-02-11","","","",1,5,"",3,4,"",2,"","","","","","",""," "," "," ",null,"2013-02-11",null,null,null,null,null,null,null,null,null,null,null,null,null,null,null,null,null,1,1,1,null,null,null,null,null,null,null,null,null,null,null,null,null,null,null,null,null,null,1,1,1,null,null,null,null,null,null,null,null,null,null,null,null,null,null,null,null,null,null,1,1,1,null,null,null,null,null,null,null,null,null,null,null,null,null,null,null,null,null,null,1,1,1,null,null,null,null,null,null,null,null,null,null,null,null,null,null,null,null,null,null,1,1,1,null,null,null,null,null,null,null,null,null,null,null,null,null,null,null,null,null,null,1,1,1]
["2013-02-12","",4,"","","","","",1,5,2,3,"","","",""," "," "," "," "," ",null,"2013-02-12",null,null,null,null,null,null,null,null,null,null,null,null,null,null,null,1,1,1,1,1,null,null,null,null,null,null,null,null,null,null,null,null,null,null,null,null,1,1,1,1,1,null,null,null,null,null,null,null,null,null,null,null,null,null,null,null,null,1,1,1,1,1,null,null,null,null,null,null,null,null,null,null,null,null,null,null,null,null,1,1,1,1,1,null,null,null,null,null,null,null,null,null,null,null,null,null,null,null,null,1,1,1,1,1,null,null,null,null,null,null,null,null,null,null,null,null,null,null,null,null,1,1,1,1,1]
["2013-02-13",5,2,"","",1,"","","",3,"","","","","","",4," "," "," "," ",null,"2013-02-13",null,null,null,null,null,null,null,null,null,null,null,null,null,null,null,null,1,1,1,1,null,null,null,null,null,null,null,null,null,null,null,null,null,null,null,null,null,1,1,1,1,null,null,null,null,null,null,null,null,null,null,null,null,null,null,null,null,null,1,1,1,1,null,null,null,null,null,null,null,null,null,null,null,null,null,null,null,null,null,1,1,1,1,null,null,null,null,null,null,null,null,null,null,null,null,null,null,null,null,null,1,1,1,1,null,null,null,null,null,null,null,null,null,null,null,null,null,null,null,null,null,1,1,1,1]
["2013-02-14","","","",2,"","",4,"",1,5,"",3,"","","",""," ",""," "," ",null,"2013-02-14",null,null,null,null,null,null,null,null,null,null,null,null,null,null,null,null,1,null,1,1,null,null,null,null,null,null,null,null,null,null,null,null,null,null,null,null,null,1,null,1,1,null,null,null,null,null,null,null,null,null,null,null,null,null,null,null,null,null,1,null,1,1,null,null,null,null,null,null,null,null,null,null,null,null,null,null,null,null,null,1,null,1,1,null,null,null,null,null,null,null,null,null,null,null,null,null,null,null,null,null,1,null,1,1,null,null,null,null,null,null,null,null,null,null,null,null,null,null,null,null,null,1,null,1,1]
["2013-02-15"," ",1,"",""," ","",5,3,"",2,"","","","","","",4,""," "," ",null,"2013-02-15",1,null,null,null,1,null,null,null,null,null,null,null,null,null,null,null,null,null,1,1,null,1,null,null,null,1,null,null,null,null,null,null,null,null,null,null,null,null,null,1,1,null,1,null,null,null,1,null,null,null,null,null,null,null,null,null,null,null,null,null,1,1,null,1,null,null,null,1,null,null,null,null,null,null,null,null,null,null,null,null,null,1,1,null,1,null,null,null,1,null,null,null,null,null,null,null,null,null,null,null,null,null,1,1,null,1,null,null,null,1,null,null,null,null,null,null,null,null,null,null,null,null,null,1,1]
["2013-02-16",1,"",4,"","",3," ","",2,5,"","","","","",""," "," "," "," ",null,"2013-02-16",null,null,null,null,null,null,1,null,null,null,null,null,null,null,null,null,1,1,1,1,null,null,null,null,null,null,null,1,null,null,null,null,null,null,null,null,null,1,1,1,1,null,null,null,null,null,null,null,1,null,null,null,null,null,null,null,null,null,1,1,1,1,null,null,null,null,null,null,null,1,null,null,null,null,null,null,null,null,null,1,1,1,1,null,null,null,null,null,null,null,1,null,null,null,null,null,null,null,null,null,1,1,1,1,null,null,null,null,null,null,null,1,null,null,null,null,null,null,null,null,null,1,1,1,1]
["2013-02-17","","","","",4,5,3,"","","",1,"","","",2," "," "," "," "," ",null,"2013-02-17",null,null,null,null,null,null,null,null,null,null,null,null,null,null,null,1,1,1,1,1,null,null,null,null,null,null,null,null,null,null,null,null,null,null,null,null,1,1,1,1,1,null,null,null,null,null,null,null,null,null,null,null,null,null,null,null,null,1,1,1,1,1,null,null,null,null,null,null,null,null,null,null,null,null,null,null,null,null,1,1,1,1,1,null,null,null,null,null,null,null,null,null,null,null,null,null,null,null,null,1,1,1,1,1,null,null,null,null,null,null,null,null,null,null,null,null,null,null,null,null,1,1,1,1,1]
["2013-02-18","","","","","","",2,"","",5,3,1,"",4,"","","",""," "," ",null,"2013-02-18",null,null,null,null,null,null,null,null,null,null,null,null,null,null,null,null,null,null,1,1,null,null,null,null,null,null,null,null,null,null,null,null,null,null,null,null,null,null,null,1,1,null,null,null,null,null,null,null,null,null,null,null,null,null,null,null,null,null,null,null,1,1,null,null,null,null,null,null,null,null,null,null,null,null,null,null,null,null,null,null,null,1,1,null,null,null,null,null,null,null,null,null,null,null,null,null,null,null,null,null,null,null,1,1,null,null,null,null,null,null,null,null,null,null,null,null,null,null,null,null,null,null,null,1,1]
["2013-02-19","","",4,1,2,"","","","","",5,"","","",3,"",""," "," "," ",null,"2013-02-19",null,null,null,null,null,null,null,null,null,null,null,null,null,null,null,null,null,1,1,1,null,null,null,null,null,null,null,null,null,null,null,null,null,null,null,null,null,null,1,1,1,null,null,null,null,null,null,null,null,null,null,null,null,null,null,null,null,null,null,1,1,1,null,null,null,null,null,null,null,null,null,null,null,null,null,null,null,null,null,null,1,1,1,null,null,null,null,null,null,null,null,null,null,null,null,null,null,null,null,null,null,1,1,1,null,null,null,null,null,null,null,null,null,null,null,null,null,null,null,null,null,null,1,1,1]
["2013-02-20",3,"","","","",1,4,"","","",5,"","","","","",2,""," "," ",null,"2013-02-20",null,null,null,null,null,null,null,null,null,null,null,null,null,null,null,null,null,null,1,1,null,null,null,null,null,null,null,null,null,null,null,null,null,null,null,null,null,null,null,1,1,null,null,null,null,null,null,null,null,null,null,null,null,null,null,null,null,null,null,null,1,1,null,null,null,null,null,null,null,null,null,null,null,null,null,null,null,null,null,null,null,1,1,null,null,null,null,null,null,null,null,null,null,null,null,null,null,null,null,null,null,null,1,1,null,null,null,null,null,null,null,null,null,null,null,null,null,null,null,null,null,null,null,1,1]
["2013-02-21","","","","",5,"","","","","","",1,4,"","","",2,"",3,"",null,"2013-02-21"]
["2013-02-22","","","",5,"",2,"","",3,"","","",4,"",1,""," "," "," "," ",null,"2013-02-22",null,null,null,null,null,null,null,null,null,null,null,null,null,null,null,null,1,1,1,1,null,null,null,null,null,null,null,null,null,null,null,null,null,null,null,null,null,1,1,1,1,null,null,null,null,null,null,null,null,null,null,null,null,null,null,null,null,null,1,1,1,1,null,null,null,null,null,null,null,null,null,null,null,null,null,null,null,null,null,1,1,1,1,null,null,null,null,null,null,null,null,null,null,null,null,null,null,null,null,null,1,1,1,1,null,null,null,null,null,null,null,null,null,null,null,null,null,null,null,null,null,1,1,1,1]
["2013-02-23","","",5,"",3,"","","",4,"","","","",2,1,"","",""," "," ",null,"2013-02-23",null,null,null,null,null,null,null,null,null,null,null,null,null,null,null,null,null,null,1,1,null,null,null,null,null,null,null,null,null,null,null,null,null,null,null,null,null,null,null,1,1,null,null,null,null,null,null,null,null,null,null,null,null,null,null,null,null,null,null,null,1,1,null,null,null,null,null,null,null,null,null,null,null,null,null,null,null,null,null,null,null,1,1,null,null,null,null,null,null,null,null,null,null,null,null,null,null,null,null,null,null,null,1,1,null,null,null,null,null,null,null,null,null,null,null,null,null,null,null,null,null,null,null,1,1]
["2013-02-24","","","","","","","",5,"",3,"",1,"","",4,2," "," "," "," ",null,"2013-02-24",null,null,null,null,null,null,null,null,null,null,null,null,null,null,null,null,1,1,1,1,null,null,null,null,null,null,null,null,null,null,null,null,null,null,null,null,null,1,1,1,1,null,null,null,null,null,null,null,null,null,null,null,null,null,null,null,null,null,1,1,1,1,null,null,null,null,null,null,null,null,null,null,null,null,null,null,null,null,null,1,1,1,1,null,null,null,null,null,null,null,null,null,null,null,null,null,null,null,null,null,1,1,1,1,null,null,null,null,null,null,null,null,null,null,null,null,null,null,null,null,null,1,1,1,1]
["2013-02-25","",4,3,"","","","","","","",2,5,"","","",1," "," "," "," ",null,"2013-02-25",null,null,null,null,null,null,null,null,null,null,null,null,null,null,null,null,1,1,1,1,null,null,null,null,null,null,null,null,null,null,null,null,null,null,null,null,null,1,1,1,1,null,null,null,null,null,null,null,null,null,null,null,null,null,null,null,null,null,1,1,1,1,null,null,null,null,null,null,null,null,null,null,null,null,null,null,null,null,null,1,1,1,1,null,null,null,null,null,null,null,null,null,null,null,null,null,null,null,null,null,1,1,1,1,null,null,null,null,null,null,null,null,null,null,null,null,null,null,null,null,null,1,1,1,1]
["2013-02-26",4,"","","","","","",1,"","","","","","",5,"",2,3," "," ",null,"2013-02-26",null,null,null,null,null,null,null,null,null,null,null,null,null,null,null,null,null,null,1,1,null,null,null,null,null,null,null,null,null,null,null,null,null,null,null,null,null,null,null,1,1,null,null,null,null,null,null,null,null,null,null,null,null,null,null,null,null,null,null,null,1,1,null,null,null,null,null,null,null,null,null,null,null,null,null,null,null,null,null,null,null,1,1,null,null,null,null,null,null,null,null,null,null,null,null,null,null,null,null,null,null,null,1,1,null,null,null,null,null,null,null,null,null,null,null,null,null,null,null,null,null,null,null,1,1]
["2013-02-27","","",3,"",2,1,"","","","","","","",5,4," "," "," "," "," ",null,"2013-02-27",null,null,null,null,null,null,null,null,null,null,null,null,null,null,null,1,1,1,1,1,null,null,null,null,null,null,null,null,null,null,null,null,null,null,null,null,1,1,1,1,1,null,null,null,null,null,null,null,null,null,null,null,null,null,null,null,null,1,1,1,1,1,null,null,null,null,null,null,null,null,null,null,null,null,null,null,null,null,1,1,1,1,1,null,null,null,null,null,null,null,null,null,null,null,null,null,null,null,null,1,1,1,1,1,null,null,null,null,null,null,null,null,null,null,null,null,null,null,null,null,1,1,1,1,1]
["2013-02-28",4,"","",5,"","","","",1,2,3,"","",""," "," "," "," "," "," ",null,"2013-02-28",null,null,null,null,null,null,null,null,null,null,null,null,null,null,1,1,1,1,1,1,null,null,null,null,null,null,null,null,null,null,null,null,null,null,null,1,1,1,1,1,1,null,null,null,null,null,null,null,null,null,null,null,null,null,null,null,1,1,1,1,1,1,null,null,null,null,null,null,null,null,null,null,null,null,null,null,null,1,1,1,1,1,1,null,null,null,null,null,null,null,null,null,null,null,null,null,null,null,1,1,1,1,1,1,null,null,null,null,null,null,null,null,null,null,null,null,null,null,null,1,1,1,1,1,1]
["2013-03-01","","",4,"","","",5,2,"",""," ","",""," ",3,1,"",""," "," ",null,"2013-03-01",null,null,null,null,null,null,null,null,null,null,1,null,null,1,null,null,null,null,1,1,null,null,null,null,null,null,null,null,null,null,null,1,null,null,1,null,null,null,null,1,1,null,null,null,null,null,null,null,null,null,null,null,1,null,null,1,null,null,null,null,1,1,null,null,null,null,null,null,null,null,null,null,null,1,null,null,1,null,null,null,null,1,1,null,null,null,null,null,null,null,null,null,null,null,1,null,null,1,null,null,null,null,1,1,null,null,null,null,null,null,null,null,null,null,null,1,null,null,1,null,null,null,null,1,1]
["2013-03-02","","",4,3,"","","","","","","",2,1,5," "," "," "," "," "," ",null,"2013-03-02",null,null,null,null,null,null,null,null,null,null,null,null,null,null,1,1,1,1,1,1,null,null,null,null,null,null,null,null,null,null,null,null,null,null,null,1,1,1,1,1,1,null,null,null,null,null,null,null,null,null,null,null,null,null,null,null,1,1,1,1,1,1,null,null,null,null,null,null,null,null,null,null,null,null,null,null,null,1,1,1,1,1,1,null,null,null,null,null,null,null,null,null,null,null,null,null,null,null,1,1,1,1,1,1,null,null,null,null,null,null,null,null,null,null,null,null,null,null,null,1,1,1,1,1,1]
["2013-03-03",4,"",3,"","",2,1,"","","","","",5,"","","",""," "," "," ",null,"2013-03-03",null,null,null,null,null,null,null,null,null,null,null,null,null,null,null,null,null,1,1,1,null,null,null,null,null,null,null,null,null,null,null,null,null,null,null,null,null,null,1,1,1,null,null,null,null,null,null,null,null,null,null,null,null,null,null,null,null,null,null,1,1,1,null,null,null,null,null,null,null,null,null,null,null,null,null,null,null,null,null,null,1,1,1,null,null,null,null,null,null,null,null,null,null,null,null,null,null,null,null,null,null,1,1,1,null,null,null,null,null,null,null,null,null,null,null,null,null,null,null,null,null,null,1,1,1]
["2013-03-04","","","",5,1,3,"","",2,"","","","",4,"",""," "," "," "," ",null,"2013-03-04",null,null,null,null,null,null,null,null,null,null,null,null,null,null,null,null,1,1,1,1,null,null,null,null,null,null,null,null,null,null,null,null,null,null,null,null,null,1,1,1,1,null,null,null,null,null,null,null,null,null,null,null,null,null,null,null,null,null,1,1,1,1,null,null,null,null,null,null,null,null,null,null,null,null,null,null,null,null,null,1,1,1,1,null,null,null,null,null,null,null,null,null,null,null,null,null,null,null,null,null,1,1,1,1,null,null,null,null,null,null,null,null,null,null,null,null,null,null,null,null,null,1,1,1,1]
["2013-03-05",3,5,"","",1,2,""," ","","","",""," ","","",4,""," "," "," ",null,"2013-03-05",null,null,null,null,null,null,null,1,null,null,null,null,1,null,null,null,null,1,1,1,null,null,null,null,null,null,null,null,1,null,null,null,null,1,null,null,null,null,1,1,1,null,null,null,null,null,null,null,null,1,null,null,null,null,1,null,null,null,null,1,1,1,null,null,null,null,null,null,null,null,1,null,null,null,null,1,null,null,null,null,1,1,1,null,null,null,null,null,null,null,null,1,null,null,null,null,1,null,null,null,null,1,1,1,null,null,null,null,null,null,null,null,1,null,null,null,null,1,null,null,null,null,1,1,1]
["2013-03-06","",2,"",5,3,"","",4,"","","","","",1,"","",""," "," "," ",null,"2013-03-06",null,null,null,null,null,null,null,null,null,null,null,null,null,null,null,null,null,1,1,1,null,null,null,null,null,null,null,null,null,null,null,null,null,null,null,null,null,null,1,1,1,null,null,null,null,null,null,null,null,null,null,null,null,null,null,null,null,null,null,1,1,1,null,null,null,null,null,null,null,null,null,null,null,null,null,null,null,null,null,null,1,1,1,null,null,null,null,null,null,null,null,null,null,null,null,null,null,null,null,null,null,1,1,1,null,null,null,null,null,null,null,null,null,null,null,null,null,null,null,null,null,null,1,1,1]
["2013-03-07",2,""," ","",1,3,"","","",5,"","",4,"","",""," "," "," "," ",null,"2013-03-07",null,null,1,null,null,null,null,null,null,null,null,null,null,null,null,null,1,1,1,1,null,null,null,1,null,null,null,null,null,null,null,null,null,null,null,null,null,1,1,1,1,null,null,null,1,null,null,null,null,null,null,null,null,null,null,null,null,null,1,1,1,1,null,null,null,1,null,null,null,null,null,null,null,null,null,null,null,null,null,1,1,1,1,null,null,null,1,null,null,null,null,null,null,null,null,null,null,null,null,null,1,1,1,1,null,null,null,1,null,null,null,null,null,null,null,null,null,null,null,null,null,1,1,1,1]
["2013-03-08","",1,"","","","","","","","",5,2,"",4,"",3," "," "," "," ",null,"2013-03-08",null,null,null,null,null,null,null,null,null,null,null,null,null,null,null,null,1,1,1,1,null,null,null,null,null,null,null,null,null,null,null,null,null,null,null,null,null,1,1,1,1,null,null,null,null,null,null,null,null,null,null,null,null,null,null,null,null,null,1,1,1,1,null,null,null,null,null,null,null,null,null,null,null,null,null,null,null,null,null,1,1,1,1,null,null,null,null,null,null,null,null,null,null,null,null,null,null,null,null,null,1,1,1,1,null,null,null,null,null,null,null,null,null,null,null,null,null,null,null,null,null,1,1,1,1]
["2013-03-09","","","",3,"","","","",1,5,"","","",4,2,""," "," "," "," ",null,"2013-03-09",null,null,null,null,null,null,null,null,null,null,null,null,null,null,null,null,1,1,1,1,null,null,null,null,null,null,null,null,null,null,null,null,null,null,null,null,null,1,1,1,1,null,null,null,null,null,null,null,null,null,null,null,null,null,null,null,null,null,1,1,1,1,null,null,null,null,null,null,null,null,null,null,null,null,null,null,null,null,null,1,1,1,1,null,null,null,null,null,null,null,null,null,null,null,null,null,null,null,null,null,1,1,1,1,null,null,null,null,null,null,null,null,null,null,null,null,null,null,null,null,null,1,1,1,1]
["2013-03-10","",2,"",4,1,"","","",3,"","","","","","",5," "," "," "," ",null,"2013-03-10",null,null,null,null,null,null,null,null,null,null,null,null,null,null,null,null,1,1,1,1,null,null,null,null,null,null,null,null,null,null,null,null,null,null,null,null,null,1,1,1,1,null,null,null,null,null,null,null,null,null,null,null,null,null,null,null,null,null,1,1,1,1,null,null,null,null,null,null,null,null,null,null,null,null,null,null,null,null,null,1,1,1,1,null,null,null,null,null,null,null,null,null,null,null,null,null,null,null,null,null,1,1,1,1,null,null,null,null,null,null,null,null,null,null,null,null,null,null,null,null,null,1,1,1,1]
["2013-03-11",3," ",2,"","","",4,"","","","",5,"",1,"",""," "," "," "," ",null,"2013-03-11",null,1,null,null,null,null,null,null,null,null,null,null,null,null,null,null,1,1,1,1,null,null,1,null,null,null,null,null,null,null,null,null,null,null,null,null,null,1,1,1,1,null,null,1,null,null,null,null,null,null,null,null,null,null,null,null,null,null,1,1,1,1,null,null,1,null,null,null,null,null,null,null,null,null,null,null,null,null,null,1,1,1,1,null,null,1,null,null,null,null,null,null,null,null,null,null,null,null,null,null,1,1,1,1,null,null,1,null,null,null,null,null,null,null,null,null,null,null,null,null,null,1,1,1,1]
["2013-03-13"," ",4,5,3,1,"","","","","","","","",2,"","",""," "," "," ",null,"2013-03-13",1,null,null,null,null,null,null,null,null,null,null,null,null,null,null,null,null,1,1,1,null,1,null,null,null,null,null,null,null,null,null,null,null,null,null,null,null,null,1,1,1,null,1,null,null,null,null,null,null,null,null,null,null,null,null,null,null,null,null,1,1,1,null,1,null,null,null,null,null,null,null,null,null,null,null,null,null,null,null,null,1,1,1,null,1,null,null,null,null,null,null,null,null,null,null,null,null,null,null,null,null,1,1,1,null,1,null,null,null,null,null,null,null,null,null,null,null,null,null,null,null,null,1,1,1]
["2013-03-14","","","","",2,3,"",4," ","",1,"","",5," "," "," "," "," "," ",null,"2013-03-14",null,null,null,null,null,null,null,null,1,null,null,null,null,null,null,1,1,1,1,1,null,null,null,null,null,null,null,null,null,1,null,null,null,null,null,null,1,1,1,1,1,null,null,null,null,null,null,null,null,null,1,null,null,null,null,null,null,1,1,1,1,1,null,null,null,null,null,null,null,null,null,1,null,null,null,null,null,null,1,1,1,1,1,null,null,null,null,null,null,null,null,null,1,null,null,null,null,null,null,1,1,1,1,1,null,null,null,null,null,null,null,null,null,1,null,null,null,null,null,null,1,1,1,1,1]
["2013-03-15",3,2,"",4,"",1," ","","","","","","","","","",5,""," "," ",null,"2013-03-15",null,null,null,null,null,null,1,null,null,null,null,null,null,null,null,null,null,null,1,1,null,null,null,null,null,null,null,1,null,null,null,null,null,null,null,null,null,null,null,1,1,null,null,null,null,null,null,null,1,null,null,null,null,null,null,null,null,null,null,null,1,1,null,null,null,null,null,null,null,1,null,null,null,null,null,null,null,null,null,null,null,1,1,null,null,null,null,null,null,null,1,null,null,null,null,null,null,null,null,null,null,null,1,1,null,null,null,null,null,null,null,1,null,null,null,null,null,null,null,null,null,null,null,1,1]
["2013-03-16",1,"","","",3,"","","","","",4,"","",5,"",2," "," "," "," ",null,"2013-03-16",null,null,null,null,null,null,null,null,null,null,null,null,null,null,null,null,1,1,1,1,null,null,null,null,null,null,null,null,null,null,null,null,null,null,null,null,null,1,1,1,1,null,null,null,null,null,null,null,null,null,null,null,null,null,null,null,null,null,1,1,1,1,null,null,null,null,null,null,null,null,null,null,null,null,null,null,null,null,null,1,1,1,1,null,null,null,null,null,null,null,null,null,null,null,null,null,null,null,null,null,1,1,1,1,null,null,null,null,null,null,null,null,null,null,null,null,null,null,null,null,null,1,1,1,1]
["2013-03-17","","","",3,"",1,2,"","","","","","",5,"",4," "," "," "," ",null,"2013-03-17",null,null,null,null,null,null,null,null,null,null,null,null,null,null,null,null,1,1,1,1,null,null,null,null,null,null,null,null,null,null,null,null,null,null,null,null,null,1,1,1,1,null,null,null,null,null,null,null,null,null,null,null,null,null,null,null,null,null,1,1,1,1,null,null,null,null,null,null,null,null,null,null,null,null,null,null,null,null,null,1,1,1,1,null,null,null,null,null,null,null,null,null,null,null,null,null,null,null,null,null,1,1,1,1,null,null,null,null,null,null,null,null,null,null,null,null,null,null,null,null,null,1,1,1,1]
["2013-03-18","",2,1,3,"","","",5,4,"","","",""," "," "," "," "," "," "," ",null,"2013-03-18",null,null,null,null,null,null,null,null,null,null,null,null,null,1,1,1,1,1,1,1,null,null,null,null,null,null,null,null,null,null,null,null,null,null,1,1,1,1,1,1,1,null,null,null,null,null,null,null,null,null,null,null,null,null,null,1,1,1,1,1,1,1,null,null,null,null,null,null,null,null,null,null,null,null,null,null,1,1,1,1,1,1,1,null,null,null,null,null,null,null,null,null,null,null,null,null,null,1,1,1,1,1,1,1,null,null,null,null,null,null,null,null,null,null,null,null,null,null,1,1,1,1,1,1,1]
["2013-03-19",4,"","","","","","","",2,"","",3,1,"",5,""," "," "," "," ",null,"2013-03-19",null,null,null,null,null,null,null,null,null,null,null,null,null,null,null,null,1,1,1,1,null,null,null,null,null,null,null,null,null,null,null,null,null,null,null,null,null,1,1,1,1,null,null,null,null,null,null,null,null,null,null,null,null,null,null,null,null,null,1,1,1,1,null,null,null,null,null,null,null,null,null,null,null,null,null,null,null,null,null,1,1,1,1,null,null,null,null,null,null,null,null,null,null,null,null,null,null,null,null,null,1,1,1,1,null,null,null,null,null,null,null,null,null,null,null,null,null,null,null,null,null,1,1,1,1]
["2013-03-20","","",3,"",1,"","",2,"",5,"",4,"",""," "," "," "," "," "," ",null,"2013-03-20",null,null,null,null,null,null,null,null,null,null,null,null,null,null,1,1,1,1,1,1,null,null,null,null,null,null,null,null,null,null,null,null,null,null,null,1,1,1,1,1,1,null,null,null,null,null,null,null,null,null,null,null,null,null,null,null,1,1,1,1,1,1,null,null,null,null,null,null,null,null,null,null,null,null,null,null,null,1,1,1,1,1,1,null,null,null,null,null,null,null,null,null,null,null,null,null,null,null,1,1,1,1,1,1,null,null,null,null,null,null,null,null,null,null,null,null,null,null,null,1,1,1,1,1,1]
["2013-03-21",1,"","","","","",2,"","","","",5,"",3,"",4," "," "," "," ",null,"2013-03-21",null,null,null,null,null,null,null,null,null,null,null,null,null,null,null,null,1,1,1,1,null,null,null,null,null,null,null,null,null,null,null,null,null,null,null,null,null,1,1,1,1,null,null,null,null,null,null,null,null,null,null,null,null,null,null,null,null,null,1,1,1,1,null,null,null,null,null,null,null,null,null,null,null,null,null,null,null,null,null,1,1,1,1,null,null,null,null,null,null,null,null,null,null,null,null,null,null,null,null,null,1,1,1,1,null,null,null,null,null,null,null,null,null,null,null,null,null,null,null,null,null,1,1,1,1]
["2013-03-22","","","","","","","",4,"","",2,5,3,"",1,"","",""," "," ",null,"2013-03-22",null,null,null,null,null,null,null,null,null,null,null,null,null,null,null,null,null,null,1,1,null,null,null,null,null,null,null,null,null,null,null,null,null,null,null,null,null,null,null,1,1,null,null,null,null,null,null,null,null,null,null,null,null,null,null,null,null,null,null,null,1,1,null,null,null,null,null,null,null,null,null,null,null,null,null,null,null,null,null,null,null,1,1,null,null,null,null,null,null,null,null,null,null,null,null,null,null,null,null,null,null,null,1,1,null,null,null,null,null,null,null,null,null,null,null,null,null,null,null,null,null,null,null,1,1]
["2013-03-23","","","","","",2,"","",4,"","","",3,"",1,"","",5," "," ",null,"2013-03-23",null,null,null,null,null,null,null,null,null,null,null,null,null,null,null,null,null,null,1,1,null,null,null,null,null,null,null,null,null,null,null,null,null,null,null,null,null,null,null,1,1,null,null,null,null,null,null,null,null,null,null,null,null,null,null,null,null,null,null,null,1,1,null,null,null,null,null,null,null,null,null,null,null,null,null,null,null,null,null,null,null,1,1,null,null,null,null,null,null,null,null,null,null,null,null,null,null,null,null,null,null,null,1,1,null,null,null,null,null,null,null,null,null,null,null,null,null,null,null,null,null,null,null,1,1]
["2013-03-24","",4," ","","",3,5,"","","",2,"",1,"","","","",""," "," ",null,"2013-03-24",null,null,1,null,null,null,null,null,null,null,null,null,null,null,null,null,null,null,1,1,null,null,null,1,null,null,null,null,null,null,null,null,null,null,null,null,null,null,null,1,1,null,null,null,1,null,null,null,null,null,null,null,null,null,null,null,null,null,null,null,1,1,null,null,null,1,null,null,null,null,null,null,null,null,null,null,null,null,null,null,null,1,1,null,null,null,1,null,null,null,null,null,null,null,null,null,null,null,null,null,null,null,1,1,null,null,null,1,null,null,null,null,null,null,null,null,null,null,null,null,null,null,null,1,1]
["2013-03-25","",4,3,1,5,"","","",2,"","","","","","",""," "," "," "," ",null,"2013-03-25",null,null,null,null,null,null,null,null,null,null,null,null,null,null,null,null,1,1,1,1,null,null,null,null,null,null,null,null,null,null,null,null,null,null,null,null,null,1,1,1,1,null,null,null,null,null,null,null,null,null,null,null,null,null,null,null,null,null,1,1,1,1,null,null,null,null,null,null,null,null,null,null,null,null,null,null,null,null,null,1,1,1,1,null,null,null,null,null,null,null,null,null,null,null,null,null,null,null,null,null,1,1,1,1,null,null,null,null,null,null,null,null,null,null,null,null,null,null,null,null,null,1,1,1,1]
["2013-03-26","",1,"","",2,"","",3,"",5,4,"","","","",""," "," "," "," ",null,"2013-03-26",null,null,null,null,null,null,null,null,null,null,null,null,null,null,null,null,1,1,1,1,null,null,null,null,null,null,null,null,null,null,null,null,null,null,null,null,null,1,1,1,1,null,null,null,null,null,null,null,null,null,null,null,null,null,null,null,null,null,1,1,1,1,null,null,null,null,null,null,null,null,null,null,null,null,null,null,null,null,null,1,1,1,1,null,null,null,null,null,null,null,null,null,null,null,null,null,null,null,null,null,1,1,1,1,null,null,null,null,null,null,null,null,null,null,null,null,null,null,null,null,null,1,1,1,1]
["2013-03-27",4,3," ","","","","",2,"",5,"","","","",1,""," "," "," "," ",null,"2013-03-27",null,null,1,null,null,null,null,null,null,null,null,null,null,null,null,null,1,1,1,1,null,null,null,1,null,null,null,null,null,null,null,null,null,null,null,null,null,1,1,1,1,null,null,null,1,null,null,null,null,null,null,null,null,null,null,null,null,null,1,1,1,1,null,null,null,1,null,null,null,null,null,null,null,null,null,null,null,null,null,1,1,1,1,null,null,null,1,null,null,null,null,null,null,null,null,null,null,null,null,null,1,1,1,1,null,null,null,1,null,null,null,null,null,null,null,null,null,null,null,null,null,1,1,1,1]
["2013-03-28","","",2,4,"",1,"","","",5,"",3,"","","",""," "," "," "," ",null,"2013-03-28",null,null,null,null,null,null,null,null,null,null,null,null,null,null,null,null,1,1,1,1,null,null,null,null,null,null,null,null,null,null,null,null,null,null,null,null,null,1,1,1,1,null,null,null,null,null,null,null,null,null,null,null,null,null,null,null,null,null,1,1,1,1,null,null,null,null,null,null,null,null,null,null,null,null,null,null,null,null,null,1,1,1,1,null,null,null,null,null,null,null,null,null,null,null,null,null,null,null,null,null,1,1,1,1,null,null,null,null,null,null,null,null,null,null,null,null,null,null,null,null,null,1,1,1,1]
["2013-03-29",2,"","","",5,3,4,"",1,"","","",""," ","","",""," "," "," ",null,"2013-03-29",null,null,null,null,null,null,null,null,null,null,null,null,null,1,null,null,null,1,1,1,null,null,null,null,null,null,null,null,null,null,null,null,null,null,1,null,null,null,1,1,1,null,null,null,null,null,null,null,null,null,null,null,null,null,null,1,null,null,null,1,1,1,null,null,null,null,null,null,null,null,null,null,null,null,null,null,1,null,null,null,1,1,1,null,null,null,null,null,null,null,null,null,null,null,null,null,null,1,null,null,null,1,1,1,null,null,null,null,null,null,null,null,null,null,null,null,null,null,1,null,null,null,1,1,1]
["2013-03-30",1,"",4,3,"","",5,"","",2,"","","","","","","",""," "," ",null,"2013-03-30",null,null,null,null,null,null,null,null,null,null,null,null,null,null,null,null,null,null,1,1,null,null,null,null,null,null,null,null,null,null,null,null,null,null,null,null,null,null,null,1,1,null,null,null,null,null,null,null,null,null,null,null,null,null,null,null,null,null,null,null,1,1,null,null,null,null,null,null,null,null,null,null,null,null,null,null,null,null,null,null,null,1,1,null,null,null,null,null,null,null,null,null,null,null,null,null,null,null,null,null,null,null,1,1,null,null,null,null,null,null,null,null,null,null,null,null,null,null,null,null,null,null,null,1,1]
["2013-03-31",4,3,"","","",1,"",2,"","",5,"","","","",""," "," "," "," ",null,"2013-03-31",null,null,null,null,null,null,null,null,null,null,null,null,null,null,null,null,1,1,1,1,null,null,null,null,null,null,null,null,null,null,null,null,null,null,null,null,null,1,1,1,1,null,null,null,null,null,null,null,null,null,null,null,null,null,null,null,null,null,1,1,1,1,null,null,null,null,null,null,null,null,null,null,null,null,null,null,null,null,null,1,1,1,1,null,null,null,null,null,null,null,null,null,null,null,null,null,null,null,null,null,1,1,1,1,null,null,null,null,null,null,null,null,null,null,null,null,null,null,null,null,null,1,1,1,1]
["2013-04-01","",4,"",1,"",2,3,5," ",""," ","","","","",""," "," "," "," ",null,"2013-04-01",null,null,null,null,null,null,null,null,1,null,1,null,null,null,null,null,1,1,1,1,null,null,null,null,null,null,null,null,null,1,null,1,null,null,null,null,null,1,1,1,1,null,null,null,null,null,null,null,null,null,1,null,1,null,null,null,null,null,1,1,1,1,null,null,null,null,null,null,null,null,null,1,null,1,null,null,null,null,null,1,1,1,1,null,null,null,null,null,null,null,null,null,1,null,1,null,null,null,null,null,1,1,1,1,null,null,null,null,null,null,null,null,null,1,null,1,null,null,null,null,null,1,1,1,1]
["2013-04-02","","",4,"","","","","","","",5,2,"",3,"",1,"",""," "," ",null,"2013-04-02",null,null,null,null,null,null,null,null,null,null,null,null,null,null,null,null,null,null,1,1,null,null,null,null,null,null,null,null,null,null,null,null,null,null,null,null,null,null,null,1,1,null,null,null,null,null,null,null,null,null,null,null,null,null,null,null,null,null,null,null,1,1,null,null,null,null,null,null,null,null,null,null,null,null,null,null,null,null,null,null,null,1,1,null,null,null,null,null,null,null,null,null,null,null,null,null,null,null,null,null,null,null,1,1,null,null,null,null,null,null,null,null,null,null,null,null,null,null,null,null,null,null,null,1,1]
["2013-04-03",2,5,"","","",4,"","",1,"","","","",3,"","","",""," "," ",null,"2013-04-03",null,null,null,null,null,null,null,null,null,null,null,null,null,null,null,null,null,null,1,1,null,null,null,null,null,null,null,null,null,null,null,null,null,null,null,null,null,null,null,1,1,null,null,null,null,null,null,null,null,null,null,null,null,null,null,null,null,null,null,null,1,1,null,null,null,null,null,null,null,null,null,null,null,null,null,null,null,null,null,null,null,1,1,null,null,null,null,null,null,null,null,null,null,null,null,null,null,null,null,null,null,null,1,1,null,null,null,null,null,null,null,null,null,null,null,null,null,null,null,null,null,null,null,1,1]
["2013-04-04","","","",4,2,1,5,"","","","","","","","",3,""," "," "," ",null,"2013-04-04",null,null,null,null,null,null,null,null,null,null,null,null,null,null,null,null,null,1,1,1,null,null,null,null,null,null,null,null,null,null,null,null,null,null,null,null,null,null,1,1,1,null,null,null,null,null,null,null,null,null,null,null,null,null,null,null,null,null,null,1,1,1,null,null,null,null,null,null,null,null,null,null,null,null,null,null,null,null,null,null,1,1,1,null,null,null,null,null,null,null,null,null,null,null,null,null,null,null,null,null,null,1,1,1,null,null,null,null,null,null,null,null,null,null,null,null,null,null,null,null,null,null,1,1,1]
["2013-04-05","","","","","","",4,"","",3,5,"","","","",2,"",1," "," ",null,"2013-04-05",null,null,null,null,null,null,null,null,null,null,null,null,null,null,null,null,null,null,1,1,null,null,null,null,null,null,null,null,null,null,null,null,null,null,null,null,null,null,null,1,1,null,null,null,null,null,null,null,null,null,null,null,null,null,null,null,null,null,null,null,1,1,null,null,null,null,null,null,null,null,null,null,null,null,null,null,null,null,null,null,null,1,1,null,null,null,null,null,null,null,null,null,null,null,null,null,null,null,null,null,null,null,1,1,null,null,null,null,null,null,null,null,null,null,null,null,null,null,null,null,null,null,null,1,1]
["2013-04-06","","","",1,"","","","",3,"",2,"",5,"",4,"","",""," "," ",null,"2013-04-06",null,null,null,null,null,null,null,null,null,null,null,null,null,null,null,null,null,null,1,1,null,null,null,null,null,null,null,null,null,null,null,null,null,null,null,null,null,null,null,1,1,null,null,null,null,null,null,null,null,null,null,null,null,null,null,null,null,null,null,null,1,1,null,null,null,null,null,null,null,null,null,null,null,null,null,null,null,null,null,null,null,1,1,null,null,null,null,null,null,null,null,null,null,null,null,null,null,null,null,null,null,null,1,1,null,null,null,null,null,null,null,null,null,null,null,null,null,null,null,null,null,null,null,1,1]
["2013-04-07","","",5,"",4,"","","","",3,"","",1,2,"",""," "," "," "," ",null,"2013-04-07",null,null,null,null,null,null,null,null,null,null,null,null,null,null,null,null,1,1,1,1,null,null,null,null,null,null,null,null,null,null,null,null,null,null,null,null,null,1,1,1,1,null,null,null,null,null,null,null,null,null,null,null,null,null,null,null,null,null,1,1,1,1,null,null,null,null,null,null,null,null,null,null,null,null,null,null,null,null,null,1,1,1,1,null,null,null,null,null,null,null,null,null,null,null,null,null,null,null,null,null,1,1,1,1,null,null,null,null,null,null,null,null,null,null,null,null,null,null,null,null,null,1,1,1,1]
["2013-04-08","","",2,"",3,5,"","","",1,4,"","","","",""," "," "," "," ",null,"2013-04-08",null,null,null,null,null,null,null,null,null,null,null,null,null,null,null,null,1,1,1,1,null,null,null,null,null,null,null,null,null,null,null,null,null,null,null,null,null,1,1,1,1,null,null,null,null,null,null,null,null,null,null,null,null,null,null,null,null,null,1,1,1,1,null,null,null,null,null,null,null,null,null,null,null,null,null,null,null,null,null,1,1,1,1,null,null,null,null,null,null,null,null,null,null,null,null,null,null,null,null,null,1,1,1,1,null,null,null,null,null,null,null,null,null,null,null,null,null,null,null,null,null,1,1,1,1]
["2013-04-09","","","","","",2,1,"","","","",4,"","",5,3," "," "," "," ",null,"2013-04-09",null,null,null,null,null,null,null,null,null,null,null,null,null,null,null,null,1,1,1,1,null,null,null,null,null,null,null,null,null,null,null,null,null,null,null,null,null,1,1,1,1,null,null,null,null,null,null,null,null,null,null,null,null,null,null,null,null,null,1,1,1,1,null,null,null,null,null,null,null,null,null,null,null,null,null,null,null,null,null,1,1,1,1,null,null,null,null,null,null,null,null,null,null,null,null,null,null,null,null,null,1,1,1,1,null,null,null,null,null,null,null,null,null,null,null,null,null,null,null,null,null,1,1,1,1]
["2013-04-10","","","",1,2,"",4,"","","",3,"","","",5,"",""," "," "," ",null,"2013-04-10",null,null,null,null,null,null,null,null,null,null,null,null,null,null,null,null,null,1,1,1,null,null,null,null,null,null,null,null,null,null,null,null,null,null,null,null,null,null,1,1,1,null,null,null,null,null,null,null,null,null,null,null,null,null,null,null,null,null,null,1,1,1,null,null,null,null,null,null,null,null,null,null,null,null,null,null,null,null,null,null,1,1,1,null,null,null,null,null,null,null,null,null,null,null,null,null,null,null,null,null,null,1,1,1,null,null,null,null,null,null,null,null,null,null,null,null,null,null,null,null,null,null,1,1,1]
["2013-04-11","","",""," ",2,3,"",4,"","","",5,"","",1,""," "," "," "," ",null,"2013-04-11",null,null,null,1,null,null,null,null,null,null,null,null,null,null,null,null,1,1,1,1,null,null,null,null,1,null,null,null,null,null,null,null,null,null,null,null,null,1,1,1,1,null,null,null,null,1,null,null,null,null,null,null,null,null,null,null,null,null,1,1,1,1,null,null,null,null,1,null,null,null,null,null,null,null,null,null,null,null,null,1,1,1,1,null,null,null,null,1,null,null,null,null,null,null,null,null,null,null,null,null,1,1,1,1,null,null,null,null,1,null,null,null,null,null,null,null,null,null,null,null,null,1,1,1,1]
["2013-04-12","","","",4," ",2,"",3,"","",5,"",1," "," "," "," "," "," "," ",null,"2013-04-12",null,null,null,null,1,null,null,null,null,null,null,null,null,1,1,1,1,1,1,1,null,null,null,null,null,1,null,null,null,null,null,null,null,null,1,1,1,1,1,1,1,null,null,null,null,null,1,null,null,null,null,null,null,null,null,1,1,1,1,1,1,1,null,null,null,null,null,1,null,null,null,null,null,null,null,null,1,1,1,1,1,1,1,null,null,null,null,null,1,null,null,null,null,null,null,null,null,1,1,1,1,1,1,1,null,null,null,null,null,1,null,null,null,null,null,null,null,null,1,1,1,1,1,1,1]
["2013-04-13",5,"","","","",1,3,""," ","","",4,"","","",2," "," "," "," ",null,"2013-04-13",null,null,null,null,null,null,null,null,1,null,null,null,null,null,null,null,1,1,1,1,null,null,null,null,null,null,null,null,null,1,null,null,null,null,null,null,null,1,1,1,1,null,null,null,null,null,null,null,null,null,1,null,null,null,null,null,null,null,1,1,1,1,null,null,null,null,null,null,null,null,null,1,null,null,null,null,null,null,null,1,1,1,1,null,null,null,null,null,null,null,null,null,1,null,null,null,null,null,null,null,1,1,1,1,null,null,null,null,null,null,null,null,null,1,null,null,null,null,null,null,null,1,1,1,1]
["2013-04-14","","",5,"","","","","","","",3,2,1,4,"",""," "," "," "," ",null,"2013-04-14",null,null,null,null,null,null,null,null,null,null,null,null,null,null,null,null,1,1,1,1,null,null,null,null,null,null,null,null,null,null,null,null,null,null,null,null,null,1,1,1,1,null,null,null,null,null,null,null,null,null,null,null,null,null,null,null,null,null,1,1,1,1,null,null,null,null,null,null,null,null,null,null,null,null,null,null,null,null,null,1,1,1,1,null,null,null,null,null,null,null,null,null,null,null,null,null,null,null,null,null,1,1,1,1,null,null,null,null,null,null,null,null,null,null,null,null,null,null,null,null,null,1,1,1,1]
["2013-04-15","","","","","","","","",1,3,2,4,5,"","",""," "," "," "," ",null,"2013-04-15",null,null,null,null,null,null,null,null,null,null,null,null,null,null,null,null,1,1,1,1,null,null,null,null,null,null,null,null,null,null,null,null,null,null,null,null,null,1,1,1,1,null,null,null,null,null,null,null,null,null,null,null,null,null,null,null,null,null,1,1,1,1,null,null,null,null,null,null,null,null,null,null,null,null,null,null,null,null,null,1,1,1,1,null,null,null,null,null,null,null,null,null,null,null,null,null,null,null,null,null,1,1,1,1,null,null,null,null,null,null,null,null,null,null,null,null,null,null,null,null,null,1,1,1,1]
["2013-04-16",5,"","","","",3,"","","",1,"","","",4,2,""," "," "," "," ",null,"2013-04-16",null,null,null,null,null,null,null,null,null,null,null,null,null,null,null,null,1,1,1,1,null,null,null,null,null,null,null,null,null,null,null,null,null,null,null,null,null,1,1,1,1,null,null,null,null,null,null,null,null,null,null,null,null,null,null,null,null,null,1,1,1,1,null,null,null,null,null,null,null,null,null,null,null,null,null,null,null,null,null,1,1,1,1,null,null,null,null,null,null,null,null,null,null,null,null,null,null,null,null,null,1,1,1,1,null,null,null,null,null,null,null,null,null,null,null,null,null,null,null,null,null,1,1,1,1]
["2013-04-17",3,5," ",1,2,"","","",4,"","","","","","","","",""," "," ",null,"2013-04-17",null,null,1,null,null,null,null,null,null,null,null,null,null,null,null,null,null,null,1,1,null,null,null,1,null,null,null,null,null,null,null,null,null,null,null,null,null,null,null,1,1,null,null,null,1,null,null,null,null,null,null,null,null,null,null,null,null,null,null,null,1,1,null,null,null,1,null,null,null,null,null,null,null,null,null,null,null,null,null,null,null,1,1,null,null,null,1,null,null,null,null,null,null,null,null,null,null,null,null,null,null,null,1,1,null,null,null,1,null,null,null,null,null,null,null,null,null,null,null,null,null,null,null,1,1]
["2013-04-18",2,1,4,"",5,"",3,"","","","","","","","","","",""," "," ",null,"2013-04-18",null,null,null,null,null,null,null,null,null,null,null,null,null,null,null,null,null,null,1,1,null,null,null,null,null,null,null,null,null,null,null,null,null,null,null,null,null,null,null,1,1,null,null,null,null,null,null,null,null,null,null,null,null,null,null,null,null,null,null,null,1,1,null,null,null,null,null,null,null,null,null,null,null,null,null,null,null,null,null,null,null,1,1,null,null,null,null,null,null,null,null,null,null,null,null,null,null,null,null,null,null,null,1,1,null,null,null,null,null,null,null,null,null,null,null,null,null,null,null,null,null,null,null,1,1]
["2013-04-19",5,2,3,4,"","","",1,"","","",""," ","","","","","",""," ",null,"2013-04-19",null,null,null,null,null,null,null,null,null,null,null,null,1,null,null,null,null,null,null,1,null,null,null,null,null,null,null,null,null,null,null,null,null,1,null,null,null,null,null,null,1,null,null,null,null,null,null,null,null,null,null,null,null,null,1,null,null,null,null,null,null,1,null,null,null,null,null,null,null,null,null,null,null,null,null,1,null,null,null,null,null,null,1,null,null,null,null,null,null,null,null,null,null,null,null,null,1,null,null,null,null,null,null,1,null,null,null,null,null,null,null,null,null,null,null,null,null,1,null,null,null,null,null,null,1]
["2013-04-20",5,3,1,"",4,"",2,"","","","","","","",""," "," "," "," "," ",null,"2013-04-20",null,null,null,null,null,null,null,null,null,null,null,null,null,null,null,1,1,1,1,1,null,null,null,null,null,null,null,null,null,null,null,null,null,null,null,null,1,1,1,1,1,null,null,null,null,null,null,null,null,null,null,null,null,null,null,null,null,1,1,1,1,1,null,null,null,null,null,null,null,null,null,null,null,null,null,null,null,null,1,1,1,1,1,null,null,null,null,null,null,null,null,null,null,null,null,null,null,null,null,1,1,1,1,1,null,null,null,null,null,null,null,null,null,null,null,null,null,null,null,null,1,1,1,1,1]
["2013-04-21","","",5,1,"",2,"",3,"",4,"","","","","","","","",""," ",null,"2013-04-21",null,null,null,null,null,null,null,null,null,null,null,null,null,null,null,null,null,null,null,1,null,null,null,null,null,null,null,null,null,null,null,null,null,null,null,null,null,null,null,null,1,null,null,null,null,null,null,null,null,null,null,null,null,null,null,null,null,null,null,null,null,1,null,null,null,null,null,null,null,null,null,null,null,null,null,null,null,null,null,null,null,null,1,null,null,null,null,null,null,null,null,null,null,null,null,null,null,null,null,null,null,null,null,1,null,null,null,null,null,null,null,null,null,null,null,null,null,null,null,null,null,null,null,null,1]
["2013-04-22",5,"","","","",2,1,4,"","","",3,"","","","","",""," "," ",null,"2013-04-22",null,null,null,null,null,null,null,null,null,null,null,null,null,null,null,null,null,null,1,1,null,null,null,null,null,null,null,null,null,null,null,null,null,null,null,null,null,null,null,1,1,null,null,null,null,null,null,null,null,null,null,null,null,null,null,null,null,null,null,null,1,1,null,null,null,null,null,null,null,null,null,null,null,null,null,null,null,null,null,null,null,1,1,null,null,null,null,null,null,null,null,null,null,null,null,null,null,null,null,null,null,null,1,1,null,null,null,null,null,null,null,null,null,null,null,null,null,null,null,null,null,null,null,1,1]
["2013-04-23",3,"","",1,"","",5,"","",4,"",2,"","","",""," "," "," "," ",null,"2013-04-23",null,null,null,null,null,null,null,null,null,null,null,null,null,null,null,null,1,1,1,1,null,null,null,null,null,null,null,null,null,null,null,null,null,null,null,null,null,1,1,1,1,null,null,null,null,null,null,null,null,null,null,null,null,null,null,null,null,null,1,1,1,1,null,null,null,null,null,null,null,null,null,null,null,null,null,null,null,null,null,1,1,1,1,null,null,null,null,null,null,null,null,null,null,null,null,null,null,null,null,null,1,1,1,1,null,null,null,null,null,null,null,null,null,null,null,null,null,null,null,null,null,1,1,1,1]
["2013-04-24"," ",5,"","","","",4,"",1,2,"",3,"","","","","",""," "," ",null,"2013-04-24",1,null,null,null,null,null,null,null,null,null,null,null,null,null,null,null,null,null,1,1,null,1,null,null,null,null,null,null,null,null,null,null,null,null,null,null,null,null,null,1,1,null,1,null,null,null,null,null,null,null,null,null,null,null,null,null,null,null,null,null,1,1,null,1,null,null,null,null,null,null,null,null,null,null,null,null,null,null,null,null,null,1,1,null,1,null,null,null,null,null,null,null,null,null,null,null,null,null,null,null,null,null,1,1,null,1,null,null,null,null,null,null,null,null,null,null,null,null,null,null,null,null,null,1,1]
["2013-04-25","",""," ",5," ",4,"","","","","",3,2,1,"","","","",""," ",null,"2013-04-25",null,null,1,null,1,null,null,null,null,null,null,null,null,null,null,null,null,null,null,1,null,null,null,1,null,1,null,null,null,null,null,null,null,null,null,null,null,null,null,null,1,null,null,null,1,null,1,null,null,null,null,null,null,null,null,null,null,null,null,null,null,1,null,null,null,1,null,1,null,null,null,null,null,null,null,null,null,null,null,null,null,null,1,null,null,null,1,null,1,null,null,null,null,null,null,null,null,null,null,null,null,null,null,1,null,null,null,1,null,1,null,null,null,null,null,null,null,null,null,null,null,null,null,null,1]
["2013-04-26","","",5,4,2,1,"","","","","","","","","","",3," "," "," ",null,"2013-04-26",null,null,null,null,null,null,null,null,null,null,null,null,null,null,null,null,null,1,1,1,null,null,null,null,null,null,null,null,null,null,null,null,null,null,null,null,null,null,1,1,1,null,null,null,null,null,null,null,null,null,null,null,null,null,null,null,null,null,null,1,1,1,null,null,null,null,null,null,null,null,null,null,null,null,null,null,null,null,null,null,1,1,1,null,null,null,null,null,null,null,null,null,null,null,null,null,null,null,null,null,null,1,1,1,null,null,null,null,null,null,null,null,null,null,null,null,null,null,null,null,null,null,1,1,1]
["2013-04-27","",4,2,1,"",5,"","",3,"","","","","","",""," "," "," "," ",null,"2013-04-27",null,null,null,null,null,null,null,null,null,null,null,null,null,null,null,null,1,1,1,1,null,null,null,null,null,null,null,null,null,null,null,null,null,null,null,null,null,1,1,1,1,null,null,null,null,null,null,null,null,null,null,null,null,null,null,null,null,null,1,1,1,1,null,null,null,null,null,null,null,null,null,null,null,null,null,null,null,null,null,1,1,1,1,null,null,null,null,null,null,null,null,null,null,null,null,null,null,null,null,null,1,1,1,1,null,null,null,null,null,null,null,null,null,null,null,null,null,null,null,null,null,1,1,1,1]
["2013-04-28",3,"","","",2,"","",1,""," ","","",5,"","",4," "," "," "," ",null,"2013-04-28",null,null,null,null,null,null,null,null,null,1,null,null,null,null,null,null,1,1,1,1,null,null,null,null,null,null,null,null,null,null,1,null,null,null,null,null,null,1,1,1,1,null,null,null,null,null,null,null,null,null,null,1,null,null,null,null,null,null,1,1,1,1,null,null,null,null,null,null,null,null,null,null,1,null,null,null,null,null,null,1,1,1,1,null,null,null,null,null,null,null,null,null,null,1,null,null,null,null,null,null,1,1,1,1,null,null,null,null,null,null,null,null,null,null,1,null,null,null,null,null,null,1,1,1,1]
["2013-04-29"," ","",5,""," ",4,""," ",2,"","",1,3,"","","","",""," "," ",null,"2013-04-29",1,null,null,null,1,null,null,1,null,null,null,null,null,null,null,null,null,null,1,1,null,1,null,null,null,1,null,null,1,null,null,null,null,null,null,null,null,null,null,1,1,null,1,null,null,null,1,null,null,1,null,null,null,null,null,null,null,null,null,null,1,1,null,1,null,null,null,1,null,null,1,null,null,null,null,null,null,null,null,null,null,1,1,null,1,null,null,null,1,null,null,1,null,null,null,null,null,null,null,null,null,null,1,1,null,1,null,null,null,1,null,null,1,null,null,null,null,null,null,null,null,null,null,1,1]
["2013-04-30","","","",2,"",1,"","","",3,"","","","","",4,"",5," "," ",null,"2013-04-30",null,null,null,null,null,null,null,null,null,null,null,null,null,null,null,null,null,null,1,1,null,null,null,null,null,null,null,null,null,null,null,null,null,null,null,null,null,null,null,1,1,null,null,null,null,null,null,null,null,null,null,null,null,null,null,null,null,null,null,null,1,1,null,null,null,null,null,null,null,null,null,null,null,null,null,null,null,null,null,null,null,1,1,null,null,null,null,null,null,null,null,null,null,null,null,null,null,null,null,null,null,null,1,1,null,null,null,null,null,null,null,null,null,null,null,null,null,null,null,null,null,null,null,1,1]
["2013-05-01","","",5,4,"","",1,2,"","",3,""," ","","","",""," "," "," ",null,"2013-05-01",null,null,null,null,null,null,null,null,null,null,null,null,1,null,null,null,null,1,1,1,null,null,null,null,null,null,null,null,null,null,null,null,null,1,null,null,null,null,1,1,1,null,null,null,null,null,null,null,null,null,null,null,null,null,1,null,null,null,null,1,1,1,null,null,null,null,null,null,null,null,null,null,null,null,null,1,null,null,null,null,1,1,1,null,null,null,null,null,null,null,null,null,null,null,null,null,1,null,null,null,null,1,1,1,null,null,null,null,null,null,null,null,null,null,null,null,null,1,null,null,null,null,1,1,1]
["2013-05-02",4,"",3,"",1,2,"","","",5,"","","","",""," "," "," "," "," ",null,"2013-05-02",null,null,null,null,null,null,null,null,null,null,null,null,null,null,null,1,1,1,1,1,null,null,null,null,null,null,null,null,null,null,null,null,null,null,null,null,1,1,1,1,1,null,null,null,null,null,null,null,null,null,null,null,null,null,null,null,null,1,1,1,1,1,null,null,null,null,null,null,null,null,null,null,null,null,null,null,null,null,1,1,1,1,1,null,null,null,null,null,null,null,null,null,null,null,null,null,null,null,null,1,1,1,1,1,null,null,null,null,null,null,null,null,null,null,null,null,null,null,null,null,1,1,1,1,1]
["2013-05-03",4,"","","",2,"","",1,5,3,"","","","","","","",""," "," ",null,"2013-05-03",null,null,null,null,null,null,null,null,null,null,null,null,null,null,null,null,null,null,1,1,null,null,null,null,null,null,null,null,null,null,null,null,null,null,null,null,null,null,null,1,1,null,null,null,null,null,null,null,null,null,null,null,null,null,null,null,null,null,null,null,1,1,null,null,null,null,null,null,null,null,null,null,null,null,null,null,null,null,null,null,null,1,1,null,null,null,null,null,null,null,null,null,null,null,null,null,null,null,null,null,null,null,1,1,null,null,null,null,null,null,null,null,null,null,null,null,null,null,null,null,null,null,null,1,1]
["2013-05-04","","",""," ","","",2,"","",1,"","",3,4,5,"","",""," "," ",null,"2013-05-04",null,null,null,1,null,null,null,null,null,null,null,null,null,null,null,null,null,null,1,1,null,null,null,null,1,null,null,null,null,null,null,null,null,null,null,null,null,null,null,1,1,null,null,null,null,1,null,null,null,null,null,null,null,null,null,null,null,null,null,null,1,1,null,null,null,null,1,null,null,null,null,null,null,null,null,null,null,null,null,null,null,1,1,null,null,null,null,1,null,null,null,null,null,null,null,null,null,null,null,null,null,null,1,1,null,null,null,null,1,null,null,null,null,null,null,null,null,null,null,null,null,null,null,1,1]
["2013-05-05"," ","","","",5,"",3,2,"","","",1,4,"","","","","","","",null,"2013-05-05",1,null,null,null,null,null,null,null,null,null,null,null,null,null,null,null,null,null,null,null,null,1,null,null,null,null,null,null,null,null,null,null,null,null,null,null,null,null,null,null,null,null,1,null,null,null,null,null,null,null,null,null,null,null,null,null,null,null,null,null,null,null,null,1,null,null,null,null,null,null,null,null,null,null,null,null,null,null,null,null,null,null,null,null,1,null,null,null,null,null,null,null,null,null,null,null,null,null,null,null,null,null,null,null,null,1]
["2013-05-06","","","",2,"","","",4,1,3,"","","","",5,"",""," "," "," ",null,"2013-05-06",null,null,null,null,null,null,null,null,null,null,null,null,null,null,null,null,null,1,1,1,null,null,null,null,null,null,null,null,null,null,null,null,null,null,null,null,null,null,1,1,1,null,null,null,null,null,null,null,null,null,null,null,null,null,null,null,null,null,null,1,1,1,null,null,null,null,null,null,null,null,null,null,null,null,null,null,null,null,null,null,1,1,1,null,null,null,null,null,null,null,null,null,null,null,null,null,null,null,null,null,null,1,1,1,null,null,null,null,null,null,null,null,null,null,null,null,null,null,null,null,null,null,1,1,1]
["2013-05-07","",2,3,"","","","","","",5,"",1,"","","",4,""," "," "," ",null,"2013-05-07",null,null,null,null,null,null,null,null,null,null,null,null,null,null,null,null,null,1,1,1,null,null,null,null,null,null,null,null,null,null,null,null,null,null,null,null,null,null,1,1,1,null,null,null,null,null,null,null,null,null,null,null,null,null,null,null,null,null,null,1,1,1,null,null,null,null,null,null,null,null,null,null,null,null,null,null,null,null,null,null,1,1,1,null,null,null,null,null,null,null,null,null,null,null,null,null,null,null,null,null,null,1,1,1,null,null,null,null,null,null,null,null,null,null,null,null,null,null,null,null,null,null,1,1,1]
["2013-05-08","",3,"",4,"","","","",1,2,"",5,"","","",""," "," "," "," ",null,"2013-05-08",null,null,null,null,null,null,null,null,null,null,null,null,null,null,null,null,1,1,1,1,null,null,null,null,null,null,null,null,null,null,null,null,null,null,null,null,null,1,1,1,1,null,null,null,null,null,null,null,null,null,null,null,null,null,null,null,null,null,1,1,1,1,null,null,null,null,null,null,null,null,null,null,null,null,null,null,null,null,null,1,1,1,1,null,null,null,null,null,null,null,null,null,null,null,null,null,null,null,null,null,1,1,1,1,null,null,null,null,null,null,null,null,null,null,null,null,null,null,null,null,null,1,1,1,1]
["2013-05-09",1,3,"","","","","","",4,"",5,"","",2,"",""," "," "," "," ",null,"2013-05-09",null,null,null,null,null,null,null,null,null,null,1,null,null,null,null,null,1,1,1,1,null,null,null,null,null,null,null,null,null,null,null,1,null,null,null,null,null,1,1,1,1,null,null,null,null,null,null,null,null,null,null,null,1,null,null,null,null,null,1,1,1,1,null,null,null,null,null,null,null,null,null,null,null,1,null,null,null,null,null,1,1,1,1,null,null,null,null,null,null,null,null,null,null,null,1,null,null,null,null,null,1,1,1,1,null,null,null,null,null,null,null,null,null,null,null,1,null,null,null,null,null,1,1,1,1]
["2013-05-10","","","",1,"",4,"",3,2,"","","","",5,""," "," "," "," "," ",null,"2013-05-10",null,null,null,null,null,null,null,null,null,null,null,null,null,null,null,1,1,1,1,1,null,null,null,null,null,null,null,null,null,null,null,null,null,null,null,null,1,1,1,1,1,null,null,null,null,null,null,null,null,null,null,null,null,null,null,null,null,1,1,1,1,1,null,null,null,null,null,null,null,null,null,null,null,null,null,null,null,null,1,1,1,1,1,null,null,null,null,null,null,null,null,null,null,null,null,null,null,null,null,1,1,1,1,1,null,null,null,null,null,null,null,null,null,null,null,null,null,null,null,null,1,1,1,1,1]
["2013-05-11","","","",4,3,1,"","",2,"","","","",5," "," "," "," "," "," ",null,"2013-05-11",null,null,null,null,null,null,null,null,null,null,null,null,null,null,1,1,1,1,1,1,null,null,null,null,null,null,null,null,null,null,null,null,null,null,null,1,1,1,1,1,1,null,null,null,null,null,null,null,null,null,null,null,null,null,null,null,1,1,1,1,1,1,null,null,null,null,null,null,null,null,null,null,null,null,null,null,null,1,1,1,1,1,1,null,null,null,null,null,null,null,null,null,null,null,null,null,null,null,1,1,1,1,1,1,null,null,null,null,null,null,null,null,null,null,null,null,null,null,null,1,1,1,1,1,1]
["2013-05-12","","","","",1,2,4,"","","",5,"","","","","","",3," "," ",null,"2013-05-12",null,null,null,null,null,null,null,null,null,null,null,null,null,null,null,null,null,null,1,1,null,null,null,null,null,null,null,null,null,null,null,null,null,null,null,null,null,null,null,1,1,null,null,null,null,null,null,null,null,null,null,null,null,null,null,null,null,null,null,null,1,1,null,null,null,null,null,null,null,null,null,null,null,null,null,null,null,null,null,null,null,1,1,null,null,null,null,null,null,null,null,null,null,null,null,null,null,null,null,null,null,null,1,1,null,null,null,null,null,null,null,null,null,null,null,null,null,null,null,null,null,null,null,1,1]
["2013-05-13","",1,"",5,2," ","","",3,"","","","",4,"",""," "," "," "," ",null,"2013-05-13",null,null,null,null,null,1,null,null,null,null,null,null,null,null,null,null,1,1,1,1,null,null,null,null,null,null,1,null,null,null,null,null,null,null,null,null,null,1,1,1,1,null,null,null,null,null,null,1,null,null,null,null,null,null,null,null,null,null,1,1,1,1,null,null,null,null,null,null,1,null,null,null,null,null,null,null,null,null,null,1,1,1,1,null,null,null,null,null,null,1,null,null,null,null,null,null,null,null,null,null,1,1,1,1,null,null,null,null,null,null,1,null,null,null,null,null,null,null,null,null,null,1,1,1,1]
["2013-05-14","",3,"","","",1,"",5,"","","","","","",2,4," "," "," "," ",null,"2013-05-14",null,null,null,null,null,null,null,null,null,null,null,null,null,null,null,null,1,1,1,1,null,null,null,null,null,null,null,null,null,null,null,null,null,null,null,null,null,1,1,1,1,null,null,null,null,null,null,null,null,null,null,null,null,null,null,null,null,null,1,1,1,1,null,null,null,null,null,null,null,null,null,null,null,null,null,null,null,null,null,1,1,1,1,null,null,null,null,null,null,null,null,null,null,null,null,null,null,null,null,null,1,1,1,1,null,null,null,null,null,null,null,null,null,null,null,null,null,null,null,null,null,1,1,1,1]
["2013-05-15","","","","","","",1,"",4,5," ",""," ",2,3,""," "," "," "," ",null,"2013-05-15",null,null,null,null,null,null,null,null,null,null,1,null,1,null,null,null,1,1,1,1,null,null,null,null,null,null,null,null,null,null,null,1,null,1,null,null,null,1,1,1,1,null,null,null,null,null,null,null,null,null,null,null,1,null,1,null,null,null,1,1,1,1,null,null,null,null,null,null,null,null,null,null,null,1,null,1,null,null,null,1,1,1,1,null,null,null,null,null,null,null,null,null,null,null,1,null,1,null,null,null,1,1,1,1,null,null,null,null,null,null,null,null,null,null,null,1,null,1,null,null,null,1,1,1,1]
["2013-05-16","","",2,"","",3,4,"","","","",5,"","",1,""," "," "," "," ",null,"2013-05-16",null,null,null,null,null,null,null,null,null,null,null,null,null,null,null,null,1,1,1,1,null,null,null,null,null,null,null,null,null,null,null,null,null,null,null,null,null,1,1,1,1,null,null,null,null,null,null,null,null,null,null,null,null,null,null,null,null,null,1,1,1,1,null,null,null,null,null,null,null,null,null,null,null,null,null,null,null,null,null,1,1,1,1,null,null,null,null,null,null,null,null,null,null,null,null,null,null,null,null,null,1,1,1,1,null,null,null,null,null,null,null,null,null,null,null,null,null,null,null,null,null,1,1,1,1]
["2013-05-17",3,"","","","","","","",4,1,2,5,"","",""," "," "," "," "," ",null,"2013-05-17",null,null,null,null,null,null,null,null,null,null,null,null,null,null,null,1,1,1,1,1,null,null,null,null,null,null,null,null,null,null,null,null,null,null,null,null,1,1,1,1,1,null,null,null,null,null,null,null,null,null,null,null,null,null,null,null,null,1,1,1,1,1,null,null,null,null,null,null,null,null,null,null,null,null,null,null,null,null,1,1,1,1,1,null,null,null,null,null,null,null,null,null,null,null,null,null,null,null,null,1,1,1,1,1,null,null,null,null,null,null,null,null,null,null,null,null,null,null,null,null,1,1,1,1,1]
["2013-05-18","",2,"",3,"","","",1,"","","","","",4,5,""," "," "," "," ",null,"2013-05-18",null,null,null,null,null,null,null,null,null,null,null,null,null,null,null,null,1,1,1,1,null,null,null,null,null,null,null,null,null,null,null,null,null,null,null,null,null,1,1,1,1,null,null,null,null,null,null,null,null,null,null,null,null,null,null,null,null,null,1,1,1,1,null,null,null,null,null,null,null,null,null,null,null,null,null,null,null,null,null,1,1,1,1,null,null,null,null,null,null,null,null,null,null,null,null,null,null,null,null,null,1,1,1,1,null,null,null,null,null,null,null,null,null,null,null,null,null,null,null,null,null,1,1,1,1]
["2013-05-19","","",2,"","","","","","",3,1,4,"","",5,""," "," "," "," ",null,"2013-05-19",null,null,null,null,null,null,null,null,null,null,null,null,null,null,null,null,1,1,1,1,null,null,null,null,null,null,null,null,null,null,null,null,null,null,null,null,null,1,1,1,1,null,null,null,null,null,null,null,null,null,null,null,null,null,null,null,null,null,1,1,1,1,null,null,null,null,null,null,null,null,null,null,null,null,null,null,null,null,null,1,1,1,1,null,null,null,null,null,null,null,null,null,null,null,null,null,null,null,null,null,1,1,1,1,null,null,null,null,null,null,null,null,null,null,null,null,null,null,null,null,null,1,1,1,1]
["2013-05-20",1,"","",4,3,"","","","","",5,"","","",2,""," "," "," "," ",null,"2013-05-20",null,null,null,null,null,null,null,null,null,null,null,null,null,null,null,null,1,1,1,1,null,null,null,null,null,null,null,null,null,null,null,null,null,null,null,null,null,1,1,1,1,null,null,null,null,null,null,null,null,null,null,null,null,null,null,null,null,null,1,1,1,1,null,null,null,null,null,null,null,null,null,null,null,null,null,null,null,null,null,1,1,1,1,null,null,null,null,null,null,null,null,null,null,null,null,null,null,null,null,null,1,1,1,1,null,null,null,null,null,null,null,null,null,null,null,null,null,null,null,null,null,1,1,1,1]
["2013-05-21",2,4,5,"","","","","",1,"",3," ","","","",""," "," "," "," ",null,"2013-05-21",null,null,null,null,null,null,null,null,null,null,null,1,null,null,null,null,1,1,1,1,null,null,null,null,null,null,null,null,null,null,null,null,1,null,null,null,null,1,1,1,1,null,null,null,null,null,null,null,null,null,null,null,null,1,null,null,null,null,1,1,1,1,null,null,null,null,null,null,null,null,null,null,null,null,1,null,null,null,null,1,1,1,1,null,null,null,null,null,null,null,null,null,null,null,null,1,null,null,null,null,1,1,1,1,null,null,null,null,null,null,null,null,null,null,null,null,1,null,null,null,null,1,1,1,1]
["2013-05-22",2,"","","","","",1,"","",4,5,"",3,"","","","",""," "," ",null,"2013-05-22",null,null,null,null,null,null,null,null,null,null,null,null,null,null,null,null,null,null,1,1,null,null,null,null,null,null,null,null,null,null,null,null,null,null,null,null,null,null,null,1,1,null,null,null,null,null,null,null,null,null,null,null,null,null,null,null,null,null,null,null,1,1,null,null,null,null,null,null,null,null,null,null,null,null,null,null,null,null,null,null,null,1,1,null,null,null,null,null,null,null,null,null,null,null,null,null,null,null,null,null,null,null,1,1,null,null,null,null,null,null,null,null,null,null,null,null,null,null,null,null,null,null,null,1,1]
["2013-05-23","",3,"",4,1,"",2,"","","","","","","",5,""," "," "," "," ",null,"2013-05-23",null,null,null,null,null,null,null,null,null,null,null,null,null,null,null,null,1,1,1,1,null,null,null,null,null,null,null,null,null,null,null,null,null,null,null,null,null,1,1,1,1,null,null,null,null,null,null,null,null,null,null,null,null,null,null,null,null,null,1,1,1,1,null,null,null,null,null,null,null,null,null,null,null,null,null,null,null,null,null,1,1,1,1,null,null,null,null,null,null,null,null,null,null,null,null,null,null,null,null,null,1,1,1,1,null,null,null,null,null,null,null,null,null,null,null,null,null,null,null,null,null,1,1,1,1]
["2013-05-24","","","",2,"","",1,"",5,"","","","","",3,"",4,""," "," ",null,"2013-05-24",null,null,null,null,null,null,null,null,null,null,null,null,null,null,null,null,null,null,1,1,null,null,null,null,null,null,null,null,null,null,null,null,null,null,null,null,null,null,null,1,1,null,null,null,null,null,null,null,null,null,null,null,null,null,null,null,null,null,null,null,1,1,null,null,null,null,null,null,null,null,null,null,null,null,null,null,null,null,null,null,null,1,1,null,null,null,null,null,null,null,null,null,null,null,null,null,null,null,null,null,null,null,1,1,null,null,null,null,null,null,null,null,null,null,null,null,null,null,null,null,null,null,null,1,1]
["2013-05-25","",3,"",1,5,4,"","","","","","","","",2,""," "," "," "," ",null,"2013-05-25",null,null,null,null,null,null,null,null,null,null,null,null,null,null,null,null,1,1,1,1,null,null,null,null,null,null,null,null,null,null,null,null,null,null,null,null,null,1,1,1,1,null,null,null,null,null,null,null,null,null,null,null,null,null,null,null,null,null,1,1,1,1,null,null,null,null,null,null,null,null,null,null,null,null,null,null,null,null,null,1,1,1,1,null,null,null,null,null,null,null,null,null,null,null,null,null,null,null,null,null,1,1,1,1,null,null,null,null,null,null,null,null,null,null,null,null,null,null,null,null,null,1,1,1,1]
["2013-05-26","",3,"","",1,"","","","","","",2,5,"","","","",4," "," ",null,"2013-05-26",null,null,null,null,null,null,null,null,null,null,null,null,null,null,null,null,null,null,1,1,null,null,null,null,null,null,null,null,null,null,null,null,null,null,null,null,null,null,null,1,1,null,null,null,null,null,null,null,null,null,null,null,null,null,null,null,null,null,null,null,1,1,null,null,null,null,null,null,null,null,null,null,null,null,null,null,null,null,null,null,null,1,1,null,null,null,null,null,null,null,null,null,null,null,null,null,null,null,null,null,null,null,1,1,null,null,null,null,null,null,null,null,null,null,null,null,null,null,null,null,null,null,null,1,1]
["2013-05-27","","","","",4,1,3,"","","","",5,2,"","",""," "," "," "," ",null,"2013-05-27",null,null,null,null,null,null,null,null,null,null,null,null,null,null,null,null,1,1,1,1,null,null,null,null,null,null,null,null,null,null,null,null,null,null,null,null,null,1,1,1,1,null,null,null,null,null,null,null,null,null,null,null,null,null,null,null,null,null,1,1,1,1,null,null,null,null,null,null,null,null,null,null,null,null,null,null,null,null,null,1,1,1,1,null,null,null,null,null,null,null,null,null,null,null,null,null,null,null,null,null,1,1,1,1,null,null,null,null,null,null,null,null,null,null,null,null,null,null,null,null,null,1,1,1,1]
["2013-05-28","",2,"","",5,"",4,1,"","","","","","",3,""," "," "," "," ",null,"2013-05-28",null,null,null,null,null,null,null,null,null,null,null,null,null,null,null,null,1,1,1,1,null,null,null,null,null,null,null,null,null,null,null,null,null,null,null,null,null,1,1,1,1,null,null,null,null,null,null,null,null,null,null,null,null,null,null,null,null,null,1,1,1,1,null,null,null,null,null,null,null,null,null,null,null,null,null,null,null,null,null,1,1,1,1,null,null,null,null,null,null,null,null,null,null,null,null,null,null,null,null,null,1,1,1,1,null,null,null,null,null,null,null,null,null,null,null,null,null,null,null,null,null,1,1,1,1]
["2013-05-29"," ",""," ","",1,"","","","",2,5,"",4,"",3,""," "," "," "," ",null,"2013-05-29",1,null,1,null,null,null,null,null,null,null,null,null,null,null,null,null,1,1,1,1,null,1,null,1,null,null,null,null,null,null,null,null,null,null,null,null,null,1,1,1,1,null,1,null,1,null,null,null,null,null,null,null,null,null,null,null,null,null,1,1,1,1,null,1,null,1,null,null,null,null,null,null,null,null,null,null,null,null,null,1,1,1,1,null,1,null,1,null,null,null,null,null,null,null,null,null,null,null,null,null,1,1,1,1,null,1,null,1,null,null,null,null,null,null,null,null,null,null,null,null,null,1,1,1,1]
["2013-05-30","","","",""," ",2,"",4,"",5,"",1,"","","",3,"",""," "," ",null,"2013-05-30",null,null,null,null,null,null,null,null,null,null,null,null,null,null,null,null,null,null,1,1,null,null,null,null,null,null,null,null,null,null,null,null,null,null,null,null,null,null,null,1,1,null,null,null,null,null,null,null,null,null,null,null,null,null,null,null,null,null,null,null,1,1,null,null,null,null,null,null,null,null,null,null,null,null,null,null,null,null,null,null,null,1,1,null,null,null,null,null,null,null,null,null,null,null,null,null,null,null,null,null,null,null,1,1,null,null,null,null,null,null,null,null,null,null,null,null,null,null,null,null,null,null,null,1,1]
["2013-05-31","","",4,""," ","","","","","",1,3,2,5,""," "," "," "," "," ",null,"2013-05-31",null,null,null,null,1,null,null,null,null,null,null,null,null,null,null,1,1,1,1,1,null,null,null,null,null,1,null,null,null,null,null,null,null,null,null,null,1,1,1,1,1,null,null,null,null,null,1,null,null,null,null,null,null,null,null,null,null,1,1,1,1,1,null,null,null,null,null,1,null,null,null,null,null,null,null,null,null,null,1,1,1,1,1,null,null,null,null,null,1,null,null,null,null,null,null,null,null,null,null,1,1,1,1,1,null,null,null,null,null,1,null,null,null,null,null,null,null,null,null,null,1,1,1,1,1]
["2013-06-01","",5,"",3,"","",4,"",1,"","","","",2,"","","",""," "," ",null,"2013-06-01",null,null,null,null,null,null,null,null,null,null,null,null,null,null,null,null,null,null,1,1,null,null,null,null,null,null,null,null,null,null,null,null,null,null,null,null,null,null,null,1,1,null,null,null,null,null,null,null,null,null,null,null,null,null,null,null,null,null,null,null,1,1,null,null,null,null,null,null,null,null,null,null,null,null,null,null,null,null,null,null,null,1,1,null,null,null,null,null,null,null,null,null,null,null,null,null,null,null,null,null,null,null,1,1,null,null,null,null,null,null,null,null,null,null,null,null,null,null,null,null,null,null,null,1,1]
["2013-06-02","",5,4,"","","","",3,"","","","","","","","","",2,1," ",null,"2013-06-02",null,null,null,null,null,null,null,null,null,null,null,null,null,null,null,null,null,null,null,1,null,null,null,null,null,null,null,null,null,null,null,null,null,null,null,null,null,null,null,null,1,null,null,null,null,null,null,null,null,null,null,null,null,null,null,null,null,null,null,null,null,1,null,null,null,null,null,null,null,null,null,null,null,null,null,null,null,null,null,null,null,null,1,null,null,null,null,null,null,null,null,null,null,null,null,null,null,null,null,null,null,null,null,1,null,null,null,null,null,null,null,null,null,null,null,null,null,null,null,null,null,null,null,null,1]
["2013-06-03","","","","",1,"","","","","","",5,4,"",2,"",3,"",""," ",null,"2013-06-03",null,null,null,null,null,null,null,null,null,null,null,null,null,null,null,null,null,null,null,1,null,null,null,null,null,null,null,null,null,null,null,null,null,null,null,null,null,null,null,null,1,null,null,null,null,null,null,null,null,null,null,null,null,null,null,null,null,null,null,null,null,1,null,null,null,null,null,null,null,null,null,null,null,null,null,null,null,null,null,null,null,null,1,null,null,null,null,null,null,null,null,null,null,null,null,null,null,null,null,null,null,null,null,1,null,null,null,null,null,null,null,null,null,null,null,null,null,null,null,null,null,null,null,null,1]
["2013-06-04","",5,"",4,"","","","",2,"","","","",3,"",1," "," "," "," ",null,"2013-06-04",null,null,null,null,null,null,null,null,null,null,null,null,null,null,null,null,1,1,1,1,null,null,null,null,null,null,null,null,null,null,null,null,null,null,null,null,null,1,1,1,1,null,null,null,null,null,null,null,null,null,null,null,null,null,null,null,null,null,1,1,1,1,null,null,null,null,null,null,null,null,null,null,null,null,null,null,null,null,null,1,1,1,1,null,null,null,null,null,null,null,null,null,null,null,null,null,null,null,null,null,1,1,1,1,null,null,null,null,null,null,null,null,null,null,null,null,null,null,null,null,null,1,1,1,1]
["2013-06-05","","","",2,1,"",4,"","",3,"","","",5,"","","",""," "," ",null,"2013-06-05",null,null,null,null,null,null,null,null,null,null,null,null,null,null,null,null,null,null,1,1,null,null,null,null,null,null,null,null,null,null,null,null,null,null,null,null,null,null,null,1,1,null,null,null,null,null,null,null,null,null,null,null,null,null,null,null,null,null,null,null,1,1,null,null,null,null,null,null,null,null,null,null,null,null,null,null,null,null,null,null,null,1,1,null,null,null,null,null,null,null,null,null,null,null,null,null,null,null,null,null,null,null,1,1,null,null,null,null,null,null,null,null,null,null,null,null,null,null,null,null,null,null,null,1,1]
["2013-06-06","","","","","",5,"",1,"","","","",2,"","","",3,4," "," ",null,"2013-06-06",null,null,null,null,null,null,null,null,null,null,null,null,null,null,null,null,null,null,1,1,null,null,null,null,null,null,null,null,null,null,null,null,null,null,null,null,null,null,null,1,1,null,null,null,null,null,null,null,null,null,null,null,null,null,null,null,null,null,null,null,1,1,null,null,null,null,null,null,null,null,null,null,null,null,null,null,null,null,null,null,null,1,1,null,null,null,null,null,null,null,null,null,null,null,null,null,null,null,null,null,null,null,1,1,null,null,null,null,null,null,null,null,null,null,null,null,null,null,null,null,null,null,null,1,1]
["2013-06-07","","","","",3,2,"",4,"","","","","","",1,"","",5," "," ",null,"2013-06-07",null,null,null,null,null,null,null,null,null,null,null,null,null,null,null,null,null,null,1,1,null,null,null,null,null,null,null,null,null,null,null,null,null,null,null,null,null,null,null,1,1,null,null,null,null,null,null,null,null,null,null,null,null,null,null,null,null,null,null,null,1,1,null,null,null,null,null,null,null,null,null,null,null,null,null,null,null,null,null,null,null,1,1,null,null,null,null,null,null,null,null,null,null,null,null,null,null,null,null,null,null,null,1,1,null,null,null,null,null,null,null,null,null,null,null,null,null,null,null,null,null,null,null,1,1]
["2013-06-08","","","",5,4," ",2,"","","","",1,"","",3,""," "," "," "," ",null,"2013-06-08",null,null,null,null,null,1,null,null,null,null,null,null,null,null,null,null,1,1,1,1,null,null,null,null,null,null,1,null,null,null,null,null,null,null,null,null,null,1,1,1,1,null,null,null,null,null,null,1,null,null,null,null,null,null,null,null,null,null,1,1,1,1,null,null,null,null,null,null,1,null,null,null,null,null,null,null,null,null,null,1,1,1,1,null,null,null,null,null,null,1,null,null,null,null,null,null,null,null,null,null,1,1,1,1,null,null,null,null,null,null,1,null,null,null,null,null,null,null,null,null,null,1,1,1,1]
["2013-06-09","","",2," ",1,5,"","","","",4,"","","","",3," "," "," "," ",null,"2013-06-09",null,null,null,1,null,null,null,null,null,null,null,null,null,null,null,null,1,1,1,1,null,null,null,null,1,null,null,null,null,null,null,null,null,null,null,null,null,1,1,1,1,null,null,null,null,1,null,null,null,null,null,null,null,null,null,null,null,null,1,1,1,1,null,null,null,null,1,null,null,null,null,null,null,null,null,null,null,null,null,1,1,1,1,null,null,null,null,1,null,null,null,null,null,null,null,null,null,null,null,null,1,1,1,1,null,null,null,null,1,null,null,null,null,null,null,null,null,null,null,null,null,1,1,1,1]
["2013-06-10","",4,"","","",3,"","","","",2,5,"",""," ",1," "," "," "," ",null,"2013-06-10",null,null,null,null,null,null,null,null,null,null,null,null,null,null,1,null,1,1,1,1,null,null,null,null,null,null,null,null,null,null,null,null,null,null,null,1,null,1,1,1,1,null,null,null,null,null,null,null,null,null,null,null,null,null,null,null,1,null,1,1,1,1,null,null,null,null,null,null,null,null,null,null,null,null,null,null,null,1,null,1,1,1,1,null,null,null,null,null,null,null,null,null,null,null,null,null,null,null,1,null,1,1,1,1,null,null,null,null,null,null,null,null,null,null,null,null,null,null,null,1,null,1,1,1,1]
["2013-06-12","",1,2,"","","","","","",3,"",5,4,"","",""," "," "," "," ",null,"2013-06-12",null,null,null,null,null,null,null,null,null,null,null,null,null,null,null,null,1,1,1,1,null,null,null,null,null,null,null,null,null,null,null,null,null,null,null,null,null,1,1,1,1,null,null,null,null,null,null,null,null,null,null,null,null,null,null,null,null,null,1,1,1,1,null,null,null,null,null,null,null,null,null,null,null,null,null,null,null,null,null,1,1,1,1,null,null,null,null,null,null,null,null,null,null,null,null,null,null,null,null,null,1,1,1,1,null,null,null,null,null,null,null,null,null,null,null,null,null,null,null,null,null,1,1,1,1]
["2013-06-13","","",3,2,1,"","","",5,"","","","","","","",4," "," "," ",null,"2013-06-13",null,null,null,null,null,null,null,null,null,null,null,null,null,null,null,null,null,1,1,1,null,null,null,null,null,null,null,null,null,null,null,null,null,null,null,null,null,null,1,1,1,null,null,null,null,null,null,null,null,null,null,null,null,null,null,null,null,null,null,1,1,1,null,null,null,null,null,null,null,null,null,null,null,null,null,null,null,null,null,null,1,1,1,null,null,null,null,null,null,null,null,null,null,null,null,null,null,null,null,null,null,1,1,1,null,null,null,null,null,null,null,null,null,null,null,null,null,null,null,null,null,null,1,1,1]
["2013-06-14","","","","","","","",3,"","","","","",1,4,"",5,2," "," ",null,"2013-06-14",null,null,null,null,null,null,null,null,null,null,null,null,null,null,null,null,null,null,1,1,null,null,null,null,null,null,null,null,null,null,null,null,null,null,null,null,null,null,null,1,1,null,null,null,null,null,null,null,null,null,null,null,null,null,null,null,null,null,null,null,1,1,null,null,null,null,null,null,null,null,null,null,null,null,null,null,null,null,null,null,null,1,1,null,null,null,null,null,null,null,null,null,null,null,null,null,null,null,null,null,null,null,1,1,null,null,null,null,null,null,null,null,null,null,null,null,null,null,null,null,null,null,null,1,1]
["2013-06-15","",2,"","","","",4,"",1,"",3,"","","","",5," "," "," "," ",null,"2013-06-15",null,null,null,null,null,null,null,null,null,null,null,null,null,null,null,null,1,1,1,1,null,null,null,null,null,null,null,null,null,null,null,null,null,null,null,null,null,1,1,1,1,null,null,null,null,null,null,null,null,null,null,null,null,null,null,null,null,null,1,1,1,1,null,null,null,null,null,null,null,null,null,null,null,null,null,null,null,null,null,1,1,1,1,null,null,null,null,null,null,null,null,null,null,null,null,null,null,null,null,null,1,1,1,1,null,null,null,null,null,null,null,null,null,null,null,null,null,null,null,null,null,1,1,1,1]
["2013-06-16","","","","","","",1,"",2,"","",3,"",4,5,""," "," "," "," ",null,"2013-06-16",null,null,null,null,null,null,null,null,null,null,null,null,null,null,null,null,1,1,1,1,null,null,null,null,null,null,null,null,null,null,null,null,null,null,null,null,null,1,1,1,1,null,null,null,null,null,null,null,null,null,null,null,null,null,null,null,null,null,1,1,1,1,null,null,null,null,null,null,null,null,null,null,null,null,null,null,null,null,null,1,1,1,1,null,null,null,null,null,null,null,null,null,null,null,null,null,null,null,null,null,1,1,1,1,null,null,null,null,null,null,null,null,null,null,null,null,null,null,null,null,null,1,1,1,1]
["2013-06-17","","",4,"",1,2,"","",3,"","","","","","",5,"",""," "," ",null,"2013-06-17",null,null,null,null,null,null,null,null,null,null,null,null,null,null,null,null,null,null,1,1,null,null,null,null,null,null,null,null,null,null,null,null,null,null,null,null,null,null,null,1,1,null,null,null,null,null,null,null,null,null,null,null,null,null,null,null,null,null,null,null,1,1,null,null,null,null,null,null,null,null,null,null,null,null,null,null,null,null,null,null,null,1,1,null,null,null,null,null,null,null,null,null,null,null,null,null,null,null,null,null,null,null,1,1,null,null,null,null,null,null,null,null,null,null,null,null,null,null,null,null,null,null,null,1,1]
["2013-06-18",1,"",5,3,2,"","","","","","","","","",4,""," "," "," "," ",null,"2013-06-18",null,null,null,null,null,null,null,null,null,null,null,null,null,null,null,null,1,1,1,1,null,null,null,null,null,null,null,null,null,null,null,null,null,null,null,null,null,1,1,1,1,null,null,null,null,null,null,null,null,null,null,null,null,null,null,null,null,null,1,1,1,1,null,null,null,null,null,null,null,null,null,null,null,null,null,null,null,null,null,1,1,1,1,null,null,null,null,null,null,null,null,null,null,null,null,null,null,null,null,null,1,1,1,1,null,null,null,null,null,null,null,null,null,null,null,null,null,null,null,null,null,1,1,1,1]
["2013-06-19",3,5,"","","","",1,"","","","",4,"","",2,""," "," "," "," ",null,"2013-06-19",null,null,null,null,null,null,null,null,null,null,null,null,null,null,null,null,1,1,1,1,null,null,null,null,null,null,null,null,null,null,null,null,null,null,null,null,null,1,1,1,1,null,null,null,null,null,null,null,null,null,null,null,null,null,null,null,null,null,1,1,1,1,null,null,null,null,null,null,null,null,null,null,null,null,null,null,null,null,null,1,1,1,1,null,null,null,null,null,null,null,null,null,null,null,null,null,null,null,null,null,1,1,1,1,null,null,null,null,null,null,null,null,null,null,null,null,null,null,null,null,null,1,1,1,1]
["2013-06-20","","","",5,"",3,"",2,"",1,"","","",4,""," "," "," "," "," ",null,"2013-06-20",null,null,null,null,null,null,null,null,null,null,null,null,null,null,null,1,1,1,1,1,null,null,null,null,null,null,null,null,null,null,null,null,null,null,null,null,1,1,1,1,1,null,null,null,null,null,null,null,null,null,null,null,null,null,null,null,null,1,1,1,1,1,null,null,null,null,null,null,null,null,null,null,null,null,null,null,null,null,1,1,1,1,1,null,null,null,null,null,null,null,null,null,null,null,null,null,null,null,null,1,1,1,1,1,null,null,null,null,null,null,null,null,null,null,null,null,null,null,null,null,1,1,1,1,1]
["2013-06-21","",3,"","",2,"","","",1,5,"",4,"","",""," "," "," "," "," ",null,"2013-06-21",null,null,null,null,null,null,null,null,null,null,null,null,null,null,null,1,1,1,1,1,null,null,null,null,null,null,null,null,null,null,null,null,null,null,null,null,1,1,1,1,1,null,null,null,null,null,null,null,null,null,null,null,null,null,null,null,null,1,1,1,1,1,null,null,null,null,null,null,null,null,null,null,null,null,null,null,null,null,1,1,1,1,1,null,null,null,null,null,null,null,null,null,null,null,null,null,null,null,null,1,1,1,1,1,null,null,null,null,null,null,null,null,null,null,null,null,null,null,null,null,1,1,1,1,1]
["2013-06-22","","","","","",5,"","","","","",4,3,2,"",1,"",""," "," ",null,"2013-06-22",null,null,null,null,null,null,null,null,null,null,null,null,null,null,null,null,null,null,1,1,null,null,null,null,null,null,null,null,null,null,null,null,null,null,null,null,null,null,null,1,1,null,null,null,null,null,null,null,null,null,null,null,null,null,null,null,null,null,null,null,1,1,null,null,null,null,null,null,null,null,null,null,null,null,null,null,null,null,null,null,null,1,1,null,null,null,null,null,null,null,null,null,null,null,null,null,null,null,null,null,null,null,1,1,null,null,null,null,null,null,null,null,null,null,null,null,null,null,null,null,null,null,null,1,1]
["2013-06-23",3,"","","","","",2,1,"","",5,"","","",4,""," "," "," "," ",null,"2013-06-23",null,null,null,null,null,null,null,null,null,null,null,null,null,null,null,null,1,1,1,1,null,null,null,null,null,null,null,null,null,null,null,null,null,null,null,null,null,1,1,1,1,null,null,null,null,null,null,null,null,null,null,null,null,null,null,null,null,null,1,1,1,1,null,null,null,null,null,null,null,null,null,null,null,null,null,null,null,null,null,1,1,1,1,null,null,null,null,null,null,null,null,null,null,null,null,null,null,null,null,null,1,1,1,1,null,null,null,null,null,null,null,null,null,null,null,null,null,null,null,null,null,1,1,1,1]
["2013-06-24",5,"","","","",1,"",3,2,"",4,"","","",""," "," "," "," "," ",null,"2013-06-24",null,null,null,null,null,null,null,null,null,null,null,null,null,null,null,1,1,1,1,1,null,null,null,null,null,null,null,null,null,null,null,null,null,null,null,null,1,1,1,1,1,null,null,null,null,null,null,null,null,null,null,null,null,null,null,null,null,1,1,1,1,1,null,null,null,null,null,null,null,null,null,null,null,null,null,null,null,null,1,1,1,1,1,null,null,null,null,null,null,null,null,null,null,null,null,null,null,null,null,1,1,1,1,1,null,null,null,null,null,null,null,null,null,null,null,null,null,null,null,null,1,1,1,1,1]
["2013-06-25","","","","","",3,4,"","","","","",2,1,"","","",5," "," ",null,"2013-06-25",null,null,null,null,null,null,null,null,null,null,null,null,null,null,null,null,null,null,1,1,null,null,null,null,null,null,null,null,null,null,null,null,null,null,null,null,null,null,null,1,1,null,null,null,null,null,null,null,null,null,null,null,null,null,null,null,null,null,null,null,1,1,null,null,null,null,null,null,null,null,null,null,null,null,null,null,null,null,null,null,null,1,1,null,null,null,null,null,null,null,null,null,null,null,null,null,null,null,null,null,null,null,1,1,null,null,null,null,null,null,null,null,null,null,null,null,null,null,null,null,null,null,null,1,1]
["2013-06-26","","","",5,2,"",1,"",3,"",4,"","","","","",""," "," "," ",null,"2013-06-26",null,null,null,null,null,null,null,null,null,null,null,null,null,null,null,null,null,1,1,1,null,null,null,null,null,null,null,null,null,null,null,null,null,null,null,null,null,null,1,1,1,null,null,null,null,null,null,null,null,null,null,null,null,null,null,null,null,null,null,1,1,1,null,null,null,null,null,null,null,null,null,null,null,null,null,null,null,null,null,null,1,1,1,null,null,null,null,null,null,null,null,null,null,null,null,null,null,null,null,null,null,1,1,1,null,null,null,null,null,null,null,null,null,null,null,null,null,null,null,null,null,null,1,1,1]
["2013-06-27",3,"","","",2,"",5,4,"","",""," ","",1,"",""," "," "," "," ",null,"2013-06-27",null,null,null,null,null,null,null,null,null,null,null,1,null,null,null,null,1,1,1,1,null,null,null,null,null,null,null,null,null,null,null,null,1,null,null,null,null,1,1,1,1,null,null,null,null,null,null,null,null,null,null,null,null,1,null,null,null,null,1,1,1,1,null,null,null,null,null,null,null,null,null,null,null,null,1,null,null,null,null,1,1,1,1,null,null,null,null,null,null,null,null,null,null,null,null,1,null,null,null,null,1,1,1,1,null,null,null,null,null,null,null,null,null,null,null,null,1,null,null,null,null,1,1,1,1]
["2013-06-28","","","","",3,2,4,"","",1,5,"","","","",""," "," "," "," ",null,"2013-06-28",null,null,null,null,null,null,null,null,null,null,null,null,null,null,null,null,1,1,1,1,null,null,null,null,null,null,null,null,null,null,null,null,null,null,null,null,null,1,1,1,1,null,null,null,null,null,null,null,null,null,null,null,null,null,null,null,null,null,1,1,1,1,null,null,null,null,null,null,null,null,null,null,null,null,null,null,null,null,null,1,1,1,1,null,null,null,null,null,null,null,null,null,null,null,null,null,null,null,null,null,1,1,1,1,null,null,null,null,null,null,null,null,null,null,null,null,null,null,null,null,null,1,1,1,1]
["2013-06-29",2,"","","",3,"","",4,"","",5,"",1,"","",""," "," "," "," ",null,"2013-06-29",null,null,null,null,null,null,null,null,null,null,null,null,null,null,null,null,1,1,1,1,null,null,null,null,null,null,null,null,null,null,null,null,null,null,null,null,null,1,1,1,1,null,null,null,null,null,null,null,null,null,null,null,null,null,null,null,null,null,1,1,1,1,null,null,null,null,null,null,null,null,null,null,null,null,null,null,null,null,null,1,1,1,1,null,null,null,null,null,null,null,null,null,null,null,null,null,null,null,null,null,1,1,1,1,null,null,null,null,null,null,null,null,null,null,null,null,null,null,null,null,null,1,1,1,1]
["2013-06-30",1,""," ",4,"","","",2,"",3,"","","","","",5," "," "," "," ",null,"2013-06-30",null,null,1,null,null,null,null,null,null,null,null,null,null,null,null,null,1,1,1,1,null,null,null,1,null,null,null,null,null,null,null,null,null,null,null,null,null,1,1,1,1,null,null,null,1,null,null,null,null,null,null,null,null,null,null,null,null,null,1,1,1,1,null,null,null,1,null,null,null,null,null,null,null,null,null,null,null,null,null,1,1,1,1,null,null,null,1,null,null,null,null,null,null,null,null,null,null,null,null,null,1,1,1,1,null,null,null,1,null,null,null,null,null,null,null,null,null,null,null,null,null,1,1,1,1]
["2013-07-01","",4," ","","","","",1,"","","","",2,"",3,5," "," "," "," ",null,"2013-07-01",null,null,1,null,null,null,null,null,null,null,null,null,null,null,null,null,1,1,1,1,null,null,null,1,null,null,null,null,null,null,null,null,null,null,null,null,null,1,1,1,1,null,null,null,1,null,null,null,null,null,null,null,null,null,null,null,null,null,1,1,1,1,null,null,null,1,null,null,null,null,null,null,null,null,null,null,null,null,null,1,1,1,1,null,null,null,1,null,null,null,null,null,null,null,null,null,null,null,null,null,1,1,1,1,null,null,null,1,null,null,null,null,null,null,null,null,null,null,null,null,null,1,1,1,1]
["2013-07-02","","",3,4,"",5,"","","","",2,"","",1,"",""," "," "," "," ",null,"2013-07-02",null,null,null,null,null,null,null,null,null,null,null,null,null,null,null,null,1,1,1,1,null,null,null,null,null,null,null,null,null,null,null,null,null,null,null,null,null,1,1,1,1,null,null,null,null,null,null,null,null,null,null,null,null,null,null,null,null,null,1,1,1,1,null,null,null,null,null,null,null,null,null,null,null,null,null,null,null,null,null,1,1,1,1,null,null,null,null,null,null,null,null,null,null,null,null,null,null,null,null,null,1,1,1,1,null,null,null,null,null,null,null,null,null,null,null,null,null,null,null,null,null,1,1,1,1]
["2013-07-03","","","","","","","","","",2,5,"",4,"",3,"","",1," "," ",null,"2013-07-03",null,null,null,null,null,null,null,null,null,null,null,null,null,null,null,null,1,1,1,1,null,null,null,null,null,null,null,null,null,null,null,null,null,null,null,null,null,1,1,1,1,null,null,null,null,null,null,null,null,null,null,null,null,null,null,null,null,null,1,1,1,1,null,null,null,null,null,null,null,null,null,null,null,null,null,null,null,null,null,1,1,1,1,null,null,null,null,null,null,null,null,null,null,null,null,null,null,null,null,null,1,1,1,1,null,null,null,null,null,null,null,null,null,null,null,null,null,null,null,null,null,1,1,1,1]
["2013-07-04",4,2,"","","","","","","","","",3,5,"",""," ",1,""," "," ",null,"2013-07-04",null,null,null,null,null,null,null,null,null,null,null,null,null,null,null,1,null,null,1,1,null,null,null,null,null,null,null,null,null,null,null,null,null,null,null,null,1,null,null,1,1,null,null,null,null,null,null,null,null,null,null,null,null,null,null,null,null,1,null,null,1,1,null,null,null,null,null,null,null,null,null,null,null,null,null,null,null,null,1,null,null,1,1,null,null,null,null,null,null,null,null,null,null,null,null,null,null,null,null,1,null,null,1,1,null,null,null,null,null,null,null,null,null,null,null,null,null,null,null,null,1,null,null,1,1]
["2013-07-05","","",4,"","","","","","","",5,"",1,"",3,2," "," "," "," ",null,"2013-07-05",null,null,null,null,null,null,null,null,null,null,null,null,null,null,null,null,1,1,1,1,null,null,null,null,null,null,null,null,null,null,null,null,null,null,null,null,null,1,1,1,1,null,null,null,null,null,null,null,null,null,null,null,null,null,null,null,null,null,1,1,1,1,null,null,null,null,null,null,null,null,null,null,null,null,null,null,null,null,null,1,1,1,1,null,null,null,null,null,null,null,null,null,null,null,null,null,null,null,null,null,1,1,1,1,null,null,null,null,null,null,null,null,null,null,null,null,null,null,null,null,null,1,1,1,1]
["2013-07-06","",1,"","",4,"","","","",2,"",3,5,"",""," "," "," "," "," ",null,"2013-07-06",null,null,null,null,null,null,null,null,null,null,null,null,null,null,null,1,1,1,1,1,null,null,null,null,null,null,null,null,null,null,null,null,null,null,null,null,1,1,1,1,1,null,null,null,null,null,null,null,null,null,null,null,null,null,null,null,null,1,1,1,1,1,null,null,null,null,null,null,null,null,null,null,null,null,null,null,null,null,1,1,1,1,1,null,null,null,null,null,null,null,null,null,null,null,null,null,null,null,null,1,1,1,1,1,null,null,null,null,null,null,null,null,null,null,null,null,null,null,null,null,1,1,1,1,1]
["2013-07-07",2,"","","",1,"","","","","","",4,3,5,"",""," "," "," "," ",null,"2013-07-07",null,null,null,null,null,null,null,null,null,null,null,null,null,null,null,null,1,1,1,1,null,null,null,null,null,null,null,null,null,null,null,null,null,null,null,null,null,1,1,1,1,null,null,null,null,null,null,null,null,null,null,null,null,null,null,null,null,null,1,1,1,1,null,null,null,null,null,null,null,null,null,null,null,null,null,null,null,null,null,1,1,1,1,null,null,null,null,null,null,null,null,null,null,null,null,null,null,null,null,null,1,1,1,1,null,null,null,null,null,null,null,null,null,null,null,null,null,null,null,null,null,1,1,1,1]
["2013-07-08","","","","",2,1,"",5,"",4,"","","","","",3," "," "," "," ",null,"2013-07-08",null,null,null,null,null,null,null,null,null,null,null,null,null,null,null,null,1,1,1,1,null,null,null,null,null,null,null,null,null,null,null,null,null,null,null,null,null,1,1,1,1,null,null,null,null,null,null,null,null,null,null,null,null,null,null,null,null,null,1,1,1,1,null,null,null,null,null,null,null,null,null,null,null,null,null,null,null,null,null,1,1,1,1,null,null,null,null,null,null,null,null,null,null,null,null,null,null,null,null,null,1,1,1,1,null,null,null,null,null,null,null,null,null,null,null,null,null,null,null,null,null,1,1,1,1]
["2013-07-09","","",1,5,3,"","","","","","",4,"",2,""," "," "," "," "," ",null,"2013-07-09",null,null,null,null,null,null,null,null,null,null,null,null,null,null,null,1,1,1,1,1,null,null,null,null,null,null,null,null,null,null,null,null,null,null,null,null,1,1,1,1,1,null,null,null,null,null,null,null,null,null,null,null,null,null,null,null,null,1,1,1,1,1,null,null,null,null,null,null,null,null,null,null,null,null,null,null,null,null,1,1,1,1,1,null,null,null,null,null,null,null,null,null,null,null,null,null,null,null,null,1,1,1,1,1,null,null,null,null,null,null,null,null,null,null,null,null,null,null,null,null,1,1,1,1,1]
["2013-07-10","",2,"",4,"","","",1,"",3,5,"","","",""," "," "," "," "," ",null,"2013-07-10",null,null,null,null,null,null,null,null,null,null,null,null,null,null,null,1,1,1,1,1,null,null,null,null,null,null,null,null,null,null,null,null,null,null,null,null,1,1,1,1,1,null,null,null,null,null,null,null,null,null,null,null,null,null,null,null,null,1,1,1,1,1,null,null,null,null,null,null,null,null,null,null,null,null,null,null,null,null,1,1,1,1,1,null,null,null,null,null,null,null,null,null,null,null,null,null,null,null,null,1,1,1,1,1,null,null,null,null,null,null,null,null,null,null,null,null,null,null,null,null,1,1,1,1,1]
["2013-07-11",2,4,"","","",1,"","","","",3,""," ",5,""," "," "," "," "," ",null,"2013-07-11",null,null,null,null,null,null,null,null,null,null,null,null,1,null,null,1,1,1,1,1,null,null,null,null,null,null,null,null,null,null,null,null,null,1,null,null,1,1,1,1,1,null,null,null,null,null,null,null,null,null,null,null,null,null,1,null,null,1,1,1,1,1,null,null,null,null,null,null,null,null,null,null,null,null,null,1,null,null,1,1,1,1,1,null,null,null,null,null,null,null,null,null,null,null,null,null,1,null,null,1,1,1,1,1,null,null,null,null,null,null,null,null,null,null,null,null,null,1,null,null,1,1,1,1,1]
["2013-07-12","","","","","","",5,3,"","",""," ",4,"",1,2," "," "," "," ",null,"2013-07-12",null,null,null,null,null,null,null,null,null,null,null,1,null,null,null,null,1,1,1,1,null,null,null,null,null,null,null,null,null,null,null,null,1,null,null,null,null,1,1,1,1,null,null,null,null,null,null,null,null,null,null,null,null,1,null,null,null,null,1,1,1,1,null,null,null,null,null,null,null,null,null,null,null,null,1,null,null,null,null,1,1,1,1,null,null,null,null,null,null,null,null,null,null,null,null,1,null,null,null,null,1,1,1,1,null,null,null,null,null,null,null,null,null,null,null,null,1,null,null,null,null,1,1,1,1]
["2013-07-13","",2,"","","","","",5,"",1,"",4,3,"",""," "," "," "," "," ",null,"2013-07-13",null,null,null,null,null,null,null,null,null,null,null,null,null,null,null,1,1,1,1,1,null,null,null,null,null,null,null,null,null,null,null,null,null,null,null,null,1,1,1,1,1,null,null,null,null,null,null,null,null,null,null,null,null,null,null,null,null,1,1,1,1,1,null,null,null,null,null,null,null,null,null,null,null,null,null,null,null,null,1,1,1,1,1,null,null,null,null,null,null,null,null,null,null,null,null,null,null,null,null,1,1,1,1,1,null,null,null,null,null,null,null,null,null,null,null,null,null,null,null,null,1,1,1,1,1]
["2013-07-14",5,"","",3,"","",1,"","","","","",4,2,""," "," "," "," "," ",null,"2013-07-14",null,null,null,null,null,null,null,null,null,null,null,null,null,null,null,1,1,1,1,1,null,null,null,null,null,null,null,null,null,null,null,null,null,null,null,null,1,1,1,1,1,null,null,null,null,null,null,null,null,null,null,null,null,null,null,null,null,1,1,1,1,1,null,null,null,null,null,null,null,null,null,null,null,null,null,null,null,null,1,1,1,1,1,null,null,null,null,null,null,null,null,null,null,null,null,null,null,null,null,1,1,1,1,1,null,null,null,null,null,null,null,null,null,null,null,null,null,null,null,null,1,1,1,1,1]
["2013-07-15","",4,"",1,"","","","",5,"","","",2,"","",3,"","",""," ",null,"2013-07-15",null,null,null,null,null,null,null,null,null,null,null,null,null,null,null,null,null,null,null,1,null,null,null,null,null,null,null,null,null,null,null,null,null,null,null,null,null,null,null,null,1,null,null,null,null,null,null,null,null,null,null,null,null,null,null,null,null,null,null,null,null,1,null,null,null,null,null,null,null,null,null,null,null,null,null,null,null,null,null,null,null,null,1,null,null,null,null,null,null,null,null,null,null,null,null,null,null,null,null,null,null,null,null,1,null,null,null,null,null,null,null,null,null,null,null,null,null,null,null,null,null,null,null,null,1]
["2013-07-16","",4,"","","","","",2,"","",5,"","","","",1,"",3," "," ",null,"2013-07-16",null,null,null,null,null,null,null,null,null,null,null,null,null,null,null,null,null,null,1,1,null,null,null,null,null,null,null,null,null,null,null,null,null,null,null,null,null,null,null,1,1,null,null,null,null,null,null,null,null,null,null,null,null,null,null,null,null,null,null,null,1,1,null,null,null,null,null,null,null,null,null,null,null,null,null,null,null,null,null,null,null,1,1,null,null,null,null,null,null,null,null,null,null,null,null,null,null,null,null,null,null,null,1,1,null,null,null,null,null,null,null,null,null,null,null,null,null,null,null,null,null,null,null,1,1]
["2013-07-17","","",2,5,"","","","","","",1,"",3,"","",4,"",""," "," ",null,"2013-07-17",null,null,null,null,null,null,null,null,null,null,null,null,null,null,null,null,null,null,1,1,null,null,null,null,null,null,null,null,null,null,null,null,null,null,null,null,null,null,null,1,1,null,null,null,null,null,null,null,null,null,null,null,null,null,null,null,null,null,null,null,1,1,null,null,null,null,null,null,null,null,null,null,null,null,null,null,null,null,null,null,null,1,1,null,null,null,null,null,null,null,null,null,null,null,null,null,null,null,null,null,null,null,1,1,null,null,null,null,null,null,null,null,null,null,null,null,null,null,null,null,null,null,null,1,1]
["2013-07-18","",3,"","",5,2,4,1,"","","","","",""," "," "," "," "," "," ",null,"2013-07-18",null,null,null,null,null,null,null,null,null,null,null,null,null,null,1,1,1,1,1,1,null,null,null,null,null,null,null,null,null,null,null,null,null,null,null,1,1,1,1,1,1,null,null,null,null,null,null,null,null,null,null,null,null,null,null,null,1,1,1,1,1,1,null,null,null,null,null,null,null,null,null,null,null,null,null,null,null,1,1,1,1,1,1,null,null,null,null,null,null,null,null,null,null,null,null,null,null,null,1,1,1,1,1,1,null,null,null,null,null,null,null,null,null,null,null,null,null,null,null,1,1,1,1,1,1]
["2013-07-19","","","",3,"","",4,"","","",1,"",5,"","",2," "," "," "," ",null,"2013-07-19",null,null,null,null,null,null,null,null,null,null,null,null,null,null,null,null,1,1,1,1,null,null,null,null,null,null,null,null,null,null,null,null,null,null,null,null,null,1,1,1,1,null,null,null,null,null,null,null,null,null,null,null,null,null,null,null,null,null,1,1,1,1,null,null,null,null,null,null,null,null,null,null,null,null,null,null,null,null,null,1,1,1,1,null,null,null,null,null,null,null,null,null,null,null,null,null,null,null,null,null,1,1,1,1,null,null,null,null,null,null,null,null,null,null,null,null,null,null,null,null,null,1,1,1,1]
["2013-07-20",""," ","","","","","",5,"",2,3,1,4,"","",""," "," "," "," ",null,"2013-07-20",null,1,null,null,null,null,null,null,null,null,null,null,null,null,null,null,1,1,1,1,null,null,1,null,null,null,null,null,null,null,null,null,null,null,null,null,null,1,1,1,1,null,null,1,null,null,null,null,null,null,null,null,null,null,null,null,null,null,1,1,1,1,null,null,1,null,null,null,null,null,null,null,null,null,null,null,null,null,null,1,1,1,1,null,null,1,null,null,null,null,null,null,null,null,null,null,null,null,null,null,1,1,1,1,null,null,1,null,null,null,null,null,null,null,null,null,null,null,null,null,null,1,1,1,1]
["2013-07-21","",5,"","",3,4,1,"","","","","",2," ",""," "," "," "," "," ",null,"2013-07-21",null,null,null,null,null,null,null,null,null,null,null,null,null,1,null,1,1,1,1,1,null,null,null,null,null,null,null,null,null,null,null,null,null,null,1,null,1,1,1,1,1,null,null,null,null,null,null,null,null,null,null,null,null,null,null,1,null,1,1,1,1,1,null,null,null,null,null,null,null,null,null,null,null,null,null,null,1,null,1,1,1,1,1,null,null,null,null,null,null,null,null,null,null,null,null,null,null,1,null,1,1,1,1,1,null,null,null,null,null,null,null,null,null,null,null,null,null,null,1,null,1,1,1,1,1]
["2013-07-22","",4,5,"",3,2,"","","","","",1,"","","",""," "," "," "," ",null,"2013-07-22",null,null,null,null,null,null,null,null,null,null,null,null,null,null,null,null,1,1,1,1,null,null,null,null,null,null,null,null,null,null,null,null,null,null,null,null,null,1,1,1,1,null,null,null,null,null,null,null,null,null,null,null,null,null,null,null,null,null,1,1,1,1,null,null,null,null,null,null,null,null,null,null,null,null,null,null,null,null,null,1,1,1,1,null,null,null,null,null,null,null,null,null,null,null,null,null,null,null,null,null,1,1,1,1,null,null,null,null,null,null,null,null,null,null,null,null,null,null,null,null,null,1,1,1,1]
["2013-07-23","",2,"","","","","","",5,4,"",3,"","","","","",1," "," ",null,"2013-07-23",null,null,null,null,null,null,null,null,null,null,null,null,null,null,null,null,null,null,1,1,null,null,null,null,null,null,null,null,null,null,null,null,null,null,null,null,null,null,null,1,1,null,null,null,null,null,null,null,null,null,null,null,null,null,null,null,null,null,null,null,1,1,null,null,null,null,null,null,null,null,null,null,null,null,null,null,null,null,null,null,null,1,1,null,null,null,null,null,null,null,null,null,null,null,null,null,null,null,null,null,null,null,1,1,null,null,null,null,null,null,null,null,null,null,null,null,null,null,null,null,null,null,null,1,1]
["2013-07-24","",5,"",1,"",2,"","",3,"","","","","","","",4," "," "," ",null,"2013-07-24",null,null,null,null,null,null,null,null,null,null,null,null,null,null,null,null,null,1,1,1,null,null,null,null,null,null,null,null,null,null,null,null,null,null,null,null,null,null,1,1,1,null,null,null,null,null,null,null,null,null,null,null,null,null,null,null,null,null,null,1,1,1,null,null,null,null,null,null,null,null,null,null,null,null,null,null,null,null,null,null,1,1,1,null,null,null,null,null,null,null,null,null,null,null,null,null,null,null,null,null,null,1,1,1,null,null,null,null,null,null,null,null,null,null,null,null,null,null,null,null,null,null,1,1,1]
["2013-07-25","","","","","",2,"","",3,1,"","",5,"",4,""," "," "," "," ",null,"2013-07-25",null,null,null,null,null,null,null,null,null,null,null,null,null,null,null,null,1,1,1,1,null,null,null,null,null,null,null,null,null,null,null,null,null,null,null,null,null,1,1,1,1,null,null,null,null,null,null,null,null,null,null,null,null,null,null,null,null,null,1,1,1,1,null,null,null,null,null,null,null,null,null,null,null,null,null,null,null,null,null,1,1,1,1,null,null,null,null,null,null,null,null,null,null,null,null,null,null,null,null,null,1,1,1,1,null,null,null,null,null,null,null,null,null,null,null,null,null,null,null,null,null,1,1,1,1]
["2013-07-26","","","",3,5,"","",4,2," ","","","",1,"",""," "," "," "," ",null,"2013-07-26",null,null,null,null,null,null,null,null,null,1,null,null,null,null,null,null,1,1,1,1,null,null,null,null,null,null,null,null,null,null,1,null,null,null,null,null,null,1,1,1,1,null,null,null,null,null,null,null,null,null,null,1,null,null,null,null,null,null,1,1,1,1,null,null,null,null,null,null,null,null,null,null,1,null,null,null,null,null,null,1,1,1,1,null,null,null,null,null,null,null,null,null,null,1,null,null,null,null,null,null,1,1,1,1,null,null,null,null,null,null,null,null,null,null,1,null,null,null,null,null,null,1,1,1,1]
["2013-07-27",1,4,3,"","",2,"","","",5,"","","","",""," "," "," "," "," ",null,"2013-07-27",null,null,null,null,null,null,null,null,null,null,null,null,null,null,null,1,1,1,1,1,null,null,null,null,null,null,null,null,null,null,null,null,null,null,null,null,1,1,1,1,1,null,null,null,null,null,null,null,null,null,null,null,null,null,null,null,null,1,1,1,1,1,null,null,null,null,null,null,null,null,null,null,null,null,null,null,null,null,1,1,1,1,1,null,null,null,null,null,null,null,null,null,null,null,null,null,null,null,null,1,1,1,1,1,null,null,null,null,null,null,null,null,null,null,null,null,null,null,null,null,1,1,1,1,1]
["2013-07-28",4,"",3,"",2,"","","","","","","",5,1,"",""," "," "," "," ",null,"2013-07-28",null,null,null,null,null,null,null,null,null,null,null,null,null,null,null,null,1,1,1,1,null,null,null,null,null,null,null,null,null,null,null,null,null,null,null,null,null,1,1,1,1,null,null,null,null,null,null,null,null,null,null,null,null,null,null,null,null,null,1,1,1,1,null,null,null,null,null,null,null,null,null,null,null,null,null,null,null,null,null,1,1,1,1,null,null,null,null,null,null,null,null,null,null,null,null,null,null,null,null,null,1,1,1,1,null,null,null,null,null,null,null,null,null,null,null,null,null,null,null,null,null,1,1,1,1]
["2013-07-29",1,"","",4,2,5,"",3,"","",""," "," ","",""," "," "," "," "," ",null,"2013-07-29",null,null,null,null,null,null,null,null,null,null,null,1,1,null,null,1,1,1,1,1,null,null,null,null,null,null,null,null,null,null,null,null,1,1,null,null,1,1,1,1,1,null,null,null,null,null,null,null,null,null,null,null,null,1,1,null,null,1,1,1,1,1,null,null,null,null,null,null,null,null,null,null,null,null,1,1,null,null,1,1,1,1,1,null,null,null,null,null,null,null,null,null,null,null,null,1,1,null,null,1,1,1,1,1,null,null,null,null,null,null,null,null,null,null,null,null,1,1,null,null,1,1,1,1,1]
["2013-07-30","","","","","","","","",2,5,1,"",3,"",4,""," "," "," "," ",null,"2013-07-30",null,null,null,null,null,null,null,null,null,null,null,null,null,null,null,null,1,1,1,1,null,null,null,null,null,null,null,null,null,null,null,null,null,null,null,null,null,1,1,1,1,null,null,null,null,null,null,null,null,null,null,null,null,null,null,null,null,null,1,1,1,1,null,null,null,null,null,null,null,null,null,null,null,null,null,null,null,null,null,1,1,1,1,null,null,null,null,null,null,null,null,null,null,null,null,null,null,null,null,null,1,1,1,1,null,null,null,null,null,null,null,null,null,null,null,null,null,null,null,null,null,1,1,1,1]
["2013-07-31",3,5,"","","",1,"","",4,2,"","",""," "," "," "," "," "," "," ",null,"2013-07-31",null,null,null,null,null,null,null,null,null,null,null,null,null,1,1,1,1,1,1,1,null,null,null,null,null,null,null,null,null,null,null,null,null,null,1,1,1,1,1,1,1,null,null,null,null,null,null,null,null,null,null,null,null,null,null,1,1,1,1,1,1,1,null,null,null,null,null,null,null,null,null,null,null,null,null,null,1,1,1,1,1,1,1,null,null,null,null,null,null,null,null,null,null,null,null,null,null,1,1,1,1,1,1,1,null,null,null,null,null,null,null,null,null,null,null,null,null,null,1,1,1,1,1,1,1]
["2013-08-01",4,"",3,"","","","",1,"","",5,"","","",2,""," "," "," "," ",null,"2013-08-01",null,null,null,null,null,null,null,null,null,null,null,null,null,null,null,null,1,1,1,1,null,null,null,null,null,null,null,null,null,null,null,null,null,null,null,null,null,1,1,1,1,null,null,null,null,null,null,null,null,null,null,null,null,null,null,null,null,null,1,1,1,1,null,null,null,null,null,null,null,null,null,null,null,null,null,null,null,null,null,1,1,1,1,null,null,null,null,null,null,null,null,null,null,null,null,null,null,null,null,null,1,1,1,1,null,null,null,null,null,null,null,null,null,null,null,null,null,null,null,null,null,1,1,1,1]
["2013-08-02",2,"","","","",3,"",5,4,"",1,"","","","",""," "," "," "," ",null,"2013-08-02",null,null,null,null,null,null,null,null,null,null,null,null,null,null,null,null,1,1,1,1,null,null,null,null,null,null,null,null,null,null,null,null,null,null,null,null,null,1,1,1,1,null,null,null,null,null,null,null,null,null,null,null,null,null,null,null,null,null,1,1,1,1,null,null,null,null,null,null,null,null,null,null,null,null,null,null,null,null,null,1,1,1,1,null,null,null,null,null,null,null,null,null,null,null,null,null,null,null,null,null,1,1,1,1,null,null,null,null,null,null,null,null,null,null,null,null,null,null,null,null,null,1,1,1,1]
["2013-08-03",1,2,"","",5,"","","",4,"","","","","","","",3,""," "," ",null,"2013-08-03",null,null,null,null,null,null,null,null,null,null,null,null,null,null,null,null,null,null,1,1,null,null,null,null,null,null,null,null,null,null,null,null,null,null,null,null,null,null,null,1,1,null,null,null,null,null,null,null,null,null,null,null,null,null,null,null,null,null,null,null,1,1,null,null,null,null,null,null,null,null,null,null,null,null,null,null,null,null,null,null,null,1,1,null,null,null,null,null,null,null,null,null,null,null,null,null,null,null,null,null,null,null,1,1,null,null,null,null,null,null,null,null,null,null,null,null,null,null,null,null,null,null,null,1,1]
["2013-08-04","",3,2,"",5,"","","","",4,1,"","",""," "," "," "," "," "," ",null,"2013-08-04",null,null,null,null,null,null,null,null,null,null,null,null,null,null,1,1,1,1,1,1,null,null,null,null,null,null,null,null,null,null,null,null,null,null,null,1,1,1,1,1,1,null,null,null,null,null,null,null,null,null,null,null,null,null,null,null,1,1,1,1,1,1,null,null,null,null,null,null,null,null,null,null,null,null,null,null,null,1,1,1,1,1,1,null,null,null,null,null,null,null,null,null,null,null,null,null,null,null,1,1,1,1,1,1,null,null,null,null,null,null,null,null,null,null,null,null,null,null,null,1,1,1,1,1,1]
["2013-08-05","",1,"","","",3,5,4,"","","","","","",2,""," "," "," "," ",null,"2013-08-05",null,null,null,null,null,null,null,null,null,null,null,null,null,null,null,null,1,1,1,1,null,null,null,null,null,null,null,null,null,null,null,null,null,null,null,null,null,1,1,1,1,null,null,null,null,null,null,null,null,null,null,null,null,null,null,null,null,null,1,1,1,1,null,null,null,null,null,null,null,null,null,null,null,null,null,null,null,null,null,1,1,1,1,null,null,null,null,null,null,null,null,null,null,null,null,null,null,null,null,null,1,1,1,1,null,null,null,null,null,null,null,null,null,null,null,null,null,null,null,null,null,1,1,1,1]
["2013-08-06",3,"",2,"","","",1,"","",5,4,"","","","",""," "," "," "," ",null,"2013-08-06",null,null,null,null,null,null,null,null,null,null,null,null,null,null,null,null,1,1,1,1,null,null,null,null,null,null,null,null,null,null,null,null,null,null,null,null,null,1,1,1,1,null,null,null,null,null,null,null,null,null,null,null,null,null,null,null,null,null,1,1,1,1,null,null,null,null,null,null,null,null,null,null,null,null,null,null,null,null,null,1,1,1,1,null,null,null,null,null,null,null,null,null,null,null,null,null,null,null,null,null,1,1,1,1,null,null,null,null,null,null,null,null,null,null,null,null,null,null,null,null,null,1,1,1,1]
["2013-08-07","",1,3,"",4,5,"","","","","","",2,"","",""," "," "," "," ",null,"2013-08-07",null,null,null,null,null,null,null,null,null,null,null,null,null,null,null,null,1,1,1,1,null,null,null,null,null,null,null,null,null,null,null,null,null,null,null,null,null,1,1,1,1,null,null,null,null,null,null,null,null,null,null,null,null,null,null,null,null,null,1,1,1,1,null,null,null,null,null,null,null,null,null,null,null,null,null,null,null,null,null,1,1,1,1,null,null,null,null,null,null,null,null,null,null,null,null,null,null,null,null,null,1,1,1,1,null,null,null,null,null,null,null,null,null,null,null,null,null,null,null,null,null,1,1,1,1]
["2013-08-08",5,"","",3,4,"","",1,"","","","","",2,""," "," "," "," "," ",null,"2013-08-08",null,null,null,null,null,null,null,null,null,null,null,null,null,null,null,1,1,1,1,1,null,null,null,null,null,null,null,null,null,null,null,null,null,null,null,null,1,1,1,1,1,null,null,null,null,null,null,null,null,null,null,null,null,null,null,null,null,1,1,1,1,1,null,null,null,null,null,null,null,null,null,null,null,null,null,null,null,null,1,1,1,1,1,null,null,null,null,null,null,null,null,null,null,null,null,null,null,null,null,1,1,1,1,1,null,null,null,null,null,null,null,null,null,null,null,null,null,null,null,null,1,1,1,1,1]
["2013-08-09","","","",4,"",2,"","",5,"",1,"","",3,"",""," "," "," "," ",null,"2013-08-09",null,null,null,null,null,null,null,null,null,null,null,null,null,null,null,null,1,1,1,1,null,null,null,null,null,null,null,null,null,null,null,null,null,null,null,null,null,1,1,1,1,null,null,null,null,null,null,null,null,null,null,null,null,null,null,null,null,null,1,1,1,1,null,null,null,null,null,null,null,null,null,null,null,null,null,null,null,null,null,1,1,1,1,null,null,null,null,null,null,null,null,null,null,null,null,null,null,null,null,null,1,1,1,1,null,null,null,null,null,null,null,null,null,null,null,null,null,null,null,null,null,1,1,1,1]
["2013-08-10","","","",4,"",2,"","","","","",3,1,5,"","","",""," "," ",null,"2013-08-10",null,null,null,null,null,null,null,null,null,null,null,null,null,null,null,null,null,null,1,1,null,null,null,null,null,null,null,null,null,null,null,null,null,null,null,null,null,null,null,1,1,null,null,null,null,null,null,null,null,null,null,null,null,null,null,null,null,null,null,null,1,1,null,null,null,null,null,null,null,null,null,null,null,null,null,null,null,null,null,null,null,1,1,null,null,null,null,null,null,null,null,null,null,null,null,null,null,null,null,null,null,null,1,1,null,null,null,null,null,null,null,null,null,null,null,null,null,null,null,null,null,null,null,1,1]
["2013-08-11","",5,4,"","","",1,"","","","","","","","",2,3," "," "," ",null,"2013-08-11",null,null,null,null,null,null,null,null,null,null,null,null,null,null,null,null,null,1,1,1,null,null,null,null,null,null,null,null,null,null,null,null,null,null,null,null,null,null,1,1,1,null,null,null,null,null,null,null,null,null,null,null,null,null,null,null,null,null,null,1,1,1,null,null,null,null,null,null,null,null,null,null,null,null,null,null,null,null,null,null,1,1,1,null,null,null,null,null,null,null,null,null,null,null,null,null,null,null,null,null,null,1,1,1,null,null,null,null,null,null,null,null,null,null,null,null,null,null,null,null,null,null,1,1,1]
["2013-08-12",5,"","","",3,4,"","","","","","","",1,"",2,""," "," "," ",null,"2013-08-12",null,null,null,null,null,null,null,null,null,null,null,null,null,null,null,null,null,1,1,1,null,null,null,null,null,null,null,null,null,null,null,null,null,null,null,null,null,null,1,1,1,null,null,null,null,null,null,null,null,null,null,null,null,null,null,null,null,null,null,1,1,1,null,null,null,null,null,null,null,null,null,null,null,null,null,null,null,null,null,null,1,1,1,null,null,null,null,null,null,null,null,null,null,null,null,null,null,null,null,null,null,1,1,1,null,null,null,null,null,null,null,null,null,null,null,null,null,null,null,null,null,null,1,1,1]
["2013-08-13","",1,2,3,"",5,"","","","",4,"","","","",""," "," "," "," ",null,"2013-08-13",null,null,null,null,null,null,null,null,null,null,null,null,null,null,null,null,1,1,1,1,null,null,null,null,null,null,null,null,null,null,null,null,null,null,null,null,null,1,1,1,1,null,null,null,null,null,null,null,null,null,null,null,null,null,null,null,null,null,1,1,1,1,null,null,null,null,null,null,null,null,null,null,null,null,null,null,null,null,null,1,1,1,1,null,null,null,null,null,null,null,null,null,null,null,null,null,null,null,null,null,1,1,1,1,null,null,null,null,null,null,null,null,null,null,null,null,null,null,null,null,null,1,1,1,1]
["2013-08-14","","","",4,"","",5,1,"","","","","",3,2,""," "," "," "," ",null,"2013-08-14",null,null,null,null,null,null,null,null,null,null,null,null,null,null,null,null,1,1,1,1,null,null,null,null,null,null,null,null,null,null,null,null,null,null,null,null,null,1,1,1,1,null,null,null,null,null,null,null,null,null,null,null,null,null,null,null,null,null,1,1,1,1,null,null,null,null,null,null,null,null,null,null,null,null,null,null,null,null,null,1,1,1,1,null,null,null,null,null,null,null,null,null,null,null,null,null,null,null,null,null,1,1,1,1,null,null,null,null,null,null,null,null,null,null,null,null,null,null,null,null,null,1,1,1,1]
["2013-08-15",2,1,"","",5,"","",4,"","",3,"","","","",""," "," "," "," ",null,"2013-08-15",null,null,null,null,null,null,null,null,null,null,null,null,null,null,null,null,1,1,1,1,null,null,null,null,null,null,null,null,null,null,null,null,null,null,null,null,null,1,1,1,1,null,null,null,null,null,null,null,null,null,null,null,null,null,null,null,null,null,1,1,1,1,null,null,null,null,null,null,null,null,null,null,null,null,null,null,null,null,null,1,1,1,1,null,null,null,null,null,null,null,null,null,null,null,null,null,null,null,null,null,1,1,1,1,null,null,null,null,null,null,null,null,null,null,null,null,null,null,null,null,null,1,1,1,1]
["2013-08-16","","","",3,"","","","",1,4,5,"","","",2,""," "," "," "," ",null,"2013-08-16",null,null,null,null,null,null,null,null,null,null,null,null,null,null,null,null,1,1,1,1,null,null,null,null,null,null,null,null,null,null,null,null,null,null,null,null,null,1,1,1,1,null,null,null,null,null,null,null,null,null,null,null,null,null,null,null,null,null,1,1,1,1,null,null,null,null,null,null,null,null,null,null,null,null,null,null,null,null,null,1,1,1,1,null,null,null,null,null,null,null,null,null,null,null,null,null,null,null,null,null,1,1,1,1,null,null,null,null,null,null,null,null,null,null,null,null,null,null,null,null,null,1,1,1,1]
["2013-08-17","","",5,3,2,"","","","","",4,"","","",1,""," "," "," "," ",null,"2013-08-17",null,null,null,null,null,null,null,null,null,null,null,null,null,null,null,null,1,1,1,1,null,null,null,null,null,null,null,null,null,null,null,null,null,null,null,null,null,1,1,1,1,null,null,null,null,null,null,null,null,null,null,null,null,null,null,null,null,null,1,1,1,1,null,null,null,null,null,null,null,null,null,null,null,null,null,null,null,null,null,1,1,1,1,null,null,null,null,null,null,null,null,null,null,null,null,null,null,null,null,null,1,1,1,1,null,null,null,null,null,null,null,null,null,null,null,null,null,null,null,null,null,1,1,1,1]
["2013-08-18","","","","",5,2,"",1,4,"","","","","","",3," "," "," "," ",null,"2013-08-18",null,null,null,null,null,null,null,null,null,null,null,null,null,null,null,null,1,1,1,1,null,null,null,null,null,null,null,null,null,null,null,null,null,null,null,null,null,1,1,1,1,null,null,null,null,null,null,null,null,null,null,null,null,null,null,null,null,null,1,1,1,1,null,null,null,null,null,null,null,null,null,null,null,null,null,null,null,null,null,1,1,1,1,null,null,null,null,null,null,null,null,null,null,null,null,null,null,null,null,null,1,1,1,1,null,null,null,null,null,null,null,null,null,null,null,null,null,null,null,null,null,1,1,1,1]
["2013-08-19","",3,"",1,"",5,"","","",""," ","","",2,4," "," "," "," "," ",null,"2013-08-19",null,null,null,null,null,null,null,null,null,null,1,null,null,null,null,1,1,1,1,1,null,null,null,null,null,null,null,null,null,null,null,1,null,null,null,null,1,1,1,1,1,null,null,null,null,null,null,null,null,null,null,null,1,null,null,null,null,1,1,1,1,1,null,null,null,null,null,null,null,null,null,null,null,1,null,null,null,null,1,1,1,1,1,null,null,null,null,null,null,null,null,null,null,null,1,null,null,null,null,1,1,1,1,1,null,null,null,null,null,null,null,null,null,null,null,1,null,null,null,null,1,1,1,1,1]
["2013-08-20","",5,"","",1,3,"",2,"","","","","","",4,""," "," "," "," ",null,"2013-08-20",null,null,null,null,null,null,null,null,null,null,null,null,null,null,null,null,1,1,1,1,null,null,null,null,null,null,null,null,null,null,null,null,null,null,null,null,null,1,1,1,1,null,null,null,null,null,null,null,null,null,null,null,null,null,null,null,null,null,1,1,1,1,null,null,null,null,null,null,null,null,null,null,null,null,null,null,null,null,null,1,1,1,1,null,null,null,null,null,null,null,null,null,null,null,null,null,null,null,null,null,1,1,1,1,null,null,null,null,null,null,null,null,null,null,null,null,null,null,null,null,null,1,1,1,1]
["2013-08-21","","",3,"","","","","",2,5,"",4,"",1," "," "," "," "," "," ",null,"2013-08-21",null,null,null,null,null,null,null,null,null,null,null,null,null,null,1,1,1,1,1,1,null,null,null,null,null,null,null,null,null,null,null,null,null,null,null,1,1,1,1,1,1,null,null,null,null,null,null,null,null,null,null,null,null,null,null,null,1,1,1,1,1,1,null,null,null,null,null,null,null,null,null,null,null,null,null,null,null,1,1,1,1,1,1,null,null,null,null,null,null,null,null,null,null,null,null,null,null,null,1,1,1,1,1,1,null,null,null,null,null,null,null,null,null,null,null,null,null,null,null,1,1,1,1,1,1]
["2013-08-22","","",5,"","","",4,"",3,"","",2,"",1,"",""," "," "," "," ",null,"2013-08-22",null,null,null,null,null,null,null,null,null,null,null,null,null,null,null,null,1,1,1,1,null,null,null,null,null,null,null,null,null,null,null,null,null,null,null,null,null,1,1,1,1,null,null,null,null,null,null,null,null,null,null,null,null,null,null,null,null,null,1,1,1,1,null,null,null,null,null,null,null,null,null,null,null,null,null,null,null,null,null,1,1,1,1,null,null,null,null,null,null,null,null,null,null,null,null,null,null,null,null,null,1,1,1,1,null,null,null,null,null,null,null,null,null,null,null,null,null,null,null,null,null,1,1,1,1]
["2013-08-23","","",2,"",3,"","","","",5,"","",1,4," "," "," "," "," "," ",null,"2013-08-23",null,null,null,null,null,null,null,null,null,null,null,null,null,null,1,1,1,1,1,1,null,null,null,null,null,null,null,null,null,null,null,null,null,null,null,1,1,1,1,1,1,null,null,null,null,null,null,null,null,null,null,null,null,null,null,null,1,1,1,1,1,1,null,null,null,null,null,null,null,null,null,null,null,null,null,null,null,1,1,1,1,1,1,null,null,null,null,null,null,null,null,null,null,null,null,null,null,null,1,1,1,1,1,1,null,null,null,null,null,null,null,null,null,null,null,null,null,null,null,1,1,1,1,1,1]
["2013-08-24","",4,3,2,"","","",1,"","","","","","","",5,"",""," "," ",null,"2013-08-24",null,null,null,null,null,null,null,null,null,null,null,null,null,null,null,null,null,null,1,1,null,null,null,null,null,null,null,null,null,null,null,null,null,null,null,null,null,null,null,1,1,null,null,null,null,null,null,null,null,null,null,null,null,null,null,null,null,null,null,null,1,1,null,null,null,null,null,null,null,null,null,null,null,null,null,null,null,null,null,null,null,1,1,null,null,null,null,null,null,null,null,null,null,null,null,null,null,null,null,null,null,null,1,1,null,null,null,null,null,null,null,null,null,null,null,null,null,null,null,null,null,null,null,1,1]
["2013-08-25",5,"",1,"","","","","",2,"","","",3,"",4,""," "," "," "," ",null,"2013-08-25",null,null,null,null,null,null,null,null,null,null,null,null,null,null,null,null,1,1,1,1,null,null,null,null,null,null,null,null,null,null,null,null,null,null,null,null,null,1,1,1,1,null,null,null,null,null,null,null,null,null,null,null,null,null,null,null,null,null,1,1,1,1,null,null,null,null,null,null,null,null,null,null,null,null,null,null,null,null,null,1,1,1,1,null,null,null,null,null,null,null,null,null,null,null,null,null,null,null,null,null,1,1,1,1,null,null,null,null,null,null,null,null,null,null,null,null,null,null,null,null,null,1,1,1,1]
["2013-08-26","","","","","",""," ",2,"",4,"","","","",1,3,"",5," "," ",null,"2013-08-26",null,null,null,null,null,null,1,null,null,null,null,null,null,null,null,null,null,null,1,1,null,null,null,null,null,null,null,1,null,null,null,null,null,null,null,null,null,null,null,1,1,null,null,null,null,null,null,null,1,null,null,null,null,null,null,null,null,null,null,null,1,1,null,null,null,null,null,null,null,1,null,null,null,null,null,null,null,null,null,null,null,1,1,null,null,null,null,null,null,null,1,null,null,null,null,null,null,null,null,null,null,null,1,1,null,null,null,null,null,null,null,1,null,null,null,null,null,null,null,null,null,null,null,1,1]
["2013-08-27",1,"","","","","","",2,"",5,4,3,"","","",""," "," "," "," ",null,"2013-08-27",null,null,null,null,null,null,null,null,null,null,null,null,null,null,null,null,1,1,1,1,null,null,null,null,null,null,null,null,null,null,null,null,null,null,null,null,null,1,1,1,1,null,null,null,null,null,null,null,null,null,null,null,null,null,null,null,null,null,1,1,1,1,null,null,null,null,null,null,null,null,null,null,null,null,null,null,null,null,null,1,1,1,1,null,null,null,null,null,null,null,null,null,null,null,null,null,null,null,null,null,1,1,1,1,null,null,null,null,null,null,null,null,null,null,null,null,null,null,null,null,null,1,1,1,1]
["2013-08-28","","",2,"","","","",1,4,5,"",3,"","","",""," "," "," "," ",null,"2013-08-28",null,null,null,null,null,null,null,null,null,null,null,null,null,null,null,null,1,1,1,1,null,null,null,null,null,null,null,null,null,null,null,null,null,null,null,null,null,1,1,1,1,null,null,null,null,null,null,null,null,null,null,null,null,null,null,null,null,null,1,1,1,1,null,null,null,null,null,null,null,null,null,null,null,null,null,null,null,null,null,1,1,1,1,null,null,null,null,null,null,null,null,null,null,null,null,null,null,null,null,null,1,1,1,1,null,null,null,null,null,null,null,null,null,null,null,null,null,null,null,null,null,1,1,1,1]
["2013-08-29","",1,"",4,"","",3,"","","","","",2,5,"",""," "," "," "," ",null,"2013-08-29",null,null,null,null,null,null,null,null,null,null,null,null,null,null,null,null,1,1,1,1,null,null,null,null,null,null,null,null,null,null,null,null,null,null,null,null,null,1,1,1,1,null,null,null,null,null,null,null,null,null,null,null,null,null,null,null,null,null,1,1,1,1,null,null,null,null,null,null,null,null,null,null,null,null,null,null,null,null,null,1,1,1,1,null,null,null,null,null,null,null,null,null,null,null,null,null,null,null,null,null,1,1,1,1,null,null,null,null,null,null,null,null,null,null,null,null,null,null,null,null,null,1,1,1,1]
["2013-08-30","",1,3,"",5,2,"","","","","","",4,"","",""," "," "," "," ",null,"2013-08-30",null,null,null,null,null,null,null,null,null,null,null,null,null,null,null,null,1,1,1,1,null,null,null,null,null,null,null,null,null,null,null,null,null,null,null,null,null,1,1,1,1,null,null,null,null,null,null,null,null,null,null,null,null,null,null,null,null,null,1,1,1,1,null,null,null,null,null,null,null,null,null,null,null,null,null,null,null,null,null,1,1,1,1,null,null,null,null,null,null,null,null,null,null,null,null,null,null,null,null,null,1,1,1,1,null,null,null,null,null,null,null,null,null,null,null,null,null,null,null,null,null,1,1,1,1]
["2013-08-31","","","","","","","",4,"","","","","",2,5,1,3," "," "," ",null,"2013-08-31",null,null,null,null,null,null,null,null,null,null,null,null,null,null,null,null,null,1,1,1,null,null,null,null,null,null,null,null,null,null,null,null,null,null,null,null,null,null,1,1,1,null,null,null,null,null,null,null,null,null,null,null,null,null,null,null,null,null,null,1,1,1,null,null,null,null,null,null,null,null,null,null,null,null,null,null,null,null,null,null,1,1,1,null,null,null,null,null,null,null,null,null,null,null,null,null,null,null,null,null,null,1,1,1,null,null,null,null,null,null,null,null,null,null,null,null,null,null,null,null,null,null,1,1,1]
["2013-09-01",2,"",5,"","","","",3,"",4,"","",1,"","",""," "," "," "," ",null,"2013-09-01",null,null,null,null,null,null,null,null,null,null,null,null,null,null,null,null,1,1,1,1,null,null,null,null,null,null,null,null,null,null,null,null,null,null,null,null,null,1,1,1,1,null,null,null,null,null,null,null,null,null,null,null,null,null,null,null,null,null,1,1,1,1,null,null,null,null,null,null,null,null,null,null,null,null,null,null,null,null,null,1,1,1,1,null,null,null,null,null,null,null,null,null,null,null,null,null,null,null,null,null,1,1,1,1,null,null,null,null,null,null,null,null,null,null,null,null,null,null,null,null,null,1,1,1,1]
["2013-09-02",5,"","",4," ",2,"",3,"","","","",""," ","","",1,""," ","",null,"2013-09-02",null,null,null,null,1,null,null,null,null,null,null,null,null,1,null,null,null,null,1,null,null,null,null,null,null,1,null,null,null,null,null,null,null,null,1,null,null,null,null,1,null,null,null,null,null,null,1,null,null,null,null,null,null,null,null,1,null,null,null,null,1,null,null,null,null,null,null,1,null,null,null,null,null,null,null,null,1,null,null,null,null,1,null,null,null,null,null,null,1,null,null,null,null,null,null,null,null,1,null,null,null,null,1,null,null,null,null,null,null,1,null,null,null,null,null,null,null,null,1,null,null,null,null,1]
["2013-09-03",1,5,4,"","","","","","",3,"","",2,""," "," "," "," "," "," ",null,"2013-09-03",null,null,null,null,null,null,null,null,null,null,null,null,null,null,1,1,1,1,1,1,null,null,null,null,null,null,null,null,null,null,null,null,null,null,null,1,1,1,1,1,1,null,null,null,null,null,null,null,null,null,null,null,null,null,null,null,1,1,1,1,1,1,null,null,null,null,null,null,null,null,null,null,null,null,null,null,null,1,1,1,1,1,1,null,null,null,null,null,null,null,null,null,null,null,null,null,null,null,1,1,1,1,1,1,null,null,null,null,null,null,null,null,null,null,null,null,null,null,null,1,1,1,1,1,1]
["2013-09-04",3,"","",2,"","","","",1,"","","","",4,"",5," "," "," "," ",null,"2013-09-04",null,null,null,null,null,null,null,null,null,null,null,null,null,null,null,null,1,1,1,1,null,null,null,null,null,null,null,null,null,null,null,null,null,null,null,null,null,1,1,1,1,null,null,null,null,null,null,null,null,null,null,null,null,null,null,null,null,null,1,1,1,1,null,null,null,null,null,null,null,null,null,null,null,null,null,null,null,null,null,1,1,1,1,null,null,null,null,null,null,null,null,null,null,null,null,null,null,null,null,null,1,1,1,1,null,null,null,null,null,null,null,null,null,null,null,null,null,null,null,null,null,1,1,1,1]
["2013-09-05","","","","","","","","",2,4,"","","",5,3,1," "," "," "," ",null,"2013-09-05",null,null,null,null,null,null,null,null,null,null,null,null,null,null,null,null,1,1,1,1,null,null,null,null,null,null,null,null,null,null,null,null,null,null,null,null,null,1,1,1,1,null,null,null,null,null,null,null,null,null,null,null,null,null,null,null,null,null,1,1,1,1,null,null,null,null,null,null,null,null,null,null,null,null,null,null,null,null,null,1,1,1,1,null,null,null,null,null,null,null,null,null,null,null,null,null,null,null,null,null,1,1,1,1,null,null,null,null,null,null,null,null,null,null,null,null,null,null,null,null,null,1,1,1,1]
["2013-09-06",5,1,4,"","","","","","","","",2,"","","",3,"",""," "," ",null,"2013-09-06",null,null,null,null,null,null,null,null,null,null,null,null,null,null,null,null,null,null,1,1,null,null,null,null,null,null,null,null,null,null,null,null,null,null,null,null,null,null,null,1,1,null,null,null,null,null,null,null,null,null,null,null,null,null,null,null,null,null,null,null,1,1,null,null,null,null,null,null,null,null,null,null,null,null,null,null,null,null,null,null,null,1,1,null,null,null,null,null,null,null,null,null,null,null,null,null,null,null,null,null,null,null,1,1,null,null,null,null,null,null,null,null,null,null,null,null,null,null,null,null,null,null,null,1,1]
["2013-09-07","","","",5,"",1,"","",2,"","","",3,"",4,""," "," "," "," ",null,"2013-09-07",null,null,null,null,null,null,null,null,null,null,null,null,null,null,null,null,1,1,1,1,null,null,null,null,null,null,null,null,null,null,null,null,null,null,null,null,null,1,1,1,1,null,null,null,null,null,null,null,null,null,null,null,null,null,null,null,null,null,1,1,1,1,null,null,null,null,null,null,null,null,null,null,null,null,null,null,null,null,null,1,1,1,1,null,null,null,null,null,null,null,null,null,null,null,null,null,null,null,null,null,1,1,1,1,null,null,null,null,null,null,null,null,null,null,null,null,null,null,null,null,null,1,1,1,1]
["2013-09-11",2,5,"","","","","","","",3,"",1,"","",4,""," "," "," "," ",null,"2013-09-11",null,null,null,null,null,null,null,null,null,null,null,null,null,null,null,null,1,1,1,1,null,null,null,null,null,null,null,null,null,null,null,null,null,null,null,null,null,1,1,1,1,null,null,null,null,null,null,null,null,null,null,null,null,null,null,null,null,null,1,1,1,1,null,null,null,null,null,null,null,null,null,null,null,null,null,null,null,null,null,1,1,1,1,null,null,null,null,null,null,null,null,null,null,null,null,null,null,null,null,null,1,1,1,1,null,null,null,null,null,null,null,null,null,null,null,null,null,null,null,null,null,1,1,1,1]
["2013-09-18","",1,"",2,"","","","",3,"",""," ",4,5,""," "," "," "," "," ",null,"2013-09-18",null,null,null,null,null,null,null,null,null,null,null,1,null,null,null,1,1,1,1,1,null,null,null,null,null,null,null,null,null,null,null,null,1,null,null,null,1,1,1,1,1,null,null,null,null,null,null,null,null,null,null,null,null,1,null,null,null,1,1,1,1,1,null,null,null,null,null,null,null,null,null,null,null,null,1,null,null,null,1,1,1,1,1,null,null,null,null,null,null,null,null,null,null,null,null,1,null,null,null,1,1,1,1,1,null,null,null,null,null,null,null,null,null,null,null,null,1,null,null,null,1,1,1,1,1]
["2013-09-21","","","",""," ","",1,"","",2,3,5,4," "," "," "," "," "," "," ",null,"2013-09-21",null,null,null,null,1,null,null,null,null,null,null,null,null,1,1,1,1,1,1,1,null,null,null,null,null,1,null,null,null,null,null,null,null,null,1,1,1,1,1,1,1,null,null,null,null,null,1,null,null,null,null,null,null,null,null,1,1,1,1,1,1,1,null,null,null,null,null,1,null,null,null,null,null,null,null,null,1,1,1,1,1,1,1,null,null,null,null,null,1,null,null,null,null,null,null,null,null,1,1,1,1,1,1,1,null,null,null,null,null,1,null,null,null,null,null,null,null,null,1,1,1,1,1,1,1]
["2013-09-28","","",3,"","","",5,1,"","","",2,"","","",4,"",""," "," ",null,"2013-09-28",null,null,null,null,null,null,null,null,null,null,null,null,null,null,null,null,null,null,1,1,null,null,null,null,null,null,null,null,null,null,null,null,null,null,null,null,null,null,null,1,1,null,null,null,null,null,null,null,null,null,null,null,null,null,null,null,null,null,null,null,1,1,null,null,null,null,null,null,null,null,null,null,null,null,null,null,null,null,null,null,null,1,1,null,null,null,null,null,null,null,null,null,null,null,null,null,null,null,null,null,null,null,1,1,null,null,null,null,null,null,null,null,null,null,null,null,null,null,null,null,null,null,null,1,1]
["2013-10-07","","","","","","","","",4,"",3,"","",2,1,5,""," "," "," ",null,"2013-10-07",null,null,null,null,null,null,null,null,null,null,null,null,null,null,null,null,null,1,1,1,null,null,null,null,null,null,null,null,null,null,null,null,null,null,null,null,null,null,1,1,1,null,null,null,null,null,null,null,null,null,null,null,null,null,null,null,null,null,null,1,1,1,null,null,null,null,null,null,null,null,null,null,null,null,null,null,null,null,null,null,1,1,1,null,null,null,null,null,null,null,null,null,null,null,null,null,null,null,null,null,null,1,1,1,null,null,null,null,null,null,null,null,null,null,null,null,null,null,null,null,null,null,1,1,1]
["2013-10-10","","",2,"",3,"","",1,5,"","","","",4,"","","",""," "," ",null,"2013-10-10",null,null,null,null,null,null,null,null,null,null,null,null,null,null,null,null,null,null,1,1,null,null,null,null,null,null,null,null,null,null,null,null,null,null,null,null,null,null,null,1,1,null,null,null,null,null,null,null,null,null,null,null,null,null,null,null,null,null,null,null,1,1,null,null,null,null,null,null,null,null,null,null,null,null,null,null,null,null,null,null,null,1,1,null,null,null,null,null,null,null,null,null,null,null,null,null,null,null,null,null,null,null,1,1,null,null,null,null,null,null,null,null,null,null,null,null,null,null,null,null,null,null,null,1,1]
["2013-10-17","","","","",1,4,"","","","","",3,2,5,"",""," "," "," "," ",null,"2013-10-17",null,null,null,null,null,null,null,null,null,null,null,null,null,null,null,null,1,1,1,1,null,null,null,null,null,null,null,null,null,null,null,null,null,null,null,null,null,1,1,1,1,null,null,null,null,null,null,null,null,null,null,null,null,null,null,null,null,null,1,1,1,1,null,null,null,null,null,null,null,null,null,null,null,null,null,null,null,null,null,1,1,1,1,null,null,null,null,null,null,null,null,null,null,null,null,null,null,null,null,null,1,1,1,1,null,null,null,null,null,null,null,null,null,null,null,null,null,null,null,null,null,1,1,1,1]
["2013-10-20","","","","","",1,"",3,"",4,"",2,"",5," "," "," "," "," "," ",null,"2013-10-20",null,null,null,null,null,null,null,null,null,null,null,null,null,null,1,1,1,1,1,1,null,null,null,null,null,null,null,null,null,null,null,null,null,null,null,1,1,1,1,1,1,null,null,null,null,null,null,null,null,null,null,null,null,null,null,null,1,1,1,1,1,1,null,null,null,null,null,null,null,null,null,null,null,null,null,null,null,1,1,1,1,1,1,null,null,null,null,null,null,null,null,null,null,null,null,null,null,null,1,1,1,1,1,1,null,null,null,null,null,null,null,null,null,null,null,null,null,null,null,1,1,1,1,1,1]
["2013-10-27","","","",4,5,"","",1,2,"",3,"","",""," "," "," "," "," "," ",null,"2013-10-27",null,null,null,null,null,null,null,null,null,null,null,null,null,null,1,1,1,1,1,1,null,null,null,null,null,null,null,null,null,null,null,null,null,null,null,1,1,1,1,1,1,null,null,null,null,null,null,null,null,null,null,null,null,null,null,null,1,1,1,1,1,1,null,null,null,null,null,null,null,null,null,null,null,null,null,null,null,1,1,1,1,1,1,null,null,null,null,null,null,null,null,null,null,null,null,null,null,null,1,1,1,1,1,1,null,null,null,null,null,null,null,null,null,null,null,null,null,null,null,1,1,1,1,1,1]
["2013-11-06","","","","","","",3,"","","",5,1,4,2,"","",""," "," "," ",null,"2013-11-06",null,null,null,null,null,null,null,null,null,null,null,null,null,null,null,null,null,1,1,1,null,null,null,null,null,null,null,null,null,null,null,null,null,null,null,null,null,null,1,1,1,null,null,null,null,null,null,null,null,null,null,null,null,null,null,null,null,null,null,1,1,1,null,null,null,null,null,null,null,null,null,null,null,null,null,null,null,null,null,null,1,1,1,null,null,null,null,null,null,null,null,null,null,null,null,null,null,null,null,null,null,1,1,1,null,null,null,null,null,null,null,null,null,null,null,null,null,null,null,null,null,null,1,1,1]
["2013-11-09","",1,"","","","","",2,"","","",5,"","","",3,"",4," "," ",null,"2013-11-09",null,null,null,null,null,null,null,null,null,null,null,null,null,null,null,null,null,null,1,1,null,null,null,null,null,null,null,null,null,null,null,null,null,null,null,null,null,null,null,1,1,null,null,null,null,null,null,null,null,null,null,null,null,null,null,null,null,null,null,null,1,1,null,null,null,null,null,null,null,null,null,null,null,null,null,null,null,null,null,null,null,1,1,null,null,null,null,null,null,null,null,null,null,null,null,null,null,null,null,null,null,null,1,1,null,null,null,null,null,null,null,null,null,null,null,null,null,null,null,null,null,null,null,1,1]
["2013-11-14","","","",5,4,3,"",1,"","","",2,"","","","","",""," "," ",null,"2013-11-14",null,null,null,null,null,null,null,null,null,null,null,null,null,null,null,null,null,null,1,1,null,null,null,null,null,null,null,null,null,null,null,null,null,null,null,null,null,null,null,1,1,null,null,null,null,null,null,null,null,null,null,null,null,null,null,null,null,null,null,null,1,1,null,null,null,null,null,null,null,null,null,null,null,null,null,null,null,null,null,null,null,1,1,null,null,null,null,null,null,null,null,null,null,null,null,null,null,null,null,null,null,null,1,1,null,null,null,null,null,null,null,null,null,null,null,null,null,null,null,null,null,null,null,1,1]
["2013-11-26","","","","","","","","",5,3,"",2,"","",1,4,""," "," "," ",null,"2013-11-26",null,null,null,null,null,null,null,null,null,null,null,null,null,null,null,null,null,1,1,1,null,null,null,null,null,null,null,null,null,null,null,null,null,null,null,null,null,null,1,1,1,null,null,null,null,null,null,null,null,null,null,null,null,null,null,null,null,null,null,1,1,1,null,null,null,null,null,null,null,null,null,null,null,null,null,null,null,null,null,null,1,1,1,null,null,null,null,null,null,null,null,null,null,null,null,null,null,null,null,null,null,1,1,1,null,null,null,null,null,null,null,null,null,null,null,null,null,null,null,null,null,null,1,1,1]
["2013-11-29","","","",5,"",2,"","",4,"","",3,"",1,"",""," "," "," "," ",null,"2013-11-29",null,null,null,null,null,null,null,null,null,null,null,null,null,null,null,null,1,1,1,1,null,null,null,null,null,null,null,null,null,null,null,null,null,null,null,null,null,1,1,1,1,null,null,null,null,null,null,null,null,null,null,null,null,null,null,null,null,null,1,1,1,1,null,null,null,null,null,null,null,null,null,null,null,null,null,null,null,null,null,1,1,1,1,null,null,null,null,null,null,null,null,null,null,null,null,null,null,null,null,null,1,1,1,1,null,null,null,null,null,null,null,null,null,null,null,null,null,null,null,null,null,1,1,1,1]
["2013-12-06","","","","","","","",1,"",3,2,"",4,"",5,""," "," "," "," ",null,"2013-12-06",null,null,null,null,null,null,null,null,null,null,null,null,null,null,null,null,1,1,1,1,null,null,null,null,null,null,null,null,null,null,null,null,null,null,null,null,null,1,1,1,1,null,null,null,null,null,null,null,null,null,null,null,null,null,null,null,null,null,1,1,1,1,null,null,null,null,null,null,null,null,null,null,null,null,null,null,null,null,null,1,1,1,1,null,null,null,null,null,null,null,null,null,null,null,null,null,null,null,null,null,1,1,1,1,null,null,null,null,null,null,null,null,null,null,null,null,null,null,null,null,null,1,1,1,1]
["2013-12-09","","","",5,"","","",4,"","","","",3,"",2,1," "," "," "," ",null,"2013-12-09",null,null,null,null,null,null,null,null,null,null,null,null,null,null,null,null,1,1,1,1,null,null,null,null,null,null,null,null,null,null,null,null,null,null,null,null,null,1,1,1,1,null,null,null,null,null,null,null,null,null,null,null,null,null,null,null,null,null,1,1,1,1,null,null,null,null,null,null,null,null,null,null,null,null,null,null,null,null,null,1,1,1,1,null,null,null,null,null,null,null,null,null,null,null,null,null,null,null,null,null,1,1,1,1,null,null,null,null,null,null,null,null,null,null,null,null,null,null,null,null,null,1,1,1,1]
["2013-12-16","","",3,"","","","",1,5,"",2,"","","",4,""," "," "," "," ",null,"2013-12-16",null,null,null,null,null,null,null,null,null,null,null,null,null,null,null,null,1,1,1,1,null,null,null,null,null,null,null,null,null,null,null,null,null,null,null,null,null,1,1,1,1,null,null,null,null,null,null,null,null,null,null,null,null,null,null,null,null,null,1,1,1,1,null,null,null,null,null,null,null,null,null,null,null,null,null,null,null,null,null,1,1,1,1,null,null,null,null,null,null,null,null,null,null,null,null,null,null,null,null,null,1,1,1,1,null,null,null,null,null,null,null,null,null,null,null,null,null,null,null,null,null,1,1,1,1]
["2013-12-25"," ","","","",2,"",4,"",3,"","","","","","","",1,"",5," ",null,"2013-12-25",1,null,null,null,null,null,null,null,null,null,null,null,null,null,null,null,null,null,null,1,null,1,null,null,null,null,null,null,null,null,null,null,null,null,null,null,null,null,null,null,1,null,1,null,null,null,null,null,null,null,null,null,null,null,null,null,null,null,null,null,null,1,null,1,null,null,null,null,null,null,null,null,null,null,null,null,null,null,null,null,null,null,1,null,1,null,null,null,null,null,null,null,null,null,null,null,null,null,null,null,null,null,null,1,null,1,null,null,null,null,null,null,null,null,null,null,null,null,null,null,null,null,null,null,1]
["2013-12-28","",4,2,"",3,1,"","","","","","","","","","","","","",5,null,"2013-12-28"]
["2014-01-04","","",5,"",1,"","","","","",4,"",3,"",2,""," "," "," "," ",null,"2014-01-04",null,null,null,null,null,null,null,null,null,null,null,null,null,null,null,null,1,1,1,1,null,null,null,null,null,null,null,null,null,null,null,null,null,null,null,null,null,1,1,1,1,null,null,null,null,null,null,null,null,null,null,null,null,null,null,null,null,null,1,1,1,1,null,null,null,null,null,null,null,null,null,null,null,null,null,null,null,null,null,1,1,1,1,null,null,null,null,null,null,null,null,null,null,null,null,null,null,null,null,null,1,1,1,1,null,null,null,null,null,null,null,null,null,null,null,null,null,null,null,null,null,1,1,1,1]
["2014-01-13","","","","","",5,"","",3,"","",2,"","",4,"",1,""," "," ",null,"2014-01-13",null,null,null,null,null,null,null,null,null,null,null,null,null,null,null,null,null,null,1,1,null,null,null,null,null,null,null,null,null,null,null,null,null,null,null,null,null,null,null,1,1,null,null,null,null,null,null,null,null,null,null,null,null,null,null,null,null,null,null,null,1,1,null,null,null,null,null,null,null,null,null,null,null,null,null,null,null,null,null,null,null,1,1,null,null,null,null,null,null,null,null,null,null,null,null,null,null,null,null,null,null,null,1,1,null,null,null,null,null,null,null,null,null,null,null,null,null,null,null,null,null,null,null,1,1]
["2014-01-14","","","","","","","",1,5,3,2,"","",4,"","","",""," "," ",null,"2014-01-14",null,null,null,null,null,null,null,null,null,null,null,null,null,null,null,null,null,null,1,1,null,null,null,null,null,null,null,null,null,null,null,null,null,null,null,null,null,null,null,1,1,null,null,null,null,null,null,null,null,null,null,null,null,null,null,null,null,null,null,null,1,1,null,null,null,null,null,null,null,null,null,null,null,null,null,null,null,null,null,null,null,1,1,null,null,null,null,null,null,null,null,null,null,null,null,null,null,null,null,null,null,null,1,1,null,null,null,null,null,null,null,null,null,null,null,null,null,null,null,null,null,null,null,1,1]
["2014-01-23","","","","","",2,3,"","",5,"","",4,"","","","",1," "," ",null,"2014-01-23",null,null,null,null,null,null,null,null,null,null,null,null,null,null,null,null,null,null,1,1,null,null,null,null,null,null,null,null,null,null,null,null,null,null,null,null,null,null,null,1,1,null,null,null,null,null,null,null,null,null,null,null,null,null,null,null,null,null,null,null,1,1,null,null,null,null,null,null,null,null,null,null,null,null,null,null,null,null,null,null,null,1,1,null,null,null,null,null,null,null,null,null,null,null,null,null,null,null,null,null,null,null,1,1,null,null,null,null,null,null,null,null,null,null,null,null,null,null,null,null,null,null,null,1,1]
["2014-01-26","","","",2,"","","",3,"","","","","","",4,5,1,""," "," ",null,"2014-01-26",null,null,null,null,null,null,null,null,null,null,null,null,null,null,null,null,null,null,1,1,null,null,null,null,null,null,null,null,null,null,null,null,null,null,null,null,null,null,null,1,1,null,null,null,null,null,null,null,null,null,null,null,null,null,null,null,null,null,null,null,1,1,null,null,null,null,null,null,null,null,null,null,null,null,null,null,null,null,null,null,null,1,1,null,null,null,null,null,null,null,null,null,null,null,null,null,null,null,null,null,null,null,1,1,null,null,null,null,null,null,null,null,null,null,null,null,null,null,null,null,null,null,null,1,1]
["2014-02-03","","","",1,"","",3,"","",4,5,"","","",2,"","",""," "," ",null,"2014-02-03",null,null,null,null,null,null,null,null,null,null,null,null,null,null,null,null,null,null,1,1,null,null,null,null,null,null,null,null,null,null,null,null,null,null,null,null,null,null,null,1,1,null,null,null,null,null,null,null,null,null,null,null,null,null,null,null,null,null,null,null,1,1,null,null,null,null,null,null,null,null,null,null,null,null,null,null,null,null,null,null,null,1,1,null,null,null,null,null,null,null,null,null,null,null,null,null,null,null,null,null,null,null,1,1,null,null,null,null,null,null,null,null,null,null,null,null,null,null,null,null,null,null,null,1,1]
["2014-02-12","","",2,"","",4,"",3,"",1,5,"","","","",""," "," "," "," ",null,"2014-02-12",null,null,null,null,null,null,null,null,null,null,null,null,null,null,null,null,1,1,1,1,null,null,null,null,null,null,null,null,null,null,null,null,null,null,null,null,null,1,1,1,1,null,null,null,null,null,null,null,null,null,null,null,null,null,null,null,null,null,1,1,1,1,null,null,null,null,null,null,null,null,null,null,null,null,null,null,null,null,null,1,1,1,1,null,null,null,null,null,null,null,null,null,null,null,null,null,null,null,null,null,1,1,1,1,null,null,null,null,null,null,null,null,null,null,null,null,null,null,null,null,null,1,1,1,1]
["2014-02-15",5,"","",3,"","",1,"","","",2,4,""," "," "," "," "," "," "," ",null,"2014-02-15",null,null,null,null,null,null,null,null,null,null,null,null,null,1,1,1,1,1,1,1,null,null,null,null,null,null,null,null,null,null,null,null,null,null,1,1,1,1,1,1,1,null,null,null,null,null,null,null,null,null,null,null,null,null,null,1,1,1,1,1,1,1,null,null,null,null,null,null,null,null,null,null,null,null,null,null,1,1,1,1,1,1,1,null,null,null,null,null,null,null,null,null,null,null,null,null,null,1,1,1,1,1,1,1,null,null,null,null,null,null,null,null,null,null,null,null,null,null,1,1,1,1,1,1,1]
["2014-02-22",4,"",2,"","",3,1,"",5,"","","","","","","","",""," "," ",null,"2014-02-22",null,null,null,null,null,null,null,null,null,null,null,null,null,null,null,null,null,null,1,1,null,null,null,null,null,null,null,null,null,null,null,null,null,null,null,null,null,null,null,1,1,null,null,null,null,null,null,null,null,null,null,null,null,null,null,null,null,null,null,null,1,1,null,null,null,null,null,null,null,null,null,null,null,null,null,null,null,null,null,null,null,1,1,null,null,null,null,null,null,null,null,null,null,null,null,null,null,null,null,null,null,null,1,1,null,null,null,null,null,null,null,null,null,null,null,null,null,null,null,null,null,null,null,1,1]
["2014-03-03",2,"",3,1,"",5,"","",""," ",""," ","","",4,"","",""," "," ",null,"2014-03-03",null,null,null,null,null,null,null,null,null,1,null,1,null,null,null,null,null,null,1,1,null,null,null,null,null,null,null,null,null,null,1,null,1,null,null,null,null,null,null,1,1,null,null,null,null,null,null,null,null,null,null,1,null,1,null,null,null,null,null,null,1,1,null,null,null,null,null,null,null,null,null,null,1,null,1,null,null,null,null,null,null,1,1,null,null,null,null,null,null,null,null,null,null,1,null,1,null,null,null,null,null,null,1,1,null,null,null,null,null,null,null,null,null,null,1,null,1,null,null,null,null,null,null,1,1]
["2014-03-04","",5,4,"",2,""," ","","","","",3,"","","","",1,""," "," ",null,"2014-03-04",null,null,null,null,null,null,1,null,null,null,null,null,null,null,null,null,null,null,1,1,null,null,null,null,null,null,null,1,null,null,null,null,null,null,null,null,null,null,null,1,1,null,null,null,null,null,null,null,1,null,null,null,null,null,null,null,null,null,null,null,1,1,null,null,null,null,null,null,null,1,null,null,null,null,null,null,null,null,null,null,null,1,1,null,null,null,null,null,null,null,1,null,null,null,null,null,null,null,null,null,null,null,1,1,null,null,null,null,null,null,null,1,null,null,null,null,null,null,null,null,null,null,null,1,1]
["2014-03-13",3,"",5,"","","","","","",2,"",4,"",1,"",""," "," "," "," ",null,"2014-03-13",null,null,null,null,null,null,null,null,null,null,null,null,null,null,null,null,1,1,1,1,null,null,null,null,null,null,null,null,null,null,null,null,null,null,null,null,null,1,1,1,1,null,null,null,null,null,null,null,null,null,null,null,null,null,null,null,null,null,1,1,1,1,null,null,null,null,null,null,null,null,null,null,null,null,null,null,null,null,null,1,1,1,1,null,null,null,null,null,null,null,null,null,null,null,null,null,null,null,null,null,1,1,1,1,null,null,null,null,null,null,null,null,null,null,null,null,null,null,null,null,null,1,1,1,1]
["2014-03-16","","","","","","",4,2,"","",1,5,3,"","","",""," "," "," ",null,"2014-03-16",null,null,null,null,null,null,null,null,null,null,null,null,null,null,null,null,null,1,1,1,null,null,null,null,null,null,null,null,null,null,null,null,null,null,null,null,null,null,1,1,1,null,null,null,null,null,null,null,null,null,null,null,null,null,null,null,null,null,null,1,1,1,null,null,null,null,null,null,null,null,null,null,null,null,null,null,null,null,null,null,1,1,1,null,null,null,null,null,null,null,null,null,null,null,null,null,null,null,null,null,null,1,1,1,null,null,null,null,null,null,null,null,null,null,null,null,null,null,null,null,null,null,1,1,1]
["2014-03-23","",1,"",2,"","",5,3,4,"","","","","","",""," "," "," "," ",null,"2014-03-23",null,null,null,null,null,null,null,null,null,null,null,null,null,null,null,null,1,1,1,1,null,null,null,null,null,null,null,null,null,null,null,null,null,null,null,null,null,1,1,1,1,null,null,null,null,null,null,null,null,null,null,null,null,null,null,null,null,null,1,1,1,1,null,null,null,null,null,null,null,null,null,null,null,null,null,null,null,null,null,1,1,1,1,null,null,null,null,null,null,null,null,null,null,null,null,null,null,null,null,null,1,1,1,1,null,null,null,null,null,null,null,null,null,null,null,null,null,null,null,null,null,1,1,1,1]
["2014-04-01","","",1,5,"",""," ",2,"",4,"","",3,"","","","",""," "," ",null,"2014-04-01",null,null,null,null,null,null,1,null,null,null,null,null,null,null,null,null,null,null,1,1,null,null,null,null,null,null,null,1,null,null,null,null,null,null,null,null,null,null,null,1,1,null,null,null,null,null,null,null,1,null,null,null,null,null,null,null,null,null,null,null,1,1,null,null,null,null,null,null,null,1,null,null,null,null,null,null,null,null,null,null,null,1,1,null,null,null,null,null,null,null,1,null,null,null,null,null,null,null,null,null,null,null,1,1,null,null,null,null,null,null,null,1,null,null,null,null,null,null,null,null,null,null,null,1,1]
["2014-04-04","",1,"","","",3,4,"",5,"","","",2,"",""," "," "," "," "," ",null,"2014-04-04",null,null,null,null,null,null,null,null,null,null,null,null,null,null,null,1,1,1,1,1,null,null,null,null,null,null,null,null,null,null,null,null,null,null,null,null,1,1,1,1,1,null,null,null,null,null,null,null,null,null,null,null,null,null,null,null,null,1,1,1,1,1,null,null,null,null,null,null,null,null,null,null,null,null,null,null,null,null,1,1,1,1,1,null,null,null,null,null,null,null,null,null,null,null,null,null,null,null,null,1,1,1,1,1,null,null,null,null,null,null,null,null,null,null,null,null,null,null,null,null,1,1,1,1,1]
["2014-04-13","","","","",1,"",4,"",5,2,"","","",3,"",""," "," "," "," ",null,"2014-04-13",null,null,null,null,null,null,null,null,null,null,null,null,null,null,null,null,1,1,1,1,null,null,null,null,null,null,null,null,null,null,null,null,null,null,null,null,null,1,1,1,1,null,null,null,null,null,null,null,null,null,null,null,null,null,null,null,null,null,1,1,1,1,null,null,null,null,null,null,null,null,null,null,null,null,null,null,null,null,null,1,1,1,1,null,null,null,null,null,null,null,null,null,null,null,null,null,null,null,null,null,1,1,1,1,null,null,null,null,null,null,null,null,null,null,null,null,null,null,null,null,null,1,1,1,1]
["2014-04-21",5,1," ","","","","","",3,2,4,"","","","",""," "," "," "," ",null,"2014-04-21",null,null,3,null,null,null,null,null,null,null,null,null,null,null,null,null,1,1,1,1,null,null,null,3,null,null,null,null,null,null,null,null,null,null,null,null,null,1,1,1,1,null,null,null,3,null,null,null,null,null,null,null,null,null,null,null,null,null,1,1,1,1,null,null,null,3,null,null,null,null,null,null,null,null,null,null,null,null,null,1,1,1,1,null,null,null,3,null,null,null,null,null,null,null,null,null,null,null,null,null,1,1,1,1,null,null,null,3,null,null,null,null,null,null,null,null,null,null,null,null,null,1,1,1,1]
["2014-04-22","",2,4,"","",1,"","","","","","",5," ",3,""," "," "," "," ",null,"2014-04-22",null,null,null,null,null,null,null,null,null,null,null,null,null,1,null,null,1,1,1,1,null,null,null,null,null,null,null,null,null,null,null,null,null,null,1,null,null,1,1,1,1,null,null,null,null,null,null,null,null,null,null,null,null,null,null,1,null,null,1,1,1,1,null,null,null,null,null,null,null,null,null,null,null,null,null,null,1,null,null,1,1,1,1,null,null,null,null,null,null,null,null,null,null,null,null,null,null,1,null,null,1,1,1,1,null,null,null,null,null,null,null,null,null,null,null,null,null,null,1,null,null,1,1,1,1]
["2014-05-01","","",3,2,4,"","","",1,"","","","","",5,""," "," "," "," ",null,"2014-05-01",null,null,null,null,null,null,null,null,null,null,null,null,null,null,null,null,1,1,1,1,null,null,null,null,null,null,null,null,null,null,null,null,null,null,null,null,null,1,1,1,1,null,null,null,null,null,null,null,null,null,null,null,null,null,null,null,null,null,1,1,1,1,null,null,null,null,null,null,null,null,null,null,null,null,null,null,null,null,null,1,1,1,1,null,null,null,null,null,null,null,null,null,null,null,null,null,null,null,null,null,1,1,1,1,null,null,null,null,null,null,null,null,null,null,null,null,null,null,null,null,null,1,1,1,1]
["2014-05-04","","","","","","","",3,"","",4,1,"",2,"","","",5,""," ",null,"2014-05-04",null,null,null,null,null,null,null,null,null,null,null,null,null,null,null,null,null,null,null,1,null,null,null,null,null,null,null,null,null,null,null,null,null,null,null,null,null,null,null,null,1,null,null,null,null,null,null,null,null,null,null,null,null,null,null,null,null,null,null,null,null,1,null,null,null,null,null,null,null,null,null,null,null,null,null,null,null,null,null,null,null,null,1,null,null,null,null,null,null,null,null,null,null,null,null,null,null,null,null,null,null,null,null,1,null,null,null,null,null,null,null,null,null,null,null,null,null,null,null,null,null,null,null,null,1]
["2014-05-11",1,"","",2,"","","",3,"","","",5,"",4,"",""," "," "," "," ",null,"2014-05-11",null,null,null,null,null,null,null,null,null,null,null,null,null,null,null,null,1,1,1,1,null,null,null,null,null,null,null,null,null,null,null,null,null,null,null,null,null,1,1,1,1,null,null,null,null,null,null,null,null,null,null,null,null,null,null,null,null,null,1,1,1,1,null,null,null,null,null,null,null,null,null,null,null,null,null,null,null,null,null,1,1,1,1,null,null,null,null,null,null,null,null,null,null,null,null,null,null,null,null,null,1,1,1,1,null,null,null,null,null,null,null,null,null,null,null,null,null,null,null,null,null,1,1,1,1]
["2014-05-20",3,"",2,"","","","","","",5,1,"","","","",4," "," "," "," ",null,"2014-05-20",null,null,null,null,null,null,null,null,null,null,null,null,null,null,null,null,1,1,1,1,null,null,null,null,null,null,null,null,null,null,null,null,null,null,null,null,null,1,1,1,1,null,null,null,null,null,null,null,null,null,null,null,null,null,null,null,null,null,1,1,1,1,null,null,null,null,null,null,null,null,null,null,null,null,null,null,null,null,null,1,1,1,1,null,null,null,null,null,null,null,null,null,null,null,null,null,null,null,null,null,1,1,1,1,null,null,null,null,null,null,null,null,null,null,null,null,null,null,null,null,null,1,1,1,1]
["2014-05-27",1,2,"","","",4,"",3,"","","",""," ",5,"",""," "," "," "," ",null,"2014-05-27",null,null,null,null,null,null,null,null,null,null,null,null,1,null,null,null,1,1,1,1,null,null,null,null,null,null,null,null,null,null,null,null,null,1,null,null,null,1,1,1,1,null,null,null,null,null,null,null,null,null,null,null,null,null,1,null,null,null,1,1,1,1,null,null,null,null,null,null,null,null,null,null,null,null,null,1,null,null,null,1,1,1,1,null,null,null,null,null,null,null,null,null,null,null,null,null,1,null,null,null,1,1,1,1,null,null,null,null,null,null,null,null,null,null,null,null,null,1,null,null,null,1,1,1,1]
["2014-05-30",5,4,"","","","","","","","","","","",3,2,"",1," "," "," ",null,"2014-05-30",null,null,null,null,null,null,null,null,null,null,null,null,null,null,null,null,null,1,1,1,null,null,null,null,null,null,null,null,null,null,null,null,null,null,null,null,null,null,1,1,1,null,null,null,null,null,null,null,null,null,null,null,null,null,null,null,null,null,null,1,1,1,null,null,null,null,null,null,null,null,null,null,null,null,null,null,null,null,null,null,1,1,1,null,null,null,null,null,null,null,null,null,null,null,null,null,null,null,null,null,null,1,1,1,null,null,null,null,null,null,null,null,null,null,null,null,null,null,null,null,null,null,1,1,1]
["2014-06-08","",5,"","","",2,3,1,"","","","","","",4,""," "," "," "," ",null,"2014-06-08",null,null,null,null,null,null,null,null,null,null,null,null,null,null,null,null,1,1,1,1,null,null,null,null,null,null,null,null,null,null,null,null,null,null,null,null,null,1,1,1,1,null,null,null,null,null,null,null,null,null,null,null,null,null,null,null,null,null,1,1,1,1,null,null,null,null,null,null,null,null,null,null,null,null,null,null,null,null,null,1,1,1,1,null,null,null,null,null,null,null,null,null,null,null,null,null,null,null,null,null,1,1,1,1,null,null,null,null,null,null,null,null,null,null,null,null,null,null,null,null,null,1,1,1,1]
["2014-06-09"," ","","",4,3,"",""," ","","","","","",5," ",1,"",2," "," ",null,"2014-06-09",1,null,null,null,null,null,null,1,null,null,null,null,null,null,1,null,null,null,1,1,null,1,null,null,null,null,null,null,1,null,null,null,null,null,null,1,null,null,null,1,1,null,1,null,null,null,null,null,null,1,null,null,null,null,null,null,1,null,null,null,1,1,null,1,null,null,null,null,null,null,1,null,null,null,null,null,null,1,null,null,null,1,1,null,1,null,null,null,null,null,null,1,null,null,null,null,null,null,1,null,null,null,1,1,null,1,null,null,null,null,null,null,1,null,null,null,null,null,null,1,null,null,null,1,1]
["2014-06-18",1,"",4,5,3,"",2,"","","","","","","","",""," "," "," "," ",null,"2014-06-18",null,null,null,null,null,null,null,null,null,null,null,null,null,null,null,null,1,1,1,1,null,null,null,null,null,null,null,null,null,null,null,null,null,null,null,null,null,1,1,1,1,null,null,null,null,null,null,null,null,null,null,null,null,null,null,null,null,null,1,1,1,1,null,null,null,null,null,null,null,null,null,null,null,null,null,null,null,null,null,1,1,1,1,null,null,null,null,null,null,null,null,null,null,null,null,null,null,null,null,null,1,1,1,1,null,null,null,null,null,null,null,null,null,null,null,null,null,null,null,null,null,1,1,1,1]
["2014-06-25","",4,"","",2,"","","","",3,1,"","","","",5," "," "," "," ",null,"2014-06-25",null,null,null,null,null,null,null,null,null,null,null,null,null,null,null,null,1,1,1,1,null,null,null,null,null,null,null,null,null,null,null,null,null,null,null,null,null,1,1,1,1,null,null,null,null,null,null,null,null,null,null,null,null,null,null,null,null,null,1,1,1,1,null,null,null,null,null,null,null,null,null,null,null,null,null,null,null,null,null,1,1,1,1,null,null,null,null,null,null,null,null,null,null,null,null,null,null,null,null,null,1,1,1,1,null,null,null,null,null,null,null,null,null,null,null,null,null,null,null,null,null,1,1,1,1]
["2014-06-29","","",3,"","","","",5,"",2,"",""," ","",1,4," "," "," "," ",null,"2014-06-29",null,null,null,null,null,null,null,null,null,null,null,null,1,null,null,null,1,1,1,1,null,null,null,null,null,null,null,null,null,null,null,null,null,1,null,null,null,1,1,1,1,null,null,null,null,null,null,null,null,null,null,null,null,null,1,null,null,null,1,1,1,1,null,null,null,null,null,null,null,null,null,null,null,null,null,1,null,null,null,1,1,1,1,null,null,null,null,null,null,null,null,null,null,null,null,null,1,null,null,null,1,1,1,1,null,null,null,null,null,null,null,null,null,null,null,null,null,1,null,null,null,1,1,1,1]
["2014-07-08","","","","",5,"","","",1,3,4,"",2,"",""," "," "," "," "," ",null,"2014-07-08",null,null,null,null,null,null,null,null,null,null,null,null,null,null,null,1,1,1,1,1,null,null,null,null,null,null,null,null,null,null,null,null,null,null,null,null,1,1,1,1,1,null,null,null,null,null,null,null,null,null,null,null,null,null,null,null,null,1,1,1,1,1,null,null,null,null,null,null,null,null,null,null,null,null,null,null,null,null,1,1,1,1,1,null,null,null,null,null,null,null,null,null,null,null,null,null,null,null,null,1,1,1,1,1,null,null,null,null,null,null,null,null,null,null,null,null,null,null,null,null,1,1,1,1,1]
["2014-07-15",1,3,5,"","","","","","",2,"","",4,"","","","",""," "," ",null,"2014-07-15",null,null,null,null,null,null,null,null,null,null,null,null,null,null,null,null,null,null,1,1,null,null,null,null,null,null,null,null,null,null,null,null,null,null,null,null,null,null,null,1,1,null,null,null,null,null,null,null,null,null,null,null,null,null,null,null,null,null,null,null,1,1,null,null,null,null,null,null,null,null,null,null,null,null,null,null,null,null,null,null,null,1,1,null,null,null,null,null,null,null,null,null,null,null,null,null,null,null,null,null,null,null,1,1,null,null,null,null,null,null,null,null,null,null,null,null,null,null,null,null,null,null,null,1,1]
["2014-07-18","","",5,3,1,2,"","","","","","","","","",4," "," "," "," ",null,"2014-07-18",null,null,null,null,null,null,null,null,null,null,null,null,null,null,null,null,1,1,1,1,null,null,null,null,null,null,null,null,null,null,null,null,null,null,null,null,null,1,1,1,1,null,null,null,null,null,null,null,null,null,null,null,null,null,null,null,null,null,1,1,1,1,null,null,null,null,null,null,null,null,null,null,null,null,null,null,null,null,null,1,1,1,1,null,null,null,null,null,null,null,null,null,null,null,null,null,null,null,null,null,1,1,1,1,null,null,null,null,null,null,null,null,null,null,null,null,null,null,null,null,null,1,1,1,1]
["2014-07-27","","","","",1,"",5," ","","","","","",4,"",3,2," "," "," ",null,"2014-07-27",null,null,null,null,null,null,null,1,null,null,null,null,null,null,null,null,null,1,1,1,null,null,null,null,null,null,null,null,1,null,null,null,null,null,null,null,null,null,1,1,1,null,null,null,null,null,null,null,null,1,null,null,null,null,null,null,null,null,null,1,1,1,null,null,null,null,null,null,null,null,1,null,null,null,null,null,null,null,null,null,1,1,1,null,null,null,null,null,null,null,null,1,null,null,null,null,null,null,null,null,null,1,1,1,null,null,null,null,null,null,null,null,1,null,null,null,null,null,null,null,null,null,1,1,1]
["2014-07-28","","",4,"","","","",2,"",1,3,"","","",5,""," "," "," "," ",null,"2014-07-28",null,null,null,null,null,null,null,null,null,null,null,null,null,null,null,null,1,1,1,1,null,null,null,null,null,null,null,null,null,null,null,null,null,null,null,null,null,1,1,1,1,null,null,null,null,null,null,null,null,null,null,null,null,null,null,null,null,null,1,1,1,1,null,null,null,null,null,null,null,null,null,null,null,null,null,null,null,null,null,1,1,1,1,null,null,null,null,null,null,null,null,null,null,null,null,null,null,null,null,null,1,1,1,1,null,null,null,null,null,null,null,null,null,null,null,null,null,null,null,null,null,1,1,1,1]
["2014-08-06",4,"","","","","","","",2,"","","",3,"",5,"",1,""," "," ",null,"2014-08-06",null,null,null,null,null,null,null,null,null,null,null,null,null,null,null,null,null,null,1,1,null,null,null,null,null,null,null,null,null,null,null,null,null,null,null,null,null,null,null,1,1,null,null,null,null,null,null,null,null,null,null,null,null,null,null,null,null,null,null,null,1,1,null,null,null,null,null,null,null,null,null,null,null,null,null,null,null,null,null,null,null,1,1,null,null,null,null,null,null,null,null,null,null,null,null,null,null,null,null,null,null,null,1,1,null,null,null,null,null,null,null,null,null,null,null,null,null,null,null,null,null,null,null,1,1]
["2014-08-13",4,"",1,"","","","",3,"","",5,"",2,"",""," "," "," "," "," ",null,"2014-08-13",null,null,null,null,null,null,null,null,null,null,null,null,null,null,null,1,1,1,1,1,null,null,null,null,null,null,null,null,null,null,null,null,null,null,null,null,1,1,1,1,1,null,null,null,null,null,null,null,null,null,null,null,null,null,null,null,null,1,1,1,1,1,null,null,null,null,null,null,null,null,null,null,null,null,null,null,null,null,1,1,1,1,1,null,null,null,null,null,null,null,null,null,null,null,null,null,null,null,null,1,1,1,1,1,null,null,null,null,null,null,null,null,null,null,null,null,null,null,null,null,1,1,1,1,1]
["2014-08-16","","","",3,"","","","","",2,5,1,4,"","",""," "," "," "," ",null,"2014-08-16",null,null,null,null,null,null,null,null,null,null,null,null,null,null,null,null,1,1,1,1,null,null,null,null,null,null,null,null,null,null,null,null,null,null,null,null,null,1,1,1,1,null,null,null,null,null,null,null,null,null,null,null,null,null,null,null,null,null,1,1,1,1,null,null,null,null,null,null,null,null,null,null,null,null,null,null,null,null,null,1,1,1,1,null,null,null,null,null,null,null,null,null,null,null,null,null,null,null,null,null,1,1,1,1,null,null,null,null,null,null,null,null,null,null,null,null,null,null,null,null,null,1,1,1,1]
["2014-08-25","","",4,"","",5,"","","","","","",1,"","",2,3,""," "," ",null,"2014-08-25",null,null,null,null,null,null,null,null,null,null,null,null,null,null,null,null,null,null,1,1,null,null,null,null,null,null,null,null,null,null,null,null,null,null,null,null,null,null,null,1,1,null,null,null,null,null,null,null,null,null,null,null,null,null,null,null,null,null,null,null,1,1,null,null,null,null,null,null,null,null,null,null,null,null,null,null,null,null,null,null,null,1,1,null,null,null,null,null,null,null,null,null,null,null,null,null,null,null,null,null,null,null,1,1,null,null,null,null,null,null,null,null,null,null,null,null,null,null,null,null,null,null,null,1,1]
["2014-09-02","","","","",4,"",2,"","",5,1,"","",3,"",""," "," "," "," ",null,"2014-09-02",null,null,null,null,null,null,null,null,null,null,null,null,null,null,null,null,1,1,1,1,null,null,null,null,null,null,null,null,null,null,null,null,null,null,null,null,null,1,1,1,1,null,null,null,null,null,null,null,null,null,null,null,null,null,null,null,null,null,1,1,1,1,null,null,null,null,null,null,null,null,null,null,null,null,null,null,null,null,null,1,1,1,1,null,null,null,null,null,null,null,null,null,null,null,null,null,null,null,null,null,1,1,1,1,null,null,null,null,null,null,null,null,null,null,null,null,null,null,null,null,null,1,1,1,1]
["2014-09-04","","","",2,"","","",5,"","",1,"",4,"","",3," "," "," "," ",null,"2014-09-04",null,null,null,null,null,null,null,null,null,null,null,null,null,null,null,null,1,1,1,1,null,null,null,null,null,null,null,null,null,null,null,null,null,null,null,null,null,1,1,1,1,null,null,null,null,null,null,null,null,null,null,null,null,null,null,null,null,null,1,1,1,1,null,null,null,null,null,null,null,null,null,null,null,null,null,null,null,null,null,1,1,1,1,null,null,null,null,null,null,null,null,null,null,null,null,null,null,null,null,null,1,1,1,1,null,null,null,null,null,null,null,null,null,null,null,null,null,null,null,null,null,1,1,1,1]
["2014-09-15","",4,"","",3,5,"","",2,"","","","",1,"","","",""," "," ",null,"2014-09-15",null,null,null,null,null,null,null,null,null,null,null,null,null,null,null,null,null,null,1,1,null,null,null,null,null,null,null,null,null,null,null,null,null,null,null,null,null,null,null,1,1,null,null,null,null,null,null,null,null,null,null,null,null,null,null,null,null,null,null,null,1,1,null,null,null,null,null,null,null,null,null,null,null,null,null,null,null,null,null,null,null,1,1,null,null,null,null,null,null,null,null,null,null,null,null,null,null,null,null,null,null,null,1,1,null,null,null,null,null,null,null,null,null,null,null,null,null,null,null,null,null,null,null,1,1]
["2014-09-16","",5,"",1,"","",2,"","",4,"","","",3,"",""," "," "," "," ",null,"2014-09-16",null,null,null,null,null,null,null,null,null,null,null,null,null,null,null,null,1,1,1,1,null,null,null,null,null,null,null,null,null,null,null,null,null,null,null,null,null,1,1,1,1,null,null,null,null,null,null,null,null,null,null,null,null,null,null,null,null,null,1,1,1,1,null,null,null,null,null,null,null,null,null,null,null,null,null,null,null,null,null,1,1,1,1,null,null,null,null,null,null,null,null,null,null,null,null,null,null,null,null,null,1,1,1,1,null,null,null,null,null,null,null,null,null,null,null,null,null,null,null,null,null,1,1,1,1]
["2014-09-25","","","",2,"",4,"",5,"","",3," ","","","",1," "," "," "," ",null,"2014-09-25",null,null,null,null,null,null,null,null,null,null,null,1,null,null,null,null,1,1,1,1,null,null,null,null,null,null,null,null,null,null,null,null,1,null,null,null,null,1,1,1,1,null,null,null,null,null,null,null,null,null,null,null,null,1,null,null,null,null,1,1,1,1,null,null,null,null,null,null,null,null,null,null,null,null,1,null,null,null,null,1,1,1,1,null,null,null,null,null,null,null,null,null,null,null,null,1,null,null,null,null,1,1,1,1,null,null,null,null,null,null,null,null,null,null,null,null,1,null,null,null,null,1,1,1,1]
["2014-10-02","","","","",3,"",4,"",1,"","","","",5,2,"","",""," "," ",null,"2014-10-02",null,null,null,null,null,null,null,null,null,null,null,null,null,null,null,null,null,null,1,1,null,null,null,null,null,null,null,null,null,null,null,null,null,null,null,null,null,null,null,1,1,null,null,null,null,null,null,null,null,null,null,null,null,null,null,null,null,null,null,null,1,1,null,null,null,null,null,null,null,null,null,null,null,null,null,null,null,null,null,null,null,1,1,null,null,null,null,null,null,null,null,null,null,null,null,null,null,null,null,null,null,null,1,1,null,null,null,null,null,null,null,null,null,null,null,null,null,null,null,null,null,null,null,1,1]
["2014-10-05",2,"","","","","","",1,"","","","","",4,"","",5,3,"","",null,"2014-10-05"]
["2014-10-14","","","",3,5,"","","",4,"","","",1,2,"",""," "," "," "," ",null,"2014-10-14",null,null,null,null,null,null,null,null,null,null,null,null,null,null,null,null,1,1,1,1,null,null,null,null,null,null,null,null,null,null,null,null,null,null,null,null,null,1,1,1,1,null,null,null,null,null,null,null,null,null,null,null,null,null,null,null,null,null,1,1,1,1,null,null,null,null,null,null,null,null,null,null,null,null,null,null,null,null,null,1,1,1,1,null,null,null,null,null,null,null,null,null,null,null,null,null,null,null,null,null,1,1,1,1,null,null,null,null,null,null,null,null,null,null,null,null,null,null,null,null,null,1,1,1,1]
["2014-10-21","",5,"",1,"","","","","",2,"",3,"","","",4," "," "," "," ",null,"2014-10-21",null,null,null,null,null,null,null,null,null,null,null,null,null,null,null,null,1,1,1,1,null,null,null,null,null,null,null,null,null,null,null,null,null,null,null,null,null,1,1,1,1,null,null,null,null,null,null,null,null,null,null,null,null,null,null,null,null,null,1,1,1,1,null,null,null,null,null,null,null,null,null,null,null,null,null,null,null,null,null,1,1,1,1,null,null,null,null,null,null,null,null,null,null,null,null,null,null,null,null,null,1,1,1,1,null,null,null,null,null,null,null,null,null,null,null,null,null,null,null,null,null,1,1,1,1]
["2014-10-24",1,5,"","",3,"",4,"","",2,"","","",""," "," "," "," "," "," ",null,"2014-10-24",null,null,null,null,null,null,null,null,null,null,null,null,null,null,1,1,1,1,1,1,null,null,null,null,null,null,null,null,null,null,null,null,null,null,null,1,1,1,1,1,1,null,null,null,null,null,null,null,null,null,null,null,null,null,null,null,1,1,1,1,1,1,null,null,null,null,null,null,null,null,null,null,null,null,null,null,null,1,1,1,1,1,1,null,null,null,null,null,null,null,null,null,null,null,null,null,null,null,1,1,1,1,1,1,null,null,null,null,null,null,null,null,null,null,null,null,null,null,null,1,1,1,1,1,1]
["2014-11-02",2,4,3,"","","",1,"","","","","","","",5,""," "," "," "," ",null,"2014-11-02",null,null,null,null,null,null,null,null,null,null,null,null,null,null,null,null,1,1,1,1,null,null,null,null,null,null,null,null,null,null,null,null,null,null,null,null,null,1,1,1,1,null,null,null,null,null,null,null,null,null,null,null,null,null,null,null,null,null,1,1,1,1,null,null,null,null,null,null,null,null,null,null,null,null,null,null,null,null,null,1,1,1,1,null,null,null,null,null,null,null,null,null,null,null,null,null,null,null,null,null,1,1,1,1,null,null,null,null,null,null,null,null,null,null,null,null,null,null,null,null,null,1,1,1,1]
["2014-11-03","","","","","","",2,"","","","",3,5,4,1," "," "," "," "," ",null,"2014-11-03",null,null,null,null,null,null,null,null,null,null,null,null,null,null,null,1,1,1,1,1,null,null,null,null,null,null,null,null,null,null,null,null,null,null,null,null,1,1,1,1,1,null,null,null,null,null,null,null,null,null,null,null,null,null,null,null,null,1,1,1,1,1,null,null,null,null,null,null,null,null,null,null,null,null,null,null,null,null,1,1,1,1,1,null,null,null,null,null,null,null,null,null,null,null,null,null,null,null,null,1,1,1,1,1,null,null,null,null,null,null,null,null,null,null,null,null,null,null,null,null,1,1,1,1,1]
["2014-11-12","",5,2,"",3,"","","","","","","","","","",1,"",4," "," ",null,"2014-11-12",null,null,null,null,null,null,null,null,null,null,null,null,null,null,null,null,null,null,1,1,null,null,null,null,null,null,null,null,null,null,null,null,null,null,null,null,null,null,null,1,1,null,null,null,null,null,null,null,null,null,null,null,null,null,null,null,null,null,null,null,1,1,null,null,null,null,null,null,null,null,null,null,null,null,null,null,null,null,null,null,null,1,1,null,null,null,null,null,null,null,null,null,null,null,null,null,null,null,null,null,null,null,1,1,null,null,null,null,null,null,null,null,null,null,null,null,null,null,null,null,null,null,null,1,1]
["2014-11-20",1,"","","",4,"",2,"","","","",5,"","","","",3,""," "," ",null,"2014-11-20",null,null,null,null,null,null,null,null,null,null,null,null,null,null,null,null,null,null,1,1,null,null,null,null,null,null,null,null,null,null,null,null,null,null,null,null,null,null,null,1,1,null,null,null,null,null,null,null,null,null,null,null,null,null,null,null,null,null,null,null,1,1,null,null,null,null,null,null,null,null,null,null,null,null,null,null,null,null,null,null,null,1,1,null,null,null,null,null,null,null,null,null,null,null,null,null,null,null,null,null,null,null,1,1,null,null,null,null,null,null,null,null,null,null,null,null,null,null,null,null,null,null,null,1,1]
["2014-11-23","","","","",5,2,1,"","","","","",4,"",3,""," "," "," "," ",null,"2014-11-23",null,null,null,null,null,null,null,null,null,null,null,null,null,null,null,null,1,1,1,1,null,null,null,null,null,null,null,null,null,null,null,null,null,null,null,null,null,1,1,1,1,null,null,null,null,null,null,null,null,null,null,null,null,null,null,null,null,null,1,1,1,1,null,null,null,null,null,null,null,null,null,null,null,null,null,null,null,null,null,1,1,1,1,null,null,null,null,null,null,null,null,null,null,null,null,null,null,null,null,null,1,1,1,1,null,null,null,null,null,null,null,null,null,null,null,null,null,null,null,null,null,1,1,1,1]
["2014-12-02","","","",3,5,"","","","","","","",2,"","","",1,4," "," ",null,"2014-12-02",null,null,null,null,null,null,null,null,null,null,null,null,null,null,null,null,null,null,1,1,null,null,null,null,null,null,null,null,null,null,null,null,null,null,null,null,null,null,null,1,1,null,null,null,null,null,null,null,null,null,null,null,null,null,null,null,null,null,null,null,1,1,null,null,null,null,null,null,null,null,null,null,null,null,null,null,null,null,null,null,null,1,1,null,null,null,null,null,null,null,null,null,null,null,null,null,null,null,null,null,null,null,1,1,null,null,null,null,null,null,null,null,null,null,null,null,null,null,null,null,null,null,null,1,1]
["2014-12-09","","","",1,"",3,"",2,4,"",5,"","","","",""," "," "," "," ",null,"2014-12-09",null,null,null,null,null,null,null,null,null,null,null,null,null,null,null,null,1,1,1,1,null,null,null,null,null,null,null,null,null,null,null,null,null,null,null,null,null,1,1,1,1,null,null,null,null,null,null,null,null,null,null,null,null,null,null,null,null,null,1,1,1,1,null,null,null,null,null,null,null,null,null,null,null,null,null,null,null,null,null,1,1,1,1,null,null,null,null,null,null,null,null,null,null,null,null,null,null,null,null,null,1,1,1,1,null,null,null,null,null,null,null,null,null,null,null,null,null,null,null,null,null,1,1,1,1]
["2014-12-12",3,"","",""," ","",5,"","","","",1,"",4,"","",2,""," "," ",null,"2014-12-12",null,null,null,null,1,null,null,null,null,null,null,null,null,null,null,null,null,null,1,1,null,null,null,null,null,1,null,null,null,null,null,null,null,null,null,null,null,null,null,1,1,null,null,null,null,null,1,null,null,null,null,null,null,null,null,null,null,null,null,null,1,1,null,null,null,null,null,1,null,null,null,null,null,null,null,null,null,null,null,null,null,1,1,null,null,null,null,null,1,null,null,null,null,null,null,null,null,null,null,null,null,null,1,1,null,null,null,null,null,1,null,null,null,null,null,null,null,null,null,null,null,null,null,1,1]
["2014-12-19","",1,"","","","","","","",4,5,2,3,"",""," "," "," "," "," ",null,"2014-12-19",null,null,null,null,null,null,null,null,null,null,null,null,null,null,null,1,1,1,1,1,null,null,null,null,null,null,null,null,null,null,null,null,null,null,null,null,1,1,1,1,1,null,null,null,null,null,null,null,null,null,null,null,null,null,null,null,null,1,1,1,1,1,null,null,null,null,null,null,null,null,null,null,null,null,null,null,null,null,1,1,1,1,1,null,null,null,null,null,null,null,null,null,null,null,null,null,null,null,null,1,1,1,1,1,null,null,null,null,null,null,null,null,null,null,null,null,null,null,null,null,1,1,1,1,1]
["2014-12-22","","","","",2,"",1,"","",5,"","",3," ","",4," "," "," "," ",null,"2014-12-22",null,null,null,null,null,null,null,null,null,null,null,null,null,1,null,null,1,1,1,1,null,null,null,null,null,null,null,null,null,null,null,null,null,null,1,null,null,1,1,1,1,null,null,null,null,null,null,null,null,null,null,null,null,null,null,1,null,null,1,1,1,1,null,null,null,null,null,null,null,null,null,null,null,null,null,null,1,null,null,1,1,1,1,null,null,null,null,null,null,null,null,null,null,null,null,null,null,1,null,null,1,1,1,1,null,null,null,null,null,null,null,null,null,null,null,null,null,null,1,null,null,1,1,1,1]
["2014-12-31","","","","","",3,2,5,"","","",4,"",1,"",""," "," "," "," ",null,"2014-12-31",null,null,null,null,null,null,null,null,null,null,null,null,null,null,null,null,1,1,1,1,null,null,null,null,null,null,null,null,null,null,null,null,null,null,null,null,null,1,1,1,1,null,null,null,null,null,null,null,null,null,null,null,null,null,null,null,null,null,1,1,1,1,null,null,null,null,null,null,null,null,null,null,null,null,null,null,null,null,null,1,1,1,1,null,null,null,null,null,null,null,null,null,null,null,null,null,null,null,null,null,1,1,1,1,null,null,null,null,null,null,null,null,null,null,null,null,null,null,null,null,null,1,1,1,1]
["2015-01-07",2,"","","","","",1,3,"","","","",4,5,"","",""," "," "," ",null,"2015-01-07",null,null,null,null,null,null,null,null,null,null,null,null,null,null,null,null,null,1,1,1,null,null,null,null,null,null,null,null,null,null,null,null,null,null,null,null,null,null,1,1,1,null,null,null,null,null,null,null,null,null,null,null,null,null,null,null,null,null,null,1,1,1,null,null,null,null,null,null,null,null,null,null,null,null,null,null,null,null,null,null,1,1,1,null,null,null,null,null,null,null,null,null,null,null,null,null,null,null,null,null,null,1,1,1,null,null,null,null,null,null,null,null,null,null,null,null,null,null,null,null,null,null,1,1,1]
["2015-01-10","","","","","","","","",5,"","",2,"",1,"",4,3," "," "," ",null,"2015-01-10",null,null,null,null,null,null,null,null,null,null,null,null,null,null,null,null,null,1,1,1,null,null,null,null,null,null,null,null,null,null,null,null,null,null,null,null,null,null,1,1,1,null,null,null,null,null,null,null,null,null,null,null,null,null,null,null,null,null,null,1,1,1,null,null,null,null,null,null,null,null,null,null,null,null,null,null,null,null,null,null,1,1,1,null,null,null,null,null,null,null,null,null,null,null,null,null,null,null,null,null,null,1,1,1,null,null,null,null,null,null,null,null,null,null,null,null,null,null,null,null,null,null,1,1,1]
["2015-01-19","",5,3,"","","",4,1,"","","","","","","",2," "," "," "," ",null,"2015-01-19",null,null,null,null,null,null,null,null,null,null,null,null,null,null,null,null,1,1,1,1,null,null,null,null,null,null,null,null,null,null,null,null,null,null,null,null,null,1,1,1,1,null,null,null,null,null,null,null,null,null,null,null,null,null,null,null,null,null,1,1,1,1,null,null,null,null,null,null,null,null,null,null,null,null,null,null,null,null,null,1,1,1,1,null,null,null,null,null,null,null,null,null,null,null,null,null,null,null,null,null,1,1,1,1,null,null,null,null,null,null,null,null,null,null,null,null,null,null,null,null,null,1,1,1,1]
["2015-01-26",5,2,1,"","",3,"","","","","","","","","",4,"",""," "," ",null,"2015-01-26",null,null,null,null,null,null,null,null,null,null,null,null,null,null,null,null,null,null,1,1,null,null,null,null,null,null,null,null,null,null,null,null,null,null,null,null,null,null,null,1,1,null,null,null,null,null,null,null,null,null,null,null,null,null,null,null,null,null,null,null,1,1,null,null,null,null,null,null,null,null,null,null,null,null,null,null,null,null,null,null,null,1,1,null,null,null,null,null,null,null,null,null,null,null,null,null,null,null,null,null,null,null,1,1,null,null,null,null,null,null,null,null,null,null,null,null,null,null,null,null,null,null,null,1,1]
["2015-02-01","","","","",3,4,"","","",5,"",2,"",1,"","","",""," "," ",null,"2015-02-01",null,null,null,null,null,null,null,null,null,null,null,null,null,null,null,null,null,null,1,1,null,null,null,null,null,null,null,null,null,null,null,null,null,null,null,null,null,null,null,1,1,null,null,null,null,null,null,null,null,null,null,null,null,null,null,null,null,null,null,null,1,1,null,null,null,null,null,null,null,null,null,null,null,null,null,null,null,null,null,null,null,1,1,null,null,null,null,null,null,null,null,null,null,null,null,null,null,null,null,null,null,null,1,1,null,null,null,null,null,null,null,null,null,null,null,null,null,null,null,null,null,null,null,1,1]
["2015-02-06","","","","",2,"",1,4,"","",5,3,"","","","","",""," "," ",null,"2015-02-06",null,null,null,null,null,null,null,null,null,null,null,null,null,null,null,null,null,null,1,1,null,null,null,null,null,null,null,null,null,null,null,null,null,null,null,null,null,null,null,1,1,null,null,null,null,null,null,null,null,null,null,null,null,null,null,null,null,null,null,null,1,1,null,null,null,null,null,null,null,null,null,null,null,null,null,null,null,null,null,null,null,1,1,null,null,null,null,null,null,null,null,null,null,null,null,null,null,null,null,null,null,null,1,1,null,null,null,null,null,null,null,null,null,null,null,null,null,null,null,null,null,null,null,1,1]
["2015-02-09","","",5,3,"",4,2,1,"","","","","","","","",""," "," "," ",null,"2015-02-09",null,null,null,null,null,null,null,null,null,null,null,null,null,null,null,null,null,1,1,1,null,null,null,null,null,null,null,null,null,null,null,null,null,null,null,null,null,null,1,1,1,null,null,null,null,null,null,null,null,null,null,null,null,null,null,null,null,null,null,1,1,1,null,null,null,null,null,null,null,null,null,null,null,null,null,null,null,null,null,null,1,1,1,null,null,null,null,null,null,null,null,null,null,null,null,null,null,null,null,null,null,1,1,1,null,null,null,null,null,null,null,null,null,null,null,null,null,null,null,null,null,null,1,1,1]
["2015-02-18",1,"",3,"",4,"","","","",5,2,"","","","",""," "," "," "," ",null,"2015-02-18",null,null,null,null,null,null,null,null,null,null,null,null,null,null,null,null,1,1,1,1,null,null,null,null,null,null,null,null,null,null,null,null,null,null,null,null,null,1,1,1,1,null,null,null,null,null,null,null,null,null,null,null,null,null,null,null,null,null,1,1,1,1,null,null,null,null,null,null,null,null,null,null,null,null,null,null,null,null,null,1,1,1,1,null,null,null,null,null,null,null,null,null,null,null,null,null,null,null,null,null,1,1,1,1,null,null,null,null,null,null,null,null,null,null,null,null,null,null,null,null,null,1,1,1,1]
["2015-02-25",1,"","",4,2,"","","","","",3,"",5,"","",""," "," "," "," ",null,"2015-02-25",null,null,null,null,null,null,null,null,null,null,null,null,null,null,null,null,1,1,1,1,null,null,null,null,null,null,null,null,null,null,null,null,null,null,null,null,null,1,1,1,1,null,null,null,null,null,null,null,null,null,null,null,null,null,null,null,null,null,1,1,1,1,null,null,null,null,null,null,null,null,null,null,null,null,null,null,null,null,null,1,1,1,1,null,null,null,null,null,null,null,null,null,null,null,null,null,null,null,null,null,1,1,1,1,null,null,null,null,null,null,null,null,null,null,null,null,null,null,null,null,null,1,1,1,1]
["2015-02-28",2,"","","",1,"",3,4,"","","",5,"","","",""," "," "," "," ",null,"2015-02-28",null,null,null,null,null,null,null,null,null,null,null,null,null,null,null,null,1,1,1,1,null,null,null,null,null,null,null,null,null,null,null,null,null,null,null,null,null,1,1,1,1,null,null,null,null,null,null,null,null,null,null,null,null,null,null,null,null,null,1,1,1,1,null,null,null,null,null,null,null,null,null,null,null,null,null,null,null,null,null,1,1,1,1,null,null,null,null,null,null,null,null,null,null,null,null,null,null,null,null,null,1,1,1,1,null,null,null,null,null,null,null,null,null,null,null,null,null,null,null,null,null,1,1,1,1]
["2015-03-09","","","","","","",2,"","",1,"",4,3,"","",5," "," "," "," ",null,"2015-03-09",null,null,null,null,null,null,null,null,null,null,null,null,null,null,null,null,1,1,1,1,null,null,null,null,null,null,null,null,null,null,null,null,null,null,null,null,null,1,1,1,1,null,null,null,null,null,null,null,null,null,null,null,null,null,null,null,null,null,1,1,1,1,null,null,null,null,null,null,null,null,null,null,null,null,null,null,null,null,null,1,1,1,1,null,null,null,null,null,null,null,null,null,null,null,null,null,null,null,null,null,1,1,1,1,null,null,null,null,null,null,null,null,null,null,null,null,null,null,null,null,null,1,1,1,1]
["2015-03-16"," ","","",3,"","",1,5,"","",4,"","","",2,""," "," "," "," ",null,"2015-03-16",1,null,null,null,null,null,null,null,null,null,null,null,null,null,null,null,1,1,1,1,null,1,null,null,null,null,null,null,null,null,null,null,null,null,null,null,null,1,1,1,1,null,1,null,null,null,null,null,null,null,null,null,null,null,null,null,null,null,1,1,1,1,null,1,null,null,null,null,null,null,null,null,null,null,null,null,null,null,null,1,1,1,1,null,1,null,null,null,null,null,null,null,null,null,null,null,null,null,null,null,1,1,1,1,null,1,null,null,null,null,null,null,null,null,null,null,null,null,null,null,null,1,1,1,1]
["2015-03-19","",5,"",1,"","","","","",4,"","","",2,3,""," "," "," "," ",null,"2015-03-19",null,null,null,null,null,null,null,null,null,null,null,null,null,null,null,null,1,1,1,1,null,null,null,null,null,null,null,null,null,null,null,null,null,null,null,null,null,1,1,1,1,null,null,null,null,null,null,null,null,null,null,null,null,null,null,null,null,null,1,1,1,1,null,null,null,null,null,null,null,null,null,null,null,null,null,null,null,null,null,1,1,1,1,null,null,null,null,null,null,null,null,null,null,null,null,null,null,null,null,null,1,1,1,1,null,null,null,null,null,null,null,null,null,null,null,null,null,null,null,null,null,1,1,1,1]
["2015-03-26","",4,"","","",1,"",2,"","","","",5,"","",3,""," "," "," ",null,"2015-03-26",null,null,null,null,null,null,null,null,null,null,null,null,null,null,null,null,null,1,1,1,null,null,null,null,null,null,null,null,null,null,null,null,null,null,null,null,null,null,1,1,1,null,null,null,null,null,null,null,null,null,null,null,null,null,null,null,null,null,null,1,1,1,null,null,null,null,null,null,null,null,null,null,null,null,null,null,null,null,null,null,1,1,1,null,null,null,null,null,null,null,null,null,null,null,null,null,null,null,null,null,null,1,1,1,null,null,null,null,null,null,null,null,null,null,null,null,null,null,null,null,null,null,1,1,1]
["2015-03-29",5,"","","","","","","","",4,2,"","","","","",1,3,"","",null,"2015-03-29"]
["2015-04-07","",2,"","","",1,5,"","","",4,3,""," ","",""," "," "," "," ",null,"2015-04-07",null,null,null,null,null,null,null,null,null,null,null,null,null,1,null,null,1,1,1,1,null,null,null,null,null,null,null,null,null,null,null,null,null,null,1,null,null,1,1,1,1,null,null,null,null,null,null,null,null,null,null,null,null,null,null,1,null,null,1,1,1,1,null,null,null,null,null,null,null,null,null,null,null,null,null,null,1,null,null,1,1,1,1,null,null,null,null,null,null,null,null,null,null,null,null,null,null,1,null,null,1,1,1,1,null,null,null,null,null,null,null,null,null,null,null,null,null,null,1,null,null,1,1,1,1]
["2015-04-12",2,"","","","","",5,1,"","","",3,"","","",4," "," "," "," ",null,"2015-04-12",null,null,null,null,null,null,null,null,null,null,null,null,null,null,null,null,1,1,1,1,null,null,null,null,null,null,null,null,null,null,null,null,null,null,null,null,null,1,1,1,1,null,null,null,null,null,null,null,null,null,null,null,null,null,null,null,null,null,1,1,1,1,null,null,null,null,null,null,null,null,null,null,null,null,null,null,null,null,null,1,1,1,1,null,null,null,null,null,null,null,null,null,null,null,null,null,null,null,null,null,1,1,1,1,null,null,null,null,null,null,null,null,null,null,null,null,null,null,null,null,null,1,1,1,1]
["2015-04-18","",3,4,"","","","",5,"",2,1,"","",""," "," "," "," "," "," ",null,"2015-04-18",null,null,null,null,null,null,null,null,null,null,null,null,null,null,1,1,1,1,1,1,null,null,null,null,null,null,null,null,null,null,null,null,null,null,null,1,1,1,1,1,1,null,null,null,null,null,null,null,null,null,null,null,null,null,null,null,1,1,1,1,1,1,null,null,null,null,null,null,null,null,null,null,null,null,null,null,null,1,1,1,1,1,1,null,null,null,null,null,null,null,null,null,null,null,null,null,null,null,1,1,1,1,1,1,null,null,null,null,null,null,null,null,null,null,null,null,null,null,null,1,1,1,1,1,1]
["2015-04-25","",5,"","","","","",4,"",2,1,"","","","",3," "," "," "," ",null,"2015-04-25",null,null,null,null,null,null,null,null,null,null,null,null,null,null,null,null,1,1,1,1,null,null,null,null,null,null,null,null,null,null,null,null,null,null,null,null,null,1,1,1,1,null,null,null,null,null,null,null,null,null,null,null,null,null,null,null,null,null,1,1,1,1,null,null,null,null,null,null,null,null,null,null,null,null,null,null,null,null,null,1,1,1,1,null,null,null,null,null,null,null,null,null,null,null,null,null,null,null,null,null,1,1,1,1,null,null,null,null,null,null,null,null,null,null,null,null,null,null,null,null,null,1,1,1,1]
["2015-05-04","","","","","","",5,2,4,3,1,"","","","",""," "," "," "," ",null,"2015-05-04",null,null,null,null,null,null,null,null,null,null,null,null,null,null,null,null,1,1,1,1,null,null,null,null,null,null,null,null,null,null,null,null,null,null,null,null,null,1,1,1,1,null,null,null,null,null,null,null,null,null,null,null,null,null,null,null,null,null,1,1,1,1,null,null,null,null,null,null,null,null,null,null,null,null,null,null,null,null,null,1,1,1,1,null,null,null,null,null,null,null,null,null,null,null,null,null,null,null,null,null,1,1,1,1,null,null,null,null,null,null,null,null,null,null,null,null,null,null,null,null,null,1,1,1,1]
["2015-05-07","","","",3,"",2,1," ","","","","",5,"",4,""," "," "," "," ",null,"2015-05-07",null,null,null,null,null,null,null,1,null,null,null,null,null,null,null,null,1,1,1,1,null,null,null,null,null,null,null,null,1,null,null,null,null,null,null,null,null,1,1,1,1,null,null,null,null,null,null,null,null,1,null,null,null,null,null,null,null,null,1,1,1,1,null,null,null,null,null,null,null,null,1,null,null,null,null,null,null,null,null,1,1,1,1,null,null,null,null,null,null,null,null,1,null,null,null,null,null,null,null,null,1,1,1,1,null,null,null,null,null,null,null,null,1,null,null,null,null,null,null,null,null,1,1,1,1]
["2015-05-14","","","","","","",2,"",3,"",5,"",4,1,"",""," "," "," "," ",null,"2015-05-14",null,null,null,null,null,null,null,null,null,null,null,null,null,null,null,null,1,1,1,1,null,null,null,null,null,null,null,null,null,null,null,null,null,null,null,null,null,1,1,1,1,null,null,null,null,null,null,null,null,null,null,null,null,null,null,null,null,null,1,1,1,1,null,null,null,null,null,null,null,null,null,null,null,null,null,null,null,null,null,1,1,1,1,null,null,null,null,null,null,null,null,null,null,null,null,null,null,null,null,null,1,1,1,1,null,null,null,null,null,null,null,null,null,null,null,null,null,null,null,null,null,1,1,1,1]
["2015-05-17",1,2,"","","","","","","","",3," ","",4,5," "," "," "," "," ",null,"2015-05-17",null,null,null,null,null,null,null,null,null,null,null,1,null,null,null,1,1,1,1,1,null,null,null,null,null,null,null,null,null,null,null,null,1,null,null,null,1,1,1,1,1,null,null,null,null,null,null,null,null,null,null,null,null,1,null,null,null,1,1,1,1,1,null,null,null,null,null,null,null,null,null,null,null,null,1,null,null,null,1,1,1,1,1,null,null,null,null,null,null,null,null,null,null,null,null,1,null,null,null,1,1,1,1,1,null,null,null,null,null,null,null,null,null,null,null,null,1,null,null,null,1,1,1,1,1]
["2015-05-26","",2,1,3,"",5,"","","","","","","",4,"",""," "," "," "," ",null,"2015-05-26",null,null,null,null,null,null,null,null,null,null,null,null,null,null,null,null,1,1,1,1,null,null,null,null,null,null,null,null,null,null,null,null,null,null,null,null,null,1,1,1,1,null,null,null,null,null,null,null,null,null,null,null,null,null,null,null,null,null,1,1,1,1,null,null,null,null,null,null,null,null,null,null,null,null,null,null,null,null,null,1,1,1,1,null,null,null,null,null,null,null,null,null,null,null,null,null,null,null,null,null,1,1,1,1,null,null,null,null,null,null,null,null,null,null,null,null,null,null,null,null,null,1,1,1,1]
["2015-06-03","",5,"",1,"","",3,"","",4,"",2,"","","","","",""," "," ",null,"2015-06-03",null,null,null,null,null,null,null,null,null,null,null,null,null,null,null,null,null,null,1,1,null,null,null,null,null,null,null,null,null,null,null,null,null,null,null,null,null,null,null,1,1,null,null,null,null,null,null,null,null,null,null,null,null,null,null,null,null,null,null,null,1,1,null,null,null,null,null,null,null,null,null,null,null,null,null,null,null,null,null,null,null,1,1,null,null,null,null,null,null,null,null,null,null,null,null,null,null,null,null,null,null,null,1,1,null,null,null,null,null,null,null,null,null,null,null,null,null,null,null,null,null,null,null,1,1]
["2015-06-06","",4,"","","","",2,3,"",5,1,"","","",""," "," "," "," "," ",null,"2015-06-06",null,null,null,null,null,null,null,null,null,null,null,null,null,null,null,1,1,1,1,1,null,null,null,null,null,null,null,null,null,null,null,null,null,null,null,null,1,1,1,1,1,null,null,null,null,null,null,null,null,null,null,null,null,null,null,null,null,1,1,1,1,1,null,null,null,null,null,null,null,null,null,null,null,null,null,null,null,null,1,1,1,1,1,null,null,null,null,null,null,null,null,null,null,null,null,null,null,null,null,1,1,1,1,1,null,null,null,null,null,null,null,null,null,null,null,null,null,null,null,null,1,1,1,1,1]
["2015-06-13","","","","","","","","",3,"","","",5,"",2,4,1,""," "," ",null,"2015-06-13",null,null,null,null,null,null,null,null,null,null,null,null,null,null,null,null,null,null,1,1,null,null,null,null,null,null,null,null,null,null,null,null,null,null,null,null,null,null,null,1,1,null,null,null,null,null,null,null,null,null,null,null,null,null,null,null,null,null,null,null,1,1,null,null,null,null,null,null,null,null,null,null,null,null,null,null,null,null,null,null,null,1,1,null,null,null,null,null,null,null,null,null,null,null,null,null,null,null,null,null,null,null,1,1,null,null,null,null,null,null,null,null,null,null,null,null,null,null,null,null,null,null,null,1,1]
["2015-06-22",2,1,3,"",""," ",5,4,"","","","","","",""," "," "," "," "," ",null,"2015-06-22",null,null,null,null,null,1,null,null,null,null,null,null,null,null,null,1,1,1,1,1,null,null,null,null,null,null,1,null,null,null,null,null,null,null,null,null,1,1,1,1,1,null,null,null,null,null,null,1,null,null,null,null,null,null,null,null,null,1,1,1,1,1,null,null,null,null,null,null,1,null,null,null,null,null,null,null,null,null,1,1,1,1,1,null,null,null,null,null,null,1,null,null,null,null,null,null,null,null,null,1,1,1,1,1,null,null,null,null,null,null,1,null,null,null,null,null,null,null,null,null,1,1,1,1,1]
["2015-06-25","","",5,1,"",4,""," ",2,"",3,"","",""," "," "," "," "," "," ",null,"2015-06-25",null,null,null,null,null,null,null,1,null,null,null,null,null,null,1,1,1,1,1,1,null,null,null,null,null,null,null,null,1,null,null,null,null,null,null,1,1,1,1,1,1,null,null,null,null,null,null,null,null,1,null,null,null,null,null,null,1,1,1,1,1,1,null,null,null,null,null,null,null,null,1,null,null,null,null,null,null,1,1,1,1,1,1,null,null,null,null,null,null,null,null,1,null,null,null,null,null,null,1,1,1,1,1,1,null,null,null,null,null,null,null,null,1,null,null,null,null,null,null,1,1,1,1,1,1]
["2015-07-03","","",5,"","","","","","",1,4,"","","",3,2," "," "," "," ",null,"2015-07-03",null,null,null,null,null,null,null,null,null,null,null,null,null,null,null,null,1,1,1,1,null,null,null,null,null,null,null,null,null,null,null,null,null,null,null,null,null,1,1,1,1,null,null,null,null,null,null,null,null,null,null,null,null,null,null,null,null,null,1,1,1,1,null,null,null,null,null,null,null,null,null,null,null,null,null,null,null,null,null,1,1,1,1,null,null,null,null,null,null,null,null,null,null,null,null,null,null,null,null,null,1,1,1,1,null,null,null,null,null,null,null,null,null,null,null,null,null,null,null,null,null,1,1,1,1]
["2015-07-06",2,"",1,4,"","","","","","",3,"",5,"","","",""," "," "," ",null,"2015-07-06",null,null,null,null,null,null,null,null,null,null,null,null,null,null,null,null,null,1,1,1,null,null,null,null,null,null,null,null,null,null,null,null,null,null,null,null,null,null,1,1,1,null,null,null,null,null,null,null,null,null,null,null,null,null,null,null,null,null,null,1,1,1,null,null,null,null,null,null,null,null,null,null,null,null,null,null,null,null,null,null,1,1,1,null,null,null,null,null,null,null,null,null,null,null,null,null,null,null,null,null,null,1,1,1,null,null,null,null,null,null,null,null,null,null,null,null,null,null,null,null,null,null,1,1,1]
["2015-07-13","","","","",4,3," ","",2,"","",5,"",1,"",""," "," "," "," ",null,"2015-07-13",null,null,null,null,null,null,1,null,null,null,null,null,null,null,null,null,1,1,1,1,null,null,null,null,null,null,null,1,null,null,null,null,null,null,null,null,null,1,1,1,1,null,null,null,null,null,null,null,1,null,null,null,null,null,null,null,null,null,1,1,1,1,null,null,null,null,null,null,null,1,null,null,null,null,null,null,null,null,null,1,1,1,1,null,null,null,null,null,null,null,1,null,null,null,null,null,null,null,null,null,1,1,1,1,null,null,null,null,null,null,null,1,null,null,null,null,null,null,null,null,null,1,1,1,1]
["2015-07-22","","","",3,2,"","","","","","","","",4,1,5," "," "," "," ",null,"2015-07-22",null,null,null,null,null,null,null,null,null,null,null,null,null,null,null,null,1,1,1,1,null,null,null,null,null,null,null,null,null,null,null,null,null,null,null,null,null,1,1,1,1,null,null,null,null,null,null,null,null,null,null,null,null,null,null,null,null,null,1,1,1,1,null,null,null,null,null,null,null,null,null,null,null,null,null,null,null,null,null,1,1,1,1,null,null,null,null,null,null,null,null,null,null,null,null,null,null,null,null,null,1,1,1,1,null,null,null,null,null,null,null,null,null,null,null,null,null,null,null,null,null,1,1,1,1]
["2015-07-25","",1,3,5,"",4,"",2,"","","","","",""," "," "," "," "," "," ",null,"2015-07-25",null,null,null,null,null,null,null,null,null,null,null,null,null,null,1,1,1,1,1,1,null,null,null,null,null,null,null,null,null,null,null,null,null,null,null,1,1,1,1,1,1,null,null,null,null,null,null,null,null,null,null,null,null,null,null,null,1,1,1,1,1,1,null,null,null,null,null,null,null,null,null,null,null,null,null,null,null,1,1,1,1,1,1,null,null,null,null,null,null,null,null,null,null,null,null,null,null,null,1,1,1,1,1,1,null,null,null,null,null,null,null,null,null,null,null,null,null,null,null,1,1,1,1,1,1]
["2015-08-01",5," ",""," "," ","",4,"","",1,2,3,"","","",""," "," "," "," ",null,"2015-08-01",null,1,null,1,1,null,null,null,null,null,null,null,null,null,null,null,1,1,1,1,null,null,1,null,1,1,null,null,null,null,null,null,null,null,null,null,null,1,1,1,1,null,null,1,null,1,1,null,null,null,null,null,null,null,null,null,null,null,1,1,1,1,null,null,1,null,1,1,null,null,null,null,null,null,null,null,null,null,null,1,1,1,1,null,null,1,null,1,1,null,null,null,null,null,null,null,null,null,null,null,1,1,1,1,null,null,1,null,1,1,null,null,null,null,null,null,null,null,null,null,null,1,1,1,1]
["2015-08-10",2,"","","","","",1,"","",3,5,"","","","","",4," "," "," ",null,"2015-08-10",null,null,null,null,null,null,null,null,null,null,null,null,null,null,null,null,null,1,1,1,null,null,null,null,null,null,null,null,null,null,null,null,null,null,null,null,null,null,1,1,1,null,null,null,null,null,null,null,null,null,null,null,null,null,null,null,null,null,null,1,1,1,null,null,null,null,null,null,null,null,null,null,null,null,null,null,null,null,null,null,1,1,1,null,null,null,null,null,null,null,null,null,null,null,null,null,null,null,null,null,null,1,1,1,null,null,null,null,null,null,null,null,null,null,null,null,null,null,null,null,null,null,1,1,1]
["2015-08-13",1,"","",4,2,"","",3,"","","","",5,"","",""," ",""," "," ",null,"2015-08-13",null,null,null,null,null,null,null,null,null,null,null,null,null,null,null,null,1,null,1,1,null,null,null,null,null,null,null,null,null,null,null,null,null,null,null,null,null,1,null,1,1,null,null,null,null,null,null,null,null,null,null,null,null,null,null,null,null,null,1,null,1,1,null,null,null,null,null,null,null,null,null,null,null,null,null,null,null,null,null,1,null,1,1,null,null,null,null,null,null,null,null,null,null,null,null,null,null,null,null,null,1,null,1,1,null,null,null,null,null,null,null,null,null,null,null,null,null,null,null,null,null,1,null,1,1]
["2015-08-20","","","",4,"",2,"","","","","",1,3,"","",5," "," "," "," ",null,"2015-08-20",null,null,null,null,null,null,null,null,null,null,null,null,null,null,null,null,1,1,1,1,null,null,null,null,null,null,null,null,null,null,null,null,null,null,null,null,null,1,1,1,1,null,null,null,null,null,null,null,null,null,null,null,null,null,null,null,null,null,1,1,1,1,null,null,null,null,null,null,null,null,null,null,null,null,null,null,null,null,null,1,1,1,1,null,null,null,null,null,null,null,null,null,null,null,null,null,null,null,null,null,1,1,1,1,null,null,null,null,null,null,null,null,null,null,null,null,null,null,null,null,null,1,1,1,1]
["2015-08-23","",4,"","",3,"","","",5,"","","","",2,"",1," "," "," "," ",null,"2015-08-23",null,null,null,null,null,null,null,null,null,null,null,null,null,null,null,null,1,1,1,1,null,null,null,null,null,null,null,null,null,null,null,null,null,null,null,null,null,1,1,1,1,null,null,null,null,null,null,null,null,null,null,null,null,null,null,null,null,null,1,1,1,1,null,null,null,null,null,null,null,null,null,null,null,null,null,null,null,null,null,1,1,1,1,null,null,null,null,null,null,null,null,null,null,null,null,null,null,null,null,null,1,1,1,1,null,null,null,null,null,null,null,null,null,null,null,null,null,null,null,null,null,1,1,1,1]
["2015-08-30",2,"","","","",5,4,1,"","",3,"","","","",""," "," "," "," ",null,"2015-08-30",null,null,null,null,null,null,null,null,null,null,null,null,null,null,null,null,1,1,1,1,null,null,null,null,null,null,null,null,null,null,null,null,null,null,null,null,null,1,1,1,1,null,null,null,null,null,null,null,null,null,null,null,null,null,null,null,null,null,1,1,1,1,null,null,null,null,null,null,null,null,null,null,null,null,null,null,null,null,null,1,1,1,1,null,null,null,null,null,null,null,null,null,null,null,null,null,null,null,null,null,1,1,1,1,null,null,null,null,null,null,null,null,null,null,null,null,null,null,null,null,null,1,1,1,1]
["2015-09-10","","","",1,3,"",4,"","","","",2,5,"","",""," "," "," "," ",null,"2015-09-10",null,null,null,null,null,null,null,null,null,null,null,null,null,null,null,null,1,1,1,1,null,null,null,null,null,null,null,null,null,null,null,null,null,null,null,null,null,1,1,1,1,null,null,null,null,null,null,null,null,null,null,null,null,null,null,null,null,null,1,1,1,1,null,null,null,null,null,null,null,null,null,null,null,null,null,null,null,null,null,1,1,1,1,null,null,null,null,null,null,null,null,null,null,null,null,null,null,null,null,null,1,1,1,1,null,null,null,null,null,null,null,null,null,null,null,null,null,null,null,null,null,1,1,1,1]
["2015-09-12","","","","","","","","",2,"","",3,"","",5,1,"",4," "," ",null,"2015-09-12",null,null,null,null,null,null,null,null,null,null,null,null,null,null,null,null,null,null,1,1,null,null,null,null,null,null,null,null,null,null,null,null,null,null,null,null,null,null,null,1,1,null,null,null,null,null,null,null,null,null,null,null,null,null,null,null,null,null,null,null,1,1,null,null,null,null,null,null,null,null,null,null,null,null,null,null,null,null,null,null,null,1,1,null,null,null,null,null,null,null,null,null,null,null,null,null,null,null,null,null,null,null,1,1,null,null,null,null,null,null,null,null,null,null,null,null,null,null,null,null,null,null,null,1,1]
["2015-09-19",1,"","",3,"",5,"","","","",4,"",2,"","",""," "," "," "," ",null,"2015-09-19",null,null,null,null,null,null,null,null,null,null,null,null,null,null,null,null,11,1,1,1,null,null,null,null,null,null,null,null,null,null,null,null,null,null,null,null,null,11,1,1,1,null,null,null,null,null,null,null,null,null,null,null,null,null,null,null,null,null,11,1,1,1,null,null,null,null,null,null,null,null,null,null,null,null,null,null,null,null,null,11,1,1,1,null,null,null,null,null,null,null,null,null,null,null,null,null,null,null,null,null,11,1,1,1,null,null,null,null,null,null,null,null,null,null,null,null,null,null,null,null,null,11,1,1,1]
["2015-09-28",2,"","","","","",3,"","","","",1,"",5,4,""," "," "," "," ",null,"2015-09-28",null,null,null,null,null,null,null,null,null,null,null,null,null,null,null,null,1,1,1,1,null,null,null,null,null,null,null,null,null,null,null,null,null,null,null,null,null,1,1,1,1,null,null,null,null,null,null,null,null,null,null,null,null,null,null,null,null,null,1,1,1,1,null,null,null,null,null,null,null,null,null,null,null,null,null,null,null,null,null,1,1,1,1,null,null,null,null,null,null,null,null,null,null,null,null,null,null,null,null,null,1,1,1,1,null,null,null,null,null,null,null,null,null,null,null,null,null,null,null,null,null,1,1,1,1]
["2015-10-01",5,3,2,"",1,"","","","","",4,"","","","",""," "," "," "," ",null,"2015-10-01",null,null,null,null,null,null,null,null,null,null,null,null,null,null,null,null,1,1,1,1,null,null,null,null,null,null,null,null,null,null,null,null,null,null,null,null,null,1,1,1,1,null,null,null,null,null,null,null,null,null,null,null,null,null,null,null,null,null,1,1,1,1,null,null,null,null,null,null,null,null,null,null,null,null,null,null,null,null,null,1,1,1,1,null,null,null,null,null,null,null,null,null,null,null,null,null,null,null,null,null,1,1,1,1,null,null,null,null,null,null,null,null,null,null,null,null,null,null,null,null,null,1,1,1,1]
["2015-10-08","","","","","",1,5,"","","","","","",4,"",3,"","",2," ",null,"2015-10-08",null,null,null,null,null,null,null,null,null,null,null,null,null,null,null,null,null,null,null,1,null,null,null,null,null,null,null,null,null,null,null,null,null,null,null,null,null,null,null,null,1,null,null,null,null,null,null,null,null,null,null,null,null,null,null,null,null,null,null,null,null,1,null,null,null,null,null,null,null,null,null,null,null,null,null,null,null,null,null,null,null,null,1,null,null,null,null,null,null,null,null,null,null,null,null,null,null,null,null,null,null,null,null,1,null,null,null,null,null,null,null,null,null,null,null,null,null,null,null,null,null,null,null,null,1]
["2015-10-11","",4,"","","","","","","","","","","",2,"",3,1,5,"","",null,"2015-10-11"]
["2015-10-18",1,"","",2,4,"","",5,"","","",""," "," ","",3," "," "," "," ",null,"2015-10-18",null,null,null,null,null,null,null,null,null,null,null,null,1,1,null,null,1,1,1,1,null,null,null,null,null,null,null,null,null,null,null,null,null,1,1,null,null,1,1,1,1,null,null,null,null,null,null,null,null,null,null,null,null,null,1,1,null,null,1,1,1,1,null,null,null,null,null,null,null,null,null,null,null,null,null,1,1,null,null,1,1,1,1,null,null,null,null,null,null,null,null,null,null,null,null,null,1,1,null,null,1,1,1,1,null,null,null,null,null,null,null,null,null,null,null,null,null,1,1,null,null,1,1,1,1]
["2015-10-27","",3,"",2,5,"","","","","",4,"","","",1,""," "," "," "," ",null,"2015-10-27",null,null,null,null,null,null,null,null,null,null,null,null,null,null,null,null,1,1,1,1,null,null,null,null,null,null,null,null,null,null,null,null,null,null,null,null,null,1,1,1,1,null,null,null,null,null,null,null,null,null,null,null,null,null,null,null,null,null,1,1,1,1,null,null,null,null,null,null,null,null,null,null,null,null,null,null,null,null,null,1,1,1,1,null,null,null,null,null,null,null,null,null,null,null,null,null,null,null,null,null,1,1,1,1,null,null,null,null,null,null,null,null,null,null,null,null,null,null,null,null,null,1,1,1,1]
["2015-10-30",5,2,"",1,"",4,3,"","","","","","","","","","",""," "," ",null,"2015-10-30",null,null,null,null,null,null,null,null,null,null,null,null,null,null,null,null,null,null,1,1,null,null,null,null,null,null,null,null,null,null,null,null,null,null,null,null,null,null,null,1,1,null,null,null,null,null,null,null,null,null,null,null,null,null,null,null,null,null,null,null,1,1,null,null,null,null,null,null,null,null,null,null,null,null,null,null,null,null,null,null,null,1,1,null,null,null,null,null,null,null,null,null,null,null,null,null,null,null,null,null,null,null,1,1,null,null,null,null,null,null,null,null,null,null,null,null,null,null,null,null,null,null,null,1,1]
["2015-11-06","","",2,"","",5,1,"",3,4,"","","","","",""," "," "," "," ",null,"2015-11-06",null,null,null,null,null,null,null,null,null,null,null,null,null,null,null,null,1,1,1,1,null,null,null,null,null,null,null,null,null,null,null,null,null,null,null,null,null,1,1,1,1,null,null,null,null,null,null,null,null,null,null,null,null,null,null,null,null,null,1,1,1,1,null,null,null,null,null,null,null,null,null,null,null,null,null,null,null,null,null,1,1,1,1,null,null,null,null,null,null,null,null,null,null,null,null,null,null,null,null,null,1,1,1,1,null,null,null,null,null,null,null,null,null,null,null,null,null,null,null,null,null,1,1,1,1]
["2015-11-16","","","","",2,4,"","","","",3,5,"",1,""," "," "," "," "," ",null,"2015-11-16",null,null,null,null,null,null,null,null,null,null,null,null,null,null,null,1,1,1,1,1,null,null,null,null,null,null,null,null,null,null,null,null,null,null,null,null,1,1,1,1,1,null,null,null,null,null,null,null,null,null,null,null,null,null,null,null,null,1,1,1,1,1,null,null,null,null,null,null,null,null,null,null,null,null,null,null,null,null,1,1,1,1,1,null,null,null,null,null,null,null,null,null,null,null,null,null,null,null,null,1,1,1,1,1,null,null,null,null,null,null,null,null,null,null,null,null,null,null,null,null,1,1,1,1,1]
["2015-11-18","",1,2,"","",3,"","","","","","","","","",5,"",4," "," ",null,"2015-11-18",null,null,null,null,null,null,null,null,null,null,null,null,null,null,null,null,null,null,1,1,null,null,null,null,null,null,null,null,null,null,null,null,null,null,null,null,null,null,null,1,1,null,null,null,null,null,null,null,null,null,null,null,null,null,null,null,null,null,null,null,1,1,null,null,null,null,null,null,null,null,null,null,null,null,null,null,null,null,null,null,null,1,1,null,null,null,null,null,null,null,null,null,null,null,null,null,null,null,null,null,null,null,1,1,null,null,null,null,null,null,null,null,null,null,null,null,null,null,null,null,null,null,null,1,1]
["2015-11-27",4,"","","","","",5,1,"","","","","",2,3,""," "," "," "," ",null,"2015-11-27",null,null,null,null,null,null,null,null,null,null,null,null,null,null,null,null,1,1,1,1,null,null,null,null,null,null,null,null,null,null,null,null,null,null,null,null,null,1,1,1,1,null,null,null,null,null,null,null,null,null,null,null,null,null,null,null,null,null,1,1,1,1,null,null,null,null,null,null,null,null,null,null,null,null,null,null,null,null,null,1,1,1,1,null,null,null,null,null,null,null,null,null,null,null,null,null,null,null,null,null,1,1,1,1,null,null,null,null,null,null,null,null,null,null,null,null,null,null,null,null,null,1,1,1,1]
["2015-11-30","","","","","",4," ","",1,"",3,2,"","",5,"","",""," "," ",null,"2015-11-30",null,null,null,null,null,null,1,null,null,null,null,null,null,null,null,null,null,null,1,1,null,null,null,null,null,null,null,1,null,null,null,null,null,null,null,null,null,null,null,1,1,null,null,null,null,null,null,null,1,null,null,null,null,null,null,null,null,null,null,null,1,1,null,null,null,null,null,null,null,1,null,null,null,null,null,null,null,null,null,null,null,1,1,null,null,null,null,null,null,null,1,null,null,null,null,null,null,null,null,null,null,null,1,1,null,null,null,null,null,null,null,1,null,null,null,null,null,null,null,null,null,null,null,1,1]
["2015-12-07","","","","",1,"","",2,"",4,5,3,"","",""," "," "," "," "," ",null,"2015-12-07",null,null,null,null,null,null,null,null,null,null,null,null,null,null,null,1,1,1,1,1,null,null,null,null,null,null,null,null,null,null,null,null,null,null,null,null,1,1,1,1,1,null,null,null,null,null,null,null,null,null,null,null,null,null,null,null,null,1,1,1,1,1,null,null,null,null,null,null,null,null,null,null,null,null,null,null,null,null,1,1,1,1,1,null,null,null,null,null,null,null,null,null,null,null,null,null,null,null,null,1,1,1,1,1,null,null,null,null,null,null,null,null,null,null,null,null,null,null,null,null,1,1,1,1,1]
["2015-12-16","","","","","",5,"",3,"","","","","","",2,"",4,1," "," ",null,"2015-12-16",null,null,null,null,null,null,null,null,null,null,null,null,null,null,null,null,null,null,1,1,null,null,null,null,null,null,null,null,null,null,null,null,null,null,null,null,null,null,null,1,1,null,null,null,null,null,null,null,null,null,null,null,null,null,null,null,null,null,null,null,1,1,null,null,null,null,null,null,null,null,null,null,null,null,null,null,null,null,null,null,null,1,1,null,null,null,null,null,null,null,null,null,null,null,null,null,null,null,null,null,null,null,1,1,null,null,null,null,null,null,null,null,null,null,null,null,null,null,null,null,null,null,null,1,1]
["2015-12-19","",1," ","","","","",2,"","",3,"",4,"","","","",5," "," ",null,"2015-12-19",null,null,1,null,null,null,null,null,null,null,null,null,null,null,null,null,null,null,1,1,null,null,null,1,null,null,null,null,null,null,null,null,null,null,null,null,null,null,null,1,1,null,null,null,1,null,null,null,null,null,null,null,null,null,null,null,null,null,null,null,1,1,null,null,null,1,null,null,null,null,null,null,null,null,null,null,null,null,null,null,null,1,1,null,null,null,1,null,null,null,null,null,null,null,null,null,null,null,null,null,null,null,1,1,null,null,null,1,null,null,null,null,null,null,null,null,null,null,null,null,null,null,null,1,1]
["2015-12-26",2,"","",3,"","","","","",5,"","","","","","",4,1," "," ",null,"2015-12-26",null,null,null,null,null,null,null,null,null,null,null,null,null,null,null,null,null,null,1,1,null,null,null,null,null,null,null,null,null,null,null,null,null,null,null,null,null,null,null,1,1,null,null,null,null,null,null,null,null,null,null,null,null,null,null,null,null,null,null,null,1,1,null,null,null,null,null,null,null,null,null,null,null,null,null,null,null,null,null,null,null,1,1,null,null,null,null,null,null,null,null,null,null,null,null,null,null,null,null,null,null,null,1,1,null,null,null,null,null,null,null,null,null,null,null,null,null,null,null,null,null,null,null,1,1]
["2016-01-04","","",4,3,2,"","",1,"",5,"","","","",""," "," "," "," "," ",null,"2016-01-04",null,null,null,null,null,null,null,null,null,null,null,null,null,null,null,1,1,1,1,1,null,null,null,null,null,null,null,null,null,null,null,null,null,null,null,null,1,1,1,1,1,null,null,null,null,null,null,null,null,null,null,null,null,null,null,null,null,1,1,1,1,1,null,null,null,null,null,null,null,null,null,null,null,null,null,null,null,null,1,1,1,1,1,null,null,null,null,null,null,null,null,null,null,null,null,null,null,null,null,1,1,1,1,1,null,null,null,null,null,null,null,null,null,null,null,null,null,null,null,null,1,1,1,1,1]
["2016-01-05","","","","","","","",5,"",2,""," ",3,"","","",4,1," "," ",null,"2016-01-05",null,null,null,null,null,null,null,null,null,null,null,1,null,null,null,null,null,null,1,1,null,null,null,null,null,null,null,null,null,null,null,null,1,null,null,null,null,null,null,1,1,null,null,null,null,null,null,null,null,null,null,null,null,1,null,null,null,null,null,null,1,1,null,null,null,null,null,null,null,null,null,null,null,null,1,null,null,null,null,null,null,1,1,null,null,null,null,null,null,null,null,null,null,null,null,1,null,null,null,null,null,null,1,1,null,null,null,null,null,null,null,null,null,null,null,null,1,null,null,null,null,null,null,1,1]
["2016-01-14","",3,"",1,"",4,"","",2,"","","",5,"","","","",""," "," ",null,"2016-01-14",null,null,null,null,null,null,null,null,null,null,null,null,null,null,null,null,null,null,1,1,null,null,null,null,null,null,null,null,null,null,null,null,null,null,null,null,null,null,null,1,1,null,null,null,null,null,null,null,null,null,null,null,null,null,null,null,null,null,null,null,1,1,null,null,null,null,null,null,null,null,null,null,null,null,null,null,null,null,null,null,null,1,1,null,null,null,null,null,null,null,null,null,null,null,null,null,null,null,null,null,null,null,1,1,null,null,null,null,null,null,null,null,null,null,null,null,null,null,null,null,null,null,null,1,1]
["2016-01-17","","","","","","",5,"","","",3,1,4,2,"",""," "," "," "," ",null,"2016-01-17",null,null,null,null,null,null,null,null,null,null,null,null,null,null,null,null,1,1,1,1,null,null,null,null,null,null,null,null,null,null,null,null,null,null,null,null,null,1,1,1,1,null,null,null,null,null,null,null,null,null,null,null,null,null,null,null,null,null,1,1,1,1,null,null,null,null,null,null,null,null,null,null,null,null,null,null,null,null,null,1,1,1,1,null,null,null,null,null,null,null,null,null,null,null,null,null,null,null,null,null,1,1,1,1,null,null,null,null,null,null,null,null,null,null,null,null,null,null,null,null,null,1,1,1,1]
["2016-01-25","",1,5,"","","","",2,"","","",3,"",4,"",""," "," "," "," ",null,"2016-01-25",null,null,null,null,null,null,null,null,null,null,null,null,null,null,null,null,1,1,1,1,null,null,null,null,null,null,null,null,null,null,null,null,null,null,null,null,null,1,1,1,1,null,null,null,null,null,null,null,null,null,null,null,null,null,null,null,null,null,1,1,1,1,null,null,null,null,null,null,null,null,null,null,null,null,null,null,null,null,null,1,1,1,1,null,null,null,null,null,null,null,null,null,null,null,null,null,null,null,null,null,1,1,1,1,null,null,null,null,null,null,null,null,null,null,null,null,null,null,null,null,null,1,1,1,1]
["2016-02-03","",2,"","",4,"",3,"","","","","","","","","",1,5," "," ",null,"2016-02-03",null,null,null,null,null,null,null,null,null,null,null,null,null,null,null,null,null,null,1,1,null,null,null,null,null,null,null,null,null,null,null,null,null,null,null,null,null,null,null,1,1,null,null,null,null,null,null,null,null,null,null,null,null,null,null,null,null,null,null,null,1,1,null,null,null,null,null,null,null,null,null,null,null,null,null,null,null,null,null,null,null,1,1,null,null,null,null,null,null,null,null,null,null,null,null,null,null,null,null,null,null,null,1,1,null,null,null,null,null,null,null,null,null,null,null,null,null,null,null,null,null,null,null,1,1]
["2016-02-10","",2,3,"","",1,"","","","","","",5,"",4,"","",""," "," ",null,"2016-02-10",null,null,null,null,null,null,null,null,null,null,null,null,null,null,null,null,null,null,1,1,null,null,null,null,null,null,null,null,null,null,null,null,null,null,null,null,null,null,null,1,1,null,null,null,null,null,null,null,null,null,null,null,null,null,null,null,null,null,null,null,1,1,null,null,null,null,null,null,null,null,null,null,null,null,null,null,null,null,null,null,null,1,1,null,null,null,null,null,null,null,null,null,null,null,null,null,null,null,null,null,null,null,1,1,null,null,null,null,null,null,null,null,null,null,null,null,null,null,null,null,null,null,null,1,1]
["2016-02-13","",5,"",3,"","","","","","",1,"",4,2," "," "," "," "," "," ",null,"2016-02-13",null,null,null,null,null,null,null,null,null,null,null,null,null,null,1,1,1,1,1,1,null,null,null,null,null,null,null,null,null,null,null,null,null,null,null,1,1,1,1,1,1,null,null,null,null,null,null,null,null,null,null,null,null,null,null,null,1,1,1,1,1,1,null,null,null,null,null,null,null,null,null,null,null,null,null,null,null,1,1,1,1,1,1,null,null,null,null,null,null,null,null,null,null,null,null,null,null,null,1,1,1,1,1,1,null,null,null,null,null,null,null,null,null,null,null,null,null,null,null,1,1,1,1,1,1]
["2016-02-22","",3,"","","","","","","",1,4,"",2,"","",5,"",""," "," ",null,"2016-02-22",null,null,null,null,null,null,null,null,null,null,null,null,null,null,null,null,null,null,1,1,null,null,null,null,null,null,null,null,null,null,null,null,null,null,null,null,null,null,null,1,1,null,null,null,null,null,null,null,null,null,null,null,null,null,null,null,null,null,null,null,1,1,null,null,null,null,null,null,null,null,null,null,null,null,null,null,null,null,null,null,null,1,1,null,null,null,null,null,null,null,null,null,null,null,null,null,null,null,null,null,null,null,1,1,null,null,null,null,null,null,null,null,null,null,null,null,null,null,null,null,null,null,null,1,1]
["2016-02-23","",2,"",5,"",4,"","",3,""," ","",1,"","","",""," "," "," ",null,"2016-02-23",null,null,null,null,null,null,null,null,null,null,1,null,null,null,null,null,null,1,1,1,null,null,null,null,null,null,null,null,null,null,null,1,null,null,null,null,null,null,1,1,1,null,null,null,null,null,null,null,null,null,null,null,1,null,null,null,null,null,null,1,1,1,null,null,null,null,null,null,null,null,null,null,null,1,null,null,null,null,null,null,1,1,1,null,null,null,null,null,null,null,null,null,null,null,1,null,null,null,null,null,null,1,1,1,null,null,null,null,null,null,null,null,null,null,null,1,null,null,null,null,null,null,1,1,1]
["2016-03-03","","",4,"","","",5,"","","",3,2,"",1,"",""," "," "," "," ",null,"2016-03-03",null,null,null,null,null,null,null,null,null,null,null,null,null,null,null,null,1,1,1,1,null,null,null,null,null,null,null,null,null,null,null,null,null,null,null,null,null,1,1,1,1,null,null,null,null,null,null,null,null,null,null,null,null,null,null,null,null,null,1,1,1,1,null,null,null,null,null,null,null,null,null,null,null,null,null,null,null,null,null,1,1,1,1,null,null,null,null,null,null,null,null,null,null,null,null,null,null,null,null,null,1,1,1,1,null,null,null,null,null,null,null,null,null,null,null,null,null,null,null,null,null,1,1,1,1]
["2016-03-06","","",2,"","","","",5,1,"","","","",3,4,""," "," "," "," ",null,"2016-03-06",null,null,null,null,null,null,null,null,null,null,null,null,null,null,null,null,1,1,1,1,null,null,null,null,null,null,null,null,null,null,null,null,null,null,null,null,null,1,1,1,1,null,null,null,null,null,null,null,null,null,null,null,null,null,null,null,null,null,1,1,1,1,null,null,null,null,null,null,null,null,null,null,null,null,null,null,null,null,null,1,1,1,1,null,null,null,null,null,null,null,null,null,null,null,null,null,null,null,null,null,1,1,1,1,null,null,null,null,null,null,null,null,null,null,null,null,null,null,null,null,null,1,1,1,1]
["2016-03-14",4,"","","","","","","",1,2,"","","","",3,5," "," "," "," ",null,"2016-03-14",null,null,null,null,null,null,null,null,null,null,null,null,null,null,null,null,1,1,1,1,null,null,null,null,null,null,null,null,null,null,null,null,null,null,null,null,null,1,1,1,1,null,null,null,null,null,null,null,null,null,null,null,null,null,null,null,null,null,1,1,1,1,null,null,null,null,null,null,null,null,null,null,null,null,null,null,null,null,null,1,1,1,1,null,null,null,null,null,null,null,null,null,null,null,null,null,null,null,null,null,1,1,1,1,null,null,null,null,null,null,null,null,null,null,null,null,null,null,null,null,null,1,1,1,1]
["2016-03-23",2,5,"","","","",1,"",3,"","","","",4,"",""," "," "," "," ",null,"2016-03-23",null,null,null,null,null,null,null,null,null,null,null,null,null,null,null,null,1,1,1,1,null,null,null,null,null,null,null,null,null,null,null,null,null,null,null,null,null,1,1,1,1,null,null,null,null,null,null,null,null,null,null,null,null,null,null,null,null,null,1,1,1,1,null,null,null,null,null,null,null,null,null,null,null,null,null,null,null,null,null,1,1,1,1,null,null,null,null,null,null,null,null,null,null,null,null,null,null,null,null,null,1,1,1,1,null,null,null,null,null,null,null,null,null,null,null,null,null,null,null,null,null,1,1,1,1]
["2016-03-30","","","","",5,1,"","","",3,"",4,2,"","",""," "," "," "," ",null,"2016-03-30",null,null,null,null,null,null,null,null,null,null,null,null,null,null,null,null,1,1,1,1,null,null,null,null,null,null,null,null,null,null,null,null,null,null,null,null,null,1,1,1,1,null,null,null,null,null,null,null,null,null,null,null,null,null,null,null,null,null,1,1,1,1,null,null,null,null,null,null,null,null,null,null,null,null,null,null,null,null,null,1,1,1,1,null,null,null,null,null,null,null,null,null,null,null,null,null,null,null,null,null,1,1,1,1,null,null,null,null,null,null,null,null,null,null,null,null,null,null,null,null,null,1,1,1,1]
["2016-04-02","",1,"","",2,4,5,"","","","","","","","",3,""," "," "," ",null,"2016-04-02",null,null,null,null,null,null,null,null,null,null,null,null,null,null,null,null,null,1,1,1,null,null,null,null,null,null,null,null,null,null,null,null,null,null,null,null,null,null,1,1,1,null,null,null,null,null,null,null,null,null,null,null,null,null,null,null,null,null,null,1,1,1,null,null,null,null,null,null,null,null,null,null,null,null,null,null,null,null,null,null,1,1,1,null,null,null,null,null,null,null,null,null,null,null,null,null,null,null,null,null,null,1,1,1,null,null,null,null,null,null,null,null,null,null,null,null,null,null,null,null,null,null,1,1,1]
["2016-04-08","","",3,"",1,"",2,5,"","","","","",4,"",""," "," "," "," ",null,"2016-04-08",null,null,null,null,null,null,null,null,null,null,null,null,null,null,null,null,1,1,1,1,null,null,null,null,null,null,null,null,null,null,null,null,null,null,null,null,null,1,1,1,1,null,null,null,null,null,null,null,null,null,null,null,null,null,null,null,null,null,1,1,1,1,null,null,null,null,null,null,null,null,null,null,null,null,null,null,null,null,null,1,1,1,1,null,null,null,null,null,null,null,null,null,null,null,null,null,null,null,null,null,1,1,1,1,null,null,null,null,null,null,null,null,null,null,null,null,null,null,null,null,null,1,1,1,1]
["2016-04-13","","","","",1,2,"",3,"","","","",5,"",4,"","",""," "," ",null,"2016-04-13",null,null,null,null,null,null,null,null,null,null,null,null,null,null,null,null,null,null,1,1,null,null,null,null,null,null,null,null,null,null,null,null,null,null,null,null,null,null,null,1,1,null,null,null,null,null,null,null,null,null,null,null,null,null,null,null,null,null,null,null,1,1,null,null,null,null,null,null,null,null,null,null,null,null,null,null,null,null,null,null,null,1,1,null,null,null,null,null,null,null,null,null,null,null,null,null,null,null,null,null,null,null,1,1,null,null,null,null,null,null,null,null,null,null,null,null,null,null,null,null,null,null,null,1,1]
["2016-04-22","","","",3,"","","","","","","","",5,"",1,4,2," "," "," ",null,"2016-04-22",null,null,null,null,null,null,null,null,null,null,null,null,null,null,null,null,null,1,1,1,null,null,null,null,null,null,null,null,null,null,null,null,null,null,null,null,null,null,1,1,1,null,null,null,null,null,null,null,null,null,null,null,null,null,null,null,null,null,null,1,1,1,null,null,null,null,null,null,null,null,null,null,null,null,null,null,null,null,null,null,1,1,1,null,null,null,null,null,null,null,null,null,null,null,null,null,null,null,null,null,null,1,1,1,null,null,null,null,null,null,null,null,null,null,null,null,null,null,null,null,null,null,1,1,1]
["2016-04-25","","","",2,"","",3,4,1,"","","",5," "," "," "," "," "," "," ",null,"2016-04-25",null,null,null,null,null,null,null,null,null,null,null,null,null,1,1,1,1,1,1,1,null,null,null,null,null,null,null,null,null,null,null,null,null,null,1,1,1,1,1,1,1,null,null,null,null,null,null,null,null,null,null,null,null,null,null,1,1,1,1,1,1,1,null,null,null,null,null,null,null,null,null,null,null,null,null,null,1,1,1,1,1,1,1,null,null,null,null,null,null,null,null,null,null,null,null,null,null,1,1,1,1,1,1,1,null,null,null,null,null,null,null,null,null,null,null,null,null,null,1,1,1,1,1,1,1]
["2016-05-02",2,"","","","",1,"","","",3," ",5,4,"","",""," "," "," "," ",null,"2016-05-02",null,null,null,null,null,null,null,null,null,null,1,null,null,null,null,null,1,1,1,1,null,null,null,null,null,null,null,null,null,null,null,1,null,null,null,null,null,1,1,1,1,null,null,null,null,null,null,null,null,null,null,null,1,null,null,null,null,null,1,1,1,1,null,null,null,null,null,null,null,null,null,null,null,1,null,null,null,null,null,1,1,1,1,null,null,null,null,null,null,null,null,null,null,null,1,null,null,null,null,null,1,1,1,1,null,null,null,null,null,null,null,null,null,null,null,1,null,null,null,null,null,1,1,1,1]
["2016-05-11","",4,"","","",5,"",2," ","",""," ","","",3,1," "," "," "," ",null,"2016-05-11",null,null,null,null,null,null,null,null,1,null,null,1,null,null,null,null,1,1,1,1,null,null,null,null,null,null,null,null,null,1,null,null,1,null,null,null,null,1,1,1,1,null,null,null,null,null,null,null,null,null,1,null,null,1,null,null,null,null,1,1,1,1,null,null,null,null,null,null,null,null,null,1,null,null,1,null,null,null,null,1,1,1,1,null,null,null,null,null,null,null,null,null,1,null,null,1,null,null,null,null,1,1,1,1,null,null,null,null,null,null,null,null,null,1,null,null,1,null,null,null,null,1,1,1,1]
["2016-05-18","","","","","",5,"","",1,4,"",2,""," ",3," "," "," "," "," ",null,"2016-05-18",null,null,null,null,null,null,null,null,null,null,null,null,null,1,null,1,1,1,1,1,null,null,null,null,null,null,null,null,null,null,null,null,null,null,1,null,1,1,1,1,1,null,null,null,null,null,null,null,null,null,null,null,null,null,null,1,null,1,1,1,1,1,null,null,null,null,null,null,null,null,null,null,null,null,null,null,1,null,1,1,1,1,1,null,null,null,null,null,null,null,null,null,null,null,null,null,null,1,null,1,1,1,1,1,null,null,null,null,null,null,null,null,null,null,null,null,null,null,1,null,1,1,1,1,1]
["2016-05-21","","","","",2,3,1,"","","","","",5,4,"",""," "," "," "," ",null,"2016-05-21",null,null,null,null,null,null,null,null,null,null,null,null,null,null,null,null,1,1,1,1,null,null,null,null,null,null,null,null,null,null,null,null,null,null,null,null,null,1,1,1,1,null,null,null,null,null,null,null,null,null,null,null,null,null,null,null,null,null,1,1,1,1,null,null,null,null,null,null,null,null,null,null,null,null,null,null,null,null,null,1,1,1,1,null,null,null,null,null,null,null,null,null,null,null,null,null,null,null,null,null,1,1,1,1,null,null,null,null,null,null,null,null,null,null,null,null,null,null,null,null,null,1,1,1,1]
["2016-05-30","","",4,""," ",1,"",2,"",3,"",""," ","",5,"",""," "," "," ",null,"2016-05-30",null,null,null,null,1,null,null,null,null,null,null,null,1,null,null,null,null,1,1,1,null,null,null,null,null,1,null,null,null,null,null,null,null,1,null,null,null,null,1,1,1,null,null,null,null,null,1,null,null,null,null,null,null,null,1,null,null,null,null,1,1,1,null,null,null,null,null,1,null,null,null,null,null,null,null,1,null,null,null,null,1,1,1,null,null,null,null,null,1,null,null,null,null,null,null,null,1,null,null,null,null,1,1,1,null,null,null,null,null,1,null,null,null,null,null,null,null,1,null,null,null,null,1,1,1]
["2016-05-31","","",3,"","",4,"",5,"","","","","",2,1,""," "," "," "," ",null,"2016-05-31",null,null,null,null,null,null,null,null,null,null,null,null,null,null,null,null,1,1,1,1,null,null,null,null,null,null,null,null,null,null,null,null,null,null,null,null,null,1,1,1,1,null,null,null,null,null,null,null,null,null,null,null,null,null,null,null,null,null,1,1,1,1,null,null,null,null,null,null,null,null,null,null,null,null,null,null,null,null,null,1,1,1,1,null,null,null,null,null,null,null,null,null,null,null,null,null,null,null,null,null,1,1,1,1,null,null,null,null,null,null,null,null,null,null,null,null,null,null,null,null,null,1,1,1,1]
["2016-06-09",3,"","",1,4,"","",2,"","","","","","","","","",5," "," ",null,"2016-06-09",null,null,null,null,null,null,null,null,null,null,null,null,null,null,null,null,null,null,1,1,null,null,null,null,null,null,null,null,null,null,null,null,null,null,null,null,null,null,null,1,1,null,null,null,null,null,null,null,null,null,null,null,null,null,null,null,null,null,null,null,1,1,null,null,null,null,null,null,null,null,null,null,null,null,null,null,null,null,null,null,null,1,1,null,null,null,null,null,null,null,null,null,null,null,null,null,null,null,null,null,null,null,1,1,null,null,null,null,null,null,null,null,null,null,null,null,null,null,null,null,null,null,null,1,1]
["2016-06-16",1,"","","","","","",5,3,"",2,"","","",4,""," "," "," "," ",null,"2016-06-16",null,null,null,null,null,null,null,null,null,null,null,null,null,null,null,null,1,1,1,1,null,null,null,null,null,null,null,null,null,null,null,null,null,null,null,null,null,1,1,1,1,null,null,null,null,null,null,null,null,null,null,null,null,null,null,null,null,null,1,1,1,1,null,null,null,null,null,null,null,null,null,null,null,null,null,null,null,null,null,1,1,1,1,null,null,null,null,null,null,null,null,null,null,null,null,null,null,null,null,null,1,1,1,1,null,null,null,null,null,null,null,null,null,null,null,null,null,null,null,null,null,1,1,1,1]
["2016-06-24",3,1,"","",5,"","",4,"","","","","","","",2,"","",null,null,null,"2016-06-24",null,null,null,null,null,null,null,null,null,null,null,null,null,null,null,null,null,null,1,1,null,null,null,null,null,null,null,null,null,null,null,null,null,null,null,null,null,null,null,1,1,null,null,null,null,null,null,null,null,null,null,null,null,null,null,null,null,null,null,null,1,1,null,null,null,null,null,null,null,null,null,null,null,null,null,null,null,null,null,null,null,1,1,null,null,null,null,null,null,null,null,null,null,null,null,null,null,null,null,null,null,null,1,1,null,null,null,null,null,null,null,null,null,null,null,null,null,null,null,null,null,null,null,1,1]
["2016-06-29","","","","","",3,"",4,"","","",1,2,5,"","","",""," "," ",null,"2016-06-29",null,null,null,null,null,null,null,null,null,null,null,null,null,null,null,null,null,null,1,1,null,null,null,null,null,null,null,null,null,null,null,null,null,null,null,null,null,null,null,1,1,null,null,null,null,null,null,null,null,null,null,null,null,null,null,null,null,null,null,null,1,1,null,null,null,null,null,null,null,null,null,null,null,null,null,null,null,null,null,null,null,1,1,null,null,null,null,null,null,null,null,null,null,null,null,null,null,null,null,null,null,null,1,1,null,null,null,null,null,null,null,null,null,null,null,null,null,null,null,null,null,null,null,1,1]
["2016-07-06","","","","",5,"",4,2,3,1,"","","","",""," "," "," "," "," ",null,"2016-07-06",null,null,null,null,null,null,null,null,null,null,null,null,null,null,null,1,1,1,1,1,null,null,null,null,null,null,null,null,null,null,null,null,null,null,null,null,1,1,1,1,1,null,null,null,null,null,null,null,null,null,null,null,null,null,null,null,null,1,1,1,1,1,null,null,null,null,null,null,null,null,null,null,null,null,null,null,null,null,1,1,1,1,1,null,null,null,null,null,null,null,null,null,null,null,null,null,null,null,null,1,1,1,1,1,null,null,null,null,null,null,null,null,null,null,null,null,null,null,null,null,1,1,1,1,1]
["2016-07-09","","","","",2,"","",1,"","",3,"",4,5,""," "," "," "," "," ",null,"2016-07-09",null,null,null,null,null,null,null,null,null,null,null,null,null,null,null,1,1,1,1,1,null,null,null,null,null,null,null,null,null,null,null,null,null,null,null,null,1,1,1,1,1,null,null,null,null,null,null,null,null,null,null,null,null,null,null,null,null,1,1,1,1,1,null,null,null,null,null,null,null,null,null,null,null,null,null,null,null,null,1,1,1,1,1,null,null,null,null,null,null,null,null,null,null,null,null,null,null,null,null,1,1,1,1,1,null,null,null,null,null,null,null,null,null,null,null,null,null,null,null,null,1,1,1,1,1]
["2016-07-18",2,"","","","","","","",4,1,5,3,"","","",""," "," "," "," ",null,"2016-07-18",null,null,null,null,null,null,null,null,null,null,null,null,null,null,null,null,1,1,1,1,null,null,null,null,null,null,null,null,null,null,null,null,null,null,null,null,null,1,1,1,1,null,null,null,null,null,null,null,null,null,null,null,null,null,null,null,null,null,1,1,1,1,null,null,null,null,null,null,null,null,null,null,null,null,null,null,null,null,null,1,1,1,1,null,null,null,null,null,null,null,null,null,null,null,null,null,null,null,null,null,1,1,1,1,null,null,null,null,null,null,null,null,null,null,null,null,null,null,null,null,null,1,1,1,1]
["2016-07-19","",2,"","","",4," ",""," ","",3,"",5,"",1,"","",""," "," ",null,"2016-07-19",null,null,null,null,null,null,1,null,1,null,null,null,null,null,null,null,null,null,1,1,null,null,null,null,null,null,null,1,null,1,null,null,null,null,null,null,null,null,null,1,1,null,null,null,null,null,null,null,1,null,1,null,null,null,null,null,null,null,null,null,1,1,null,null,null,null,null,null,null,1,null,1,null,null,null,null,null,null,null,null,null,1,1,null,null,null,null,null,null,null,1,null,1,null,null,null,null,null,null,null,null,null,1,1,null,null,null,null,null,null,null,1,null,1,null,null,null,null,null,null,null,null,null,1,1]
["2016-07-28","",5,2,"","","","",4,"","",3,"","","","",1," "," "," "," ",null,"2016-07-28",null,null,null,null,null,null,null,null,null,null,null,null,null,null,null,null,1,1,1,1,null,null,null,null,null,null,null,null,null,null,null,null,null,null,null,null,null,1,1,1,1,null,null,null,null,null,null,null,null,null,null,null,null,null,null,null,null,null,1,1,1,1,null,null,null,null,null,null,null,null,null,null,null,null,null,null,null,null,null,1,1,1,1,null,null,null,null,null,null,null,null,null,null,null,null,null,null,null,null,null,1,1,1,1,null,null,null,null,null,null,null,null,null,null,null,null,null,null,null,null,null,1,1,1,1]
["2016-08-04","",3,"","",1,"","","",5,"",2,"","","",4,"","",""," "," ",null,"2016-08-04",null,null,null,null,null,null,null,null,null,null,null,null,null,null,null,null,null,null,1,1,null,null,null,null,null,null,null,null,null,null,null,null,null,null,null,null,null,null,null,1,1,null,null,null,null,null,null,null,null,null,null,null,null,null,null,null,null,null,null,null,1,1,null,null,null,null,null,null,null,null,null,null,null,null,null,null,null,null,null,null,null,1,1,null,null,null,null,null,null,null,null,null,null,null,null,null,null,null,null,null,null,null,1,1,null,null,null,null,null,null,null,null,null,null,null,null,null,null,null,null,null,null,null,1,1]
["2016-08-07","","",1,5,""," ","",4,"",3,2,"","","","",""," "," "," "," ",null,"2016-08-07",null,null,null,null,null,1,null,null,null,null,null,null,null,null,null,null,1,1,1,1,null,null,null,null,null,null,1,null,null,null,null,null,null,null,null,null,null,1,1,1,1,null,null,null,null,null,null,1,null,null,null,null,null,null,null,null,null,null,1,1,1,1,null,null,null,null,null,null,1,null,null,null,null,null,null,null,null,null,null,1,1,1,1,null,null,null,null,null,null,1,null,null,null,null,null,null,null,null,null,null,1,1,1,1,null,null,null,null,null,null,1,null,null,null,null,null,null,null,null,null,null,1,1,1,1]
["2016-08-16",2,"","",3,"","","",5,"",1,"","","","",4," "," "," "," "," ",null,"2016-08-16",null,null,null,null,null,null,null,null,null,null,null,null,null,null,null,1,1,1,1,1,null,null,null,null,null,null,null,null,null,null,null,null,null,null,null,null,1,1,1,1,1,null,null,null,null,null,null,null,null,null,null,null,null,null,null,null,null,1,1,1,1,1,null,null,null,null,null,null,null,null,null,null,null,null,null,null,null,null,1,1,1,1,1,null,null,null,null,null,null,null,null,null,null,null,null,null,null,null,null,1,1,1,1,1,null,null,null,null,null,null,null,null,null,null,null,null,null,null,null,null,1,1,1,1,1]
["2016-08-23",3,"","","","","","",1,5,"","",4,"","","",2," "," "," "," ",null,"2016-08-23",null,null,null,null,null,null,null,null,null,null,null,null,null,null,null,null,1,1,1,1,null,null,null,null,null,null,null,null,null,null,null,null,null,null,null,null,null,1,1,1,1,null,null,null,null,null,null,null,null,null,null,null,null,null,null,null,null,null,1,1,1,1,null,null,null,null,null,null,null,null,null,null,null,null,null,null,null,null,null,1,1,1,1,null,null,null,null,null,null,null,null,null,null,null,null,null,null,null,null,null,1,1,1,1,null,null,null,null,null,null,null,null,null,null,null,null,null,null,null,null,null,1,1,1,1]
["2016-08-26","",3,"",1,5,4,"","","","","","","",2,"",""," "," "," "," ",null,"2016-08-26",null,null,null,null,null,null,null,null,null,null,null,null,null,null,null,null,1,1,1,1,null,null,null,null,null,null,null,null,null,null,null,null,null,null,null,null,null,1,1,1,1,null,null,null,null,null,null,null,null,null,null,null,null,null,null,null,null,null,1,1,1,1,null,null,null,null,null,null,null,null,null,null,null,null,null,null,null,null,null,1,1,1,1,null,null,null,null,null,null,null,null,null,null,null,null,null,null,null,null,null,1,1,1,1,null,null,null,null,null,null,null,null,null,null,null,null,null,null,null,null,null,1,1,1,1]
["2016-09-05",3,"","","","","","","",4,2,"",5,"",1,"",""," "," "," "," ",null,"2016-09-05",null,null,null,null,null,null,null,null,null,null,null,null,null,null,null,null,1,1,1,1,null,null,null,null,null,null,null,null,null,null,null,null,null,null,null,null,null,1,1,1,1,null,null,null,null,null,null,null,null,null,null,null,null,null,null,null,null,null,1,1,1,1,null,null,null,null,null,null,null,null,null,null,null,null,null,null,null,null,null,1,1,1,1,null,null,null,null,null,null,null,null,null,null,null,null,null,null,null,null,null,1,1,1,1,null,null,null,null,null,null,null,null,null,null,null,null,null,null,null,null,null,1,1,1,1]
["2016-09-06","","",5,"","",3,"","",2,"","",1,"",4,"",""," "," "," "," ",null,"2016-09-06",null,null,null,null,null,null,null,null,null,null,null,null,null,null,null,null,1,1,1,1,null,null,null,null,null,null,null,null,null,null,null,null,null,null,null,null,null,1,1,1,1,null,null,null,null,null,null,null,null,null,null,null,null,null,null,null,null,null,1,1,1,1,null,null,null,null,null,null,null,null,null,null,null,null,null,null,null,null,null,1,1,1,1,null,null,null,null,null,null,null,null,null,null,null,null,null,null,null,null,null,1,1,1,1,null,null,null,null,null,null,null,null,null,null,null,null,null,null,null,null,null,1,1,1,1]
["2016-09-15",2,"","","","",1,"",5,3,"",4,"","","","",""," "," "," "," ",null,"2016-09-15",null,null,null,null,null,null,null,null,null,null,null,null,null,null,null,null,1,1,1,1,null,null,null,null,null,null,null,null,null,null,null,null,null,null,null,null,null,1,1,1,1,null,null,null,null,null,null,null,null,null,null,null,null,null,null,null,null,null,1,1,1,1,null,null,null,null,null,null,null,null,null,null,null,null,null,null,null,null,null,1,1,1,1,null,null,null,null,null,null,null,null,null,null,null,null,null,null,null,null,null,1,1,1,1,null,null,null,null,null,null,null,null,null,null,null,null,null,null,null,null,null,1,1,1,1]
["2016-09-22","","",2,"","","","","","",4,""," ",5,"",1,3,"",""," "," ",null,"2016-09-22",null,null,null,null,null,null,null,null,null,null,null,1,null,null,null,null,null,null,1,1,null,null,null,null,null,null,null,null,null,null,null,null,1,null,null,null,null,null,null,1,1,null,null,null,null,null,null,null,null,null,null,null,null,1,null,null,null,null,null,null,1,1,null,null,null,null,null,null,null,null,null,null,null,null,1,null,null,null,null,null,null,1,1,null,null,null,null,null,null,null,null,null,null,null,null,1,null,null,null,null,null,null,1,1,null,null,null,null,null,null,null,null,null,null,null,null,1,null,null,null,null,null,null,1,1]
["2016-09-25","","","","","",4,"",5,"",2,"",3,"","",1," "," "," "," "," ",null,"2016-09-25",null,null,null,null,null,null,null,null,null,null,null,null,null,null,null,1,1,1,1,1,null,null,null,null,null,null,null,null,null,null,null,null,null,null,null,null,1,1,1,1,1,null,null,null,null,null,null,null,null,null,null,null,null,null,null,null,null,1,1,1,1,1,null,null,null,null,null,null,null,null,null,null,null,null,null,null,null,null,1,1,1,1,1,null,null,null,null,null,null,null,null,null,null,null,null,null,null,null,null,1,1,1,1,1,null,null,null,null,null,null,null,null,null,null,null,null,null,null,null,null,1,1,1,1,1]
["2016-10-04",2,4,3,"",5,"","","","","","",1,"",""," ","","",""," "," ",null,"2016-10-04",null,null,null,null,null,null,null,null,null,null,null,null,null,null,1,null,null,null,1,1,null,null,null,null,null,null,null,null,null,null,null,null,null,null,null,1,null,null,null,1,1,null,null,null,null,null,null,null,null,null,null,null,null,null,null,null,1,null,null,null,1,1,null,null,null,null,null,null,null,null,null,null,null,null,null,null,null,1,null,null,null,1,1,null,null,null,null,null,null,null,null,null,null,null,null,null,null,null,1,null,null,null,1,1,null,null,null,null,null,null,null,null,null,null,null,null,null,null,null,1,null,null,null,1,1]
["2016-10-11",1,2,"","",3,"",4,5,"","","","","","","","",""," "," "," ",null,"2016-10-11",null,null,null,null,null,null,null,null,null,null,null,null,null,null,null,null,null,1,1,1,null,null,null,null,null,null,null,null,null,null,null,null,null,null,null,null,null,null,1,1,1,null,null,null,null,null,null,null,null,null,null,null,null,null,null,null,null,null,null,1,1,1,null,null,null,null,null,null,null,null,null,null,null,null,null,null,null,null,null,null,1,1,1,null,null,null,null,null,null,null,null,null,null,null,null,null,null,null,null,null,null,1,1,1,null,null,null,null,null,null,null,null,null,null,null,null,null,null,null,null,null,null,1,1,1]
["2016-10-14","","","","","",2,"","",1,4,"","",3,5,""," "," "," "," "," ",null,"2016-10-14",null,null,null,null,null,null,null,null,null,null,null,null,null,null,null,1,1,1,1,1,null,null,null,null,null,null,null,null,null,null,null,null,null,null,null,null,1,1,1,1,1,null,null,null,null,null,null,null,null,null,null,null,null,null,null,null,null,1,1,1,1,1,null,null,null,null,null,null,null,null,null,null,null,null,null,null,null,null,1,1,1,1,1,null,null,null,null,null,null,null,null,null,null,null,null,null,null,null,null,1,1,1,1,1,null,null,null,null,null,null,null,null,null,null,null,null,null,null,null,null,1,1,1,1,1]
["2016-10-21",4,"","","","",5,"","","","",3,"","",2,1,""," "," "," "," ",null,"2016-10-21",null,null,null,null,null,null,null,null,null,null,null,null,null,null,null,null,1,1,1,1,null,null,null,null,null,null,null,null,null,null,null,null,null,null,null,null,null,1,1,1,1,null,null,null,null,null,null,null,null,null,null,null,null,null,null,null,null,null,1,1,1,1,null,null,null,null,null,null,null,null,null,null,null,null,null,null,null,null,null,1,1,1,1,null,null,null,null,null,null,null,null,null,null,null,null,null,null,null,null,null,1,1,1,1,null,null,null,null,null,null,null,null,null,null,null,null,null,null,null,null,null,1,1,1,1]
["2016-10-24",1,"","",2,"","",3,"",4,5,"","","","","","",""," "," "," ",null,"2016-10-24",null,null,null,null,null,null,null,null,null,null,null,null,null,null,null,null,null,1,1,1,null,null,null,null,null,null,null,null,null,null,null,null,null,null,null,null,null,null,1,1,1,null,null,null,null,null,null,null,null,null,null,null,null,null,null,null,null,null,null,1,1,1,null,null,null,null,null,null,null,null,null,null,null,null,null,null,null,null,null,null,1,1,1,null,null,null,null,null,null,null,null,null,null,null,null,null,null,null,null,null,null,1,1,1,null,null,null,null,null,null,null,null,null,null,null,null,null,null,null,null,null,null,1,1,1]
["2016-11-02","","","","","","","",1,"","",3,2,"",5,"","","",4," "," ",null,"2016-11-02",null,null,null,null,null,null,null,null,null,null,null,null,null,null,null,null,null,null,1,1,null,null,null,null,null,null,null,null,null,null,null,null,null,null,null,null,null,null,null,1,1,null,null,null,null,null,null,null,null,null,null,null,null,null,null,null,null,null,null,null,1,1,null,null,null,null,null,null,null,null,null,null,null,null,null,null,null,null,null,null,null,1,1,null,null,null,null,null,null,null,null,null,null,null,null,null,null,null,null,null,null,null,1,1,null,null,null,null,null,null,null,null,null,null,null,null,null,null,null,null,null,null,null,1,1]
["2016-11-09","",1,5,3,"",4,2,"","","","","","","","",""," "," "," "," ",null,"2016-11-09",null,null,null,null,null,null,null,null,null,null,null,null,null,null,null,null,1,1,1,1,null,null,null,null,null,null,null,null,null,null,null,null,null,null,null,null,null,1,1,1,1,null,null,null,null,null,null,null,null,null,null,null,null,null,null,null,null,null,1,1,1,1,null,null,null,null,null,null,null,null,null,null,null,null,null,null,null,null,null,1,1,1,1,null,null,null,null,null,null,null,null,null,null,null,null,null,null,null,null,null,1,1,1,1,null,null,null,null,null,null,null,null,null,null,null,null,null,null,null,null,null,1,1,1,1]
["2016-11-14","","","","","","","",3,"","",4,"","",2,"",1,"",5," "," ",null,"2016-11-14",null,null,null,null,null,null,null,null,null,null,null,null,null,null,null,null,null,null,1,1,null,null,null,null,null,null,null,null,null,null,null,null,null,null,null,null,null,null,null,1,1,null,null,null,null,null,null,null,null,null,null,null,null,null,null,null,null,null,null,null,1,1,null,null,null,null,null,null,null,null,null,null,null,null,null,null,null,null,null,null,null,1,1,null,null,null,null,null,null,null,null,null,null,null,null,null,null,null,null,null,null,null,1,1,null,null,null,null,null,null,null,null,null,null,null,null,null,null,null,null,null,null,null,1,1]
["2016-11-22",1,"",5,"","",""," ","","","","",4,3,"",2,""," "," "," "," ",null,"2016-11-22",null,null,null,null,null,null,1,null,null,null,null,null,null,null,null,null,1,1,1,1,null,null,null,null,null,null,null,1,null,null,null,null,null,null,null,null,null,1,1,1,1,null,null,null,null,null,null,null,1,null,null,null,null,null,null,null,null,null,1,1,1,1,null,null,null,null,null,null,null,1,null,null,null,null,null,null,null,null,null,1,1,1,1,null,null,null,null,null,null,null,1,null,null,null,null,null,null,null,null,null,1,1,1,1,null,null,null,null,null,null,null,1,null,null,null,null,null,null,null,null,null,1,1,1,1]
["2016-11-29",2,"","",1,"",3,"","","","","",4,"","",5,""," "," "," "," ",null,"2016-11-29",null,null,null,null,null,null,null,null,null,null,null,null,null,null,null,null,1,1,1,1,null,null,null,null,null,null,null,null,null,null,null,null,null,null,null,null,null,1,1,1,1,null,null,null,null,null,null,null,null,null,null,null,null,null,null,null,null,null,1,1,1,1,null,null,null,null,null,null,null,null,null,null,null,null,null,null,null,null,null,1,1,1,1,null,null,null,null,null,null,null,null,null,null,null,null,null,null,null,null,null,1,1,1,1,null,null,null,null,null,null,null,null,null,null,null,null,null,null,null,null,null,1,1,1,1]
["2016-12-02","","","","","",5,"",2,"",3,4,"","","",1,""," "," "," "," ",null,"2016-12-02",null,null,null,null,null,null,null,null,null,null,null,null,null,null,null,null,1,1,1,1,null,null,null,null,null,null,null,null,null,null,null,null,null,null,null,null,null,1,1,1,1,null,null,null,null,null,null,null,null,null,null,null,null,null,null,null,null,null,1,1,1,1,null,null,null,null,null,null,null,null,null,null,null,null,null,null,null,null,null,1,1,1,1,null,null,null,null,null,null,null,null,null,null,null,null,null,null,null,null,null,1,1,1,1,null,null,null,null,null,null,null,null,null,null,null,null,null,null,null,null,null,1,1,1,1]
["2016-12-09","","","",5,"","",4,"","","","",1,"",2,3,""," "," "," "," ",null,"2016-12-09",null,null,null,null,null,null,null,null,null,null,null,null,null,null,null,null,1,1,1,1,null,null,null,null,null,null,null,null,null,null,null,null,null,null,null,null,null,1,1,1,1,null,null,null,null,null,null,null,null,null,null,null,null,null,null,null,null,null,1,1,1,1,null,null,null,null,null,null,null,null,null,null,null,null,null,null,null,null,null,1,1,1,1,null,null,null,null,null,null,null,null,null,null,null,null,null,null,null,null,null,1,1,1,1,null,null,null,null,null,null,null,null,null,null,null,null,null,null,null,null,null,1,1,1,1]
["2016-12-12","","",4,"","","","",5,"","",1,"",2,3,"",""," "," "," "," ",null,"2016-12-12",null,null,null,null,null,null,null,null,null,null,null,null,null,null,null,null,1,1,1,1,null,null,null,null,null,null,null,null,null,null,null,null,null,null,null,null,null,1,1,1,1,null,null,null,null,null,null,null,null,null,null,null,null,null,null,null,null,null,1,1,1,1,null,null,null,null,null,null,null,null,null,null,null,null,null,null,null,null,null,1,1,1,1,null,null,null,null,null,null,null,null,null,null,null,null,null,null,null,null,null,1,1,1,1,null,null,null,null,null,null,null,null,null,null,null,null,null,null,null,null,null,1,1,1,1]
["2016-12-21",4,3,"",2,"","","","",1,5,"","","","","",""," "," "," "," ",null,"2016-12-21",null,null,null,null,null,null,null,null,null,null,null,null,null,null,null,null,1,1,1,1,null,null,null,null,null,null,null,null,null,null,null,null,null,null,null,null,null,1,1,1,1,null,null,null,null,null,null,null,null,null,null,null,null,null,null,null,null,null,1,1,1,1,null,null,null,null,null,null,null,null,null,null,null,null,null,null,null,null,null,1,1,1,1,null,null,null,null,null,null,null,null,null,null,null,null,null,null,null,null,null,1,1,1,1,null,null,null,null,null,null,null,null,null,null,null,null,null,null,null,null,null,1,1,1,1]
["2016-12-28","","","",2,"","","","",5,"",1,3,4,"","",""," "," "," "," ",null,"2016-12-28",null,null,null,null,null,null,null,null,null,null,null,null,null,null,null,null,1,1,1,1,null,null,null,null,null,null,null,null,null,null,null,null,null,null,null,null,null,1,1,1,1,null,null,null,null,null,null,null,null,null,null,null,null,null,null,null,null,null,1,1,1,1,null,null,null,null,null,null,null,null,null,null,null,null,null,null,null,null,null,1,1,1,1,null,null,null,null,null,null,null,null,null,null,null,null,null,null,null,null,null,1,1,1,1,null,null,null,null,null,null,null,null,null,null,null,null,null,null,null,null,null,1,1,1,1]
["2016-12-31","","","","","","",4,"",1,5,"","","","","",2,"",3," "," ",null,"2016-12-31",null,null,null,null,null,null,null,null,null,null,null,null,null,null,null,null,null,null,1,1,null,null,null,null,null,null,null,null,null,null,null,null,null,null,null,null,null,null,null,1,1,null,null,null,null,null,null,null,null,null,null,null,null,null,null,null,null,null,null,null,1,1,null,null,null,null,null,null,null,null,null,null,null,null,null,null,null,null,null,null,null,1,1,null,null,null,null,null,null,null,null,null,null,null,null,null,null,null,null,null,null,null,1,1,null,null,null,null,null,null,null,null,null,null,null,null,null,null,null,null,null,null,null,1,1]
["2017-01-07","",2,"","",3,"","","","","",5,1,4,"","","",""," "," "," ",null,"2017-01-07",null,null,null,null,null,null,null,null,null,null,null,null,null,null,null,null,null,1,1,1,null,null,null,null,null,null,null,null,null,null,null,null,null,null,null,null,null,null,1,1,1,null,null,null,null,null,null,null,null,null,null,null,null,null,null,null,null,null,null,1,1,1,null,null,null,null,null,null,null,null,null,null,null,null,null,null,null,null,null,null,1,1,1,null,null,null,null,null,null,null,null,null,null,null,null,null,null,null,null,null,null,1,1,1,null,null,null,null,null,null,null,null,null,null,null,null,null,null,null,null,null,null,1,1,1]
["2017-01-16",4,"","","",3,"","","","","",5,"",1,"",2,"","",""," "," ",null,"2017-01-16",null,null,null,null,null,null,null,null,null,null,null,null,null,null,null,null,null,null,1,1,null,null,null,null,null,null,null,null,null,null,null,null,null,null,null,null,null,null,null,1,1,null,null,null,null,null,null,null,null,null,null,null,null,null,null,null,null,null,null,null,1,1,null,null,null,null,null,null,null,null,null,null,null,null,null,null,null,null,null,null,null,1,1,null,null,null,null,null,null,null,null,null,null,null,null,null,null,null,null,null,null,null,1,1,null,null,null,null,null,null,null,null,null,null,null,null,null,null,null,null,null,null,null,1,1]
["2017-01-19","","","","",5,"","","",4,"","","",2,"",1,3," "," "," "," ",null,"2017-01-19",null,null,null,null,null,null,null,null,null,null,null,null,null,null,null,null,1,1,1,1,null,null,null,null,null,null,null,null,null,null,null,null,null,null,null,null,null,1,1,1,1,null,null,null,null,null,null,null,null,null,null,null,null,null,null,null,null,null,1,1,1,1,null,null,null,null,null,null,null,null,null,null,null,null,null,null,null,null,null,1,1,1,1,null,null,null,null,null,null,null,null,null,null,null,null,null,null,null,null,null,1,1,1,1,null,null,null,null,null,null,null,null,null,null,null,null,null,null,null,null,null,1,1,1,1]
["2017-01-23",3,5,2,"","","",1,"","","","",""," ",4,"",""," "," "," "," ",null,"2017-01-23",null,null,null,null,null,null,null,null,null,null,null,null,1,null,null,null,1,1,1,1,null,null,null,null,null,null,null,null,null,null,null,null,null,1,null,null,null,1,1,1,1,null,null,null,null,null,null,null,null,null,null,null,null,null,1,null,null,null,1,1,1,1,null,null,null,null,null,null,null,null,null,null,null,null,null,1,null,null,null,1,1,1,1,null,null,null,null,null,null,null,null,null,null,null,null,null,1,null,null,null,1,1,1,1,null,null,null,null,null,null,null,null,null,null,null,null,null,1,null,null,null,1,1,1,1]
["2017-01-30","",3,"","",1,5,4,"","","","","",2,"","","","",""," "," ",null,"2017-01-30",null,null,null,null,null,null,null,null,null,null,null,null,null,null,null,null,null,null,1,1,null,null,null,null,null,null,null,null,null,null,null,null,null,null,null,null,null,null,null,1,1,null,null,null,null,null,null,null,null,null,null,null,null,null,null,null,null,null,null,null,1,1,null,null,null,null,null,null,null,null,null,null,null,null,null,null,null,null,null,null,null,1,1,null,null,null,null,null,null,null,null,null,null,null,null,null,null,null,null,null,null,null,1,1,null,null,null,null,null,null,null,null,null,null,null,null,null,null,null,null,null,null,null,1,1]
["2017-02-08","","","","",1,"","","","",3,"",4,5,2,"","","",""," "," ",null,"2017-02-08",null,null,null,null,null,null,null,null,null,null,null,null,null,null,null,null,null,null,1,1,null,null,null,null,null,null,null,null,null,null,null,null,null,null,null,null,null,null,null,1,1,null,null,null,null,null,null,null,null,null,null,null,null,null,null,null,null,null,null,null,1,1,null,null,null,null,null,null,null,null,null,null,null,null,null,null,null,null,null,null,null,1,1,null,null,null,null,null,null,null,null,null,null,null,null,null,null,null,null,null,null,null,1,1,null,null,null,null,null,null,null,null,null,null,null,null,null,null,null,null,null,null,null,1,1]
["2017-02-15","","","",3,"",4,"","",1,"",2,"","","",5,""," "," "," "," ",null,"2017-02-15",null,null,null,null,null,null,null,null,null,null,null,null,null,null,null,null,1,1,1,1,null,null,null,null,null,null,null,null,null,null,null,null,null,null,null,null,null,1,1,1,1,null,null,null,null,null,null,null,null,null,null,null,null,null,null,null,null,null,1,1,1,1,null,null,null,null,null,null,null,null,null,null,null,null,null,null,null,null,null,1,1,1,1,null,null,null,null,null,null,null,null,null,null,null,null,null,null,null,null,null,1,1,1,1,null,null,null,null,null,null,null,null,null,null,null,null,null,null,null,null,null,1,1,1,1]
["2017-02-18","","",4,""," ",2,5,"","",1,"","","","",3,""," "," "," "," ",null,"2017-02-18",null,null,null,null,1,null,null,null,null,null,null,null,null,null,null,null,11,1,1,1,null,null,null,null,null,1,null,null,null,null,null,null,null,null,null,null,null,11,1,1,1,null,null,null,null,null,1,null,null,null,null,null,null,null,null,null,null,null,11,1,1,1,null,null,null,null,null,1,null,null,null,null,null,null,null,null,null,null,null,11,1,1,1,null,null,null,null,null,1,null,null,null,null,null,null,null,null,null,null,null,11,1,1,1,null,null,null,null,null,1,null,null,null,null,null,null,null,null,null,null,null,11,1,1,1]
["2017-02-25","",3,"","","","","","","",5,4,"","","",1,"",2,""," "," ",null,"2017-02-25",null,null,null,null,null,null,null,null,null,null,null,null,null,null,null,null,null,null,1,1,null,null,null,null,null,null,null,null,null,null,null,null,null,null,null,null,null,null,null,1,1,null,null,null,null,null,null,null,null,null,null,null,null,null,null,null,null,null,null,null,1,1,null,null,null,null,null,null,null,null,null,null,null,null,null,null,null,null,null,null,null,1,1,null,null,null,null,null,null,null,null,null,null,null,null,null,null,null,null,null,null,null,1,1,null,null,null,null,null,null,null,null,null,null,null,null,null,null,null,null,null,null,null,1,1]
["2017-03-07","","","",4,"","","",5,1,"","","","",2,3,""," "," "," "," ",null,"2017-03-07",null,null,null,null,null,null,null,null,null,null,null,null,null,null,null,null,1,1,1,1,null,null,null,null,null,null,null,null,null,null,null,null,null,null,null,null,null,1,1,1,1,null,null,null,null,null,null,null,null,null,null,null,null,null,null,null,null,null,1,1,1,1,null,null,null,null,null,null,null,null,null,null,null,null,null,null,null,null,null,1,1,1,1,null,null,null,null,null,null,null,null,null,null,null,null,null,null,null,null,null,1,1,1,1,null,null,null,null,null,null,null,null,null,null,null,null,null,null,null,null,null,1,1,1,1]
["2017-03-10",4,"","","",3,"","",5,"","","","","",2,"","",1," "," "," ",null,"2017-03-10",null,null,null,null,null,null,null,null,null,null,null,null,null,null,null,null,null,1,1,1,null,null,null,null,null,null,null,null,null,null,null,null,null,null,null,null,null,null,1,1,1,null,null,null,null,null,null,null,null,null,null,null,null,null,null,null,null,null,null,1,1,1,null,null,null,null,null,null,null,null,null,null,null,null,null,null,null,null,null,null,1,1,1,null,null,null,null,null,null,null,null,null,null,null,null,null,null,null,null,null,null,1,1,1,null,null,null,null,null,null,null,null,null,null,null,null,null,null,null,null,null,null,1,1,1]
["2017-03-17","",4,5,"","",1,3,2,"","","","","","","","","",""," "," ",null,"2017-03-17",null,null,null,null,null,null,null,null,null,null,null,null,null,null,null,null,null,null,1,1,null,null,null,null,null,null,null,null,null,null,null,null,null,null,null,null,null,null,null,1,1,null,null,null,null,null,null,null,null,null,null,null,null,null,null,null,null,null,null,null,1,1,null,null,null,null,null,null,null,null,null,null,null,null,null,null,null,null,null,null,null,1,1,null,null,null,null,null,null,null,null,null,null,null,null,null,null,null,null,null,null,null,1,1,null,null,null,null,null,null,null,null,null,null,null,null,null,null,null,null,null,null,null,1,1]
["2017-03-20","",1,"","","","","",2,"",5,"",3,4,""," "," "," "," "," "," ",null,"2017-03-20",null,null,null,null,null,null,null,null,null,null,null,null,null,null,1,1,1,1,1,1,null,null,null,null,null,null,null,null,null,null,null,null,null,null,null,1,1,1,1,1,1,null,null,null,null,null,null,null,null,null,null,null,null,null,null,null,1,1,1,1,1,1,null,null,null,null,null,null,null,null,null,null,null,null,null,null,null,1,1,1,1,1,1,null,null,null,null,null,null,null,null,null,null,null,null,null,null,null,1,1,1,1,1,1,null,null,null,null,null,null,null,null,null,null,null,null,null,null,null,1,1,1,1,1,1]
["2017-03-29","",4,"","",5,2,"",1,"","","","",3,"","",""," "," "," "," ",null,"2017-03-29",null,null,null,null,null,null,null,null,null,null,null,null,null,null,null,null,1,1,1,1,null,null,null,null,null,null,null,null,null,null,null,null,null,null,null,null,null,1,1,1,1,null,null,null,null,null,null,null,null,null,null,null,null,null,null,null,null,null,1,1,1,1,null,null,null,null,null,null,null,null,null,null,null,null,null,null,null,null,null,1,1,1,1,null,null,null,null,null,null,null,null,null,null,null,null,null,null,null,null,null,1,1,1,1,null,null,null,null,null,null,null,null,null,null,null,null,null,null,null,null,null,1,1,1,1]
["2017-04-05","","","","",3,"",2,"","","",4,"","","",5,"",1,""," "," ",null,"2017-04-05",null,null,null,null,null,null,null,null,null,null,null,null,null,null,null,null,null,null,1,1,null,null,null,null,null,null,null,null,null,null,null,null,null,null,null,null,null,null,null,1,1,null,null,null,null,null,null,null,null,null,null,null,null,null,null,null,null,null,null,null,1,1,null,null,null,null,null,null,null,null,null,null,null,null,null,null,null,null,null,null,null,1,1,null,null,null,null,null,null,null,null,null,null,null,null,null,null,null,null,null,null,null,1,1,null,null,null,null,null,null,null,null,null,null,null,null,null,null,null,null,null,null,null,1,1]
["2017-04-07","",1,"",""," ",4,"","","","","",5,"",3,2,""," "," "," "," ",null,"2017-04-07",null,null,null,null,1,null,null,null,null,null,null,null,null,null,null,null,1,1,1,1,null,null,null,null,null,1,null,null,null,null,null,null,null,null,null,null,null,1,1,1,1,null,null,null,null,null,1,null,null,null,null,null,null,null,null,null,null,null,1,1,1,1,null,null,null,null,null,1,null,null,null,null,null,null,null,null,null,null,null,1,1,1,1,null,null,null,null,null,1,null,null,null,null,null,null,null,null,null,null,null,1,1,1,1,null,null,null,null,null,1,null,null,null,null,null,null,null,null,null,null,null,1,1,1,1]
["2017-04-16",5,1,"","","",2,"","","","","",4,"",3,"",""," "," "," "," ",null,"2017-04-16",null,null,null,null,null,null,null,null,null,null,null,null,null,null,null,null,1,1,1,1,null,null,null,null,null,null,null,null,null,null,null,null,null,null,null,null,null,1,1,1,1,null,null,null,null,null,null,null,null,null,null,null,null,null,null,null,null,null,1,1,1,1,null,null,null,null,null,null,null,null,null,null,null,null,null,null,null,null,null,1,1,1,1,null,null,null,null,null,null,null,null,null,null,null,null,null,null,null,null,null,1,1,1,1,null,null,null,null,null,null,null,null,null,null,null,null,null,null,null,null,null,1,1,1,1]
["2017-04-25","","",3,"",5,4,"","","","","","","",1,"","",2," "," "," ",null,"2017-04-25",null,null,null,null,null,null,null,null,null,null,null,null,null,null,null,null,null,1,1,1,null,null,null,null,null,null,null,null,null,null,null,null,null,null,null,null,null,null,1,1,1,null,null,null,null,null,null,null,null,null,null,null,null,null,null,null,null,null,null,1,1,1,null,null,null,null,null,null,null,null,null,null,null,null,null,null,null,null,null,null,1,1,1,null,null,null,null,null,null,null,null,null,null,null,null,null,null,null,null,null,null,1,1,1,null,null,null,null,null,null,null,null,null,null,null,null,null,null,null,null,null,null,1,1,1]
["2017-04-28","","","","","","",5,"","","",2,"",4,"",3,"","",1," "," ",null,"2017-04-28",null,null,null,null,null,null,null,null,null,null,null,null,null,null,null,null,null,null,1,1,null,null,null,null,null,null,null,null,null,null,null,null,null,null,null,null,null,null,null,1,1,null,null,null,null,null,null,null,null,null,null,null,null,null,null,null,null,null,null,null,1,1,null,null,null,null,null,null,null,null,null,null,null,null,null,null,null,null,null,null,null,1,1,null,null,null,null,null,null,null,null,null,null,null,null,null,null,null,null,null,null,null,1,1,null,null,null,null,null,null,null,null,null,null,null,null,null,null,null,null,null,null,null,1,1]
["2017-05-06","","","",5,"","",3,"",1,"","","","","","",2,4,""," "," ",null,"2017-05-06",null,null,null,null,null,null,null,null,null,null,null,null,null,null,null,null,null,null,1,1,null,null,null,null,null,null,null,null,null,null,null,null,null,null,null,null,null,null,null,1,1,null,null,null,null,null,null,null,null,null,null,null,null,null,null,null,null,null,null,null,1,1,null,null,null,null,null,null,null,null,null,null,null,null,null,null,null,null,null,null,null,1,1,null,null,null,null,null,null,null,null,null,null,null,null,null,null,null,null,null,null,null,1,1,null,null,null,null,null,null,null,null,null,null,null,null,null,null,null,null,null,null,null,1,1]
["2017-05-09",3,"",5,"","",2,"","","","",1,"",4,"","",""," "," "," "," ",null,"2017-05-09",null,null,null,null,null,null,null,null,null,null,null,null,null,null,null,null,1,1,1,1,null,null,null,null,null,null,null,null,null,null,null,null,null,null,null,null,null,1,1,1,1,null,null,null,null,null,null,null,null,null,null,null,null,null,null,null,null,null,1,1,1,1,null,null,null,null,null,null,null,null,null,null,null,null,null,null,null,null,null,1,1,1,1,null,null,null,null,null,null,null,null,null,null,null,null,null,null,null,null,null,1,1,1,1,null,null,null,null,null,null,null,null,null,null,null,null,null,null,null,null,null,1,1,1,1]
["2017-05-16","",5,"","",2,"","",4,"","","","","",3,1,"","",""," "," ",null,"2017-05-16",null,null,null,null,null,null,null,null,null,null,null,null,null,null,null,null,null,null,1,1,null,null,null,null,null,null,null,null,null,null,null,null,null,null,null,null,null,null,null,1,1,null,null,null,null,null,null,null,null,null,null,null,null,null,null,null,null,null,null,null,1,1,null,null,null,null,null,null,null,null,null,null,null,null,null,null,null,null,null,null,null,1,1,null,null,null,null,null,null,null,null,null,null,null,null,null,null,null,null,null,null,null,1,1,null,null,null,null,null,null,null,null,null,null,null,null,null,null,null,null,null,null,null,1,1]
["2017-05-25","","",3," ","",2,"","",5,"","",1,"","",4,""," "," "," "," ",null,"2017-05-25",null,null,null,1,null,null,null,null,null,null,null,null,null,null,null,null,1,1,1,1,null,null,null,null,1,null,null,null,null,null,null,null,null,null,null,null,null,1,1,1,1,null,null,null,null,1,null,null,null,null,null,null,null,null,null,null,null,null,1,1,1,1,null,null,null,null,1,null,null,null,null,null,null,null,null,null,null,null,null,1,1,1,1,null,null,null,null,1,null,null,null,null,null,null,null,null,null,null,null,null,1,1,1,1,null,null,null,null,1,null,null,null,null,null,null,null,null,null,null,null,null,1,1,1,1]
["2017-05-28"," ",5,"","","",2,3,"","",4,"","","","",1,""," "," "," "," ",null,"2017-05-28",1,null,null,null,null,null,null,null,null,null,null,null,null,null,null,null,1,1,1,1,null,1,null,null,null,null,null,null,null,null,null,null,null,null,null,null,null,1,1,1,1,null,1,null,null,null,null,null,null,null,null,null,null,null,null,null,null,null,1,1,1,1,null,1,null,null,null,null,null,null,null,null,null,null,null,null,null,null,null,1,1,1,1,null,1,null,null,null,null,null,null,null,null,null,null,null,null,null,null,null,1,1,1,1,null,1,null,null,null,null,null,null,null,null,null,null,null,null,null,null,null,1,1,1,1]
["2017-06-04",3,"",1,"",5,2,"","","","",4,"","","","",""," "," "," "," ",null,"2017-06-04",null,null,null,null,null,null,null,null,null,null,null,null,null,null,null,null,1,1,1,1,null,null,null,null,null,null,null,null,null,null,null,null,null,null,null,null,null,1,1,1,1,null,null,null,null,null,null,null,null,null,null,null,null,null,null,null,null,null,1,1,1,1,null,null,null,null,null,null,null,null,null,null,null,null,null,null,null,null,null,1,1,1,1,null,null,null,null,null,null,null,null,null,null,null,null,null,null,null,null,null,1,1,1,1,null,null,null,null,null,null,null,null,null,null,null,null,null,null,null,null,null,1,1,1,1]
["2017-06-13","","",2,"",1,"","","","",3,"","","",5,4,""," "," "," "," ",null,"2017-06-13",null,null,null,null,null,null,null,null,null,null,null,null,null,null,null,null,1,1,1,1,null,null,null,null,null,null,null,null,null,null,null,null,null,null,null,null,null,1,1,1,1,null,null,null,null,null,null,null,null,null,null,null,null,null,null,null,null,null,1,1,1,1,null,null,null,null,null,null,null,null,null,null,null,null,null,null,null,null,null,1,1,1,1,null,null,null,null,null,null,null,null,null,null,null,null,null,null,null,null,null,1,1,1,1,null,null,null,null,null,null,null,null,null,null,null,null,null,null,null,null,null,1,1,1,1]
["2017-06-16","","",1,"",4,"","",3,""," ","",5,2,"","",""," "," "," "," ",null,"2017-06-16",null,null,null,null,null,null,null,null,null,1,null,null,null,null,null,null,1,1,1,1,null,null,null,null,null,null,null,null,null,null,1,null,null,null,null,null,null,1,1,1,1,null,null,null,null,null,null,null,null,null,null,1,null,null,null,null,null,null,1,1,1,1,null,null,null,null,null,null,null,null,null,null,1,null,null,null,null,null,null,1,1,1,1,null,null,null,null,null,null,null,null,null,null,1,null,null,null,null,null,null,1,1,1,1,null,null,null,null,null,null,null,null,null,null,1,null,null,null,null,null,null,1,1,1,1]
["2017-06-24","","","",5,"",4," ","",3,"","",1,"","",2,""," "," "," "," ",null,"2017-06-24",null,null,null,null,null,null,1,null,null,null,null,null,null,null,null,null,1,1,1,1,null,null,null,null,null,null,null,1,null,null,null,null,null,null,null,null,null,1,1,1,1,null,null,null,null,null,null,null,1,null,null,null,null,null,null,null,null,null,1,1,1,1,null,null,null,null,null,null,null,1,null,null,null,null,null,null,null,null,null,1,1,1,1,null,null,null,null,null,null,null,1,null,null,null,null,null,null,null,null,null,1,1,1,1,null,null,null,null,null,null,null,1,null,null,null,null,null,null,null,null,null,1,1,1,1]
["2017-06-27",2,1,"","",5,"",3,"","","",4,"","","","","",""," "," "," ",null,"2017-06-27",null,null,null,null,null,null,null,null,null,null,null,null,null,null,null,null,null,1,1,1,null,null,null,null,null,null,null,null,null,null,null,null,null,null,null,null,null,null,1,1,1,null,null,null,null,null,null,null,null,null,null,null,null,null,null,null,null,null,null,1,1,1,null,null,null,null,null,null,null,null,null,null,null,null,null,null,null,null,null,null,1,1,1,null,null,null,null,null,null,null,null,null,null,null,null,null,null,null,null,null,null,1,1,1,null,null,null,null,null,null,null,null,null,null,null,null,null,null,null,null,null,null,1,1,1]
["2017-07-04","","","","",5," ","",4,3,1,"","","",2,"",""," "," "," "," ",null,"2017-07-04",null,null,null,null,null,1,null,null,null,null,null,null,null,null,null,null,1,1,1,1,null,null,null,null,null,null,1,null,null,null,null,null,null,null,null,null,null,1,1,1,1,null,null,null,null,null,null,1,null,null,null,null,null,null,null,null,null,null,1,1,1,1,null,null,null,null,null,null,1,null,null,null,null,null,null,null,null,null,null,1,1,1,1,null,null,null,null,null,null,1,null,null,null,null,null,null,null,null,null,null,1,1,1,1,null,null,null,null,null,null,1,null,null,null,null,null,null,null,null,null,null,1,1,1,1]
["2017-07-13","",2,"",3,"",5,1,"","","","","","","","",4," "," "," "," ",null,"2017-07-13",null,null,null,null,null,null,null,null,null,null,null,null,null,null,null,null,1,1,1,1,null,null,null,null,null,null,null,null,null,null,null,null,null,null,null,null,null,1,1,1,1,null,null,null,null,null,null,null,null,null,null,null,null,null,null,null,null,null,1,1,1,1,null,null,null,null,null,null,null,null,null,null,null,null,null,null,null,null,null,1,1,1,1,null,null,null,null,null,null,null,null,null,null,null,null,null,null,null,null,null,1,1,1,1,null,null,null,null,null,null,null,null,null,null,null,null,null,null,null,null,null,1,1,1,1]
["2017-07-16","",3,2,"","",4,"","",1,"","","","","",5,""," "," "," "," ",null,"2017-07-16",null,null,null,null,null,null,null,null,null,null,null,null,null,null,null,null,1,1,1,1,null,null,null,null,null,null,null,null,null,null,null,null,null,null,null,null,null,1,1,1,1,null,null,null,null,null,null,null,null,null,null,null,null,null,null,null,null,null,1,1,1,1,null,null,null,null,null,null,null,null,null,null,null,null,null,null,null,null,null,1,1,1,1,null,null,null,null,null,null,null,null,null,null,null,null,null,null,null,null,null,1,1,1,1,null,null,null,null,null,null,null,null,null,null,null,null,null,null,null,null,null,1,1,1,1]
["2017-07-23","","",4,"",5,1,"","","",3,"","","","",2," "," "," "," "," ",null,"2017-07-23",null,null,null,null,null,null,null,null,null,null,null,null,null,null,null,1,1,1,1,1,null,null,null,null,null,null,null,null,null,null,null,null,null,null,null,null,1,1,1,1,1,null,null,null,null,null,null,null,null,null,null,null,null,null,null,null,null,1,1,1,1,1,null,null,null,null,null,null,null,null,null,null,null,null,null,null,null,null,1,1,1,1,1,null,null,null,null,null,null,null,null,null,null,null,null,null,null,null,null,1,1,1,1,1,null,null,null,null,null,null,null,null,null,null,null,null,null,null,null,null,1,1,1,1,1]
["2017-08-01","","","","",1,4,"",5,"","","","",3,"",2," "," "," "," "," ",null,"2017-08-01",null,null,null,null,null,null,null,null,null,null,null,null,null,null,null,1,1,1,1,1,null,null,null,null,null,null,null,null,null,null,null,null,null,null,null,null,1,1,1,1,1,null,null,null,null,null,null,null,null,null,null,null,null,null,null,null,null,1,1,1,1,1,null,null,null,null,null,null,null,null,null,null,null,null,null,null,null,null,1,1,1,1,1,null,null,null,null,null,null,null,null,null,null,null,null,null,null,null,null,1,1,1,1,1,null,null,null,null,null,null,null,null,null,null,null,null,null,null,null,null,1,1,1,1,1]
["2017-08-04",3,"","",1,"","",4,"","","","","",5,"",2,""," "," "," "," ",null,"2017-08-04",null,null,null,null,null,null,null,null,null,null,null,null,null,null,null,null,1,1,1,1,null,null,null,null,null,null,null,null,null,null,null,null,null,null,null,null,null,1,1,1,1,null,null,null,null,null,null,null,null,null,null,null,null,null,null,null,null,null,1,1,1,1,null,null,null,null,null,null,null,null,null,null,null,null,null,null,null,null,null,1,1,1,1,null,null,null,null,null,null,null,null,null,null,null,null,null,null,null,null,null,1,1,1,1,null,null,null,null,null,null,null,null,null,null,null,null,null,null,null,null,null,1,1,1,1]
["2017-08-11","",1,"","","",5,"",3,2,"","",4,"",""," "," "," "," "," "," ",null,"2017-08-11",null,null,null,null,null,null,null,null,null,null,null,null,null,null,1,1,1,1,1,1,null,null,null,null,null,null,null,null,null,null,null,null,null,null,null,1,1,1,1,1,1,null,null,null,null,null,null,null,null,null,null,null,null,null,null,null,1,1,1,1,1,1,null,null,null,null,null,null,null,null,null,null,null,null,null,null,null,1,1,1,1,1,1,null,null,null,null,null,null,null,null,null,null,null,null,null,null,null,1,1,1,1,1,1,null,null,null,null,null,null,null,null,null,null,null,null,null,null,null,1,1,1,1,1,1]
["2017-08-14","","","",1,"",5,2,"","","",4,"","","","",3," "," "," "," ",null,"2017-08-14",null,null,null,null,null,null,null,null,null,null,null,null,null,null,null,null,1,1,1,1,null,null,null,null,null,null,null,null,null,null,null,null,null,null,null,null,null,1,1,1,1,null,null,null,null,null,null,null,null,null,null,null,null,null,null,null,null,null,1,1,1,1,null,null,null,null,null,null,null,null,null,null,null,null,null,null,null,null,null,1,1,1,1,null,null,null,null,null,null,null,null,null,null,null,null,null,null,null,null,null,1,1,1,1,null,null,null,null,null,null,null,null,null,null,null,null,null,null,null,null,null,1,1,1,1]
["2017-08-21","",3," ",5,2,"","","",4,"",1,"","","","",""," "," "," "," ",null,"2017-08-21",null,null,1,null,null,null,null,null,null,null,null,null,null,null,null,null,1,1,1,1,null,null,null,1,null,null,null,null,null,null,null,null,null,null,null,null,null,1,1,1,1,null,null,null,1,null,null,null,null,null,null,null,null,null,null,null,null,null,1,1,1,1,null,null,null,1,null,null,null,null,null,null,null,null,null,null,null,null,null,1,1,1,1,null,null,null,1,null,null,null,null,null,null,null,null,null,null,null,null,null,1,1,1,1,null,null,null,1,null,null,null,null,null,null,null,null,null,null,null,null,null,1,1,1,1]
["2017-08-30","","",5,"",3,"","",2,"","","",4,"","","",1," "," "," "," ",null,"2017-08-30",null,null,null,null,null,null,null,null,null,null,null,null,null,null,null,null,1,1,1,1,null,null,null,null,null,null,null,null,null,null,null,null,null,null,null,null,null,1,1,1,1,null,null,null,null,null,null,null,null,null,null,null,null,null,null,null,null,null,1,1,1,1,null,null,null,null,null,null,null,null,null,null,null,null,null,null,null,null,null,1,1,1,1,null,null,null,null,null,null,null,null,null,null,null,null,null,null,null,null,null,1,1,1,1,null,null,null,null,null,null,null,null,null,null,null,null,null,null,null,null,null,1,1,1,1]
["2017-09-05","",1,"",5,"","","","","",3,"",4,"","",2,""," "," "," "," ",null,"2017-09-05",null,null,null,null,null,null,null,null,null,null,null,null,null,null,null,null,1,1,1,1,null,null,null,null,null,null,null,null,null,null,null,null,null,null,null,null,null,1,1,1,1,null,null,null,null,null,null,null,null,null,null,null,null,null,null,null,null,null,1,1,1,1,null,null,null,null,null,null,null,null,null,null,null,null,null,null,null,null,null,1,1,1,1,null,null,null,null,null,null,null,null,null,null,null,null,null,null,null,null,null,1,1,1,1,null,null,null,null,null,null,null,null,null,null,null,null,null,null,null,null,null,1,1,1,1]
["2017-09-10","","","",2,"",5,1,"","","","",3,"",4,"","",""," "," "," ",null,"2017-09-10",null,null,null,null,null,null,null,null,null,null,null,null,null,null,null,null,null,1,1,1,null,null,null,null,null,null,null,null,null,null,null,null,null,null,null,null,null,null,1,1,1,null,null,null,null,null,null,null,null,null,null,null,null,null,null,null,null,null,null,1,1,1,null,null,null,null,null,null,null,null,null,null,null,null,null,null,null,null,null,null,1,1,1,null,null,null,null,null,null,null,null,null,null,null,null,null,null,null,null,null,null,1,1,1,null,null,null,null,null,null,null,null,null,null,null,null,null,null,null,null,null,null,1,1,1]
["2017-09-19","",1,"",2,"","",4,5,"","","","","","","",3," "," "," "," ",null,"2017-09-19",null,null,null,null,null,null,null,null,null,null,null,null,null,null,null,null,1,1,1,1,null,null,null,null,null,null,null,null,null,null,null,null,null,null,null,null,null,1,1,1,1,null,null,null,null,null,null,null,null,null,null,null,null,null,null,null,null,null,1,1,1,1,null,null,null,null,null,null,null,null,null,null,null,null,null,null,null,null,null,1,1,1,1,null,null,null,null,null,null,null,null,null,null,null,null,null,null,null,null,null,1,1,1,1,null,null,null,null,null,null,null,null,null,null,null,null,null,null,null,null,null,1,1,1,1]
["2017-09-20",1,"","","","",5,2,4,"","","","",3,"","",""," "," "," "," ",null,"2017-09-20",null,null,null,null,null,null,null,null,null,null,null,null,null,null,null,null,1,1,1,1,null,null,null,null,null,null,null,null,null,null,null,null,null,null,null,null,null,1,1,1,1,null,null,null,null,null,null,null,null,null,null,null,null,null,null,null,null,null,1,1,1,1,null,null,null,null,null,null,null,null,null,null,null,null,null,null,null,null,null,1,1,1,1,null,null,null,null,null,null,null,null,null,null,null,null,null,null,null,null,null,1,1,1,1,null,null,null,null,null,null,null,null,null,null,null,null,null,null,null,null,null,1,1,1,1]
["2017-09-29","","","",5,"","",1,4,"","","","",2,"",3,"","",""," "," ",null,"2017-09-29",null,null,null,null,null,null,null,null,null,null,null,null,null,null,null,null,null,null,1,1,null,null,null,null,null,null,null,null,null,null,null,null,null,null,null,null,null,null,null,1,1,null,null,null,null,null,null,null,null,null,null,null,null,null,null,null,null,null,null,null,1,1,null,null,null,null,null,null,null,null,null,null,null,null,null,null,null,null,null,null,null,1,1,null,null,null,null,null,null,null,null,null,null,null,null,null,null,null,null,null,null,null,1,1,null,null,null,null,null,null,null,null,null,null,null,null,null,null,null,null,null,null,null,1,1]
["2017-10-02","",4,"","","","","","","",2,"",3,1,"","",5," "," "," "," ",null,"2017-10-02",null,null,null,null,null,null,null,null,null,null,null,null,null,null,null,null,1,1,1,1,null,null,null,null,null,null,null,null,null,null,null,null,null,null,null,null,null,1,1,1,1,null,null,null,null,null,null,null,null,null,null,null,null,null,null,null,null,null,1,1,1,1,null,null,null,null,null,null,null,null,null,null,null,null,null,null,null,null,null,1,1,1,1,null,null,null,null,null,null,null,null,null,null,null,null,null,null,null,null,null,1,1,1,1,null,null,null,null,null,null,null,null,null,null,null,null,null,null,null,null,null,1,1,1,1]
["2017-10-09","",2,"","","","","","",3,"","",4,5,"","","",1,""," "," ",null,"2017-10-09",null,null,null,null,null,null,null,null,null,null,null,null,null,null,null,null,null,null,1,1,null,null,null,null,null,null,null,null,null,null,null,null,null,null,null,null,null,null,null,1,1,null,null,null,null,null,null,null,null,null,null,null,null,null,null,null,null,null,null,null,1,1,null,null,null,null,null,null,null,null,null,null,null,null,null,null,null,null,null,null,null,1,1,null,null,null,null,null,null,null,null,null,null,null,null,null,null,null,null,null,null,null,1,1,null,null,null,null,null,null,null,null,null,null,null,null,null,null,null,null,null,null,null,1,1]
["2017-10-18","","",1,"","","",2,3,"","",5,"","","","",4,"",""," "," ",null,"2017-10-18",null,null,null,null,null,null,null,null,null,null,null,null,null,null,null,null,null,null,1,1,null,null,null,null,null,null,null,null,null,null,null,null,null,null,null,null,null,null,null,1,1,null,null,null,null,null,null,null,null,null,null,null,null,null,null,null,null,null,null,null,1,1,null,null,null,null,null,null,null,null,null,null,null,null,null,null,null,null,null,null,null,1,1,null,null,null,null,null,null,null,null,null,null,null,null,null,null,null,null,null,null,null,1,1,null,null,null,null,null,null,null,null,null,null,null,null,null,null,null,null,null,null,null,1,1]
["2017-10-21","","","","","","","",4,"","","","","",3,1,2,5,""," "," ",null,"2017-10-21",null,null,null,null,null,null,null,null,null,null,null,null,null,null,null,null,null,null,1,1,null,null,null,null,null,null,null,null,null,null,null,null,null,null,null,null,null,null,null,1,1,null,null,null,null,null,null,null,null,null,null,null,null,null,null,null,null,null,null,null,1,1,null,null,null,null,null,null,null,null,null,null,null,null,null,null,null,null,null,null,null,1,1,null,null,null,null,null,null,null,null,null,null,null,null,null,null,null,null,null,null,null,1,1,null,null,null,null,null,null,null,null,null,null,null,null,null,null,null,null,null,null,null,1,1]
["2017-10-28",3,2,"",4,"","","","",1,"","","",5,""," "," "," "," "," "," ",null,"2017-10-28",null,null,null,null,null,null,null,null,null,null,null,null,null,null,1,1,1,1,1,1,null,null,null,null,null,null,null,null,null,null,null,null,null,null,null,1,1,1,1,1,1,null,null,null,null,null,null,null,null,null,null,null,null,null,null,null,1,1,1,1,1,1,null,null,null,null,null,null,null,null,null,null,null,null,null,null,null,1,1,1,1,1,1,null,null,null,null,null,null,null,null,null,null,null,null,null,null,null,1,1,1,1,1,1,null,null,null,null,null,null,null,null,null,null,null,null,null,null,null,1,1,1,1,1,1]
["2017-11-07","","",2,"",3,"","","","",4,"",5,"",1,"",""," "," "," "," ",null,"2017-11-07",null,null,null,null,null,null,null,null,null,null,null,null,null,null,null,null,1,1,1,1,null,null,null,null,null,null,null,null,null,null,null,null,null,null,null,null,null,1,1,1,1,null,null,null,null,null,null,null,null,null,null,null,null,null,null,null,null,null,1,1,1,1,null,null,null,null,null,null,null,null,null,null,null,null,null,null,null,null,null,1,1,1,1,null,null,null,null,null,null,null,null,null,null,null,null,null,null,null,null,null,1,1,1,1,null,null,null,null,null,null,null,null,null,null,null,null,null,null,null,null,null,1,1,1,1]
["2017-11-08","",5,4,"","","","",1,"","","","",2,"","",3,"",""," "," ",null,"2017-11-08",null,null,null,null,null,null,null,null,null,null,null,null,null,null,null,null,null,null,1,1,null,null,null,null,null,null,null,null,null,null,null,null,null,null,null,null,null,null,null,1,1,null,null,null,null,null,null,null,null,null,null,null,null,null,null,null,null,null,null,null,1,1,null,null,null,null,null,null,null,null,null,null,null,null,null,null,null,null,null,null,null,1,1,null,null,null,null,null,null,null,null,null,null,null,null,null,null,null,null,null,null,null,1,1,null,null,null,null,null,null,null,null,null,null,null,null,null,null,null,null,null,null,null,1,1]
["2017-11-15",3,"","","","",1,"",5,4,"","","",2,"","",""," "," "," "," ",null,"2017-11-15",null,null,null,null,null,null,null,null,null,null,null,null,null,null,null,null,1,1,1,1,null,null,null,null,null,null,null,null,null,null,null,null,null,null,null,null,null,1,1,1,1,null,null,null,null,null,null,null,null,null,null,null,null,null,null,null,null,null,1,1,1,1,null,null,null,null,null,null,null,null,null,null,null,null,null,null,null,null,null,1,1,1,1,null,null,null,null,null,null,null,null,null,null,null,null,null,null,null,null,null,1,1,1,1,null,null,null,null,null,null,null,null,null,null,null,null,null,null,null,null,null,1,1,1,1]
["2017-11-16",4,"","","","","","","",2,1,"","",3,"","",5," "," "," "," ",null,"2017-11-16",null,null,null,null,null,null,null,null,null,null,null,null,null,null,null,null,1,1,1,1,null,null,null,null,null,null,null,null,null,null,null,null,null,null,null,null,null,1,1,1,1,null,null,null,null,null,null,null,null,null,null,null,null,null,null,null,null,null,1,1,1,1,null,null,null,null,null,null,null,null,null,null,null,null,null,null,null,null,null,1,1,1,1,null,null,null,null,null,null,null,null,null,null,null,null,null,null,null,null,null,1,1,1,1,null,null,null,null,null,null,null,null,null,null,null,null,null,null,null,null,null,1,1,1,1]
["2017-11-17","","","","",5," ",3,4,"","","","",2,1,"","","",""," "," ",null,"2017-11-17",null,null,null,null,null,1,null,null,null,null,null,null,null,null,null,null,null,null,1,1,null,null,null,null,null,null,1,null,null,null,null,null,null,null,null,null,null,null,null,1,1,null,null,null,null,null,null,1,null,null,null,null,null,null,null,null,null,null,null,null,1,1,null,null,null,null,null,null,1,null,null,null,null,null,null,null,null,null,null,null,null,1,1,null,null,null,null,null,null,1,null,null,null,null,null,null,null,null,null,null,null,null,1,1,null,null,null,null,null,null,1,null,null,null,null,null,null,null,null,null,null,null,null,1,1]
["2017-11-18",4,"",2,1,"",5,"","","","","",3,"","",""," "," "," "," "," ",null,"2017-11-18",null,null,null,null,null,null,null,null,null,null,null,null,null,null,null,1,1,1,1,1,null,null,null,null,null,null,null,null,null,null,null,null,null,null,null,null,1,1,1,1,1,null,null,null,null,null,null,null,null,null,null,null,null,null,null,null,null,1,1,1,1,1,null,null,null,null,null,null,null,null,null,null,null,null,null,null,null,null,1,1,1,1,1,null,null,null,null,null,null,null,null,null,null,null,null,null,null,null,null,1,1,1,1,1,null,null,null,null,null,null,null,null,null,null,null,null,null,null,null,null,1,1,1,1,1]
["2017-11-19","",5,"","",3,"","","",1,"","","",4,2," "," "," "," "," "," ",null,"2017-11-19",null,null,null,null,null,null,null,null,null,null,null,null,null,null,1,1,1,1,1,1,null,null,null,null,null,null,null,null,null,null,null,null,null,null,null,1,1,1,1,1,1,null,null,null,null,null,null,null,null,null,null,null,null,null,null,null,1,1,1,1,1,1,null,null,null,null,null,null,null,null,null,null,null,null,null,null,null,1,1,1,1,1,1,null,null,null,null,null,null,null,null,null,null,null,null,null,null,null,1,1,1,1,1,1,null,null,null,null,null,null,null,null,null,null,null,null,null,null,null,1,1,1,1,1,1]
["2017-11-20","","","","",3,4,"","","",1,"","","",5,"",2,"",""," "," ",null,"2017-11-20",null,null,null,null,null,null,null,null,null,null,null,null,null,null,null,null,null,null,1,1,null,null,null,null,null,null,null,null,null,null,null,null,null,null,null,null,null,null,null,1,1,null,null,null,null,null,null,null,null,null,null,null,null,null,null,null,null,null,null,null,1,1,null,null,null,null,null,null,null,null,null,null,null,null,null,null,null,null,null,null,null,1,1,null,null,null,null,null,null,null,null,null,null,null,null,null,null,null,null,null,null,null,1,1,null,null,null,null,null,null,null,null,null,null,null,null,null,null,null,null,null,null,null,1,1]
["2017-11-21","","",4,1,2,5,"","","","","","",3,"","",""," "," "," "," ",null,"2017-11-21",null,null,null,null,null,null,null,null,null,null,null,null,null,null,null,null,1,1,1,1,null,null,null,null,null,null,null,null,null,null,null,null,null,null,null,null,null,1,1,1,1,null,null,null,null,null,null,null,null,null,null,null,null,null,null,null,null,null,1,1,1,1,null,null,null,null,null,null,null,null,null,null,null,null,null,null,null,null,null,1,1,1,1,null,null,null,null,null,null,null,null,null,null,null,null,null,null,null,null,null,1,1,1,1,null,null,null,null,null,null,null,null,null,null,null,null,null,null,null,null,null,1,1,1,1]
["2017-11-22",4,"",2,"",1,"",3,5,"",""," ","","","","","","",""," "," ",null,"2017-11-22",null,null,null,null,null,null,null,null,null,null,1,null,null,null,null,null,null,null,1,1,null,null,null,null,null,null,null,null,null,null,null,1,null,null,null,null,null,null,null,1,1,null,null,null,null,null,null,null,null,null,null,null,1,null,null,null,null,null,null,null,1,1,null,null,null,null,null,null,null,null,null,null,null,1,null,null,null,null,null,null,null,1,1,null,null,null,null,null,null,null,null,null,null,null,1,null,null,null,null,null,null,null,1,1,null,null,null,null,null,null,null,null,null,null,null,1,null,null,null,null,null,null,null,1,1]
["2017-11-23","",3,2,"","","","",5,"",1,"","","","","",4,"",""," "," ",null,"2017-11-23",null,null,null,null,null,null,null,null,null,null,null,null,null,null,null,null,null,null,1,1,null,null,null,null,null,null,null,null,null,null,null,null,null,null,null,null,null,null,null,1,1,null,null,null,null,null,null,null,null,null,null,null,null,null,null,null,null,null,null,null,1,1,null,null,null,null,null,null,null,null,null,null,null,null,null,null,null,null,null,null,null,1,1,null,null,null,null,null,null,null,null,null,null,null,null,null,null,null,null,null,null,null,1,1,null,null,null,null,null,null,null,null,null,null,null,null,null,null,null,null,null,null,null,1,1]
["2017-11-24","","","","",1,"",2,4," ",3,"",5,"","","",""," "," "," "," ",null,"2017-11-24",null,null,null,null,null,null,null,null,1,null,null,null,null,null,null,null,1,1,1,1,null,null,null,null,null,null,null,null,null,1,null,null,null,null,null,null,null,1,1,1,1,null,null,null,null,null,null,null,null,null,1,null,null,null,null,null,null,null,1,1,1,1,null,null,null,null,null,null,null,null,null,1,null,null,null,null,null,null,null,1,1,1,1,null,null,null,null,null,null,null,null,null,1,null,null,null,null,null,null,null,1,1,1,1,null,null,null,null,null,null,null,null,null,1,null,null,null,null,null,null,null,1,1,1,1]
["2017-11-25","","","","","",4,5,1,3,2,"","","","","","","",""," "," ",null,"2017-11-25",null,null,null,null,null,null,null,null,null,null,null,null,null,null,null,null,null,null,1,1,null,null,null,null,null,null,null,null,null,null,null,null,null,null,null,null,null,null,null,1,1,null,null,null,null,null,null,null,null,null,null,null,null,null,null,null,null,null,null,null,1,1,null,null,null,null,null,null,null,null,null,null,null,null,null,null,null,null,null,null,null,1,1,null,null,null,null,null,null,null,null,null,null,null,null,null,null,null,null,null,null,null,1,1,null,null,null,null,null,null,null,null,null,null,null,null,null,null,null,null,null,null,null,1,1]
["2017-11-26","","","",5,"","","","","",3,"",2,"",1,"",4,""," "," "," ",null,"2017-11-26",null,null,null,null,null,null,null,null,null,null,null,null,null,null,null,null,null,1,1,1,null,null,null,null,null,null,null,null,null,null,null,null,null,null,null,null,null,null,1,1,1,null,null,null,null,null,null,null,null,null,null,null,null,null,null,null,null,null,null,1,1,1,null,null,null,null,null,null,null,null,null,null,null,null,null,null,null,null,null,null,1,1,1,null,null,null,null,null,null,null,null,null,null,null,null,null,null,null,null,null,null,1,1,1,null,null,null,null,null,null,null,null,null,null,null,null,null,null,null,null,null,null,1,1,1]
["2017-11-27","","","","","",4,3,"","","",2,"",5,"","","","",1," "," ",null,"2017-11-27",null,null,null,null,null,null,null,null,null,null,null,null,null,null,null,null,null,null,1,1,null,null,null,null,null,null,null,null,null,null,null,null,null,null,null,null,null,null,null,1,1,null,null,null,null,null,null,null,null,null,null,null,null,null,null,null,null,null,null,null,1,1,null,null,null,null,null,null,null,null,null,null,null,null,null,null,null,null,null,null,null,1,1,null,null,null,null,null,null,null,null,null,null,null,null,null,null,null,null,null,null,null,1,1,null,null,null,null,null,null,null,null,null,null,null,null,null,null,null,null,null,null,null,1,1]
["2017-11-28","","","",5,"","","",4,"",2,"","",3,"",1,""," "," "," "," ",null,"2017-11-28",null,null,null,null,null,null,null,null,null,null,null,null,null,null,null,null,1,1,1,1,null,null,null,null,null,null,null,null,null,null,null,null,null,null,null,null,null,1,1,1,1,null,null,null,null,null,null,null,null,null,null,null,null,null,null,null,null,null,1,1,1,1,null,null,null,null,null,null,null,null,null,null,null,null,null,null,null,null,null,1,1,1,1,null,null,null,null,null,null,null,null,null,null,null,null,null,null,null,null,null,1,1,1,1,null,null,null,null,null,null,null,null,null,null,null,null,null,null,null,null,null,1,1,1,1]
["2017-11-29","","","","",5,"","",1,3,"","","","","",2,4,"",""," "," ",null,"2017-11-29",null,null,null,null,null,null,null,null,null,null,null,null,null,null,null,null,null,null,1,1,null,null,null,null,null,null,null,null,null,null,null,null,null,null,null,null,null,null,null,1,1,null,null,null,null,null,null,null,null,null,null,null,null,null,null,null,null,null,null,null,1,1,null,null,null,null,null,null,null,null,null,null,null,null,null,null,null,null,null,null,null,1,1,null,null,null,null,null,null,null,null,null,null,null,null,null,null,null,null,null,null,null,1,1,null,null,null,null,null,null,null,null,null,null,null,null,null,null,null,null,null,null,null,1,1]
["2017-11-30","","",3,"","","","",2,4,"",5,"",1,"","","",""," "," "," ",null,"2017-11-30",null,null,null,null,null,null,null,null,null,null,null,null,null,null,null,null,null,1,1,1,null,null,null,null,null,null,null,null,null,null,null,null,null,null,null,null,null,null,1,1,1,null,null,null,null,null,null,null,null,null,null,null,null,null,null,null,null,null,null,1,1,1,null,null,null,null,null,null,null,null,null,null,null,null,null,null,null,null,null,null,1,1,1,null,null,null,null,null,null,null,null,null,null,null,null,null,null,null,null,null,null,1,1,1,null,null,null,null,null,null,null,null,null,null,null,null,null,null,null,null,null,null,1,1,1]
["2017-12-01",""," ","","",3,"","",1,"",4,"","",2,"","",5," "," "," "," ",null,"2017-12-01",null,1,null,null,null,null,null,null,null,null,null,null,null,null,null,null,1,1,1,1,null,null,1,null,null,null,null,null,null,null,null,null,null,null,null,null,null,1,1,1,1,null,null,1,null,null,null,null,null,null,null,null,null,null,null,null,null,null,1,1,1,1,null,null,1,null,null,null,null,null,null,null,null,null,null,null,null,null,null,1,1,1,1,null,null,1,null,null,null,null,null,null,null,null,null,null,null,null,null,null,1,1,1,1,null,null,1,null,null,null,null,null,null,null,null,null,null,null,null,null,null,1,1,1,1]
["2017-12-02","",4,"","","","","","",5,"","","","","",3,2,"",1," "," ",null,"2017-12-02",null,null,null,null,null,null,null,null,null,null,null,null,null,null,null,null,null,null,1,1,null,null,null,null,null,null,null,null,null,null,null,null,null,null,null,null,null,null,null,1,1,null,null,null,null,null,null,null,null,null,null,null,null,null,null,null,null,null,null,null,1,1,null,null,null,null,null,null,null,null,null,null,null,null,null,null,null,null,null,null,null,1,1,null,null,null,null,null,null,null,null,null,null,null,null,null,null,null,null,null,null,null,1,1,null,null,null,null,null,null,null,null,null,null,null,null,null,null,null,null,null,null,null,1,1]
["2017-12-03","","","","","",4,"",1,"",3,"","","","",2,"",5,""," "," ",null,"2017-12-03",null,null,null,null,null,null,null,null,null,null,null,null,null,null,null,null,null,null,1,1,null,null,null,null,null,null,null,null,null,null,null,null,null,null,null,null,null,null,null,1,1,null,null,null,null,null,null,null,null,null,null,null,null,null,null,null,null,null,null,null,1,1,null,null,null,null,null,null,null,null,null,null,null,null,null,null,null,null,null,null,null,1,1,null,null,null,null,null,null,null,null,null,null,null,null,null,null,null,null,null,null,null,1,1,null,null,null,null,null,null,null,null,null,null,null,null,null,null,null,null,null,null,null,1,1]
["2017-12-04",3,"","","","",1,2,"","",5,4,"","","","","","",""," "," ",null,"2017-12-04",null,null,null,null,null,null,null,null,null,null,null,null,null,null,null,null,null,null,1,1,null,null,null,null,null,null,null,null,null,null,null,null,null,null,null,null,null,null,null,1,1,null,null,null,null,null,null,null,null,null,null,null,null,null,null,null,null,null,null,null,1,1,null,null,null,null,null,null,null,null,null,null,null,null,null,null,null,null,null,null,null,1,1,null,null,null,null,null,null,null,null,null,null,null,null,null,null,null,null,null,null,null,1,1,null,null,null,null,null,null,null,null,null,null,null,null,null,null,null,null,null,null,null,1,1]
["2017-12-05",3,"",5,"","","","","",2,"",""," ",4,"","","","",1," "," ",null,"2017-12-05",null,null,null,null,null,null,null,null,null,null,null,1,null,null,null,null,null,null,1,1,null,null,null,null,null,null,null,null,null,null,null,null,1,null,null,null,null,null,null,1,1,null,null,null,null,null,null,null,null,null,null,null,null,1,null,null,null,null,null,null,1,1,null,null,null,null,null,null,null,null,null,null,null,null,1,null,null,null,null,null,null,1,1,null,null,null,null,null,null,null,null,null,null,null,null,1,null,null,null,null,null,null,1,1,null,null,null,null,null,null,null,null,null,null,null,null,1,null,null,null,null,null,null,1,1]
["2017-12-06","",1,"","","",2,"",3,"",4,5,"",""," ",""," "," "," "," "," ",null,"2017-12-06",null,null,null,null,null,null,null,null,null,null,null,null,null,1,null,1,1,1,1,1,null,null,null,null,null,null,null,null,null,null,null,null,null,null,1,null,1,1,1,1,1,null,null,null,null,null,null,null,null,null,null,null,null,null,null,1,null,1,1,1,1,1,null,null,null,null,null,null,null,null,null,null,null,null,null,null,1,null,1,1,1,1,1,null,null,null,null,null,null,null,null,null,null,null,null,null,null,1,null,1,1,1,1,1,null,null,null,null,null,null,null,null,null,null,null,null,null,null,1,null,1,1,1,1,1]
["2017-12-07","","","",1,"",5,2,"","","",3,"",4,"","","","",""," "," ",null,"2017-12-07",null,null,null,null,null,null,null,null,null,null,null,null,null,null,null,null,null,null,1,1,null,null,null,null,null,null,null,null,null,null,null,null,null,null,null,null,null,null,null,1,1,null,null,null,null,null,null,null,null,null,null,null,null,null,null,null,null,null,null,null,1,1,null,null,null,null,null,null,null,null,null,null,null,null,null,null,null,null,null,null,null,1,1,null,null,null,null,null,null,null,null,null,null,null,null,null,null,null,null,null,null,null,1,1,null,null,null,null,null,null,null,null,null,null,null,null,null,null,null,null,null,null,null,1,1]
["2017-12-08","","","","","","","","",1,"","",3,5,4,2,""," "," "," "," ",null,"2017-12-08",null,null,null,null,null,null,null,null,null,null,null,null,null,null,null,null,1,1,1,1,null,null,null,null,null,null,null,null,null,null,null,null,null,null,null,null,null,1,1,1,1,null,null,null,null,null,null,null,null,null,null,null,null,null,null,null,null,null,1,1,1,1,null,null,null,null,null,null,null,null,null,null,null,null,null,null,null,null,null,1,1,1,1,null,null,null,null,null,null,null,null,null,null,null,null,null,null,null,null,null,1,1,1,1,null,null,null,null,null,null,null,null,null,null,null,null,null,null,null,null,null,1,1,1,1]
["2017-12-09",4,"","","","",5,"","",3,"","","","",1,2," "," "," "," "," ",null,"2017-12-09",null,null,null,null,null,null,null,null,null,null,null,null,null,null,null,1,1,1,1,1,null,null,null,null,null,null,null,null,null,null,null,null,null,null,null,null,1,1,1,1,1,null,null,null,null,null,null,null,null,null,null,null,null,null,null,null,null,1,1,1,1,1,null,null,null,null,null,null,null,null,null,null,null,null,null,null,null,null,1,1,1,1,1,null,null,null,null,null,null,null,null,null,null,null,null,null,null,null,null,1,1,1,1,1,null,null,null,null,null,null,null,null,null,null,null,null,null,null,null,null,1,1,1,1,1]
["2017-12-10","","","","","",3,"","","",4,"","",5,"","",1,2," "," "," ",null,"2017-12-10",null,null,null,null,null,null,null,null,null,null,null,null,null,null,null,null,null,1,1,1,null,null,null,null,null,null,null,null,null,null,null,null,null,null,null,null,null,null,1,1,1,null,null,null,null,null,null,null,null,null,null,null,null,null,null,null,null,null,null,1,1,1,null,null,null,null,null,null,null,null,null,null,null,null,null,null,null,null,null,null,1,1,1,null,null,null,null,null,null,null,null,null,null,null,null,null,null,null,null,null,null,1,1,1,null,null,null,null,null,null,null,null,null,null,null,null,null,null,null,null,null,null,1,1,1]
["2017-12-12",1,"","","",5,"","",2,"","",3,"","","","",4," "," "," "," ",null,"2017-12-12",null,null,null,null,null,null,null,null,null,null,null,null,null,null,null,null,1,1,1,1,null,null,null,null,null,null,null,null,null,null,null,null,null,null,null,null,null,1,1,1,1,null,null,null,null,null,null,null,null,null,null,null,null,null,null,null,null,null,1,1,1,1,null,null,null,null,null,null,null,null,null,null,null,null,null,null,null,null,null,1,1,1,1,null,null,null,null,null,null,null,null,null,null,null,null,null,null,null,null,null,1,1,1,1,null,null,null,null,null,null,null,null,null,null,null,null,null,null,null,null,null,1,1,1,1]
["2017-12-13",""," ","","","","","",5,"","",4,2,"","",1,3,""," "," "," ",null,"2017-12-13",null,1,null,null,null,null,null,null,null,null,null,null,null,null,null,null,null,1,1,1,null,null,1,null,null,null,null,null,null,null,null,null,null,null,null,null,null,null,1,1,1,null,null,1,null,null,null,null,null,null,null,null,null,null,null,null,null,null,null,1,1,1,null,null,1,null,null,null,null,null,null,null,null,null,null,null,null,null,null,null,1,1,1,null,null,1,null,null,null,null,null,null,null,null,null,null,null,null,null,null,null,1,1,1,null,null,1,null,null,null,null,null,null,null,null,null,null,null,null,null,null,null,1,1,1]
["2017-12-14",5,"","",3,"","",1,"","",4,"","","","","",2," "," "," "," ",null,"2017-12-14",null,null,null,null,null,null,null,null,null,null,null,null,null,null,null,null,1,1,1,1,null,null,null,null,null,null,null,null,null,null,null,null,null,null,null,null,null,1,1,1,1,null,null,null,null,null,null,null,null,null,null,null,null,null,null,null,null,null,1,1,1,1,null,null,null,null,null,null,null,null,null,null,null,null,null,null,null,null,null,1,1,1,1,null,null,null,null,null,null,null,null,null,null,null,null,null,null,null,null,null,1,1,1,1,null,null,null,null,null,null,null,null,null,null,null,null,null,null,null,null,null,1,1,1,1]
["2017-12-15",3,4,"",2,"",1,"","","","","",5,"","","","","",""," "," ",null,"2017-12-15",null,null,null,null,null,null,null,null,null,null,null,null,null,null,null,null,null,null,1,1,null,null,null,null,null,null,null,null,null,null,null,null,null,null,null,null,null,null,null,1,1,null,null,null,null,null,null,null,null,null,null,null,null,null,null,null,null,null,null,null,1,1,null,null,null,null,null,null,null,null,null,null,null,null,null,null,null,null,null,null,null,1,1,null,null,null,null,null,null,null,null,null,null,null,null,null,null,null,null,null,null,null,1,1,null,null,null,null,null,null,null,null,null,null,null,null,null,null,null,null,null,null,null,1,1]
["2017-12-16","","","",1,4,3,5,"","","","",2,"","","","","",""," "," ",null,"2017-12-16",null,null,null,null,null,null,null,null,null,null,null,null,null,null,null,null,null,null,1,1,null,null,null,null,null,null,null,null,null,null,null,null,null,null,null,null,null,null,null,1,1,null,null,null,null,null,null,null,null,null,null,null,null,null,null,null,null,null,null,null,1,1,null,null,null,null,null,null,null,null,null,null,null,null,null,null,null,null,null,null,null,1,1,null,null,null,null,null,null,null,null,null,null,null,null,null,null,null,null,null,null,null,1,1,null,null,null,null,null,null,null,null,null,null,null,null,null,null,null,null,null,null,null,1,1]
["2017-12-17","",2,"","","","","","","",5,1,3,4,"","",""," "," "," "," ",null,"2017-12-17",null,null,null,null,null,null,null,null,null,null,null,null,null,null,null,null,1,1,1,1,null,null,null,null,null,null,null,null,null,null,null,null,null,null,null,null,null,1,1,1,1,null,null,null,null,null,null,null,null,null,null,null,null,null,null,null,null,null,1,1,1,1,null,null,null,null,null,null,null,null,null,null,null,null,null,null,null,null,null,1,1,1,1,null,null,null,null,null,null,null,null,null,null,null,null,null,null,null,null,null,1,1,1,1,null,null,null,null,null,null,null,null,null,null,null,null,null,null,null,null,null,1,1,1,1]
["2017-12-18","","",4,5,"",3,1,"",2,"","","","","","",""," "," "," "," ",null,"2017-12-18",null,null,null,null,null,null,null,null,null,null,null,null,null,null,null,null,1,1,1,1,null,null,null,null,null,null,null,null,null,null,null,null,null,null,null,null,null,1,1,1,1,null,null,null,null,null,null,null,null,null,null,null,null,null,null,null,null,null,1,1,1,1,null,null,null,null,null,null,null,null,null,null,null,null,null,null,null,null,null,1,1,1,1,null,null,null,null,null,null,null,null,null,null,null,null,null,null,null,null,null,1,1,1,1,null,null,null,null,null,null,null,null,null,null,null,null,null,null,null,null,null,1,1,1,1]
["2017-12-19","",4,2,"",5,"","",""," ","","","",1,"",3,"","",""," "," ",null,"2017-12-19",null,null,null,null,null,null,null,null,1,null,null,null,null,null,null,null,null,null,1,1,null,null,null,null,null,null,null,null,null,1,null,null,null,null,null,null,null,null,null,1,1,null,null,null,null,null,null,null,null,null,1,null,null,null,null,null,null,null,null,null,1,1,null,null,null,null,null,null,null,null,null,1,null,null,null,null,null,null,null,null,null,1,1,null,null,null,null,null,null,null,null,null,1,null,null,null,null,null,null,null,null,null,1,1,null,null,null,null,null,null,null,null,null,1,null,null,null,null,null,null,null,null,null,1,1]
["2017-12-20","",5,"","",2,3,"","","",4,1,"","","",""," "," "," "," "," ",null,"2017-12-20",null,null,null,null,null,null,null,null,null,null,null,null,null,null,null,1,1,1,1,1,null,null,null,null,null,null,null,null,null,null,null,null,null,null,null,null,1,1,1,1,1,null,null,null,null,null,null,null,null,null,null,null,null,null,null,null,null,1,1,1,1,1,null,null,null,null,null,null,null,null,null,null,null,null,null,null,null,null,1,1,1,1,1,null,null,null,null,null,null,null,null,null,null,null,null,null,null,null,null,1,1,1,1,1,null,null,null,null,null,null,null,null,null,null,null,null,null,null,null,null,1,1,1,1,1]
["2017-12-21","  ",4,5,"","","","","",""," ","","","",1,2,3," "," "," "," ",null,"2017-12-21",null,null,null,null,null,null,null,null,null,1,null,null,null,null,null,null,1,1,1,1,null,null,null,null,null,null,null,null,null,null,1,null,null,null,null,null,null,1,1,1,1,null,null,null,null,null,null,null,null,null,null,1,null,null,null,null,null,null,1,1,1,1,null,null,null,null,null,null,null,null,null,null,1,null,null,null,null,null,null,1,1,1,1,null,null,null,null,null,null,null,null,null,null,1,null,null,null,null,null,null,1,1,1,1,null,null,null,null,null,null,null,null,null,null,1,null,null,null,null,null,null,1,1,1,1]
["2017-12-22","","","","","","","","",2,3,"",1,5,"","","",4,null," "," ",null,"2017-12-22",null,null,null,null,null,null,null,null,null,null,null,null,null,null,null,null,null,null,1,1,null,null,null,null,null,null,null,null,null,null,null,null,null,null,null,null,null,null,null,1,1,null,null,null,null,null,null,null,null,null,null,null,null,null,null,null,null,null,null,null,1,1,null,null,null,null,null,null,null,null,null,null,null,null,null,null,null,null,null,null,null,1,1,null,null,null,null,null,null,null,null,null,null,null,null,null,null,null,null,null,null,null,1,1,null,null,null,null,null,null,null,null,null,null,null,null,null,null,null,null,null,null,null,1,1]
["2017-12-23",5,"","","","",4,3,"","","","",1,"",2,"","","",""," "," ",null,"2017-12-23",null,null,null,null,null,null,null,null,null,null,null,null,null,null,null,null,null,null,1,1,null,null,null,null,null,null,null,null,null,null,null,null,null,null,null,null,null,null,null,1,1,null,null,null,null,null,null,null,null,null,null,null,null,null,null,null,null,null,null,null,1,1,null,null,null,null,null,null,null,null,null,null,null,null,null,null,null,null,null,null,null,1,1,null,null,null,null,null,null,null,null,null,null,null,null,null,null,null,null,null,null,null,1,1,null,null,null,null,null,null,null,null,null,null,null,null,null,null,null,null,null,null,null,1,1]
["2017-12-24","","","","","","","",2,"","",4,3,1,5," ","","","","","",null,"2017-12-24",null,null,null,null,null,null,null,null,null,null,null,null,null,null,1,1,1,1,1,1,null,null,null,null,null,null,null,null,null,null,null,null,null,null,null,1,1,1,1,1,1,null,null,null,null,null,null,null,null,null,null,null,null,null,null,null,1,1,1,1,1,1,null,null,null,null,null,null,null,null,null,null,null,null,null,null,null,1,1,1,1,1,1,null,null,null,null,null,null,null,null,null,null,null,null,null,null,null,1,1,1,1,1,1,null,null,null,null,null,null,null,null,null,null,null,null,null,null,null,1,1,1,1,1,1]
["2017-12-25",5,"",4,"","","",1,"","",""," ","","","","",2,3,"","","",null,"2017-12-25",null,null,null,null,null,null,null,null,null,null,1,null,null,null,null,null,null,1,1,1,null,null,null,null,null,null,null,null,null,null,null,1,null,null,null,null,null,null,1,1,1,null,null,null,null,null,null,null,null,null,null,null,1,null,null,null,null,null,null,1,1,1,null,null,null,null,null,null,null,null,null,null,null,1,null,null,null,null,null,null,1,1,1,null,null,null,null,null,null,null,null,null,null,null,1,null,null,null,null,null,null,1,1,1,null,null,null,null,null,null,null,null,null,null,null,1,null,null,null,null,null,null,1,1,1]
["2017-12-26","","",3,"","",4,2,1,5,"","","","","",""," "," "," "," "," ",null,"2017-12-26",null,null,null,null,null,null,null,null,null,null,null,null,null,null,null,null,1,1,1,1,null,null,null,null,null,null,null,null,null,null,null,null,null,null,null,null,null,1,1,1,1,null,null,null,null,null,null,null,null,null,null,null,null,null,null,null,null,null,1,1,1,1,null,null,null,null,null,null,null,null,null,null,null,null,null,null,null,null,null,1,1,1,1,null,null,null,null,null,null,null,null,null,null,null,null,null,null,null,null,null,1,1,1,1,null,null,null,null,null,null,null,null,null,null,null,null,null,null,null,null,null,1,1,1,1]
["2017-12-27","","","",2,"",1,"",""," ","","",3,4,5,"",""," "," "," "," ",null,"2017-12-27",null,null,null,null,null,null,null,null,1,null,null,null,null,null,null,null,1,1,1,1,null,null,null,null,null,null,null,null,null,1,null,null,null,null,null,null,null,1,1,1,1,null,null,null,null,null,null,null,null,null,1,null,null,null,null,null,null,null,1,1,1,1,null,null,null,null,null,null,null,null,null,1,null,null,null,null,null,null,null,1,1,1,1,null,null,null,null,null,null,null,null,null,1,null,null,null,null,null,null,null,1,1,1,1,null,null,null,null,null,null,null,null,null,1,null,null,null,null,null,null,null,1,1,1,1]
["2017-12-28","","",3,"",4,"","",5,2,"",1,"","","","",""," "," "," "," ",null,"2017-12-28",null,null,null,null,null,null,null,null,null,null,null,null,null,null,null,null,1,1,1,1,null,null,null,null,null,null,null,null,null,null,null,null,null,null,null,null,null,1,1,1,1,null,null,null,null,null,null,null,null,null,null,null,null,null,null,null,null,null,1,1,1,1,null,null,null,null,null,null,null,null,null,null,null,null,null,null,null,null,null,1,1,1,1,null,null,null,null,null,null,null,null,null,null,null,null,null,null,null,null,null,1,1,1,1,null,null,null,null,null,null,null,null,null,null,null,null,null,null,null,null,null,1,1,1,1]
["2017-12-29","","","","","",5,"",3,"","","",4,2,"","","",1,""," "," ",null,"2017-12-29",null,null,null,null,null,null,null,null,null,null,null,null,null,null,null,null,null,null,1,1,null,null,null,null,null,null,null,null,null,null,null,null,null,null,null,null,null,null,null,1,1,null,null,null,null,null,null,null,null,null,null,null,null,null,null,null,null,null,null,null,1,1,null,null,null,null,null,null,null,null,null,null,null,null,null,null,null,null,null,null,null,1,1,null,null,null,null,null,null,null,null,null,null,null,null,null,null,null,null,null,null,null,1,1,null,null,null,null,null,null,null,null,null,null,null,null,null,null,null,null,null,null,null,1,1]
["2017-12-30","","","",1,"",5,2,4,"",3,"","","","",""," "," "," "," "," ",null,"2017-12-30",null,null,null,null,null,null,null,null,null,null,null,null,null,null,null,1,1,1,1,1,null,null,null,null,null,null,null,null,null,null,null,null,null,null,null,null,1,1,1,1,1,null,null,null,null,null,null,null,null,null,null,null,null,null,null,null,null,1,1,1,1,1,null,null,null,null,null,null,null,null,null,null,null,null,null,null,null,null,1,1,1,1,1,null,null,null,null,null,null,null,null,null,null,null,null,null,null,null,null,1,1,1,1,1,null,null,null,null,null,null,null,null,null,null,null,null,null,null,null,null,1,1,1,1,1]
["2017-12-31","","","np","","",1,2,"",4,"","","","",5,3,"","np"," "," "," ",null,"2017-12-31",null,null,1,null,null,null,null,null,null,null,null,null,null,null,null,null,1,1,1,1,null,null,null,1,null,null,null,null,null,null,null,null,null,null,null,null,null,1,1,1,1,null,null,null,1,null,null,null,null,null,null,null,null,null,null,null,null,null,1,1,1,1,null,null,null,1,null,null,null,null,null,null,null,null,null,null,null,null,null,1,1,1,1,null,null,null,1,null,null,null,null,null,null,null,null,null,null,null,null,null,1,1,1,1,null,null,null,1,null,null,null,null,null,null,null,null,null,null,null,null,null,1,1,1,1]
["2018-01-01","","","",4,"","","","",2,"","",3,5,"","","",1," "," "," ",null,"2018-01-01",null,null,null,null,null,null,null,null,null,null,null,null,null,null,null,null,null,1,1,1,null,null,null,null,null,null,null,null,null,null,null,null,null,null,null,null,null,null,1,1,1,null,null,null,null,null,null,null,null,null,null,null,null,null,null,null,null,null,null,1,1,1,null,null,null,null,null,null,null,null,null,null,null,null,null,null,null,null,null,null,1,1,1,null,null,null,null,null,null,null,null,null,null,null,null,null,null,null,null,null,null,1,1,1,null,null,null,null,null,null,null,null,null,null,null,null,null,null,null,null,null,null,1,1,1]
["2018-01-02","","","","","",1,"","",2,"","",3,"","",5,4,"",""," "," ",null,"2018-01-02",null,null,null,null,null,null,null,null,null,null,null,null,null,null,null,null,null,null,1,1,null,null,null,null,null,null,null,null,null,null,null,null,null,null,null,null,null,null,null,1,1,null,null,null,null,null,null,null,null,null,null,null,null,null,null,null,null,null,null,null,1,1,null,null,null,null,null,null,null,null,null,null,null,null,null,null,null,null,null,null,null,1,1,null,null,null,null,null,null,null,null,null,null,null,null,null,null,null,null,null,null,null,1,1,null,null,null,null,null,null,null,null,null,null,null,null,null,null,null,null,null,null,null,1,1]
["2018-01-03","","","","",4,"","",1,2,"",3,"","","",5,""," "," "," "," ",null,"2018-01-03",null,null,null,null,null,null,null,null,null,null,null,null,null,null,null,null,1,1,1,1,null,null,null,null,null,null,null,null,null,null,null,null,null,null,null,null,null,1,1,1,1,null,null,null,null,null,null,null,null,null,null,null,null,null,null,null,null,null,1,1,1,1,null,null,null,null,null,null,null,null,null,null,null,null,null,null,null,null,null,1,1,1,1,null,null,null,null,null,null,null,null,null,null,null,null,null,null,null,null,null,1,1,1,1,null,null,null,null,null,null,null,null,null,null,null,null,null,null,null,null,null,1,1,1,1]
["2018-01-04",1,4,5,"",3,"np","","","","","","","",2,""," "," "," "," "," ",null,"2018-01-04",null,null,null,null,null,1,null,null,null,null,null,null,null,null,null,1,1,1,1,1,null,null,null,null,null,null,1,null,null,null,null,null,null,null,null,null,1,1,1,1,1,null,null,null,null,null,null,1,null,null,null,null,null,null,null,null,null,1,1,1,1,1,null,null,null,null,null,null,1,null,null,null,null,null,null,null,null,null,1,1,1,1,1,null,null,null,null,null,null,1,null,null,null,null,null,null,null,null,null,1,1,1,1,1,null,null,null,null,null,null,1,null,null,null,null,null,null,null,null,null,1,1,1,1,1]
["2018-01-05",5,1,"","",3,4,2,"","np","","","","","","",""," "," "," "," ",null,"2018-01-05",null,null,null,null,null,null,null,null,1,null,null,null,null,null,null,null,1,1,1,1,null,null,null,null,null,null,null,null,null,1,null,null,null,null,null,null,null,1,1,1,1,null,null,null,null,null,null,null,null,null,1,null,null,null,null,null,null,null,1,1,1,1,null,null,null,null,null,null,null,null,null,1,null,null,null,null,null,null,null,1,1,1,1,null,null,null,null,null,null,null,null,null,1,null,null,null,null,null,null,null,1,1,1,1,null,null,null,null,null,null,null,null,null,1,null,null,null,null,null,null,null,1,1,1,1]
["2018-01-06","",1,4,"","","","np","",3,"","","","",5,"",2,"",""," "," ",null,"2018-01-06",null,null,null,null,null,null,1,null,null,null,null,null,null,null,null,null,null,null,1,1,null,null,null,null,null,null,null,1,null,null,null,null,null,null,null,null,null,null,null,1,1,null,null,null,null,null,null,null,1,null,null,null,null,null,null,null,null,null,null,null,1,1,null,null,null,null,null,null,null,1,null,null,null,null,null,null,null,null,null,null,null,1,1,null,null,null,null,null,null,null,1,null,null,null,null,null,null,null,null,null,null,null,1,1,null,null,null,null,null,null,null,1,null,null,null,null,null,null,null,null,null,null,null,1,1]
["2018-01-07","","","",1,3,"",4,5,2,"np","","","","","","","",""," "," ",null,"2018-01-07",null,null,null,null,null,null,null,null,null,1,null,null,null,null,null,null,null,null,1,1,null,null,null,null,null,null,null,null,null,null,1,null,null,null,null,null,null,null,null,1,1,null,null,null,null,null,null,null,null,null,null,1,null,null,null,null,null,null,null,null,1,1,null,null,null,null,null,null,null,null,null,null,1,null,null,null,null,null,null,null,null,1,1,null,null,null,null,null,null,null,null,null,null,1,null,null,null,null,null,null,null,null,1,1,null,null,null,null,null,null,null,null,null,null,1,null,null,null,null,null,null,null,null,1,1]
["2018-01-08",4,3,"","","",1,"","","","",2,"",5,"","","","",""," "," ",null,"2018-01-08",null,null,null,null,null,null,null,null,null,null,null,null,null,null,null,null,null,null,1,1,null,null,null,null,null,null,null,null,null,null,null,null,null,null,null,null,null,null,null,1,1,null,null,null,null,null,null,null,null,null,null,null,null,null,null,null,null,null,null,null,1,1,null,null,null,null,null,null,null,null,null,null,null,null,null,null,null,null,null,null,null,1,1,null,null,null,null,null,null,null,null,null,null,null,null,null,null,null,null,null,null,null,1,1,null,null,null,null,null,null,null,null,null,null,null,null,null,null,null,null,null,null,null,1,1]
["2018-01-09",1,"","",5,"",3,"","",2,"","","","",4,"","","",""," "," ",null,"2018-01-09",null,null,null,null,null,null,null,null,null,null,null,null,null,null,null,null,null,null,1,1,null,null,null,null,null,null,null,null,null,null,null,null,null,null,null,null,null,null,null,1,1,null,null,null,null,null,null,null,null,null,null,null,null,null,null,null,null,null,null,null,1,1,null,null,null,null,null,null,null,null,null,null,null,null,null,null,null,null,null,null,null,1,1,null,null,null,null,null,null,null,null,null,null,null,null,null,null,null,null,null,null,null,1,1,null,null,null,null,null,null,null,null,null,null,null,null,null,null,null,null,null,null,null,1,1]
["2018-01-10","","","","","",5,4,2,"","","","","","","",1,3,""," "," ",null,"2018-01-10",null,null,null,null,null,null,null,null,null,null,null,null,null,null,null,null,null,null,1,1,null,null,null,null,null,null,null,null,null,null,null,null,null,null,null,null,null,null,null,1,1,null,null,null,null,null,null,null,null,null,null,null,null,null,null,null,null,null,null,null,1,1,null,null,null,null,null,null,null,null,null,null,null,null,null,null,null,null,null,null,null,1,1,null,null,null,null,null,null,null,null,null,null,null,null,null,null,null,null,null,null,null,1,1,null,null,null,null,null,null,null,null,null,null,null,null,null,null,null,null,null,null,null,1,1]
["2018-01-11","","",2,"","","","","","","","","","",1,"",5,3,4," "," ",null,"2018-01-11",null,null,null,null,null,null,null,null,null,null,null,null,null,null,null,null,null,null,1,1,null,null,null,null,null,null,null,null,null,null,null,null,null,null,null,null,null,null,null,1,1,null,null,null,null,null,null,null,null,null,null,null,null,null,null,null,null,null,null,null,1,1,null,null,null,null,null,null,null,null,null,null,null,null,null,null,null,null,null,null,null,1,1,null,null,null,null,null,null,null,null,null,null,null,null,null,null,null,null,null,null,null,1,1,null,null,null,null,null,null,null,null,null,null,null,null,null,null,null,null,null,null,null,1,1]
["2018-01-12","","","","","",5,2,"",3,"","",1,"","","",4,"",""," "," ",null,"2018-01-12",null,null,null,null,null,null,null,null,null,null,null,null,null,null,null,null,null,null,1,1,null,null,null,null,null,null,null,null,null,null,null,null,null,null,null,null,null,null,null,1,1,null,null,null,null,null,null,null,null,null,null,null,null,null,null,null,null,null,null,null,1,1,null,null,null,null,null,null,null,null,null,null,null,null,null,null,null,null,null,null,null,1,1,null,null,null,null,null,null,null,null,null,null,null,null,null,null,null,null,null,null,null,1,1,null,null,null,null,null,null,null,null,null,null,null,null,null,null,null,null,null,null,null,1,1]
["2018-01-13","","","np","",3,"","",5,"","",4,"","","",2,"",1," "," "," ",null,"2018-01-13",null,null,1,null,null,null,null,null,null,null,null,null,null,null,null,null,null,1,1,1,null,null,null,1,null,null,null,null,null,null,null,null,null,null,null,null,null,null,1,1,1,null,null,null,1,null,null,null,null,null,null,null,null,null,null,null,null,null,null,1,1,1,null,null,null,1,null,null,null,null,null,null,null,null,null,null,null,null,null,null,1,1,1,null,null,null,1,null,null,null,null,null,null,null,null,null,null,null,null,null,null,1,1,1,null,null,null,1,null,null,null,null,null,null,null,null,null,null,null,null,null,null,1,1,1]
["2018-01-14",4,"",5,"","","","","","",3,"","","",1,2," "," "," "," "," ",null,"2018-01-14",null,null,null,null,null,null,null,null,null,null,null,null,null,null,null,1,1,1,1,1,null,null,null,null,null,null,null,null,null,null,null,null,null,null,null,null,1,1,1,1,1,null,null,null,null,null,null,null,null,null,null,null,null,null,null,null,null,1,1,1,1,1,null,null,null,null,null,null,null,null,null,null,null,null,null,null,null,null,1,1,1,1,1,null,null,null,null,null,null,null,null,null,null,null,null,null,null,null,null,1,1,1,1,1,null,null,null,null,null,null,null,null,null,null,null,null,null,null,null,null,1,1,1,1,1]
["2018-01-15","",4,"","","",5,"","","",3,"",1,"","","","","",2," "," ",null,"2018-01-15",null,null,null,null,null,null,null,null,null,null,null,null,null,null,null,null,null,null,1,1,null,null,null,null,null,null,null,null,null,null,null,null,null,null,null,null,null,null,null,1,1,null,null,null,null,null,null,null,null,null,null,null,null,null,null,null,null,null,null,null,1,1,null,null,null,null,null,null,null,null,null,null,null,null,null,null,null,null,null,null,null,1,1,null,null,null,null,null,null,null,null,null,null,null,null,null,null,null,null,null,null,null,1,1,null,null,null,null,null,null,null,null,null,null,null,null,null,null,null,null,null,null,null,1,1]
[null,null,null,null,null,null,null,null,null,null,null,null,null,null,null,null,null,null,null,null,null,null,null,{"$f":"SUM(X3:X1832)","v":44},{"$f":"SUM(Y3:Y1832)","v":27},30,30,29,28,33,31,35,32,31,33,30,55,156,324,1100,1268,1784,1816,null,{"$f":"SUM(AS3:AS1832)","v":44},27,30,30,29,28,33,31,35,32,31,33,30,55,156,324,1100,1268,1784,1816,null,{"$f":"SUM(BN3:BN1832)","v":44},{"$f":"SUM(BO3:BO1832)","v":27},{"$f":"SUM(BP3:BP1832)","v":30},{"$f":"SUM(BQ3:BQ1832)","v":30},{"$f":"SUM(BR3:BR1832)","v":29},{"$f":"SUM(BS3:BS1832)","v":28},{"$f":"SUM(BT3:BT1832)","v":33},{"$f":"SUM(BU3:BU1832)","v":31},{"$f":"SUM(BV3:BV1832)","v":35},{"$f":"SUM(BW3:BW1832)","v":32},{"$f":"SUM(BX3:BX1832)","v":31},{"$f":"SUM(BY3:BY1832)","v":33},{"$f":"SUM(BZ3:BZ1832)","v":30},{"$f":"SUM(CA3:CA1832)","v":55},{"$f":"SUM(CB3:CB1832)","v":156},{"$f":"SUM(CC3:CC1832)","v":324},{"$f":"SUM(CD3:CD1832)","v":1100},{"$f":"SUM(CE3:CE1832)","v":1268},{"$f":"SUM(CF3:CF1832)","v":1784},{"$f":"SUM(CG3:CG1832)","v":1816},null,{"$f":"SUM(CI3:CI1832)","v":44},{"$f":"SUM(CJ3:CJ1832)","v":27},{"$f":"SUM(CK3:CK1832)","v":30},{"$f":"SUM(CL3:CL1832)","v":30},{"$f":"SUM(CM3:CM1832)","v":29},{"$f":"SUM(CN3:CN1832)","v":28},{"$f":"SUM(CO3:CO1832)","v":33},{"$f":"SUM(CP3:CP1832)","v":31},{"$f":"SUM(CQ3:CQ1832)","v":35},{"$f":"SUM(CR3:CR1832)","v":32},{"$f":"SUM(CS3:CS1832)","v":31},{"$f":"SUM(CT3:CT1832)","v":33},{"$f":"SUM(CU3:CU1832)","v":30},{"$f":"SUM(CV3:CV1832)","v":55},{"$f":"SUM(CW3:CW1832)","v":156},{"$f":"SUM(CX3:CX1832)","v":324},{"$f":"SUM(CY3:CY1832)","v":1100},{"$f":"SUM(CZ3:CZ1832)","v":1268},{"$f":"SUM(DA3:DA1832)","v":1784},{"$f":"SUM(DB3:DB1832)","v":1816},null,{"$f":"SUM(DD3:DD1832)","v":44},{"$f":"SUM(DE3:DE1832)","v":27},{"$f":"SUM(DF3:DF1832)","v":30},{"$f":"SUM(DG3:DG1832)","v":30},{"$f":"SUM(DH3:DH1832)","v":29},{"$f":"SUM(DI3:DI1832)","v":28},{"$f":"SUM(DJ3:DJ1832)","v":33},{"$f":"SUM(DK3:DK1832)","v":31},{"$f":"SUM(DL3:DL1832)","v":35},{"$f":"SUM(DM3:DM1832)","v":32},{"$f":"SUM(DN3:DN1832)","v":31},{"$f":"SUM(DO3:DO1832)","v":33},{"$f":"SUM(DP3:DP1832)","v":30},{"$f":"SUM(DQ3:DQ1832)","v":55},{"$f":"SUM(DR3:DR1832)","v":156},{"$f":"SUM(DS3:DS1832)","v":324},{"$f":"SUM(DT3:DT1832)","v":1100},{"$f":"SUM(DU3:DU1832)","v":1268},{"$f":"SUM(DV3:DV1832)","v":1784},{"$f":"SUM(DW3:DW1832)","v":1816},null,{"$f":"SUM(DY3:DY1832)","v":44},{"$f":"SUM(DZ3:DZ1832)","v":27},{"$f":"SUM(EA3:EA1832)","v":30},{"$f":"SUM(EB3:EB1832)","v":30},{"$f":"SUM(EC3:EC1832)","v":29},{"$f":"SUM(ED3:ED1832)","v":28},{"$f":"SUM(EE3:EE1832)","v":33},{"$f":"SUM(EF3:EF1832)","v":31},{"$f":"SUM(EG3:EG1832)","v":35},{"$f":"SUM(EH3:EH1832)","v":32},{"$f":"SUM(EI3:EI1832)","v":31},{"$f":"SUM(EJ3:EJ1832)","v":33},{"$f":"SUM(EK3:EK1832)","v":30},{"$f":"SUM(EL3:EL1832)","v":55},{"$f":"SUM(EM3:EM1832)","v":156},{"$f":"SUM(EN3:EN1832)","v":324},{"$f":"SUM(EO3:EO1832)","v":1100},{"$f":"SUM(EP3:EP1832)","v":1268},{"$f":"SUM(EQ3:EQ1832)","v":1784},{"$f":"SUM(ER3:ER1832)","v":1816}]